Workbook

Sheet Preface and Contents
E2: 2021 Annual Technology Baseline (ATB)
E4: NREL annually documents a realistic and timely set of input assumptions (e.g., technology cost, fuel costs), and a diverse set of potential futures (standard scenarios) to inform electric sector analysis in the United States. The products of this work, including assessments of current and projected technology cost and performance for both renewable and conventional electricity generation technologies, as well as market projections of more than a dozen scenarios produced with NREL's Regional Energy Deployment Systems (ReEDS) model, are applied consistently in NREL's analyses throughout the following year. This annual process is supported by the Office of Strategic Programs of the U.S. Department of Energy’s Office of Energy Efficiency and Renewable Energy (EERE). The specific products from this effort including the following:
E6: * An Annual Technology Baseline (ATB) workbook documenting detailed cost and performance data (both current and projected) for both renewable and conventional technologies.
E7: * An ATB web application describing each of the technologies and providing additional context for their treatment in the workbook.
E8: * A Standard Scenarios annual report describing the identified scenarios, associated assumptions (including technology cost and performance assumptions from the ATB).
E10: These products can be accessed at atb.nrel.gov.
E12: New to this Edition
E14: Two options representing market conditions for project financing: - R&D: based on macro-economic indicators from AEO (2019) for the year 2017 as a source for debt rates and return on equity rates; includes dynamic effects of R&D on technology cost, technology performance, and financial performance; excludes economic dynamics such as background changes to inflation, interest, and return on equity; excludes policies such as tax credits and tariffs; financing presented as a time series - R&D + Market: based on macro-economic indicators from AEO (2019) as a source for debt rates and return on equity rates; includes dynamics from R&D Only case; adds in economic dynamics and policies
E16: Contents
E17: Financial Definitions
E18: Wind: Land-based
E19: Wind: Offshore
E20: Solar: PV: Utility
E21: Solar: PV: Commercial
E22: Solar: PV: Residential
E23: Solar: CSP
E24: Geothermal
E25: Hydropower
E26: Natural Gas
E27: Coal
E28: Nuclear
E29: Biopower
E30: Battery_Storage
E31: PV+Battery
E32: Pumped Hydro Storage
E33: Summary (for Tableau)
E35: References
E36: For full references for all citations in this workbook, see
E37: https://atb.nrel.gov/electricity/2021/references
E39: Recommended Citation
E40: NREL (National Renewable Energy Laboratory). 2021. 2021 Annual Technology Baseline. Golden, CO: National Renewable Energy Laboratory.
E42: Online
B43: atb.nrel.gov | E43: 2021 Annual Technology Baseline (ATB)
E45: Contact
E46: https://atb.nrel.gov/contact
E48: DISCLAIMER AGREEMENT
E49: These detailed electricity generation technology cost and performance data ("Data") are provided by the National Renewable Energy Laboratory ("NREL"), which is operated by the Alliance for Sustainable Energy LLC ("Alliance") for the U.S. Department of Energy (the "DOE").
E51: It is recognized that disclosure of these Data are provided under the following conditions and warnings: (1) these Data have been prepared for reference purposes only; (2) these Data consist of forecasts, estimates, or assumptions made on a best-efforts basis, based upon expectations of current and future conditions at the time they were developed; and (3) these Data were prepared with existing information and are subject to change without notice.
E53: The user understands that DOE/NREL/ALLIANCE are not obligated to provide the user with any support, consulting, training or assistance of any kind with regard to the use of the Data or to provide the user with any updates, revisions or new versions thereof. DOE, NREL, and ALLIANCE do not guarantee or endorse any results generated by use of the Data, and user is entirely responsible for the results and any reliance on the results or the Data in general.
E55: USER AGREES TO INDEMNIFY DOE/NREL/ALLIANCE AND ITS SUBSIDIARIES, AFFILIATES, OFFICERS, AGENTS, AND EMPLOYEES AGAINST ANY CLAIM OR DEMAND, INCLUDING REASONABLE ATTORNEYS' FEES, RELATED TO USER’S USE OF THE DATA. THE DATA ARE PROVIDED BY DOE/NREL/ALLIANCE "AS IS," AND ANY EXPRESS OR IMPLIED WARRANTIES, INCLUDING BUT NOT LIMITED TO THE IMPLIED WARRANTIES OF MERCHANTABILITY AND FITNESS FOR A PARTICULAR PURPOSE ARE DISCLAIMED. IN NO EVENT SHALL DOE/NREL/ALLIANCE BE LIABLE FOR ANY SPECIAL, INDIRECT OR CONSEQUENTIAL DAMAGES OR ANY DAMAGES WHATSOEVER, INCLUDING BUT NOT LIMITED TO CLAIMS ASSOCIATED WITH THE LOSS OF DATA OR PROFITS, THAT MAY RESULT FROM AN ACTION IN CONTRACT, NEGLIGENCE OR OTHER TORTIOUS CLAIM THAT ARISES OUT OF OR IN CONNECTION WITH THE ACCESS, USE OR PERFORMANCE OF THE DATA.

Sheet Financial Definitions
B2: Electricity Generation Technology LCOE equation for Standard Scenarios – ReEDS Model Inputs and Annual Technology Baseline presentation of technology assumptions.
B3: Note: Costs associated with a given year are for systems that come online in that year. For example, the overnight capital cost (OCC) for a technology in 2021 represents the OCC of a system that begins commercial operation in 2021. The capacity factor for a technology in 2021 represents the expected annualized lifetime energy production for a system that begins commercial operation in 2021.
B5: Levelized Cost of Energy ($/MWh) | C5: LCOE = ((FCR * CAPEX + FOM)*1000/(CF * 8760)) + VOM + Fuel
C6: LCOE = ((CRF * ProFinFactor * ConFinFactor * (OCC * CapRegMult + GCC) + FOM) * 1000 / (CF * 8760)) + VOM + Fuel
B8: Fixed Charge Rate | C8: FCR = CRF * ProFinFactor | D8: Amount of revenue per dollar of investment required that must be collected annually from customers to pay the carrying charges on that investment.
B10: CAPEX | C10: CAPEX = ConFinFActor * (OCC * CapRegMult + GCC) | D10: Capital expenditures required to achieve commercial operation of the generation plant
B12: Capital Recovery Factor | C12: CRF = WACC / (1 - (1 / (1 + WACC)^t)) note: WACC real | D12: *ReEDS uses: CRF = (WACC - 1) / (1 - (1 / WACC)^t)
C13: WACC = ((1+((1-DF)*((1+RROE)*(1+i)-1)) + (DF*((1+IR)*(1+i)-1)*(1-TR))) / (1+i)) - 1 | D13: but uses a WACC that is equal to 1 + the WACC rate, and returns a CRF that is 1+CRF
C14: DF = debt fraction | D14: *ReEDS uses: WACC = (1 + ((1 - DF)*(RROE*i - 1)) + (DF*(IR*i - 1)*(1-TR))) / i
C15: RROE = rate of return on equity (real) = 10.24% | D15: but uses RROE, i, and IR that are equal to 1 + the rates, and returns a WACC that is 1+WACC
C16: i = inflation rate = 2.5%
C17: IR = interest rate (real) = 5.4%
B19: Project Finance factor | C19: ProFinFactor = (1 - TR * PVD) / (1 - TR)
C20: TR = combined state/federal tax rate
C21: PVD = present value of depreciation = summation from y=1 to y=M+1 of (FDy * fy)
C22: M = # years in MACRS depreciation schedule
C23: FDy = fraction of capital depreciated in year y
C24: fy = depreciation factor in year y | D24: fy = 1/dy
C25: d = nominal discount rate (8.9%) | D25: d = WACC * i
C26: i = inflation rate
B28: Construction Finance Factor | C28: ConFinFactor = summation from y=0 to y=C-1 of (FCy * AIy)
C29: FCy = fraction of capital spent in year y
C30: AIy =1 + ((1 + IDC)(year+0.5) - 1) | D30: *ReEDS uses: AIy =1 + (1 - TR) * (IDC(year+0.5) - 1)
C31: IDC = interest during construction | D31: but uses an IDC that is equal to 1 + the interest rate
C32: y = year index, starting at 0
C33: C = construction duration (years)
B35: Overnight Capital Cost | C35: OCC = input in $/kW
B37: Capital Regional Multiplier | C37: CapRegMult = 1 for ATB | D37: CapRegMult = 1 for ATB
B39: Grid Connection Costs | C39: GCC = GF + OnSpurCost + Off SpurCost
C40: GF | D40: grid feature = 0 for ATB
C41: OnSpurCost | D41: Onshore Spur Line Costs = 0 for ATB
C42: Off SpurCost | D42: Offshore (underwater) Spur Line Costs
B44: Fixed Operating Expenses | C44: FOM = input in $/kW
B46: * 1000 | C46: conversion factor from $/kW inputs to $/MWh output
B48: Capacity Factor | C48: CF = input as %
B50: * 8760 | C50: conversion factor for hours per year
B52: Variable Operating Expenses | C52: VOM = input in $/MWh
B54: Fuel | C54: Fuel = input in $/MWh
B56: Overnight LCOE | C56: =((OCC*CRF*(1-TR*PVD))/(8760*CF*(1-TR))+FOM/(8760*CF))*1000)+VOM | D56: This is similar to the LCOE used in the TCDB (Transparent Cost database)
B58: Definitions:
B59: AI | C59: Accumulated Interest | D59: Accumulated interest is a function of the interest during construction and the tax rate.
B60: C | C60: Construction Duration | D60: Number of years in construction period
B61: CapRegMult | C61: Capital Regional Multiplier | D61: Capital cost multipliers to account for regional variations that affect plant costs, e.g. labor rates, etc. Separate multipliers are applied to land-based and offshore wind plants, PV, CSP, coal, gas, nuclear, etc. No multipliers for geothermal or hydropower due to site specific nature of plant cost estimates.
B62: CF | C62: Capacity Factor (%) | D62: Generally defined as the ratio of actual annual output to output at rated capacity for an entire year.
B63: ConFinFactor | C63: Construction Finance Factor | D63: Portion of all-in capital cost associated with construction period financing. ConFinFactor is a function of C, FC, and IDC.
B64: CRF | C64: Capital Recovery Factor | D64: The ratio of a constant annuity to the present value of receiving that annuity for a given length of time. (Default in ReEDS is 8.89% real); CRF is a function of WACC and t.
B65: d | C65: nominal discount rate (8.9%) | D65: The discount rate is a function of the WACC and inflation.
B66: DF | C66: Debt Fraction | D66: Fraction of capital financed with debt. 1-DF is assumed financed with equity. (50% for all technologies in ReEDS)
B67: EMRP | C67: Expected Market Risk Premium | D67: The market risk premium is the difference between the expected return on a market portfolio and the risk-free rate.
B68: f | C68: Depreciation Factor | D68: The depreciation factor is a function of the discount rate.
B69: FC | C69: Capital Fraction | D69: Fraction of capital spent in each year of construction, 1 to C.
B70: FD | C70: Depreciation Fraction | D70: Fraction of capital depreciated in each year, 1 to M.
B71: FOM | C71: Fixed Operation and Maintenance Expenses ($/MW-year) | D71: Annual expenditures to operate and maintain equipment that are not incurred on a per-unit-energy basis.
B72: Fuel | C72: fuel cost ($/MWh) | D72: Fuel costs are converted to $/MWh from various units.
B73: GCC | C73: Grid Connection Costs | D73: Distance-based costs of spur lines over land, offshore wind plant export cable costs and construction-period transit costs
B74: GF | C74: Grid Feature | D74: Point of interconnection at the high voltage transmission network, including substation, transmission lines, load center, or BA center. (Default in ReEDS is $0/kW for substation and load center and $14/kW for others)
B75: i | C75: Inflation Rate | D75: Assumed inflation rate based on historical data. (2.5% in ReEDS)
B76: ICC | C76: Installed Capital Cost ($/MW) | D76: Total capital expenditure to achieve commercial operation up to the plant gate. This intermediate value is used only in presentation of technology cost assumptions with historic market data. It is not required to calculate LCOE.
B77: IDC | C77: Interest During Construction | D77: Interest rate for financing project during construction period.
B78: IR | C78: Interest Rate (real) | D78: Assumed interest rate on debt. (5.4% for all technologies in ReEDS, 8% nominal)
B79: M | C79: Depreciation period (years) | D79: Number of years in MACRS depreciation schedule.
B80: OCC | C80: Overnight Capital Cost ($/MW) | D80: Capital expenditures excluding construction period financing. Includes onsite electrical equipment (e.g., switchyard), a nominal-distance spur line (<1 mi), and necessary upgrades at a transmission substation.
B81: OffDist | C81: Offshore Distance | D81: Total offshore distance covered by the offshore export cables
B82: OffSpurCost | C82: Offshore (underwater) Spur Line Costs | D82: Cost for offshore (underwater) export cables from the offshore wind plant to land; OffSpurCost is a function of OffDist and OffDistFactor.
B83: OffDistFactor | C83: Offshore Distance Factor | D83: Incremental capital expenditure for offshore wind plant export cable length between landfall and offshore wind plant site.
B84: OnDist | C84: Onshore Distance | D84: Total onshore distance covered by the onshore transmission spur lines
B85: OnRegTransMult | C85: Onshore Regional Transmission Multiplier | D85: Transmission cost multipliers to account for regional variations that affect onshore transmission line costs, e.g. labor rates, terrain, siting, etc.
B86: OnSpurCost | C86: Onshore Spur Line Costs | D86: Cost for onshore transmission lines from the plant gate to the grid feature; OnSpurCost is a function of OnDist, OnTransCost, and OnRegTransMult.
B87: OnTransCost | C87: Onshore Transmission Costs (for spur line) | D87: Base onshore transmission line costs (Default in ReEDS is $3922/MW-mile)
B88: ProFinFactor | C88: Project Finance factor | D88: Technology-specific financial multiplier to account for any applicable differences in depreciation schedule, and tax policies. ProFinFactor is a function of TR, WACC, i, M, and FD
B89: PVD | C89: Present Value of Depreciation | D89: PVD is a function of FD, f and y.
B90: RROE | C90: Rate of Return on Equity (real) | D90: Assumed rate of return on the share of assets financed with equity. (10% for all technologies in ReEDS, 13% nominal)
B91: t | C91: Economic Lifetime (years) | D91: Length of time for paying off assets (20 years for all technologies in ReEDS)
B92: TR | C92: Tax Rate | D92: Combined state and federal tax rate (40%)
B93: VOM | C93: Variable Operation and Maintenance Expenses ($/MWh) | D93: Operating and maintenance costs incurred on a per-unit-energy basis.
B94: WACC | C94: Weighted Average Cost of Capital (real) | D94: The average expected rate that is paid to finance assets. (Default in ReEDS is 6.2% real); WACC is a function of DF, RROE, IR, i, and TR.
B95: y | C95: year index, starting at 0
B97: Notes:
B98: CapRegMult = 1 | C98: ATB assumes that all plants represent typical equipment costs and do not include regionally specific labor or material cost increments.
B99: GCC = 0 | C99: ATB assumes that base plant cost includes small spur line to connect with grid for all technologies in overnight capital cost. An exception is made for offshore wind plants where the export cable and construction-period transit costs based on a 30 km distance from shore are represented in GCC. Specific transmission lines based on geographically determined distances between ReEDS regions and existing transmission features for wind and solar are not included in ATB.
B100: Inputs in ATB are in $/kW, in ReEDS they are $/MW
B102: 2018$ to 2019$ Multiplier: | C102: 1.018119766

Sheet Offshore Wind
A1: Offshore Wind | L1: https://atb.nrel.gov/electricity/2021/offshore_wind
T3: Inputs
J4: Take me to: | T4: Calculated
B7: X | G7: Assumptions
H9: Technology | J9: Basis Year: | L9: 2019
J10: All values are given in 2019 U.S. dollars, using the Consumer Price Index (BLS, 2020) for dollar year conversions. Projections use an inflation assumption of 2.5% per year.
J11: Offshore Wind Wind Speed Classes
J12: Wind Speed Class | L12: Average Water Depth (m) | M12: Average Distance Site to Cable Landfall (km) | N12: Average CAPEX ($/kW) | O12: Average OPEX ($/kW/yr) | P12: Average Net CF (%) | Q12: Average Wind Speed (m/s) @ 100m | R12: Potential Wind Plant Capacity (GW) | S12: Potential Wind Plant Energy (TWh) | T12: Share of total fixed-bottom / floating capacity (%)
J13: Fixed-Bottom | K13: Wind Speed Class 1 | L13: 22.95537928 | M13: 35.19626497 | N13: 3612 | O13: 114 | P13: 0.4496976737 | Q13: 8.741383425 | R13: 13.57 | S13: 55.10279072 | T13: =R13/SUM($R$13:$R$19) -> 0.02000530723
K14: Wind Speed Class 2 | L14: 24.25688129 | M14: 38.30382134 | N14: 3700 | O14: 116 | P14: 0.438233138 | Q14: 8.616747967 | R14: 13.57 | S14: 53.49673932 | T14: 0.02000530723
K15: Wind Speed Class 3 | L15: 27.89027358 | M15: 40.42229233 | N15: 3848 | O15: 118 | P15: 0.4415088616 | Q15: 8.632437317 | R15: 27.13 | S15: 105.4389487 | T15: 0.03999587215
K16: Wind Speed Class 4 | L16: 32.2902076 | M16: 44.93356088 | N16: 3995 | O16: 119 | P16: 0.4395004231 | Q16: 8.614474039 | R16: 54.26 | S16: 214.1882924 | T16: 0.07999174431
K17: Wind Speed Class 5 | L17: 32.08634883 | M17: 64.9909178 | N17: 4193 | O17: 123 | P17: 0.4324180358 | Q17: 8.586481712 | R17: 108.53 | S17: 419.4797362 | T17: 0.1599982309
K18: Wind Speed Class 6 | L18: 33.14401807 | M18: 73.52587952 | N18: 4163 | O18: 121 | P18: 0.3712515359 | Q18: 7.833973805 | R18: 217.06 | S18: 732.4159706 | T18: 0.3199964618
K19: Wind Speed Class 7 | L19: 35.89761595 | M19: 76.56011645 | N19: 4200 | O19: 115 | P19: 0.2868028465 | Q19: 6.779013026 | R19: 244.2 | S19: 633.6871416 | T19: 0.3600070763
J20: Floating | K20: Wind Speed Class 8 | L20: 159.3591648 | M20: 45.24761172 | N20: 5214 | O20: 84 | P20: 0.5154960313 | Q20: 9.593370714 | R20: 27.6 | S20: 126.3887229 | T20: =R20/SUM($R$20:$R$26) -> 0.02000405879
K21: Wind Speed Class 9 | L21: 176.9339852 | M21: 53.57784591 | N21: 5309 | O21: 85 | P21: 0.5028954429 | Q21: 9.418335185 | R21: 27.6 | S21: 123.1784989 | T21: 0.02000405879
K22: Wind Speed Class 10 | L22: 167.2921948 | M22: 55.59959974 | N22: 5426 | O22: 88 | P22: 0.4939834783 | Q22: 9.30365964 | R22: 55.19 | S22: 240.8529782 | T22: 0.04000086974
K23: Wind Speed Class 11 | L23: 128.3166105 | M23: 90.17183581 | N23: 5809 | O23: 95 | P23: 0.4872988325 | Q23: 9.328812779 | R23: 110.38 | S23: 477.1538477 | T23: 0.08000173948
K24: Wind Speed Class 12 | L24: 193.3462137 | M24: 122.168554 | N24: 6057 | O24: 101 | P24: 0.4591308894 | Q24: 9.05118164 | R24: 220.75 | S24: 919.0146901 | T24: 0.1599962311
K25: Wind Speed Class 13 | L25: 608.4155644 | M25: 136.7671007 | N25: 6219 | O25: 104 | P25: 0.3661338125 | Q25: 7.963502766 | R25: 441.5 | S25: 1494.655174 | T25: 0.3199924622
K26: Wind Speed Class 14 | L26: 635.0463444 | M26: 160.9186462 | N26: 6291 | O26: 94 | P26: 0.3009368253 | Q26: 7.041456136 | R26: 496.7 | S26: 1339.764419 | T26: 0.3600005798
J27: Total | R27: =SUM(R13:R26) -> 2058.04 | S27: =SUM(S13:S26) -> 6934.81795
H30: Finance | J30: Financial Assumptions:
J31: Inflation Rate | N31: =L58 -> 0.025
J32: Capital Recovery Period (Years) | N32: =S32 -> 30 | S32: 30
J33: Interest Rate Nominal - Moderate | N33: =L60 -> 0.04
J34: Calculated Interest Rate Real - Moderate | N34: =L63 -> 0.01463414634
J35: Interest During Construction - Nominal | N35: =L65 -> 0.04
J36: Rate of Return on Equity Nominal - Moderate | N36: =L67 -> 0.1
J37: Calculated Rate of Return on Equity Real - Moderate | N37: =L70 -> 0.07317073171
J38: Debt Fraction - Moderate | N38: =L73 -> 0.685
J39: Tax Rate (Federal and State) | N39: =L75 -> 0.2574
J40: WACC Nominal - Moderate | N40: =L77 -> 0.05184724
J41: WACC Real - Moderate | N41: =L80 -> 0.02619242927
J42: Depreciation Period | N42: 5
J43: Construction Finance Factor | N43: =SUMPRODUCT(K53:K55,L53:L55,M53:M55)+SUMPRODUCT(K53:K55,O53:O55,N53:N55) -> 1.074800228
J44: Present Value of Depreciation | N44: =SUMPRODUCT(R52:W52,R54:W54) -> 0.8704718641
J45: Project Finance Factor | N45: =(1 - N39 * N44) / (1 - N39) -> 1.04489704
J46: Capital Recovery Factor (CRF) Nominal - Moderate | N46: =L83 -> 0.06642760702
J47: Capital Recovery Factor (CRF) Real - Moderate | N47: =L86 -> 0.04854050177
J48: Equity Premium During Construction | N48: 0.02
J49: Cost of equity during construction | N49: =N36+N48 -> 0.12
J50: Construction Duration yrs | M50: 3
J51: Year | K51: Capital | L51: Accumulated | M51: Percent of Leverage During Construction | N51: Percent of Equity During Construction | O51: Accumulated | Q51: MACRS yr | R51: 1 | S51: 2 | T51: 3 | U51: 4 | V51: 5 | W51: 6
J52: Index | K52: Fraction | L52: Interest | O52: Equity Cost | Q52: Depreciation | R52: 0.2 | S52: 0.32 | T52: 0.192 | U52: 0.1152 | V52: 0.1152 | W52: 0.0576
J53: 0 | K53: 0.4 | L53: =1+((1+N35)^(J53+0.5)-1) -> 1.019803903 | M53: 0.8 | N53: =1-M53 -> 0.2 | O53: =1+((1+$N$49)^(J53+0.5)-1) -> 1.058300524 | Q53: Fraction
J54: 1 | K54: 0.4 | L54: =1+((1+N35)^(J54+0.5)-1) -> 1.060596059 | M54: 0.8 | N54: =1-M54 -> 0.2 | O54: =1+((1+$N$49)^(J54+0.5)-1) -> 1.185296587 | Q54: Depreciation | R54: =1/((1+N41)*(1+N31))^R51 -> 0.9507083937 | S54: =1/((1+N41)*(1+N31))^S51 -> 0.9038464499 | T54: =1/((1+N41)*(1+N31))^T51 -> 0.8592944066 | U54: =1/((1+N41)*(1+N31))^U51 -> 0.816938405 | V54: =1/((1+N41)*(1+N31))^V51 -> 0.7766701988 | W54: =1/((1+N41)*(1+N31))^W51 -> 0.7383868772
J55: 2 | K55: 0.2 | L55: =1+((1+N35)^(J55+0.5)-1) -> 1.103019901 | M55: 0.8 | N55: =1-M55 -> 0.2 | O55: =1+((1+$N$49)^(J55+0.5)-1) -> 1.327532178 | Q55: Factor
L57: 2019 | M57: 2020 | N57: 2021 | O57: 2022 | P57: 2023 | Q57: 2024 | R57: 2025 | S57: 2026 | T57: 2027 | U57: 2028 | V57: 2029 | W57: 2030 | X57: 2031 | Y57: 2032 | Z57: 2033 | AA57: 2034 | AB57: 2035 | AC57: 2036 | AD57: 2037 | AE57: 2038 | AF57: 2039 | AG57: 2040 | AH57: 2041 | AI57: 2042 | AJ57: 2043 | AK57: 2044 | AL57: 2045 | AM57: 2046 | AN57: 2047 | AO57: 2048 | AP57: 2049 | AQ57: 2050
J58: Assumptions | K58: Inflation Rate | L58: ='WACC Calc'!F368 -> 0.025 | M58: ='WACC Calc'!G368 -> 0.025 | N58: ='WACC Calc'!H368 -> 0.025 | O58: ='WACC Calc'!I368 -> 0.025 | P58: ='WACC Calc'!J368 -> 0.025 | Q58: ='WACC Calc'!K368 -> 0.025 | R58: ='WACC Calc'!L368 -> 0.025 | S58: ='WACC Calc'!M368 -> 0.025 | T58: ='WACC Calc'!N368 -> 0.025 | U58: ='WACC Calc'!O368 -> 0.025 | V58: ='WACC Calc'!P368 -> 0.025 | W58: ='WACC Calc'!Q368 -> 0.025 | X58: ='WACC Calc'!R368 -> 0.025 | Y58: ='WACC Calc'!S368 -> 0.025 | Z58: ='WACC Calc'!T368 -> 0.025 | AA58: ='WACC Calc'!U368 -> 0.025 | AB58: ='WACC Calc'!V368 -> 0.025 | AC58: ='WACC Calc'!W368 -> 0.025 | AD58: ='WACC Calc'!X368 -> 0.025 | AE58: ='WACC Calc'!Y368 -> 0.025 | AF58: ='WACC Calc'!Z368 -> 0.025 | AG58: ='WACC Calc'!AA368 -> 0.025 | AH58: ='WACC Calc'!AB368 -> 0.025 | AI58: ='WACC Calc'!AC368 -> 0.025 | AJ58: ='WACC Calc'!AD368 -> 0.025 | AK58: ='WACC Calc'!AE368 -> 0.025 | AL58: ='WACC Calc'!AF368 -> 0.025 | AM58: ='WACC Calc'!AG368 -> 0.025 | AN58: ='WACC Calc'!AH368 -> 0.025 | AO58: ='WACC Calc'!AI368 -> 0.025 | AP58: ='WACC Calc'!AJ368 -> 0.025 | AQ58: ='WACC Calc'!AK368 -> 0.025
K59: Interest Rate Nominal - Advanced | L59: ='WACC Calc'!F369 -> 0.04 | M59: ='WACC Calc'!G369 -> 0.04 | N59: ='WACC Calc'!H369 -> 0.04 | O59: ='WACC Calc'!I369 -> 0.04 | P59: ='WACC Calc'!J369 -> 0.04 | Q59: ='WACC Calc'!K369 -> 0.04 | R59: ='WACC Calc'!L369 -> 0.04 | S59: ='WACC Calc'!M369 -> 0.04 | T59: ='WACC Calc'!N369 -> 0.04 | U59: ='WACC Calc'!O369 -> 0.04 | V59: ='WACC Calc'!P369 -> 0.04 | W59: ='WACC Calc'!Q369 -> 0.04 | X59: ='WACC Calc'!R369 -> 0.04 | Y59: ='WACC Calc'!S369 -> 0.04 | Z59: ='WACC Calc'!T369 -> 0.04 | AA59: ='WACC Calc'!U369 -> 0.04 | AB59: ='WACC Calc'!V369 -> 0.04 | AC59: ='WACC Calc'!W369 -> 0.04 | AD59: ='WACC Calc'!X369 -> 0.04 | AE59: ='WACC Calc'!Y369 -> 0.04 | AF59: ='WACC Calc'!Z369 -> 0.04 | AG59: ='WACC Calc'!AA369 -> 0.04 | AH59: ='WACC Calc'!AB369 -> 0.04 | AI59: ='WACC Calc'!AC369 -> 0.04 | AJ59: ='WACC Calc'!AD369 -> 0.04 | AK59: ='WACC Calc'!AE369 -> 0.04 | AL59: ='WACC Calc'!AF369 -> 0.04 | AM59: ='WACC Calc'!AG369 -> 0.04 | AN59: ='WACC Calc'!AH369 -> 0.04 | AO59: ='WACC Calc'!AI369 -> 0.04 | AP59: ='WACC Calc'!AJ369 -> 0.04 | AQ59: ='WACC Calc'!AK369 -> 0.04
K60: Interest Rate Nominal - Moderate | L60: ='WACC Calc'!F370 -> 0.04 | M60: ='WACC Calc'!G370 -> 0.04 | N60: ='WACC Calc'!H370 -> 0.04 | O60: ='WACC Calc'!I370 -> 0.04 | P60: ='WACC Calc'!J370 -> 0.04 | Q60: ='WACC Calc'!K370 -> 0.04 | R60: ='WACC Calc'!L370 -> 0.04 | S60: ='WACC Calc'!M370 -> 0.04 | T60: ='WACC Calc'!N370 -> 0.04 | U60: ='WACC Calc'!O370 -> 0.04 | V60: ='WACC Calc'!P370 -> 0.04 | W60: ='WACC Calc'!Q370 -> 0.04 | X60: ='WACC Calc'!R370 -> 0.04 | Y60: ='WACC Calc'!S370 -> 0.04 | Z60: ='WACC Calc'!T370 -> 0.04 | AA60: ='WACC Calc'!U370 -> 0.04 | AB60: ='WACC Calc'!V370 -> 0.04 | AC60: ='WACC Calc'!W370 -> 0.04 | AD60: ='WACC Calc'!X370 -> 0.04 | AE60: ='WACC Calc'!Y370 -> 0.04 | AF60: ='WACC Calc'!Z370 -> 0.04 | AG60: ='WACC Calc'!AA370 -> 0.04 | AH60: ='WACC Calc'!AB370 -> 0.04 | AI60: ='WACC Calc'!AC370 -> 0.04 | AJ60: ='WACC Calc'!AD370 -> 0.04 | AK60: ='WACC Calc'!AE370 -> 0.04 | AL60: ='WACC Calc'!AF370 -> 0.04 | AM60: ='WACC Calc'!AG370 -> 0.04 | AN60: ='WACC Calc'!AH370 -> 0.04 | AO60: ='WACC Calc'!AI370 -> 0.04 | AP60: ='WACC Calc'!AJ370 -> 0.04 | AQ60: ='WACC Calc'!AK370 -> 0.04
K61: Interest Rate Nominal - Conservative | L61: ='WACC Calc'!F371 -> 0.04 | M61: ='WACC Calc'!G371 -> 0.04 | N61: ='WACC Calc'!H371 -> 0.04 | O61: ='WACC Calc'!I371 -> 0.04 | P61: ='WACC Calc'!J371 -> 0.04 | Q61: ='WACC Calc'!K371 -> 0.04 | R61: ='WACC Calc'!L371 -> 0.04 | S61: ='WACC Calc'!M371 -> 0.04 | T61: ='WACC Calc'!N371 -> 0.04 | U61: ='WACC Calc'!O371 -> 0.04 | V61: ='WACC Calc'!P371 -> 0.04 | W61: ='WACC Calc'!Q371 -> 0.04 | X61: ='WACC Calc'!R371 -> 0.04 | Y61: ='WACC Calc'!S371 -> 0.04 | Z61: ='WACC Calc'!T371 -> 0.04 | AA61: ='WACC Calc'!U371 -> 0.04 | AB61: ='WACC Calc'!V371 -> 0.04 | AC61: ='WACC Calc'!W371 -> 0.04 | AD61: ='WACC Calc'!X371 -> 0.04 | AE61: ='WACC Calc'!Y371 -> 0.04 | AF61: ='WACC Calc'!Z371 -> 0.04 | AG61: ='WACC Calc'!AA371 -> 0.04 | AH61: ='WACC Calc'!AB371 -> 0.04 | AI61: ='WACC Calc'!AC371 -> 0.04 | AJ61: ='WACC Calc'!AD371 -> 0.04 | AK61: ='WACC Calc'!AE371 -> 0.04 | AL61: ='WACC Calc'!AF371 -> 0.04 | AM61: ='WACC Calc'!AG371 -> 0.04 | AN61: ='WACC Calc'!AH371 -> 0.04 | AO61: ='WACC Calc'!AI371 -> 0.04 | AP61: ='WACC Calc'!AJ371 -> 0.04 | AQ61: ='WACC Calc'!AK371 -> 0.04
K62: Calculated Interest Rate Real - Advanced | L62: ='WACC Calc'!F372 -> 0.01463414634 | M62: ='WACC Calc'!G372 -> 0.01463414634 | N62: ='WACC Calc'!H372 -> 0.01463414634 | O62: ='WACC Calc'!I372 -> 0.01463414634 | P62: ='WACC Calc'!J372 -> 0.01463414634 | Q62: ='WACC Calc'!K372 -> 0.01463414634 | R62: ='WACC Calc'!L372 -> 0.01463414634 | S62: ='WACC Calc'!M372 -> 0.01463414634 | T62: ='WACC Calc'!N372 -> 0.01463414634 | U62: ='WACC Calc'!O372 -> 0.01463414634 | V62: ='WACC Calc'!P372 -> 0.01463414634 | W62: ='WACC Calc'!Q372 -> 0.01463414634 | X62: ='WACC Calc'!R372 -> 0.01463414634 | Y62: ='WACC Calc'!S372 -> 0.01463414634 | Z62: ='WACC Calc'!T372 -> 0.01463414634 | AA62: ='WACC Calc'!U372 -> 0.01463414634 | AB62: ='WACC Calc'!V372 -> 0.01463414634 | AC62: ='WACC Calc'!W372 -> 0.01463414634 | AD62: ='WACC Calc'!X372 -> 0.01463414634 | AE62: ='WACC Calc'!Y372 -> 0.01463414634 | AF62: ='WACC Calc'!Z372 -> 0.01463414634 | AG62: ='WACC Calc'!AA372 -> 0.01463414634 | AH62: ='WACC Calc'!AB372 -> 0.01463414634 | AI62: ='WACC Calc'!AC372 -> 0.01463414634 | AJ62: ='WACC Calc'!AD372 -> 0.01463414634 | AK62: ='WACC Calc'!AE372 -> 0.01463414634 | AL62: ='WACC Calc'!AF372 -> 0.01463414634 | AM62: ='WACC Calc'!AG372 -> 0.01463414634 | AN62: ='WACC Calc'!AH372 -> 0.01463414634 | AO62: ='WACC Calc'!AI372 -> 0.01463414634 | AP62: ='WACC Calc'!AJ372 -> 0.01463414634 | AQ62: ='WACC Calc'!AK372 -> 0.01463414634
K63: Calculated Interest Rate Real - Moderate | L63: ='WACC Calc'!F373 -> 0.01463414634 | M63: ='WACC Calc'!G373 -> 0.01463414634 | N63: ='WACC Calc'!H373 -> 0.01463414634 | O63: ='WACC Calc'!I373 -> 0.01463414634 | P63: ='WACC Calc'!J373 -> 0.01463414634 | Q63: ='WACC Calc'!K373 -> 0.01463414634 | R63: ='WACC Calc'!L373 -> 0.01463414634 | S63: ='WACC Calc'!M373 -> 0.01463414634 | T63: ='WACC Calc'!N373 -> 0.01463414634 | U63: ='WACC Calc'!O373 -> 0.01463414634 | V63: ='WACC Calc'!P373 -> 0.01463414634 | W63: ='WACC Calc'!Q373 -> 0.01463414634 | X63: ='WACC Calc'!R373 -> 0.01463414634 | Y63: ='WACC Calc'!S373 -> 0.01463414634 | Z63: ='WACC Calc'!T373 -> 0.01463414634 | AA63: ='WACC Calc'!U373 -> 0.01463414634 | AB63: ='WACC Calc'!V373 -> 0.01463414634 | AC63: ='WACC Calc'!W373 -> 0.01463414634 | AD63: ='WACC Calc'!X373 -> 0.01463414634 | AE63: ='WACC Calc'!Y373 -> 0.01463414634 | AF63: ='WACC Calc'!Z373 -> 0.01463414634 | AG63: ='WACC Calc'!AA373 -> 0.01463414634 | AH63: ='WACC Calc'!AB373 -> 0.01463414634 | AI63: ='WACC Calc'!AC373 -> 0.01463414634 | AJ63: ='WACC Calc'!AD373 -> 0.01463414634 | AK63: ='WACC Calc'!AE373 -> 0.01463414634 | AL63: ='WACC Calc'!AF373 -> 0.01463414634 | AM63: ='WACC Calc'!AG373 -> 0.01463414634 | AN63: ='WACC Calc'!AH373 -> 0.01463414634 | AO63: ='WACC Calc'!AI373 -> 0.01463414634 | AP63: ='WACC Calc'!AJ373 -> 0.01463414634 | AQ63: ='WACC Calc'!AK373 -> 0.01463414634
K64: Calculated Interest Rate Real - Conservative | L64: ='WACC Calc'!F374 -> 0.01463414634 | M64: ='WACC Calc'!G374 -> 0.01463414634 | N64: ='WACC Calc'!H374 -> 0.01463414634 | O64: ='WACC Calc'!I374 -> 0.01463414634 | P64: ='WACC Calc'!J374 -> 0.01463414634 | Q64: ='WACC Calc'!K374 -> 0.01463414634 | R64: ='WACC Calc'!L374 -> 0.01463414634 | S64: ='WACC Calc'!M374 -> 0.01463414634 | T64: ='WACC Calc'!N374 -> 0.01463414634 | U64: ='WACC Calc'!O374 -> 0.01463414634 | V64: ='WACC Calc'!P374 -> 0.01463414634 | W64: ='WACC Calc'!Q374 -> 0.01463414634 | X64: ='WACC Calc'!R374 -> 0.01463414634 | Y64: ='WACC Calc'!S374 -> 0.01463414634 | Z64: ='WACC Calc'!T374 -> 0.01463414634 | AA64: ='WACC Calc'!U374 -> 0.01463414634 | AB64: ='WACC Calc'!V374 -> 0.01463414634 | AC64: ='WACC Calc'!W374 -> 0.01463414634 | AD64: ='WACC Calc'!X374 -> 0.01463414634 | AE64: ='WACC Calc'!Y374 -> 0.01463414634 | AF64: ='WACC Calc'!Z374 -> 0.01463414634 | AG64: ='WACC Calc'!AA374 -> 0.01463414634 | AH64: ='WACC Calc'!AB374 -> 0.01463414634 | AI64: ='WACC Calc'!AC374 -> 0.01463414634 | AJ64: ='WACC Calc'!AD374 -> 0.01463414634 | AK64: ='WACC Calc'!AE374 -> 0.01463414634 | AL64: ='WACC Calc'!AF374 -> 0.01463414634 | AM64: ='WACC Calc'!AG374 -> 0.01463414634 | AN64: ='WACC Calc'!AH374 -> 0.01463414634 | AO64: ='WACC Calc'!AI374 -> 0.01463414634 | AP64: ='WACC Calc'!AJ374 -> 0.01463414634 | AQ64: ='WACC Calc'!AK374 -> 0.01463414634
K65: Interest During Construction - Nominal | L65: ='WACC Calc'!F375 -> 0.04 | M65: ='WACC Calc'!G375 -> 0.04 | N65: ='WACC Calc'!H375 -> 0.04 | O65: ='WACC Calc'!I375 -> 0.04 | P65: ='WACC Calc'!J375 -> 0.04 | Q65: ='WACC Calc'!K375 -> 0.04 | R65: ='WACC Calc'!L375 -> 0.04 | S65: ='WACC Calc'!M375 -> 0.04 | T65: ='WACC Calc'!N375 -> 0.04 | U65: ='WACC Calc'!O375 -> 0.04 | V65: ='WACC Calc'!P375 -> 0.04 | W65: ='WACC Calc'!Q375 -> 0.04 | X65: ='WACC Calc'!R375 -> 0.04 | Y65: ='WACC Calc'!S375 -> 0.04 | Z65: ='WACC Calc'!T375 -> 0.04 | AA65: ='WACC Calc'!U375 -> 0.04 | AB65: ='WACC Calc'!V375 -> 0.04 | AC65: ='WACC Calc'!W375 -> 0.04 | AD65: ='WACC Calc'!X375 -> 0.04 | AE65: ='WACC Calc'!Y375 -> 0.04 | AF65: ='WACC Calc'!Z375 -> 0.04 | AG65: ='WACC Calc'!AA375 -> 0.04 | AH65: ='WACC Calc'!AB375 -> 0.04 | AI65: ='WACC Calc'!AC375 -> 0.04 | AJ65: ='WACC Calc'!AD375 -> 0.04 | AK65: ='WACC Calc'!AE375 -> 0.04 | AL65: ='WACC Calc'!AF375 -> 0.04 | AM65: ='WACC Calc'!AG375 -> 0.04 | AN65: ='WACC Calc'!AH375 -> 0.04 | AO65: ='WACC Calc'!AI375 -> 0.04 | AP65: ='WACC Calc'!AJ375 -> 0.04 | AQ65: ='WACC Calc'!AK375 -> 0.04
K66: Rate of Return on Equity Nominal - Advanced | L66: ='WACC Calc'!F376 -> 0.1 | M66: ='WACC Calc'!G376 -> 0.1 | N66: ='WACC Calc'!H376 -> 0.1 | O66: ='WACC Calc'!I376 -> 0.1 | P66: ='WACC Calc'!J376 -> 0.1 | Q66: ='WACC Calc'!K376 -> 0.1 | R66: ='WACC Calc'!L376 -> 0.1 | S66: ='WACC Calc'!M376 -> 0.1 | T66: ='WACC Calc'!N376 -> 0.1 | U66: ='WACC Calc'!O376 -> 0.1 | V66: ='WACC Calc'!P376 -> 0.1 | W66: ='WACC Calc'!Q376 -> 0.1 | X66: ='WACC Calc'!R376 -> 0.1 | Y66: ='WACC Calc'!S376 -> 0.1 | Z66: ='WACC Calc'!T376 -> 0.1 | AA66: ='WACC Calc'!U376 -> 0.1 | AB66: ='WACC Calc'!V376 -> 0.1 | AC66: ='WACC Calc'!W376 -> 0.1 | AD66: ='WACC Calc'!X376 -> 0.1 | AE66: ='WACC Calc'!Y376 -> 0.1 | AF66: ='WACC Calc'!Z376 -> 0.1 | AG66: ='WACC Calc'!AA376 -> 0.1 | AH66: ='WACC Calc'!AB376 -> 0.1 | AI66: ='WACC Calc'!AC376 -> 0.1 | AJ66: ='WACC Calc'!AD376 -> 0.1 | AK66: ='WACC Calc'!AE376 -> 0.1 | AL66: ='WACC Calc'!AF376 -> 0.1 | AM66: ='WACC Calc'!AG376 -> 0.1 | AN66: ='WACC Calc'!AH376 -> 0.1 | AO66: ='WACC Calc'!AI376 -> 0.1 | AP66: ='WACC Calc'!AJ376 -> 0.1 | AQ66: ='WACC Calc'!AK376 -> 0.1
K67: Rate of Return on Equity Nominal - Moderate | L67: ='WACC Calc'!F377 -> 0.1 | M67: ='WACC Calc'!G377 -> 0.1 | N67: ='WACC Calc'!H377 -> 0.1 | O67: ='WACC Calc'!I377 -> 0.1 | P67: ='WACC Calc'!J377 -> 0.1 | Q67: ='WACC Calc'!K377 -> 0.1 | R67: ='WACC Calc'!L377 -> 0.1 | S67: ='WACC Calc'!M377 -> 0.1 | T67: ='WACC Calc'!N377 -> 0.1 | U67: ='WACC Calc'!O377 -> 0.1 | V67: ='WACC Calc'!P377 -> 0.1 | W67: ='WACC Calc'!Q377 -> 0.1 | X67: ='WACC Calc'!R377 -> 0.1 | Y67: ='WACC Calc'!S377 -> 0.1 | Z67: ='WACC Calc'!T377 -> 0.1 | AA67: ='WACC Calc'!U377 -> 0.1 | AB67: ='WACC Calc'!V377 -> 0.1 | AC67: ='WACC Calc'!W377 -> 0.1 | AD67: ='WACC Calc'!X377 -> 0.1 | AE67: ='WACC Calc'!Y377 -> 0.1 | AF67: ='WACC Calc'!Z377 -> 0.1 | AG67: ='WACC Calc'!AA377 -> 0.1 | AH67: ='WACC Calc'!AB377 -> 0.1 | AI67: ='WACC Calc'!AC377 -> 0.1 | AJ67: ='WACC Calc'!AD377 -> 0.1 | AK67: ='WACC Calc'!AE377 -> 0.1 | AL67: ='WACC Calc'!AF377 -> 0.1 | AM67: ='WACC Calc'!AG377 -> 0.1 | AN67: ='WACC Calc'!AH377 -> 0.1 | AO67: ='WACC Calc'!AI377 -> 0.1 | AP67: ='WACC Calc'!AJ377 -> 0.1 | AQ67: ='WACC Calc'!AK377 -> 0.1
K68: Rate of Return on Equity Nominal - Conservative | L68: ='WACC Calc'!F378 -> 0.1 | M68: ='WACC Calc'!G378 -> 0.1 | N68: ='WACC Calc'!H378 -> 0.1 | O68: ='WACC Calc'!I378 -> 0.1 | P68: ='WACC Calc'!J378 -> 0.1 | Q68: ='WACC Calc'!K378 -> 0.1 | R68: ='WACC Calc'!L378 -> 0.1 | S68: ='WACC Calc'!M378 -> 0.1 | T68: ='WACC Calc'!N378 -> 0.1 | U68: ='WACC Calc'!O378 -> 0.1 | V68: ='WACC Calc'!P378 -> 0.1 | W68: ='WACC Calc'!Q378 -> 0.1 | X68: ='WACC Calc'!R378 -> 0.1 | Y68: ='WACC Calc'!S378 -> 0.1 | Z68: ='WACC Calc'!T378 -> 0.1 | AA68: ='WACC Calc'!U378 -> 0.1 | AB68: ='WACC Calc'!V378 -> 0.1 | AC68: ='WACC Calc'!W378 -> 0.1 | AD68: ='WACC Calc'!X378 -> 0.1 | AE68: ='WACC Calc'!Y378 -> 0.1 | AF68: ='WACC Calc'!Z378 -> 0.1 | AG68: ='WACC Calc'!AA378 -> 0.1 | AH68: ='WACC Calc'!AB378 -> 0.1 | AI68: ='WACC Calc'!AC378 -> 0.1 | AJ68: ='WACC Calc'!AD378 -> 0.1 | AK68: ='WACC Calc'!AE378 -> 0.1 | AL68: ='WACC Calc'!AF378 -> 0.1 | AM68: ='WACC Calc'!AG378 -> 0.1 | AN68: ='WACC Calc'!AH378 -> 0.1 | AO68: ='WACC Calc'!AI378 -> 0.1 | AP68: ='WACC Calc'!AJ378 -> 0.1 | AQ68: ='WACC Calc'!AK378 -> 0.1
K69: Calculated Rate of Return on Equity Real - Advanced | L69: ='WACC Calc'!F379 -> 0.07317073171 | M69: ='WACC Calc'!G379 -> 0.07317073171 | N69: ='WACC Calc'!H379 -> 0.07317073171 | O69: ='WACC Calc'!I379 -> 0.07317073171 | P69: ='WACC Calc'!J379 -> 0.07317073171 | Q69: ='WACC Calc'!K379 -> 0.07317073171 | R69: ='WACC Calc'!L379 -> 0.07317073171 | S69: ='WACC Calc'!M379 -> 0.07317073171 | T69: ='WACC Calc'!N379 -> 0.07317073171 | U69: ='WACC Calc'!O379 -> 0.07317073171 | V69: ='WACC Calc'!P379 -> 0.07317073171 | W69: ='WACC Calc'!Q379 -> 0.07317073171 | X69: ='WACC Calc'!R379 -> 0.07317073171 | Y69: ='WACC Calc'!S379 -> 0.07317073171 | Z69: ='WACC Calc'!T379 -> 0.07317073171 | AA69: ='WACC Calc'!U379 -> 0.07317073171 | AB69: ='WACC Calc'!V379 -> 0.07317073171 | AC69: ='WACC Calc'!W379 -> 0.07317073171 | AD69: ='WACC Calc'!X379 -> 0.07317073171 | AE69: ='WACC Calc'!Y379 -> 0.07317073171 | AF69: ='WACC Calc'!Z379 -> 0.07317073171 | AG69: ='WACC Calc'!AA379 -> 0.07317073171 | AH69: ='WACC Calc'!AB379 -> 0.07317073171 | AI69: ='WACC Calc'!AC379 -> 0.07317073171 | AJ69: ='WACC Calc'!AD379 -> 0.07317073171 | AK69: ='WACC Calc'!AE379 -> 0.07317073171 | AL69: ='WACC Calc'!AF379 -> 0.07317073171 | AM69: ='WACC Calc'!AG379 -> 0.07317073171 | AN69: ='WACC Calc'!AH379 -> 0.07317073171 | AO69: ='WACC Calc'!AI379 -> 0.07317073171 | AP69: ='WACC Calc'!AJ379 -> 0.07317073171 | AQ69: ='WACC Calc'!AK379 -> 0.07317073171
K70: Calculated Rate of Return on Equity Real - Moderate | L70: ='WACC Calc'!F380 -> 0.07317073171 | M70: ='WACC Calc'!G380 -> 0.07317073171 | N70: ='WACC Calc'!H380 -> 0.07317073171 | O70: ='WACC Calc'!I380 -> 0.07317073171 | P70: ='WACC Calc'!J380 -> 0.07317073171 | Q70: ='WACC Calc'!K380 -> 0.07317073171 | R70: ='WACC Calc'!L380 -> 0.07317073171 | S70: ='WACC Calc'!M380 -> 0.07317073171 | T70: ='WACC Calc'!N380 -> 0.07317073171 | U70: ='WACC Calc'!O380 -> 0.07317073171 | V70: ='WACC Calc'!P380 -> 0.07317073171 | W70: ='WACC Calc'!Q380 -> 0.07317073171 | X70: ='WACC Calc'!R380 -> 0.07317073171 | Y70: ='WACC Calc'!S380 -> 0.07317073171 | Z70: ='WACC Calc'!T380 -> 0.07317073171 | AA70: ='WACC Calc'!U380 -> 0.07317073171 | AB70: ='WACC Calc'!V380 -> 0.07317073171 | AC70: ='WACC Calc'!W380 -> 0.07317073171 | AD70: ='WACC Calc'!X380 -> 0.07317073171 | AE70: ='WACC Calc'!Y380 -> 0.07317073171 | AF70: ='WACC Calc'!Z380 -> 0.07317073171 | AG70: ='WACC Calc'!AA380 -> 0.07317073171 | AH70: ='WACC Calc'!AB380 -> 0.07317073171 | AI70: ='WACC Calc'!AC380 -> 0.07317073171 | AJ70: ='WACC Calc'!AD380 -> 0.07317073171 | AK70: ='WACC Calc'!AE380 -> 0.07317073171 | AL70: ='WACC Calc'!AF380 -> 0.07317073171 | AM70: ='WACC Calc'!AG380 -> 0.07317073171 | AN70: ='WACC Calc'!AH380 -> 0.07317073171 | AO70: ='WACC Calc'!AI380 -> 0.07317073171 | AP70: ='WACC Calc'!AJ380 -> 0.07317073171 | AQ70: ='WACC Calc'!AK380 -> 0.07317073171
K71: Calculated Rate of Return on Equity Real - Conservative | L71: ='WACC Calc'!F381 -> 0.07317073171 | M71: ='WACC Calc'!G381 -> 0.07317073171 | N71: ='WACC Calc'!H381 -> 0.07317073171 | O71: ='WACC Calc'!I381 -> 0.07317073171 | P71: ='WACC Calc'!J381 -> 0.07317073171 | Q71: ='WACC Calc'!K381 -> 0.07317073171 | R71: ='WACC Calc'!L381 -> 0.07317073171 | S71: ='WACC Calc'!M381 -> 0.07317073171 | T71: ='WACC Calc'!N381 -> 0.07317073171 | U71: ='WACC Calc'!O381 -> 0.07317073171 | V71: ='WACC Calc'!P381 -> 0.07317073171 | W71: ='WACC Calc'!Q381 -> 0.07317073171 | X71: ='WACC Calc'!R381 -> 0.07317073171 | Y71: ='WACC Calc'!S381 -> 0.07317073171 | Z71: ='WACC Calc'!T381 -> 0.07317073171 | AA71: ='WACC Calc'!U381 -> 0.07317073171 | AB71: ='WACC Calc'!V381 -> 0.07317073171 | AC71: ='WACC Calc'!W381 -> 0.07317073171 | AD71: ='WACC Calc'!X381 -> 0.07317073171 | AE71: ='WACC Calc'!Y381 -> 0.07317073171 | AF71: ='WACC Calc'!Z381 -> 0.07317073171 | AG71: ='WACC Calc'!AA381 -> 0.07317073171 | AH71: ='WACC Calc'!AB381 -> 0.07317073171 | AI71: ='WACC Calc'!AC381 -> 0.07317073171 | AJ71: ='WACC Calc'!AD381 -> 0.07317073171 | AK71: ='WACC Calc'!AE381 -> 0.07317073171 | AL71: ='WACC Calc'!AF381 -> 0.07317073171 | AM71: ='WACC Calc'!AG381 -> 0.07317073171 | AN71: ='WACC Calc'!AH381 -> 0.07317073171 | AO71: ='WACC Calc'!AI381 -> 0.07317073171 | AP71: ='WACC Calc'!AJ381 -> 0.07317073171 | AQ71: ='WACC Calc'!AK381 -> 0.07317073171
K72: Debt Fraction - Advanced | L72: ='WACC Calc'!F382 -> 0.685 | M72: ='WACC Calc'!G382 -> 0.685 | N72: ='WACC Calc'!H382 -> 0.685 | O72: ='WACC Calc'!I382 -> 0.685 | P72: ='WACC Calc'!J382 -> 0.685 | Q72: ='WACC Calc'!K382 -> 0.685 | R72: ='WACC Calc'!L382 -> 0.685 | S72: ='WACC Calc'!M382 -> 0.685 | T72: ='WACC Calc'!N382 -> 0.685 | U72: ='WACC Calc'!O382 -> 0.685 | V72: ='WACC Calc'!P382 -> 0.685 | W72: ='WACC Calc'!Q382 -> 0.685 | X72: ='WACC Calc'!R382 -> 0.685 | Y72: ='WACC Calc'!S382 -> 0.685 | Z72: ='WACC Calc'!T382 -> 0.685 | AA72: ='WACC Calc'!U382 -> 0.685 | AB72: ='WACC Calc'!V382 -> 0.685 | AC72: ='WACC Calc'!W382 -> 0.685 | AD72: ='WACC Calc'!X382 -> 0.685 | AE72: ='WACC Calc'!Y382 -> 0.685 | AF72: ='WACC Calc'!Z382 -> 0.685 | AG72: ='WACC Calc'!AA382 -> 0.685 | AH72: ='WACC Calc'!AB382 -> 0.685 | AI72: ='WACC Calc'!AC382 -> 0.685 | AJ72: ='WACC Calc'!AD382 -> 0.685 | AK72: ='WACC Calc'!AE382 -> 0.685 | AL72: ='WACC Calc'!AF382 -> 0.685 | AM72: ='WACC Calc'!AG382 -> 0.685 | AN72: ='WACC Calc'!AH382 -> 0.685 | AO72: ='WACC Calc'!AI382 -> 0.685 | AP72: ='WACC Calc'!AJ382 -> 0.685 | AQ72: ='WACC Calc'!AK382 -> 0.685
K73: Debt Fraction - Moderate | L73: ='WACC Calc'!F383 -> 0.685 | M73: ='WACC Calc'!G383 -> 0.685 | N73: ='WACC Calc'!H383 -> 0.685 | O73: ='WACC Calc'!I383 -> 0.685 | P73: ='WACC Calc'!J383 -> 0.685 | Q73: ='WACC Calc'!K383 -> 0.685 | R73: ='WACC Calc'!L383 -> 0.685 | S73: ='WACC Calc'!M383 -> 0.685 | T73: ='WACC Calc'!N383 -> 0.685 | U73: ='WACC Calc'!O383 -> 0.685 | V73: ='WACC Calc'!P383 -> 0.685 | W73: ='WACC Calc'!Q383 -> 0.685 | X73: ='WACC Calc'!R383 -> 0.685 | Y73: ='WACC Calc'!S383 -> 0.685 | Z73: ='WACC Calc'!T383 -> 0.685 | AA73: ='WACC Calc'!U383 -> 0.685 | AB73: ='WACC Calc'!V383 -> 0.685 | AC73: ='WACC Calc'!W383 -> 0.685 | AD73: ='WACC Calc'!X383 -> 0.685 | AE73: ='WACC Calc'!Y383 -> 0.685 | AF73: ='WACC Calc'!Z383 -> 0.685 | AG73: ='WACC Calc'!AA383 -> 0.685 | AH73: ='WACC Calc'!AB383 -> 0.685 | AI73: ='WACC Calc'!AC383 -> 0.685 | AJ73: ='WACC Calc'!AD383 -> 0.685 | AK73: ='WACC Calc'!AE383 -> 0.685 | AL73: ='WACC Calc'!AF383 -> 0.685 | AM73: ='WACC Calc'!AG383 -> 0.685 | AN73: ='WACC Calc'!AH383 -> 0.685 | AO73: ='WACC Calc'!AI383 -> 0.685 | AP73: ='WACC Calc'!AJ383 -> 0.685 | AQ73: ='WACC Calc'!AK383 -> 0.685
K74: Debt Fraction - Conservative | L74: ='WACC Calc'!F384 -> 0.685 | M74: ='WACC Calc'!G384 -> 0.685 | N74: ='WACC Calc'!H384 -> 0.685 | O74: ='WACC Calc'!I384 -> 0.685 | P74: ='WACC Calc'!J384 -> 0.685 | Q74: ='WACC Calc'!K384 -> 0.685 | R74: ='WACC Calc'!L384 -> 0.685 | S74: ='WACC Calc'!M384 -> 0.685 | T74: ='WACC Calc'!N384 -> 0.685 | U74: ='WACC Calc'!O384 -> 0.685 | V74: ='WACC Calc'!P384 -> 0.685 | W74: ='WACC Calc'!Q384 -> 0.685 | X74: ='WACC Calc'!R384 -> 0.685 | Y74: ='WACC Calc'!S384 -> 0.685 | Z74: ='WACC Calc'!T384 -> 0.685 | AA74: ='WACC Calc'!U384 -> 0.685 | AB74: ='WACC Calc'!V384 -> 0.685 | AC74: ='WACC Calc'!W384 -> 0.685 | AD74: ='WACC Calc'!X384 -> 0.685 | AE74: ='WACC Calc'!Y384 -> 0.685 | AF74: ='WACC Calc'!Z384 -> 0.685 | AG74: ='WACC Calc'!AA384 -> 0.685 | AH74: ='WACC Calc'!AB384 -> 0.685 | AI74: ='WACC Calc'!AC384 -> 0.685 | AJ74: ='WACC Calc'!AD384 -> 0.685 | AK74: ='WACC Calc'!AE384 -> 0.685 | AL74: ='WACC Calc'!AF384 -> 0.685 | AM74: ='WACC Calc'!AG384 -> 0.685 | AN74: ='WACC Calc'!AH384 -> 0.685 | AO74: ='WACC Calc'!AI384 -> 0.685 | AP74: ='WACC Calc'!AJ384 -> 0.685 | AQ74: ='WACC Calc'!AK384 -> 0.685
K75: Tax Rate (Federal and State) | L75: ='WACC Calc'!F385 -> 0.2574 | M75: ='WACC Calc'!G385 -> 0.2574 | N75: ='WACC Calc'!H385 -> 0.2574 | O75: ='WACC Calc'!I385 -> 0.2574 | P75: ='WACC Calc'!J385 -> 0.2574 | Q75: ='WACC Calc'!K385 -> 0.2574 | R75: ='WACC Calc'!L385 -> 0.2574 | S75: ='WACC Calc'!M385 -> 0.2574 | T75: ='WACC Calc'!N385 -> 0.2574 | U75: ='WACC Calc'!O385 -> 0.2574 | V75: ='WACC Calc'!P385 -> 0.2574 | W75: ='WACC Calc'!Q385 -> 0.2574 | X75: ='WACC Calc'!R385 -> 0.2574 | Y75: ='WACC Calc'!S385 -> 0.2574 | Z75: ='WACC Calc'!T385 -> 0.2574 | AA75: ='WACC Calc'!U385 -> 0.2574 | AB75: ='WACC Calc'!V385 -> 0.2574 | AC75: ='WACC Calc'!W385 -> 0.2574 | AD75: ='WACC Calc'!X385 -> 0.2574 | AE75: ='WACC Calc'!Y385 -> 0.2574 | AF75: ='WACC Calc'!Z385 -> 0.2574 | AG75: ='WACC Calc'!AA385 -> 0.2574 | AH75: ='WACC Calc'!AB385 -> 0.2574 | AI75: ='WACC Calc'!AC385 -> 0.2574 | AJ75: ='WACC Calc'!AD385 -> 0.2574 | AK75: ='WACC Calc'!AE385 -> 0.2574 | AL75: ='WACC Calc'!AF385 -> 0.2574 | AM75: ='WACC Calc'!AG385 -> 0.2574 | AN75: ='WACC Calc'!AH385 -> 0.2574 | AO75: ='WACC Calc'!AI385 -> 0.2574 | AP75: ='WACC Calc'!AJ385 -> 0.2574 | AQ75: ='WACC Calc'!AK385 -> 0.2574
K76: WACC Nominal - Advanced | L76: ='WACC Calc'!F386 -> 0.05184724 | M76: ='WACC Calc'!G386 -> 0.05184724 | N76: ='WACC Calc'!H386 -> 0.05184724 | O76: ='WACC Calc'!I386 -> 0.05184724 | P76: ='WACC Calc'!J386 -> 0.05184724 | Q76: ='WACC Calc'!K386 -> 0.05184724 | R76: ='WACC Calc'!L386 -> 0.05184724 | S76: ='WACC Calc'!M386 -> 0.05184724 | T76: ='WACC Calc'!N386 -> 0.05184724 | U76: ='WACC Calc'!O386 -> 0.05184724 | V76: ='WACC Calc'!P386 -> 0.05184724 | W76: ='WACC Calc'!Q386 -> 0.05184724 | X76: ='WACC Calc'!R386 -> 0.05184724 | Y76: ='WACC Calc'!S386 -> 0.05184724 | Z76: ='WACC Calc'!T386 -> 0.05184724 | AA76: ='WACC Calc'!U386 -> 0.05184724 | AB76: ='WACC Calc'!V386 -> 0.05184724 | AC76: ='WACC Calc'!W386 -> 0.05184724 | AD76: ='WACC Calc'!X386 -> 0.05184724 | AE76: ='WACC Calc'!Y386 -> 0.05184724 | AF76: ='WACC Calc'!Z386 -> 0.05184724 | AG76: ='WACC Calc'!AA386 -> 0.05184724 | AH76: ='WACC Calc'!AB386 -> 0.05184724 | AI76: ='WACC Calc'!AC386 -> 0.05184724 | AJ76: ='WACC Calc'!AD386 -> 0.05184724 | AK76: ='WACC Calc'!AE386 -> 0.05184724 | AL76: ='WACC Calc'!AF386 -> 0.05184724 | AM76: ='WACC Calc'!AG386 -> 0.05184724 | AN76: ='WACC Calc'!AH386 -> 0.05184724 | AO76: ='WACC Calc'!AI386 -> 0.05184724 | AP76: ='WACC Calc'!AJ386 -> 0.05184724 | AQ76: ='WACC Calc'!AK386 -> 0.05184724
K77: WACC Nominal - Moderate | L77: ='WACC Calc'!F387 -> 0.05184724 | M77: ='WACC Calc'!G387 -> 0.05184724 | N77: ='WACC Calc'!H387 -> 0.05184724 | O77: ='WACC Calc'!I387 -> 0.05184724 | P77: ='WACC Calc'!J387 -> 0.05184724 | Q77: ='WACC Calc'!K387 -> 0.05184724 | R77: ='WACC Calc'!L387 -> 0.05184724 | S77: ='WACC Calc'!M387 -> 0.05184724 | T77: ='WACC Calc'!N387 -> 0.05184724 | U77: ='WACC Calc'!O387 -> 0.05184724 | V77: ='WACC Calc'!P387 -> 0.05184724 | W77: ='WACC Calc'!Q387 -> 0.05184724 | X77: ='WACC Calc'!R387 -> 0.05184724 | Y77: ='WACC Calc'!S387 -> 0.05184724 | Z77: ='WACC Calc'!T387 -> 0.05184724 | AA77: ='WACC Calc'!U387 -> 0.05184724 | AB77: ='WACC Calc'!V387 -> 0.05184724 | AC77: ='WACC Calc'!W387 -> 0.05184724 | AD77: ='WACC Calc'!X387 -> 0.05184724 | AE77: ='WACC Calc'!Y387 -> 0.05184724 | AF77: ='WACC Calc'!Z387 -> 0.05184724 | AG77: ='WACC Calc'!AA387 -> 0.05184724 | AH77: ='WACC Calc'!AB387 -> 0.05184724 | AI77: ='WACC Calc'!AC387 -> 0.05184724 | AJ77: ='WACC Calc'!AD387 -> 0.05184724 | AK77: ='WACC Calc'!AE387 -> 0.05184724 | AL77: ='WACC Calc'!AF387 -> 0.05184724 | AM77: ='WACC Calc'!AG387 -> 0.05184724 | AN77: ='WACC Calc'!AH387 -> 0.05184724 | AO77: ='WACC Calc'!AI387 -> 0.05184724 | AP77: ='WACC Calc'!AJ387 -> 0.05184724 | AQ77: ='WACC Calc'!AK387 -> 0.05184724
K78: WACC Nominal - Conservative | L78: ='WACC Calc'!F388 -> 0.05184724 | M78: ='WACC Calc'!G388 -> 0.05184724 | N78: ='WACC Calc'!H388 -> 0.05184724 | O78: ='WACC Calc'!I388 -> 0.05184724 | P78: ='WACC Calc'!J388 -> 0.05184724 | Q78: ='WACC Calc'!K388 -> 0.05184724 | R78: ='WACC Calc'!L388 -> 0.05184724 | S78: ='WACC Calc'!M388 -> 0.05184724 | T78: ='WACC Calc'!N388 -> 0.05184724 | U78: ='WACC Calc'!O388 -> 0.05184724 | V78: ='WACC Calc'!P388 -> 0.05184724 | W78: ='WACC Calc'!Q388 -> 0.05184724 | X78: ='WACC Calc'!R388 -> 0.05184724 | Y78: ='WACC Calc'!S388 -> 0.05184724 | Z78: ='WACC Calc'!T388 -> 0.05184724 | AA78: ='WACC Calc'!U388 -> 0.05184724 | AB78: ='WACC Calc'!V388 -> 0.05184724 | AC78: ='WACC Calc'!W388 -> 0.05184724 | AD78: ='WACC Calc'!X388 -> 0.05184724 | AE78: ='WACC Calc'!Y388 -> 0.05184724 | AF78: ='WACC Calc'!Z388 -> 0.05184724 | AG78: ='WACC Calc'!AA388 -> 0.05184724 | AH78: ='WACC Calc'!AB388 -> 0.05184724 | AI78: ='WACC Calc'!AC388 -> 0.05184724 | AJ78: ='WACC Calc'!AD388 -> 0.05184724 | AK78: ='WACC Calc'!AE388 -> 0.05184724 | AL78: ='WACC Calc'!AF388 -> 0.05184724 | AM78: ='WACC Calc'!AG388 -> 0.05184724 | AN78: ='WACC Calc'!AH388 -> 0.05184724 | AO78: ='WACC Calc'!AI388 -> 0.05184724 | AP78: ='WACC Calc'!AJ388 -> 0.05184724 | AQ78: ='WACC Calc'!AK388 -> 0.05184724
K79: WACC Real - Advanced | L79: ='WACC Calc'!F389 -> 0.02619242927 | M79: ='WACC Calc'!G389 -> 0.02619242927 | N79: ='WACC Calc'!H389 -> 0.02619242927 | O79: ='WACC Calc'!I389 -> 0.02619242927 | P79: ='WACC Calc'!J389 -> 0.02619242927 | Q79: ='WACC Calc'!K389 -> 0.02619242927 | R79: ='WACC Calc'!L389 -> 0.02619242927 | S79: ='WACC Calc'!M389 -> 0.02619242927 | T79: ='WACC Calc'!N389 -> 0.02619242927 | U79: ='WACC Calc'!O389 -> 0.02619242927 | V79: ='WACC Calc'!P389 -> 0.02619242927 | W79: ='WACC Calc'!Q389 -> 0.02619242927 | X79: ='WACC Calc'!R389 -> 0.02619242927 | Y79: ='WACC Calc'!S389 -> 0.02619242927 | Z79: ='WACC Calc'!T389 -> 0.02619242927 | AA79: ='WACC Calc'!U389 -> 0.02619242927 | AB79: ='WACC Calc'!V389 -> 0.02619242927 | AC79: ='WACC Calc'!W389 -> 0.02619242927 | AD79: ='WACC Calc'!X389 -> 0.02619242927 | AE79: ='WACC Calc'!Y389 -> 0.02619242927 | AF79: ='WACC Calc'!Z389 -> 0.02619242927 | AG79: ='WACC Calc'!AA389 -> 0.02619242927 | AH79: ='WACC Calc'!AB389 -> 0.02619242927 | AI79: ='WACC Calc'!AC389 -> 0.02619242927 | AJ79: ='WACC Calc'!AD389 -> 0.02619242927 | AK79: ='WACC Calc'!AE389 -> 0.02619242927 | AL79: ='WACC Calc'!AF389 -> 0.02619242927 | AM79: ='WACC Calc'!AG389 -> 0.02619242927 | AN79: ='WACC Calc'!AH389 -> 0.02619242927 | AO79: ='WACC Calc'!AI389 -> 0.02619242927 | AP79: ='WACC Calc'!AJ389 -> 0.02619242927 | AQ79: ='WACC Calc'!AK389 -> 0.02619242927
K80: WACC Real - Moderate | L80: ='WACC Calc'!F390 -> 0.02619242927 | M80: ='WACC Calc'!G390 -> 0.02619242927 | N80: ='WACC Calc'!H390 -> 0.02619242927 | O80: ='WACC Calc'!I390 -> 0.02619242927 | P80: ='WACC Calc'!J390 -> 0.02619242927 | Q80: ='WACC Calc'!K390 -> 0.02619242927 | R80: ='WACC Calc'!L390 -> 0.02619242927 | S80: ='WACC Calc'!M390 -> 0.02619242927 | T80: ='WACC Calc'!N390 -> 0.02619242927 | U80: ='WACC Calc'!O390 -> 0.02619242927 | V80: ='WACC Calc'!P390 -> 0.02619242927 | W80: ='WACC Calc'!Q390 -> 0.02619242927 | X80: ='WACC Calc'!R390 -> 0.02619242927 | Y80: ='WACC Calc'!S390 -> 0.02619242927 | Z80: ='WACC Calc'!T390 -> 0.02619242927 | AA80: ='WACC Calc'!U390 -> 0.02619242927 | AB80: ='WACC Calc'!V390 -> 0.02619242927 | AC80: ='WACC Calc'!W390 -> 0.02619242927 | AD80: ='WACC Calc'!X390 -> 0.02619242927 | AE80: ='WACC Calc'!Y390 -> 0.02619242927 | AF80: ='WACC Calc'!Z390 -> 0.02619242927 | AG80: ='WACC Calc'!AA390 -> 0.02619242927 | AH80: ='WACC Calc'!AB390 -> 0.02619242927 | AI80: ='WACC Calc'!AC390 -> 0.02619242927 | AJ80: ='WACC Calc'!AD390 -> 0.02619242927 | AK80: ='WACC Calc'!AE390 -> 0.02619242927 | AL80: ='WACC Calc'!AF390 -> 0.02619242927 | AM80: ='WACC Calc'!AG390 -> 0.02619242927 | AN80: ='WACC Calc'!AH390 -> 0.02619242927 | AO80: ='WACC Calc'!AI390 -> 0.02619242927 | AP80: ='WACC Calc'!AJ390 -> 0.02619242927 | AQ80: ='WACC Calc'!AK390 -> 0.02619242927
K81: WACC Real - Conservative | L81: ='WACC Calc'!F391 -> 0.02619242927 | M81: ='WACC Calc'!G391 -> 0.02619242927 | N81: ='WACC Calc'!H391 -> 0.02619242927 | O81: ='WACC Calc'!I391 -> 0.02619242927 | P81: ='WACC Calc'!J391 -> 0.02619242927 | Q81: ='WACC Calc'!K391 -> 0.02619242927 | R81: ='WACC Calc'!L391 -> 0.02619242927 | S81: ='WACC Calc'!M391 -> 0.02619242927 | T81: ='WACC Calc'!N391 -> 0.02619242927 | U81: ='WACC Calc'!O391 -> 0.02619242927 | V81: ='WACC Calc'!P391 -> 0.02619242927 | W81: ='WACC Calc'!Q391 -> 0.02619242927 | X81: ='WACC Calc'!R391 -> 0.02619242927 | Y81: ='WACC Calc'!S391 -> 0.02619242927 | Z81: ='WACC Calc'!T391 -> 0.02619242927 | AA81: ='WACC Calc'!U391 -> 0.02619242927 | AB81: ='WACC Calc'!V391 -> 0.02619242927 | AC81: ='WACC Calc'!W391 -> 0.02619242927 | AD81: ='WACC Calc'!X391 -> 0.02619242927 | AE81: ='WACC Calc'!Y391 -> 0.02619242927 | AF81: ='WACC Calc'!Z391 -> 0.02619242927 | AG81: ='WACC Calc'!AA391 -> 0.02619242927 | AH81: ='WACC Calc'!AB391 -> 0.02619242927 | AI81: ='WACC Calc'!AC391 -> 0.02619242927 | AJ81: ='WACC Calc'!AD391 -> 0.02619242927 | AK81: ='WACC Calc'!AE391 -> 0.02619242927 | AL81: ='WACC Calc'!AF391 -> 0.02619242927 | AM81: ='WACC Calc'!AG391 -> 0.02619242927 | AN81: ='WACC Calc'!AH391 -> 0.02619242927 | AO81: ='WACC Calc'!AI391 -> 0.02619242927 | AP81: ='WACC Calc'!AJ391 -> 0.02619242927 | AQ81: ='WACC Calc'!AK391 -> 0.02619242927
K82: Capital Recovery Factor (CRF) Nominal - Advanced | L82: =L76 / (1 - (1 / (1 + L76)^$N$32)) -> 0.06642760702 | M82: 0.06642760702 | N82: 0.06642760702 | O82: 0.06642760702 | P82: 0.06642760702 | Q82: 0.06642760702 | R82: 0.06642760702 | S82: 0.06642760702 | T82: 0.06642760702 | U82: 0.06642760702 | V82: 0.06642760702 | W82: 0.06642760702 | X82: 0.06642760702 | Y82: 0.06642760702 | Z82: 0.06642760702 | AA82: 0.06642760702 | AB82: 0.06642760702 | AC82: 0.06642760702 | AD82: 0.06642760702 | AE82: 0.06642760702 | AF82: 0.06642760702 | AG82: 0.06642760702 | AH82: 0.06642760702 | AI82: 0.06642760702 | AJ82: 0.06642760702 | AK82: 0.06642760702 | AL82: 0.06642760702 | AM82: 0.06642760702 | AN82: 0.06642760702 | AO82: 0.06642760702 | AP82: 0.06642760702 | AQ82: 0.06642760702
K83: Capital Recovery Factor (CRF) Nominal - Moderate | L83: =L77 / (1 - (1 / (1 + L77)^$N$32)) -> 0.06642760702 | M83: 0.06642760702 | N83: 0.06642760702 | O83: 0.06642760702 | P83: 0.06642760702 | Q83: 0.06642760702 | R83: 0.06642760702 | S83: 0.06642760702 | T83: 0.06642760702 | U83: 0.06642760702 | V83: 0.06642760702 | W83: 0.06642760702 | X83: 0.06642760702 | Y83: 0.06642760702 | Z83: 0.06642760702 | AA83: 0.06642760702 | AB83: 0.06642760702 | AC83: 0.06642760702 | AD83: 0.06642760702 | AE83: 0.06642760702 | AF83: 0.06642760702 | AG83: 0.06642760702 | AH83: 0.06642760702 | AI83: 0.06642760702 | AJ83: 0.06642760702 | AK83: 0.06642760702 | AL83: 0.06642760702 | AM83: 0.06642760702 | AN83: 0.06642760702 | AO83: 0.06642760702 | AP83: 0.06642760702 | AQ83: 0.06642760702
K84: Capital Recovery Factor (CRF) Nominal - Conservative | L84: =L78 / (1 - (1 / (1 + L78)^$N$32)) -> 0.06642760702 | M84: 0.06642760702 | N84: 0.06642760702 | O84: 0.06642760702 | P84: 0.06642760702 | Q84: 0.06642760702 | R84: 0.06642760702 | S84: 0.06642760702 | T84: 0.06642760702 | U84: 0.06642760702 | V84: 0.06642760702 | W84: 0.06642760702 | X84: 0.06642760702 | Y84: 0.06642760702 | Z84: 0.06642760702 | AA84: 0.06642760702 | AB84: 0.06642760702 | AC84: 0.06642760702 | AD84: 0.06642760702 | AE84: 0.06642760702 | AF84: 0.06642760702 | AG84: 0.06642760702 | AH84: 0.06642760702 | AI84: 0.06642760702 | AJ84: 0.06642760702 | AK84: 0.06642760702 | AL84: 0.06642760702 | AM84: 0.06642760702 | AN84: 0.06642760702 | AO84: 0.06642760702 | AP84: 0.06642760702 | AQ84: 0.06642760702
K85: Capital Recovery Factor (CRF) Real - Advanced | L85: =L79 / (1 - (1 / (1 + L79)^$N$32)) -> 0.04854050177 | M85: 0.04854050177 | N85: 0.04854050177 | O85: 0.04854050177 | P85: 0.04854050177 | Q85: 0.04854050177 | R85: 0.04854050177 | S85: 0.04854050177 | T85: 0.04854050177 | U85: 0.04854050177 | V85: 0.04854050177 | W85: 0.04854050177 | X85: 0.04854050177 | Y85: 0.04854050177 | Z85: 0.04854050177 | AA85: 0.04854050177 | AB85: 0.04854050177 | AC85: 0.04854050177 | AD85: 0.04854050177 | AE85: 0.04854050177 | AF85: 0.04854050177 | AG85: 0.04854050177 | AH85: 0.04854050177 | AI85: 0.04854050177 | AJ85: 0.04854050177 | AK85: 0.04854050177 | AL85: 0.04854050177 | AM85: 0.04854050177 | AN85: 0.04854050177 | AO85: 0.04854050177 | AP85: 0.04854050177 | AQ85: 0.04854050177
K86: Capital Recovery Factor (CRF) Real - Moderate | L86: =L80 / (1 - (1 / (1 + L80)^$N$32)) -> 0.04854050177 | M86: 0.04854050177 | N86: 0.04854050177 | O86: 0.04854050177 | P86: 0.04854050177 | Q86: 0.04854050177 | R86: 0.04854050177 | S86: 0.04854050177 | T86: 0.04854050177 | U86: 0.04854050177 | V86: 0.04854050177 | W86: 0.04854050177 | X86: 0.04854050177 | Y86: 0.04854050177 | Z86: 0.04854050177 | AA86: 0.04854050177 | AB86: 0.04854050177 | AC86: 0.04854050177 | AD86: 0.04854050177 | AE86: 0.04854050177 | AF86: 0.04854050177 | AG86: 0.04854050177 | AH86: 0.04854050177 | AI86: 0.04854050177 | AJ86: 0.04854050177 | AK86: 0.04854050177 | AL86: 0.04854050177 | AM86: 0.04854050177 | AN86: 0.04854050177 | AO86: 0.04854050177 | AP86: 0.04854050177 | AQ86: 0.04854050177
K87: Capital Recovery Factor (CRF) Real - Conservative | L87: =L81 / (1 - (1 / (1 + L81)^$N$32)) -> 0.04854050177 | M87: 0.04854050177 | N87: 0.04854050177 | O87: 0.04854050177 | P87: 0.04854050177 | Q87: 0.04854050177 | R87: 0.04854050177 | S87: 0.04854050177 | T87: 0.04854050177 | U87: 0.04854050177 | V87: 0.04854050177 | W87: 0.04854050177 | X87: 0.04854050177 | Y87: 0.04854050177 | Z87: 0.04854050177 | AA87: 0.04854050177 | AB87: 0.04854050177 | AC87: 0.04854050177 | AD87: 0.04854050177 | AE87: 0.04854050177 | AF87: 0.04854050177 | AG87: 0.04854050177 | AH87: 0.04854050177 | AI87: 0.04854050177 | AJ87: 0.04854050177 | AK87: 0.04854050177 | AL87: 0.04854050177 | AM87: 0.04854050177 | AN87: 0.04854050177 | AO87: 0.04854050177 | AP87: 0.04854050177 | AQ87: 0.04854050177
D90: X | G90: Future Projections
L91: Base Year
L92: 2019 | M92: 2020 | N92: 2021 | O92: 2022 | P92: 2023 | Q92: 2024 | R92: 2025 | S92: 2026 | T92: 2027 | U92: 2028 | V92: 2029 | W92: 2030 | X92: 2031 | Y92: 2032 | Z92: 2033 | AA92: 2034 | AB92: 2035 | AC92: 2036 | AD92: 2037 | AE92: 2038 | AF92: 2039 | AG92: 2040 | AH92: 2041 | AI92: 2042 | AJ92: 2043 | AK92: 2044 | AL92: 2045 | AM92: 2046 | AN92: 2047 | AO92: 2048 | AP92: 2049 | AQ92: 2050
H93: Techno-Economic Cost and Performance Parameters | J93: Net Capacity Factor (%) | K93: Class 1 - Advanced | L93: 0.4518620977 | M93: 0.4594953023 | N93: 0.4649261835 | O93: 0.4691469195 | P93: 0.4726006906 | Q93: 0.4755243735 | R93: 0.4780595807 | S93: 0.4802977701 | T93: 0.482301455 | U93: 0.4841152644 | V93: 0.4857721772 | W93: 0.4872972563 | X93: 0.4887099959 | Y93: 0.4900258589 | Z93: 0.4912573177 | AA93: 0.4924145789 | AB93: 0.4935061014 | AC93: 0.4945389738 | AD93: 0.4955191957 | AE93: 0.49645189 | AF93: 0.4973414657 | AG93: 0.4981917448 | AH93: 0.4990060623 | AI93: 0.4997873454 | AJ93: 0.5005381776 | AK93: 0.5012608503 | AL93: 0.5019574055 | AM93: 0.5026296705 | AN93: 0.5032792872 | AO93: 0.5039077363 | AP93: 0.5045163578 | AQ93: 0.5051063681
K94: Class 1 - Moderate | L94: 0.4496976737 | M94: 0.4560282082 | N94: 0.4605197939 | O94: 0.4640037385 | P94: 0.4668503284 | Q94: 0.4692570859 | R94: 0.4713419141 | S94: 0.4731808629 | T94: 0.4748258587 | U94: 0.4763139384 | V94: 0.4776724487 | W94: 0.478922157 | X94: 0.4800792062 | Y94: 0.4811563932 | Z94: 0.4821640344 | AA94: 0.4831105678 | AB94: 0.4840029832 | AC94: 0.4848471357 | AD94: 0.4856479789 | AE94: 0.4864097407 | AF94: 0.4871360586 | AG94: 0.4878300848 | AH94: 0.4884945689 | AI94: 0.4891319235 | AJ94: 0.4897442772 | AK94: 0.4903335177 | AL94: 0.4909013264 | AM94: 0.4914492079 | AN94: 0.4919785134 | AO94: 0.4924904616 | AP94: 0.4929861546 | AQ94: 0.4934665931
K95: Class 1 - Conservative | L95: 0.4442866135 | M95: 0.4474137942 | N95: 0.4496171638 | O95: 0.4513178956 | P95: 0.4527022777 | Q95: 0.4538691877 | R95: 0.4548774189 | S95: 0.4557647751 | T95: 0.4565569998 | U95: 0.4572724128 | V95: 0.4579245134 | W95: 0.4585235349 | X95: 0.4590774185 | Y95: 0.4595924504 | Z95: 0.4600736913 | AA95: 0.4605252753 | AB95: 0.4609506229 | AC95: 0.4613525963 | AD95: 0.4617336145 | AE95: 0.4620957399 | AF95: 0.4624407458 | AG95: 0.4627701671 | AH95: 0.4630853418 | AI95: 0.463387443 | AJ95: 0.4636775048 | AK95: 0.4639564438 | AL95: 0.4642250758 | AM95: 0.4644841302 | AN95: 0.4647342619 | AO95: 0.4649760609 | AP95: 0.4652100608 | AQ95: 0.4654367455
K96: Class 2 - Advanced | L96: 0.4403423825 | M96: 0.4477809871 | N96: 0.4530734142 | O96: 0.4571865472 | P96: 0.4605522683 | Q96: 0.4634014152 | R96: 0.4658719902 | S96: 0.4680531195 | T96: 0.4700057227 | U96: 0.471773291 | V96: 0.4733879628 | W96: 0.4748741617 | X96: 0.476250885 | Y96: 0.4775332016 | Z96: 0.4787332657 | AA96: 0.4798610239 | AB96: 0.4809247192 | AC96: 0.4819312597 | AD96: 0.482886492 | AE96: 0.4837954083 | AF96: 0.4846623052 | AG96: 0.4854909075 | AH96: 0.4862844649 | AI96: 0.48704583 | AJ96: 0.4877775206 | AK96: 0.4884817696 | AL96: 0.4891605668 | AM96: 0.4898156932 | AN96: 0.4904487487 | AO96: 0.4910611762 | AP96: 0.4916542816 | AQ96: 0.4922292502
K97: Class 2 - Moderate | L97: 0.438233138 | M97: 0.4444022827 | N97: 0.4487793605 | O97: 0.4521744858 | P97: 0.4549485052 | Q97: 0.4572939051 | R97: 0.459325583 | S97: 0.4611176498 | T97: 0.4627207083 | U97: 0.464170851 | V97: 0.4654947276 | W97: 0.4667125761 | X97: 0.4678401276 | Y97: 0.468889853 | Z97: 0.4698718054 | AA97: 0.470794208 | AB97: 0.4716638723 | AC97: 0.4724865042 | AD97: 0.4732669308 | AE97: 0.4740092723 | AF97: 0.4747170735 | AG97: 0.4753934063 | AH97: 0.4760409501 | AI97: 0.4766620561 | AJ97: 0.4772587985 | AK97: 0.477833017 | AL97: 0.4783863501 | AM97: 0.4789202639 | AN97: 0.4794360754 | AO97: 0.479934972 | AP97: 0.4804180279 | AQ97: 0.4808862182
K98: Class 2 - Conservative | L98: 0.4329600268 | M98: 0.4360074835 | N98: 0.4381546807 | O98: 0.4398120542 | P98: 0.4411611431 | Q98: 0.442298304 | R98: 0.4432808315 | S98: 0.4441455655 | T98: 0.4449175933 | U98: 0.4456147677 | V98: 0.4462502438 | W98: 0.4468339939 | X98: 0.4473737568 | Y98: 0.4478756586 | Z98: 0.4483446308 | AA98: 0.4487847022 | AB98: 0.449199206 | AC98: 0.4495909316 | AD98: 0.4499622361 | AE98: 0.4503151296 | AF98: 0.4506513399 | AG98: 0.450972363 | AH98: 0.4512795026 | AI98: 0.4515739021 | AJ98: 0.4518565692 | AK98: 0.4521283969 | AL98: 0.4523901804 | AM98: 0.4526426305 | AN98: 0.4528863854 | AO98: 0.45312202 | AP98: 0.4533500543 | AQ98: 0.4535709599
K99: Class 3 - Advanced | L99: 0.4436338723 | M99: 0.4511280793 | N99: 0.4564600664 | O99: 0.4606039445 | P99: 0.4639948238 | Q99: 0.4668652676 | R99: 0.4693543097 | S99: 0.4715517427 | T99: 0.4735189413 | U99: 0.4752997219 | V99: 0.4769264631 | W99: 0.4784237711 | X99: 0.4798107852 | Y99: 0.4811026869 | Z99: 0.4823117213 | AA99: 0.4834479093 | AB99: 0.4845195556 | AC99: 0.4855336198 | AD99: 0.4864959923 | AE99: 0.4874117026 | AF99: 0.4882850795 | AG99: 0.4891198754 | AH99: 0.4899193645 | AI99: 0.4906864208 | AJ99: 0.4914235806 | AK99: 0.4921330937 | AL99: 0.4928169649 | AM99: 0.4934769882 | AN99: 0.4941147757 | AO99: 0.494731781 | AP99: 0.4953293197 | AQ99: 0.4959085861
K100: Class 3 - Moderate | L100: 0.4415088616 | M100: 0.4477241196 | N100: 0.4521339154 | O100: 0.4555544187 | P100: 0.4583491734 | Q100: 0.4607121049 | R100: 0.4627589692 | S100: 0.4645644315 | T100: 0.4661794725 | U100: 0.4676404549 | V100: 0.4689742273 | W100: 0.4702011789 | X100: 0.4713371587 | Y100: 0.4723947306 | Z100: 0.473384023 | AA100: 0.4743133204 | AB100: 0.4751894853 | AC100: 0.4760182662 | AD100: 0.4768045264 | AE100: 0.4775524168 | AF100: 0.4782655087 | AG100: 0.478946897 | AH100: 0.4795992811 | AI100: 0.4802250297 | AJ100: 0.4808262327 | AK100: 0.4814047434 | AL100: 0.4819622125 | AM100: 0.4825001173 | AN100: 0.4830197844 | AO100: 0.4835224102 | AP100: 0.4840090769 | AQ100: 0.4844807668
K101: Class 3 - Conservative | L101: 0.4361963347 | M101: 0.4392665706 | N101: 0.4414298178 | O101: 0.4430995799 | P101: 0.444458753 | Q101: 0.445604414 | R101: 0.4465942858 | S101: 0.4474654835 | T101: 0.4482432821 | U101: 0.4489456677 | V101: 0.4495858939 | W101: 0.4501740074 | X101: 0.4507178051 | Y101: 0.4512234585 | Z101: 0.4516959362 | AA101: 0.452139297 | AB101: 0.4525568992 | AC101: 0.4529515528 | AD101: 0.4533256328 | AE101: 0.4536811641 | AF101: 0.4540198875 | AG101: 0.4543433102 | AH101: 0.4546527457 | AI101: 0.4549493457 | AJ101: 0.4552341257 | AK101: 0.4555079853 | AL101: 0.4557717256 | AM101: 0.4560260627 | AN101: 0.4562716396 | AO101: 0.4565090356 | AP101: 0.4567387744 | AQ101: 0.4569613313
K102: Class 4 - Advanced | L102: 0.4416157672 | M102: 0.4490758828 | N102: 0.4543836145 | O102: 0.4585086419 | P102: 0.461884096 | Q102: 0.4647414821 | R102: 0.4672192015 | S102: 0.4694066382 | T102: 0.471364888 | U102: 0.4731375678 | V102: 0.4747569088 | W102: 0.4762474055 | X102: 0.4776281101 | Y102: 0.4789141349 | Z102: 0.4801176694 | AA102: 0.4812486888 | AB102: 0.4823154601 | AC102: 0.4833249113 | AD102: 0.484282906 | AE102: 0.4851944507 | AF102: 0.4860638545 | AG102: 0.4868948529 | AH102: 0.4876907051 | AI102: 0.488454272 | AJ102: 0.4891880785 | AK102: 0.489894364 | AL102: 0.4905751242 | AM102: 0.4912321451 | AN102: 0.4918670312 | AO102: 0.4924812298 | AP102: 0.4930760503 | AQ102: 0.4936526816
K103: Class 4 - Moderate | L103: 0.4395004231 | M103: 0.4456874078 | N103: 0.4500771432 | O103: 0.4534820866 | P103: 0.4562641279 | Q103: 0.4586163103 | R103: 0.4606538634 | S103: 0.4624511125 | T103: 0.4640588067 | U103: 0.465513143 | V103: 0.466840848 | W103: 0.4680622182 | X103: 0.4691930304 | Y103: 0.4702457913 | Z103: 0.4712305835 | AA103: 0.4721556534 | AB103: 0.4730278326 | AC103: 0.4738528434 | AD103: 0.4746355268 | AE103: 0.475380015 | AF103: 0.4760898631 | AG103: 0.4767681517 | AH103: 0.4774175681 | AI103: 0.4780404702 | AJ103: 0.4786389383 | AK103: 0.4792148173 | AL103: 0.4797697505 | AM103: 0.4803052083 | AN103: 0.4808225114 | AO103: 0.4813228507 | AP103: 0.4818073036 | AQ103: 0.4822768477
K104: Class 4 - Conservative | L104: 0.4342120631 | M104: 0.4372683325 | N104: 0.439421739 | O104: 0.4410839053 | P104: 0.4424368955 | Q104: 0.4435773448 | R104: 0.4445627136 | S104: 0.4454299482 | T104: 0.4462042086 | U104: 0.446903399 | V104: 0.4475407128 | W104: 0.448126151 | X104: 0.4486674749 | Y104: 0.449170828 | Z104: 0.4496411564 | AA104: 0.4500825004 | AB104: 0.4504982029 | AC104: 0.4508910612 | AD104: 0.4512634395 | AE104: 0.4516173535 | AF104: 0.451954536 | AG104: 0.4522764875 | AH104: 0.4525845153 | AI104: 0.4528797661 | AJ104: 0.4531632506 | AK104: 0.4534358644 | AL104: 0.453698405 | AM104: 0.4539515851 | AN104: 0.4541960449 | AO104: 0.4544323609 | AP104: 0.4546610546 | AQ104: 0.454882599
K105: Class 5 - Advanced | L105: 0.4344992919 | M105: 0.4418391904 | N105: 0.44706139 | O105: 0.4511199442 | P105: 0.4544410041 | Q105: 0.4572523444 | R105: 0.4596901362 | S105: 0.4618423233 | T105: 0.4637690166 | U105: 0.4655131303 | V105: 0.4671063762 | W105: 0.4685728541 | X105: 0.4699313091 | Y105: 0.4711966101 | Z105: 0.4723807501 | AA105: 0.4734935435 | AB105: 0.4745431242 | AC105: 0.4755363085 | AD105: 0.4764788654 | AE105: 0.4773757209 | AF105: 0.4782311146 | AG105: 0.4790487218 | AH105: 0.4798317491 | AI105: 0.4805830114 | AJ105: 0.4813049929 | AK105: 0.4819998969 | AL105: 0.4826696869 | AM105: 0.4833161201 | AN105: 0.4839407753 | AO105: 0.4845450763 | AP105: 0.4851303114 | AQ105: 0.4856976506
K106: Class 5 - Moderate | L106: 0.4324180358 | M106: 0.4385053195 | N106: 0.442824316 | O106: 0.4461743899 | P106: 0.4489115996 | Q106: 0.4512258775 | R106: 0.4532305961 | S106: 0.4549988833 | T106: 0.4565806701 | U106: 0.4580115703 | V106: 0.4593178798 | W106: 0.4605195681 | X106: 0.4616321576 | Y106: 0.4626679537 | Z106: 0.4636368763 | AA106: 0.4645470391 | AB106: 0.4654051635 | AC106: 0.4662168795 | AD106: 0.4669869502 | AE106: 0.4677194413 | AF106: 0.4684178504 | AG106: 0.4690852087 | AH106: 0.4697241599 | AI106: 0.4703370242 | AJ106: 0.4709258482 | AK106: 0.4714924471 | AL106: 0.4720384378 | AM106: 0.4725652669 | AN106: 0.4730742339 | AO106: 0.4735665104 | AP106: 0.4740431564 | AQ106: 0.4745051341
K107: Class 5 - Conservative | L107: 0.4272148957 | M107: 0.4302219145 | N107: 0.4323406196 | O107: 0.4339760007 | P107: 0.435307188 | Q107: 0.4364292594 | R107: 0.4373987493 | S107: 0.4382520088 | T107: 0.4390137922 | U107: 0.4397017155 | V107: 0.4403287592 | W107: 0.4409047632 | X107: 0.4414373639 | Y107: 0.4419326057 | Z107: 0.4423953549 | AA107: 0.4428295868 | AB107: 0.4432385904 | AC107: 0.443625118 | AD107: 0.4439914955 | AE107: 0.4443397063 | AF107: 0.4446714553 | AG107: 0.4449882186 | AH107: 0.4452912827 | AI107: 0.4455817756 | AJ107: 0.4458606918 | AK107: 0.4461289126 | AL107: 0.4463872224 | AM107: 0.4466363226 | AN107: 0.446876843 | AO107: 0.4471093509 | AP107: 0.4473343593 | AQ107: 0.4475523336
K108: Class 6 - Advanced | L108: 0.3730383936 | M108: 0.3793400471 | N108: 0.3838235548 | O108: 0.3873080174 | P108: 0.3901593059 | Q108: 0.3925729759 | R108: 0.3946659366 | S108: 0.3965136919 | T108: 0.3981678501 | U108: 0.3996652551 | V108: 0.4010331328 | W108: 0.4022921741 | X108: 0.4034584726 | Y108: 0.4045447939 | Z108: 0.4055614347 | AA108: 0.406516821 | AB108: 0.4074179361 | AC108: 0.4082706323 | AD108: 0.4090798624 | AE108: 0.4098498557 | AF108: 0.410584252 | AG108: 0.4112862068 | AH108: 0.4119584732 | AI108: 0.4126034678 | AJ108: 0.4132233233 | AK108: 0.4138199316 | AL108: 0.4143949783 | AM108: 0.4149499721 | AN108: 0.4154862684 | AO108: 0.4160050897 | AP108: 0.416507542 | AQ108: 0.4169946297
K109: Class 6 - Moderate | L109: 0.3712515359 | M109: 0.3764777596 | N109: 0.3801858244 | O109: 0.3830620229 | P109: 0.3854120481 | Q109: 0.3873989662 | R109: 0.3891201129 | S109: 0.3906382719 | T109: 0.3919963114 | U109: 0.3932248075 | V109: 0.3943463366 | W109: 0.3953780434 | X109: 0.3963332547 | Y109: 0.3972225351 | Z109: 0.3980544014 | AA109: 0.3988358197 | AB109: 0.3995725604 | AC109: 0.4002694573 | AD109: 0.4009305999 | AE109: 0.4015594785 | AF109: 0.402159096 | AG109: 0.402732055 | AH109: 0.4032806252 | AI109: 0.4038067984 | AJ109: 0.4043123319 | AK109: 0.4047987841 | AL109: 0.4052675432 | AM109: 0.4057198512 | AN109: 0.4061568236 | AO109: 0.4065794665 | AP109: 0.4069886899 | AQ109: 0.4073853198
K110: Class 6 - Conservative | L110: 0.3667843916 | M110: 0.3693660608 | N110: 0.3711850703 | O110: 0.3725891231 | P110: 0.373732011 | Q110: 0.3746953629 | R110: 0.3755277163 | S110: 0.3762602803 | T110: 0.3769143078 | U110: 0.3775049227 | V110: 0.3780432697 | W110: 0.3785377967 | X110: 0.3789950598 | Y110: 0.3794202485 | Z110: 0.3798175408 | AA110: 0.3801903496 | AB110: 0.3805414988 | AC110: 0.3808733511 | AD110: 0.3811879037 | AE110: 0.3814868593 | AF110: 0.3817716817 | AG110: 0.3820436381 | AH110: 0.3823038331 | AI110: 0.3825532352 | AJ110: 0.3827926981 | AK110: 0.3830229784 | AL110: 0.3832447497 | AM110: 0.3834586142 | AN110: 0.3836651124 | AO110: 0.3838647315 | AP110: 0.384057912 | AQ110: 0.3842450533
K111: Class 7 - Advanced | L111: 0.2881832471 | M111: 0.2930514618 | N111: 0.2965151048 | O111: 0.2992069557 | P111: 0.3014096608 | Q111: 0.3032742926 | R111: 0.304891167 | S111: 0.3063186129 | T111: 0.3075964993 | U111: 0.3087532891 | V111: 0.3098100153 | W111: 0.3107826621 | X111: 0.3116836624 | Y111: 0.3125228779 | Z111: 0.3133082631 | AA111: 0.3140463274 | AB111: 0.3147424657 | AC111: 0.3154011988 | AD111: 0.3160263531 | AE111: 0.3166211958 | AF111: 0.3171885388 | AG111: 0.3177308198 | AH111: 0.3182501655 | AI111: 0.318748443 | AJ111: 0.3192272998 | AK111: 0.3196881974 | AL111: 0.3201324381 | AM111: 0.3205611873 | AN111: 0.3209754922 | AO111: 0.321376297 | AP111: 0.3217644564 | AQ111: 0.3221407461
K112: Class 7 - Moderate | L112: 0.2868028465 | M112: 0.2908402596 | N112: 0.2937048499 | O112: 0.2959267987 | P112: 0.2977422631 | Q112: 0.2992772163 | R112: 0.3006068533 | S112: 0.3017796763 | T112: 0.3028288021 | U112: 0.3037778519 | V112: 0.3046442665 | W112: 0.3054412907 | X112: 0.3061792198 | Y112: 0.3068662153 | Z112: 0.3075088568 | AA112: 0.3081125256 | AB112: 0.3086816797 | AC112: 0.3092200533 | AD112: 0.3097308056 | AE112: 0.310216633 | AF112: 0.3106798554 | AG112: 0.3111224832 | AH112: 0.31154627 | AI112: 0.3119527544 | AJ112: 0.3123432941 | AK112: 0.3127190929 | AL112: 0.3130812232 | AM112: 0.3134306445 | AN112: 0.3137682188 | AO112: 0.314094723 | AP112: 0.3144108602 | AQ112: 0.3147172686
K113: Class 7 - Conservative | L113: 0.2833518447 | M113: 0.2853462609 | N113: 0.2867514999 | O113: 0.2878361724 | P113: 0.2887190872 | Q113: 0.2894633052 | R113: 0.2901063229 | S113: 0.2906722504 | T113: 0.2911775061 | U113: 0.2916337737 | V113: 0.2920496627 | W113: 0.2924316995 | X113: 0.2927849488 | Y113: 0.2931134198 | Z113: 0.2934203399 | AA113: 0.2937083458 | AB113: 0.2939796189 | AC113: 0.2942359848 | AD113: 0.294478986 | AE113: 0.2947099381 | AF113: 0.2949299718 | AG113: 0.2951400662 | AH113: 0.2953410746 | AI113: 0.2955337451 | AJ113: 0.2957187373 | AK113: 0.2958966357 | AL113: 0.2960679606 | AM113: 0.2962331773 | AN113: 0.2963927033 | AO113: 0.296546915 | AP113: 0.2966961526 | AQ113: 0.2968407249
K114: Class 8 - Advanced | L114: 0.5165485122 | M114: 0.520250025 | N114: 0.5228794082 | O114: 0.524920627 | P114: 0.5265895057 | Q114: 0.5280012683 | R114: 0.529224738 | S114: 0.5303043306 | T114: 0.5312703869 | U114: 0.5321445561 | V114: 0.5329428286 | W114: 0.5336773514 | X114: 0.5343575694 | Y114: 0.5349909716 | Z114: 0.5355835967 | AA114: 0.5361403851 | AB114: 0.5366654301 | AC114: 0.537162161 | AD114: 0.5376334797 | AE114: 0.5380818634 | AF114: 0.5385094437 | AG114: 0.5389180681 | AH114: 0.5393093483 | AI114: 0.5396846988 | AJ114: 0.5400453676 | AK114: 0.5403924616 | AL114: 0.5407269669 | AM114: 0.5410497661 | AN114: 0.5413616518 | AO114: 0.5416633388 | AP114: 0.541955474 | AQ114: 0.5422386444
K115: Class 8 - Moderate | L115: 0.5154960313 | M115: 0.5185743404 | N115: 0.5207584355 | O115: 0.5224525513 | P115: 0.5238367447 | Q115: 0.5250070635 | R115: 0.5260208397 | S115: 0.5269150538 | T115: 0.5277149555 | U115: 0.5284385546 | V115: 0.5290991489 | W115: 0.5297068367 | X115: 0.5302694677 | Y115: 0.5307932646 | Z115: 0.531283244 | AA115: 0.5317435088 | AB115: 0.532177458 | AC115: 0.5325879387 | AD115: 0.5329773597 | AE115: 0.5333477768 | AF115: 0.5337009588 | AG115: 0.5340384386 | AH115: 0.5343615531 | AI115: 0.5346714755 | AJ115: 0.5349692409 | AK115: 0.5352557671 | AL115: 0.5355318719 | AM115: 0.5357982868 | AN115: 0.5360556688 | AO115: 0.5363046106 | AP115: 0.5365456482 | AQ115: 0.536779268
K116: Class 8 - Conservative | L116: 0.5128648292 | M116: 0.5143961276 | N116: 0.5154793764 | O116: 0.5163178474 | P116: 0.5170018174 | Q116: 0.5175793418 | R116: 0.5180790585 | S116: 0.5185194152 | T116: 0.5189129934 | U116: 0.5192687584 | V116: 0.519593324 | W116: 0.519891709 | X116: 0.5201678119 | Y116: 0.5204247212 | Z116: 0.5206649252 | AA116: 0.5208904582 | AB116: 0.5211030043 | AC116: 0.5213039737 | AD116: 0.5214945588 | AE116: 0.5216757771 | AF116: 0.5218485035 | AG116: 0.522013496 | AH116: 0.5221714155 | AI116: 0.5223228416 | AJ116: 0.5224682858 | AK116: 0.5226082012 | AL116: 0.5227429915 | AM116: 0.5228730179 | AN116: 0.5229986044 | AO116: 0.5231200435 | AP116: 0.5232375994 | AQ116: 0.5233515121
K117: Class 9 - Advanced | L117: 0.5039221973 | M117: 0.5075332318 | N117: 0.5100983433 | O117: 0.5120896673 | P117: 0.5137177526 | Q117: 0.5150950067 | R117: 0.5162885702 | S117: 0.5173417737 | T117: 0.5182842161 | U117: 0.5191370175 | V117: 0.5199157773 | W117: 0.5206323457 | X117: 0.5212959367 | Y117: 0.5219138563 | Z117: 0.5224919955 | AA117: 0.523035174 | AB117: 0.5235473849 | AC117: 0.5240319739 | AD117: 0.5244917719 | AE117: 0.5249291954 | AF117: 0.5253463242 | AG117: 0.5257449603 | AH117: 0.5261266762 | AI117: 0.5264928518 | AJ117: 0.5268447045 | AK117: 0.5271833143 | AL117: 0.5275096431 | AM117: 0.5278245519 | AN117: 0.528128814 | AO117: 0.5284231267 | AP117: 0.528708121 | AQ117: 0.5289843697
K118: Class 9 - Moderate | L118: 0.5028954429 | M118: 0.505898507 | N118: 0.5080292149 | O118: 0.5096819203 | P118: 0.511032279 | Q118: 0.512173991 | R118: 0.5131629869 | S118: 0.5140353431 | T118: 0.5148156923 | U118: 0.5155216041 | V118: 0.516166051 | W118: 0.5167588847 | X118: 0.517307763 | Y118: 0.5178187565 | Z118: 0.5182967589 | AA118: 0.5187457732 | AB118: 0.5191691151 | AC118: 0.5195695622 | AD118: 0.5199494643 | AE118: 0.5203108271 | AF118: 0.5206553761 | AG118: 0.5209846066 | AH118: 0.521299823 | AI118: 0.5216021698 | AJ118: 0.5218926567 | AK118: 0.5221721792 | AL118: 0.522441535 | AM118: 0.5227014377 | AN118: 0.5229525285 | AO118: 0.5231953852 | AP118: 0.5234305309 | AQ118: 0.5236584402
K119: Class 9 - Conservative | L119: 0.5003285569 | M119: 0.5018224248 | N119: 0.5028791951 | O119: 0.5036971708 | P119: 0.5043644221 | Q119: 0.5049278297 | R119: 0.5054153316 | S119: 0.5058449243 | T119: 0.5062288821 | U119: 0.5065759508 | V119: 0.5068925829 | W119: 0.5071836743 | X119: 0.5074530283 | Y119: 0.5077036578 | Z119: 0.5079379903 | AA119: 0.5081580104 | AB119: 0.5083653611 | AC119: 0.5085614181 | AD119: 0.5087473446 | AE119: 0.5089241333 | AF119: 0.5090926377 | AG119: 0.5092535972 | AH119: 0.5094076565 | AI119: 0.5095553812 | AJ119: 0.5096972702 | AK119: 0.5098337656 | AL119: 0.5099652611 | AM119: 0.5100921092 | AN119: 0.510214626 | AO119: 0.5103330966 | AP119: 0.510447779 | AQ119: 0.5105589073
K120: Class 10 - Advanced | L120: 0.4949920373 | M120: 0.4985390796 | N120: 0.5010587339 | O120: 0.5030147691 | P120: 0.5046140026 | Q120: 0.5059668499 | R120: 0.507139262 | S120: 0.5081738013 | T120: 0.5090995424 | U120: 0.509937231 | V120: 0.5107021902 | W120: 0.5114060601 | X120: 0.5120578914 | Y120: 0.5126648606 | Z120: 0.5132327544 | AA120: 0.5137663071 | AB120: 0.514269441 | AC120: 0.5147454424 | AD120: 0.5151970922 | AE120: 0.515626764 | AF120: 0.5160365007 | AG120: 0.5164280725 | AH120: 0.5168030239 | AI120: 0.5171627103 | AJ120: 0.5175083278 | AK120: 0.5178409369 | AL120: 0.5181614828 | AM120: 0.518470811 | AN120: 0.5187696811 | AO120: 0.5190587782 | AP120: 0.5193387221 | AQ120: 0.5196100753
K121: Class 10 - Moderate | L121: 0.4939834783 | M121: 0.4969333242 | N121: 0.4990262732 | O121: 0.5006496905 | P121: 0.5019761191 | Q121: 0.5030975985 | R121: 0.5040690681 | S121: 0.504925965 | T121: 0.5056924854 | U121: 0.5063858875 | V121: 0.507018914 | W121: 0.5076012419 | X121: 0.5081403933 | Y121: 0.5086423313 | Z121: 0.5091118629 | AA121: 0.5095529201 | AB121: 0.5099687599 | AC121: 0.5103621105 | AD121: 0.5107352803 | AE121: 0.5110902392 | AF121: 0.5114286823 | AG121: 0.5117520785 | AH121: 0.5120617088 | AI121: 0.5123586976 | AJ121: 0.5126440367 | AK121: 0.5129186057 | AL121: 0.5131831882 | AM121: 0.5134384851 | AN121: 0.5136851262 | AO121: 0.5139236792 | AP121: 0.5141546578 | AQ121: 0.5143785282
K122: Class 10 - Conservative | L122: 0.4914620809 | M122: 0.4929294755 | N122: 0.4939675185 | O122: 0.4947709986 | P122: 0.4954264254 | Q122: 0.4959798486 | R122: 0.4964587113 | S122: 0.4968806911 | T122: 0.4972578446 | U122: 0.4975987629 | V122: 0.4979097838 | W122: 0.4981957167 | X122: 0.4984602974 | Y122: 0.4987064854 | Z122: 0.4989366653 | AA122: 0.4991527863 | AB122: 0.4993564625 | AC122: 0.4995490451 | AD122: 0.4997316768 | AE122: 0.4999053325 | AF122: 0.5000708508 | AG122: 0.5002289578 | AH122: 0.500380287 | AI122: 0.5005253939 | AJ122: 0.5006647684 | AK122: 0.5007988449 | AL122: 0.5009280102 | AM122: 0.5010526103 | AN122: 0.5011729559 | AO122: 0.5012893272 | AP122: 0.5014019773 | AQ122: 0.5015111361
K123: Class 11 - Advanced | L123: 0.4882937435 | M123: 0.4917927868 | N123: 0.4942783449 | O123: 0.4962079107 | P123: 0.4977855032 | Q123: 0.4991200436 | R123: 0.5002765905 | S123: 0.5012971303 | T123: 0.5022103441 | U123: 0.503036697 | V123: 0.5037913046 | W123: 0.5044856497 | X123: 0.5051286604 | Y123: 0.505727416 | Z123: 0.506287625 | AA123: 0.5068139575 | AB123: 0.507310283 | AC123: 0.5077798431 | AD123: 0.5082253811 | AE123: 0.5086492386 | AF123: 0.5090534306 | AG123: 0.5094397036 | AH123: 0.5098095811 | AI123: 0.5101644002 | AJ123: 0.5105053408 | AK123: 0.510833449 | AL123: 0.5111496572 | AM123: 0.5114547995 | AN123: 0.5117496253 | AO123: 0.5120348103 | AP123: 0.5123109659 | AQ123: 0.5125786471
K124: Class 11 - Moderate | L124: 0.4872988325 | M124: 0.4902087607 | N124: 0.4922733876 | O124: 0.4938748367 | P124: 0.4951833159 | Q124: 0.4962896192 | R124: 0.4972479428 | S124: 0.4980932441 | T124: 0.4988493918 | U124: 0.4995334107 | V124: 0.500157871 | W124: 0.5007323188 | X124: 0.5012641744 | Y124: 0.50175932 | Z124: 0.5022224979 | AA124: 0.5026575866 | AB124: 0.5030677992 | AC124: 0.503455827 | AD124: 0.503823947 | AE124: 0.5041741026 | AF124: 0.5045079658 | AG124: 0.5048269857 | AH124: 0.5051324261 | AI124: 0.505425396 | AJ124: 0.5057068739 | AK124: 0.5059777274 | AL124: 0.5062387295 | AM124: 0.5064905717 | AN124: 0.5067338752 | AO124: 0.5069692001 | AP124: 0.5071970531 | AQ124: 0.507417894
K125: Class 11 - Conservative | L125: 0.4848115549 | M125: 0.4862590926 | N125: 0.4872830886 | O125: 0.488075696 | P125: 0.4887222534 | Q125: 0.4892681876 | R125: 0.4897405703 | S125: 0.4901568399 | T125: 0.4905288897 | U125: 0.4908651946 | V125: 0.4911720067 | W125: 0.4914540703 | X125: 0.4917150707 | Y125: 0.4919579272 | Z125: 0.4921849923 | AA125: 0.4923981888 | AB125: 0.4925991088 | AC125: 0.4927890853 | AD125: 0.4929692456 | AE125: 0.4931405514 | AF125: 0.4933038298 | AG125: 0.4934597974 | AH125: 0.4936090788 | AI125: 0.493752222 | AJ125: 0.4938897105 | AK125: 0.4940219727 | AL125: 0.4941493901 | AM125: 0.4942723041 | AN125: 0.4943910212 | AO125: 0.4945058177 | AP125: 0.4946169434 | AQ125: 0.4947246251
K126: Class 12 - Advanced | L126: 0.4600682904 | M126: 0.463365074 | N126: 0.4657069563 | O126: 0.467524985 | P126: 0.469011386 | Q126: 0.4702687843 | R126: 0.4713584778 | S126: 0.4723200261 | T126: 0.4731804523 | U126: 0.4739590385 | V126: 0.4746700266 | W126: 0.4753242356 | X126: 0.4759300775 | Y126: 0.4764942225 | Z126: 0.477022049 | AA126: 0.4775179573 | AB126: 0.477985593 | AC126: 0.4784280106 | AD126: 0.4788477946 | AE126: 0.4792471513 | AF126: 0.4796279793 | AG126: 0.4799919241 | AH126: 0.4803404211 | AI126: 0.4806747302 | AJ126: 0.4809959629 | AK126: 0.4813051051 | AL126: 0.4816030351 | AM126: 0.4818905389 | AN126: 0.4821683225 | AO126: 0.4824370226 | AP126: 0.4826972153 | AQ126: 0.4829494234
K127: Class 12 - Moderate | L127: 0.4591308894 | M127: 0.4618726114 | N127: 0.4638178941 | O127: 0.4653267726 | P127: 0.4665596161 | Q127: 0.4676019705 | R127: 0.4685048988 | S127: 0.4693013381 | T127: 0.4700137773 | U127: 0.470658257 | V127: 0.4712466208 | W127: 0.4717878631 | X127: 0.4722889752 | Y127: 0.4727554993 | Z127: 0.4731919036 | AA127: 0.4736018423 | AB127: 0.4739883428 | AC127: 0.474353941 | AD127: 0.4747007821 | AE127: 0.4750306972 | AF127: 0.4753452617 | AG127: 0.4756458409 | AH127: 0.4759336256 | AI127: 0.4762096605 | AJ127: 0.4764748678 | AK127: 0.4767300648 | AL127: 0.4769759799 | AM127: 0.4772132645 | AN127: 0.477442504 | AO127: 0.4776642262 | AP127: 0.4778789083 | AQ127: 0.4780869837
K128: Class 12 - Conservative | L128: 0.4567873871 | M128: 0.4581512509 | N128: 0.4591160556 | O128: 0.4598628469 | P128: 0.4604720305 | Q128: 0.4609864075 | R128: 0.4614314844 | S128: 0.4618236918 | T128: 0.4621742356 | U128: 0.4624911006 | V128: 0.4627801777 | W128: 0.4630459368 | X128: 0.4632918502 | Y128: 0.4635206687 | Z128: 0.4637346084 | AA128: 0.4639354812 | AB128: 0.4641247872 | AC128: 0.4643037823 | AD128: 0.4644735285 | AE128: 0.4646349321 | AF128: 0.4647887724 | AG128: 0.4649357244 | AH128: 0.4650763766 | AI128: 0.4652112456 | AJ128: 0.4653407867 | AK128: 0.4654654035 | AL128: 0.4655854557 | AM128: 0.4657012647 | AN128: 0.4658131195 | AO128: 0.4659212802 | AP128: 0.4660259824 | AQ128: 0.4661274396
K129: Class 13 - Advanced | L129: 0.3668813426 | M129: 0.369510362 | N129: 0.3713778954 | O129: 0.3728276819 | P129: 0.374013012 | Q129: 0.375015724 | R129: 0.3758846998 | S129: 0.3766514862 | T129: 0.3773376329 | U129: 0.3779585162 | V129: 0.3785254935 | W129: 0.3790471923 | X129: 0.3795303208 | Y129: 0.3799801981 | Z129: 0.3804011132 | AA129: 0.3807965752 | AB129: 0.3811694911 | AC129: 0.3815222969 | AD129: 0.3818570536 | AE129: 0.3821755205 | AF129: 0.3824792117 | AG129: 0.3827694394 | AH129: 0.3830473482 | AI129: 0.3833139429 | AJ129: 0.3835701098 | AK129: 0.3838166352 | AL129: 0.3840542194 | AM129: 0.3842834893 | AN129: 0.3845050077 | AO129: 0.3847192826 | AP129: 0.3849267731 | AQ129: 0.3851278964
K130: Class 13 - Moderate | L130: 0.3661338125 | M130: 0.368320198 | N130: 0.3698714632 | O130: 0.371074718 | P130: 0.3720578487 | Q130: 0.3728890739 | R130: 0.373609114 | S130: 0.3742442343 | T130: 0.3748123687 | U130: 0.3753263089 | V130: 0.3757954995 | W130: 0.376227113 | X130: 0.3766267247 | Y130: 0.3769987543 | Z130: 0.3773467647 | AA130: 0.3776736702 | AB130: 0.377981885 | AC130: 0.3782734311 | AD130: 0.3785500195 | AE130: 0.3788131102 | AF130: 0.3790639596 | AG130: 0.3793036564 | AH130: 0.3795331502 | AI130: 0.3797532742 | AJ130: 0.3799647637 | AK130: 0.3801682705 | AL130: 0.3803643754 | AM130: 0.380553598 | AN130: 0.380736405 | AO130: 0.3809132172 | AP130: 0.3810844154 | AQ130: 0.3812503451
K131: Class 13 - Conservative | L131: 0.3642649871 | M131: 0.3653526 | N131: 0.3661219832 | O131: 0.3667175118 | P131: 0.3672033051 | Q131: 0.3676134949 | R131: 0.3679684214 | S131: 0.3682811871 | T131: 0.3685607281 | U131: 0.3688134121 | V131: 0.3690439365 | W131: 0.3692558661 | X131: 0.3694519697 | Y131: 0.3696344409 | Z131: 0.369805047 | AA131: 0.369965233 | AB131: 0.370116195 | AC131: 0.3702589346 | AD131: 0.3703942987 | AE131: 0.37052301 | AF131: 0.3706456899 | AG131: 0.3707628767 | AH131: 0.3708750398 | AI131: 0.370982591 | AJ131: 0.3710858935 | AK131: 0.3711852692 | AL131: 0.3712810047 | AM131: 0.3713733566 | AN131: 0.3714625552 | AO131: 0.3715488079 | AP131: 0.3716323026 | AQ131: 0.3717132097
K132: Class 14 - Advanced | L132: 0.3015512437 | M132: 0.3037121169 | N132: 0.305247101 | O132: 0.3064387259 | P132: 0.3074129857 | Q132: 0.308237146 | R132: 0.3089513844 | S132: 0.3095816301 | T132: 0.3101455955 | U132: 0.3106559189 | V132: 0.3111219353 | W132: 0.3115507359 | X132: 0.3119478342 | Y132: 0.3123176024 | Z132: 0.3126635658 | AA132: 0.3129886083 | AB132: 0.3132951196 | AC132: 0.3135851017 | AD132: 0.3138602486 | AE132: 0.3141220065 | AF132: 0.3143716198 | AG132: 0.314610167 | AH132: 0.314838589 | AI132: 0.3150577115 | AJ132: 0.3152682631 | AK132: 0.31547089 | AL132: 0.3156661679 | AM132: 0.315854612 | AN132: 0.3160366849 | AO132: 0.3162128041 | AP132: 0.3163833471 | AQ132: 0.3165486566
K133: Class 14 - Moderate | L133: 0.3009368253 | M133: 0.3027338839 | N133: 0.3040089173 | O133: 0.30499791 | P133: 0.3058059759 | Q133: 0.3064891859 | R133: 0.3070810093 | S133: 0.3076030345 | T133: 0.308070002 | U133: 0.3084924254 | V133: 0.3088780679 | W133: 0.3092328245 | X133: 0.3095612778 | Y133: 0.3098670606 | Z133: 0.3101531012 | AA133: 0.3104217951 | AB133: 0.3106751265 | AC133: 0.3109147574 | AD133: 0.3111420939 | AE133: 0.3113583364 | AF133: 0.3115645174 | AG133: 0.3117615317 | AH133: 0.3119501598 | AI133: 0.3121310867 | AJ133: 0.3123049165 | AK133: 0.3124721851 | AL133: 0.3126333698 | AM133: 0.3127888978 | AN133: 0.3129391525 | AO133: 0.31308448 | AP133: 0.3132251932 | AQ133: 0.313361576
K134: Class 14 - Conservative | L134: 0.2994007793 | M134: 0.3002947224 | N134: 0.3009271025 | O134: 0.301416586 | P134: 0.3018158748 | Q134: 0.3021530225 | R134: 0.3024447477 | S134: 0.3027018196 | T134: 0.3029315831 | U134: 0.303139272 | V134: 0.3033287472 | W134: 0.3035029388 | X134: 0.3036641224 | Y134: 0.3038141012 | Z134: 0.3039543278 | AA134: 0.3040859896 | AB134: 0.30421007 | AC134: 0.3043273921 | AD134: 0.3044386521 | AE134: 0.3045444439 | AF134: 0.3046452784 | AG134: 0.3047415978 | AH134: 0.3048337882 | AI134: 0.304922188 | AJ134: 0.3050070955 | AK134: 0.3050887755 | AL134: 0.3051674635 | AM134: 0.3052433704 | AN134: 0.3053166855 | AO134: 0.3053875793 | AP134: 0.3054562063 | AQ134: 0.3055227063
L136: 2019 | M136: 2020 | N136: 2021 | O136: 2022 | P136: 2023 | Q136: 2024 | R136: 2025 | S136: 2026 | T136: 2027 | U136: 2028 | V136: 2029 | W136: 2030 | X136: 2031 | Y136: 2032 | Z136: 2033 | AA136: 2034 | AB136: 2035 | AC136: 2036 | AD136: 2037 | AE136: 2038 | AF136: 2039 | AG136: 2040 | AH136: 2041 | AI136: 2042 | AJ136: 2043 | AK136: 2044 | AL136: 2045 | AM136: 2046 | AN136: 2047 | AO136: 2048 | AP136: 2049 | AQ136: 2050
J137: Annual Energy Production (kWh/kW) | K137: Class 1 - Advanced | L137: =(L93)*8760 -> 3958.311976 | M137: 4025.178848 | N137: 4072.753368 | O137: 4109.727015 | P137: 4139.982049 | Q137: 4165.593511 | R137: 4187.801927 | S137: 4207.408466 | T137: 4224.960746 | U137: 4240.849716 | V137: 4255.364273 | W137: 4268.723965 | X137: 4281.099564 | Y137: 4292.626524 | Z137: 4303.414103 | AA137: 4313.551711 | AB137: 4323.113448 | AC137: 4332.16141 | AD137: 4340.748155 | AE137: 4348.918557 | AF137: 4356.711239 | AG137: 4364.159685 | AH137: 4371.293106 | AI137: 4378.137146 | AJ137: 4384.714436 | AK137: 4391.045049 | AL137: 4397.146872 | AM137: 4403.035913 | AN137: 4408.726556 | AO137: 4414.23177 | AP137: 4419.563294 | AQ137: 4424.731784
K138: Class 1 - Moderate | L138: =(L94)*8760 -> 3939.351621 | M138: 3994.807104 | N138: 4034.153395 | O138: 4064.672749 | P138: 4089.608877 | Q138: 4110.692073 | R138: 4128.955168 | S138: 4145.064359 | T138: 4159.474522 | U138: 4172.5101 | V138: 4184.41065 | W138: 4195.358095 | X138: 4205.493846 | Y138: 4214.930004 | Z138: 4223.756941 | AA138: 4232.048574 | AB138: 4239.866133 | AC138: 4247.260909 | AD138: 4254.276295 | AE138: 4260.949329 | AF138: 4267.311873 | AG138: 4273.391543 | AH138: 4279.212424 | AI138: 4284.79565 | AJ138: 4290.159869 | AK138: 4295.321615 | AL138: 4300.295619 | AM138: 4305.095061 | AN138: 4309.731778 | AO138: 4314.216443 | AP138: 4318.558714 | AQ138: 4322.767356
K139: Class 1 - Conservative | L139: =(L95)*8760 -> 3891.950735 | M139: 3919.344837 | N139: 3938.646355 | O139: 3953.544765 | P139: 3965.671953 | Q139: 3975.894084 | R139: 3984.72619 | S139: 3992.49943 | T139: 3999.439318 | U139: 4005.706336 | V139: 4011.418738 | W139: 4016.666166 | X139: 4021.518186 | Y139: 4026.029866 | Z139: 4030.245536 | AA139: 4034.201412 | AB139: 4037.927457 | AC139: 4041.448744 | AD139: 4044.786463 | AE139: 4047.958682 | AF139: 4050.980933 | AG139: 4053.866664 | AH139: 4056.627594 | AI139: 4059.274 | AJ139: 4061.814942 | AK139: 4064.258448 | AL139: 4066.611664 | AM139: 4068.880981 | AN139: 4071.072134 | AO139: 4073.190294 | AP139: 4075.240132 | AQ139: 4077.22589
K140: Class 2 - Advanced | L140: =(L96)*8760 -> 3857.399271 | M140: 3922.561447 | N140: 3968.923108 | O140: 4004.954154 | P140: 4034.43787 | Q140: 4059.396397 | R140: 4081.038634 | S140: 4100.145327 | T140: 4117.250131 | U140: 4132.73403 | V140: 4146.878554 | W140: 4159.897656 | X140: 4171.957753 | Y140: 4183.190846 | Z140: 4193.703408 | AA140: 4203.582569 | AB140: 4212.90054 | AC140: 4221.717835 | AD140: 4230.08567 | AE140: 4238.047777 | AF140: 4245.641794 | AG140: 4252.900349 | AH140: 4259.851912 | AI140: 4266.521471 | AJ140: 4272.93108 | AK140: 4279.100301 | AL140: 4285.046566 | AM140: 4290.785472 | AN140: 4296.331038 | AO140: 4301.695904 | AP140: 4306.891506 | AQ140: 4311.928232
K141: Class 2 - Moderate | L141: =(L97)*8760 -> 3838.922289 | M141: 3892.963996 | N141: 3931.307198 | O141: 3961.048496 | P141: 3985.348905 | Q141: 4005.894609 | R141: 4023.692107 | S141: 4039.390613 | T141: 4053.433405 | U141: 4066.136655 | V141: 4077.733814 | W141: 4088.402166 | X141: 4098.279518 | Y141: 4107.475112 | Z141: 4116.077016 | AA141: 4124.157262 | AB141: 4131.775521 | AC141: 4138.981776 | AD141: 4145.818313 | AE141: 4152.321225 | AF141: 4158.521564 | AG141: 4164.446239 | AH141: 4170.118723 | AI141: 4175.559611 | AJ141: 4180.787075 | AK141: 4185.817229 | AL141: 4190.664427 | AM141: 4195.341512 | AN141: 4199.860021 | AO141: 4204.230355 | AP141: 4208.461925 | AQ141: 4212.563271
K142: Class 2 - Conservative | L142: =(L98)*8760 -> 3792.729835 | M142: 3819.425556 | N142: 3838.235003 | O142: 3852.753595 | P142: 3864.571614 | Q142: 3874.533143 | R142: 3883.140084 | S142: 3890.715154 | T142: 3897.478118 | U142: 3903.585365 | V142: 3909.152136 | W142: 3914.265786 | X142: 3918.99411 | Y142: 3923.390769 | Z142: 3927.498966 | AA142: 3931.353991 | AB142: 3934.985045 | AC142: 3938.416561 | AD142: 3941.669188 | AE142: 3944.760535 | AF142: 3947.705737 | AG142: 3950.5179 | AH142: 3953.208443 | AI142: 3955.787382 | AJ142: 3958.263546 | AK142: 3960.644757 | AL142: 3962.93798 | AM142: 3965.149443 | AN142: 3967.284736 | AO142: 3969.348895 | AP142: 3971.346476 | AQ142: 3973.281609
K143: Class 3 - Advanced | L143: =(L99)*8760 -> 3886.232722 | M143: 3951.881975 | N143: 3998.590182 | O143: 4034.890554 | P143: 4064.594657 | Q143: 4089.739744 | R143: 4111.543753 | S143: 4130.793266 | T143: 4148.025926 | U143: 4163.625564 | V143: 4177.875817 | W143: 4190.992234 | X143: 4203.142478 | Y143: 4214.459537 | Z143: 4225.050679 | AA143: 4235.003686 | AB143: 4244.391307 | AC143: 4253.27451 | AD143: 4261.704893 | AE143: 4269.726515 | AF143: 4277.377296 | AG143: 4284.690108 | AH143: 4291.693633 | AI143: 4298.413046 | AJ143: 4304.870566 | AK143: 4311.085901 | AL143: 4317.076612 | AM143: 4322.858417 | AN143: 4328.445435 | AO143: 4333.850402 | AP143: 4339.084841 | AQ143: 4344.159215
K144: Class 3 - Moderate | L144: =(L100)*8760 -> 3867.617627 | M144: 3922.063288 | N144: 3960.693099 | O144: 3990.656708 | P144: 4015.138759 | Q144: 4035.838039 | R144: 4053.76857 | S144: 4069.58442 | T144: 4083.732179 | U144: 4096.530385 | V144: 4108.214231 | W144: 4118.962327 | X144: 4128.91351 | Y144: 4138.17784 | Z144: 4146.844042 | AA144: 4154.984687 | AB144: 4162.659891 | AC144: 4169.920012 | AD144: 4176.807651 | AE144: 4183.359171 | AF144: 4189.605856 | AG144: 4195.574818 | AH144: 4201.289702 | AI144: 4206.77126 | AJ144: 4212.037799 | AK144: 4217.105552 | AL144: 4221.988982 | AM144: 4226.701027 | AN144: 4231.253311 | AO144: 4235.656313 | AP144: 4239.919513 | AQ144: 4244.051517
K145: Class 3 - Conservative | L145: =(L101)*8760 -> 3821.079892 | M145: 3847.975159 | N145: 3866.925204 | O145: 3881.55232 | P145: 3893.458677 | Q145: 3903.494667 | R145: 3912.165943 | S145: 3919.797636 | T145: 3926.611151 | U145: 3932.764049 | V145: 3938.372431 | W145: 3943.524305 | X145: 3948.287972 | Y145: 3952.717496 | Z145: 3956.856401 | AA145: 3960.740242 | AB145: 3964.398437 | AC145: 3967.855603 | AD145: 3971.132543 | AE145: 3974.246997 | AF145: 3977.214215 | AG145: 3980.047397 | AH145: 3982.758052 | AI145: 3985.356269 | AJ145: 3987.850941 | AK145: 3990.249951 | AL145: 3992.560316 | AM145: 3994.78831 | AN145: 3996.939563 | AO145: 3999.019152 | AP145: 4001.031664 | AQ145: 4002.981262
K146: Class 4 - Advanced | L146: =(L102)*8760 -> 3868.55412 | M146: 3933.904733 | N146: 3980.400463 | O146: 4016.535703 | P146: 4046.104681 | Q146: 4071.135383 | R146: 4092.840205 | S146: 4112.002151 | T146: 4129.156419 | U146: 4144.685094 | V146: 4158.870521 | W146: 4171.927272 | X146: 4184.022244 | Y146: 4195.287821 | Z146: 4205.830784 | AA146: 4215.738514 | AB146: 4225.08343 | AC146: 4233.926223 | AD146: 4242.318256 | AE146: 4250.303388 | AF146: 4257.919365 | AG146: 4265.198911 | AH146: 4272.170577 | AI146: 4278.859423 | AJ146: 4285.287567 | AK146: 4291.474628 | AL146: 4297.438088 | AM146: 4303.193591 | AN146: 4308.755193 | AO146: 4314.135573 | AP146: 4319.3462 | AQ146: 4324.397491
K147: Class 4 - Moderate | L147: =(L103)*8760 -> 3850.023707 | M147: 3904.221692 | N147: 3942.675775 | O147: 3972.503079 | P147: 3996.87376 | Q147: 4017.478878 | R147: 4035.327843 | S147: 4051.071746 | T147: 4065.155147 | U147: 4077.895133 | V147: 4089.525828 | W147: 4100.225031 | X147: 4110.130946 | Y147: 4119.353132 | Z147: 4127.979911 | AA147: 4136.083524 | AB147: 4143.723814 | AC147: 4150.950908 | AD147: 4157.807215 | AE147: 4164.328932 | AF147: 4170.547201 | AG147: 4176.489009 | AH147: 4182.177896 | AI147: 4187.634519 | AJ147: 4192.877099 | AK147: 4197.921799 | AL147: 4202.783014 | AM147: 4207.473625 | AN147: 4212.0052 | AO147: 4216.388173 | AP147: 4220.631979 | AQ147: 4224.745186
K148: Class 4 - Conservative | L148: =(L104)*8760 -> 3803.697673 | M148: 3830.470592 | N148: 3849.334433 | O148: 3863.89501 | P148: 3875.747204 | Q148: 3885.737541 | R148: 3894.369371 | S148: 3901.966347 | T148: 3908.748867 | U148: 3914.873776 | V148: 3920.456644 | W148: 3925.585083 | X148: 3930.32708 | Y148: 3934.736454 | Z148: 3938.85653 | AA148: 3942.722703 | AB148: 3946.364257 | AC148: 3949.805696 | AD148: 3953.06773 | AE148: 3956.168016 | AF148: 3959.121736 | AG148: 3961.94203 | AH148: 3964.640354 | AI148: 3967.226751 | AJ148: 3969.710075 | AK148: 3972.098172 | AL148: 3974.398027 | AM148: 3976.615886 | AN148: 3978.757353 | AO148: 3980.827481 | AP148: 3982.830838 | AQ148: 3984.771568
K149: Class 5 - Advanced | L149: =(L105)*8760 -> 3806.213797 | M149: 3870.511308 | N149: 3916.257777 | O149: 3951.810711 | P149: 3980.903195 | Q149: 4005.530537 | R149: 4026.885594 | S149: 4045.738752 | T149: 4062.616585 | U149: 4077.895021 | V149: 4091.851856 | W149: 4104.698202 | X149: 4116.598268 | Y149: 4127.682305 | Z149: 4138.055371 | AA149: 4147.803441 | AB149: 4156.997768 | AC149: 4165.698063 | AD149: 4173.954861 | AE149: 4181.811315 | AF149: 4189.304564 | AG149: 4196.466803 | AH149: 4203.326122 | AI149: 4209.90718 | AJ149: 4216.231738 | AK149: 4222.319097 | AL149: 4228.186457 | AM149: 4233.849212 | AN149: 4239.321192 | AO149: 4244.614868 | AP149: 4249.741528 | AQ149: 4254.711419
K150: Class 5 - Moderate | L150: =(L106)*8760 -> 3787.981994 | M150: 3841.306599 | N150: 3879.141008 | O150: 3908.487656 | P150: 3932.465613 | Q150: 3952.738687 | R150: 3970.300022 | S150: 3985.790218 | T150: 3999.64667 | U150: 4012.181356 | V150: 4023.624627 | W150: 4034.151416 | X150: 4043.897701 | Y150: 4052.971275 | Z150: 4061.459036 | AA150: 4069.432063 | AB150: 4076.949232 | AC150: 4084.059864 | AD150: 4090.805684 | AE150: 4097.222306 | AF150: 4103.34037 | AG150: 4109.186428 | AH150: 4114.783641 | AI150: 4120.152332 | AJ150: 4125.31043 | AK150: 4130.273837 | AL150: 4135.056715 | AM150: 4139.671738 | AN150: 4144.130289 | AO150: 4148.442631 | AP150: 4152.61805 | AQ150: 4156.664975
K151: Class 5 - Conservative | L151: =(L107)*8760 -> 3742.402487 | M151: 3768.743971 | N151: 3787.303828 | O151: 3801.629766 | P151: 3813.290967 | Q151: 3823.120312 | R151: 3831.613044 | S151: 3839.087597 | T151: 3845.76082 | U151: 3851.787028 | V151: 3857.279931 | W151: 3862.325726 | X151: 3866.991308 | Y151: 3871.329626 | Z151: 3875.383309 | AA151: 3879.18718 | AB151: 3882.770052 | AC151: 3886.156033 | AD151: 3889.3655 | AE151: 3892.415827 | AF151: 3895.321948 | AG151: 3898.096795 | AH151: 3900.751636 | AI151: 3903.296354 | AJ151: 3905.739661 | AK151: 3908.089274 | AL151: 3910.352068 | AM151: 3912.534186 | AN151: 3914.641145 | AO151: 3916.677914 | AP151: 3918.648987 | AQ151: 3920.558443
K152: Class 6 - Advanced | L152: =(L108)*8760 -> 3267.816328 | M152: 3323.018812 | N152: 3362.29434 | O152: 3392.818232 | P152: 3417.79552 | Q152: 3438.939269 | R152: 3457.273605 | S152: 3473.459941 | T152: 3487.950367 | U152: 3501.067634 | V152: 3513.050243 | W152: 3524.079445 | X152: 3534.29622 | Y152: 3543.812395 | Z152: 3552.718168 | AA152: 3561.087352 | AB152: 3568.981121 | AC152: 3576.450739 | AD152: 3583.539595 | AE152: 3590.284736 | AF152: 3596.718048 | AG152: 3602.867172 | AH152: 3608.756225 | AI152: 3614.406378 | AJ152: 3619.836312 | AK152: 3625.062601 | AL152: 3630.10001 | AM152: 3634.961756 | AN152: 3639.659711 | AO152: 3644.204585 | AP152: 3648.606068 | AQ152: 3652.872957
K153: Class 6 - Moderate | L153: =(L109)*8760 -> 3252.163454 | M153: 3297.945174 | N153: 3330.427822 | O153: 3355.62332 | P153: 3376.209542 | Q153: 3393.614944 | R153: 3408.692189 | S153: 3421.991262 | T153: 3433.887688 | U153: 3444.649314 | V153: 3454.473909 | W153: 3463.51166 | X153: 3471.879311 | Y153: 3479.669408 | Z153: 3486.956556 | AA153: 3493.80178 | AB153: 3500.255629 | AC153: 3506.360446 | AD153: 3512.152055 | AE153: 3517.661031 | AF153: 3522.913681 | AG153: 3527.932802 | AH153: 3532.738276 | AI153: 3537.347554 | AJ153: 3541.776028 | AK153: 3546.037349 | AL153: 3550.143679 | AM153: 3554.105896 | AN153: 3557.933775 | AO153: 3561.636127 | AP153: 3565.220924 | AQ153: 3568.695401
K154: Class 6 - Conservative | L154: =(L110)*8760 -> 3213.031271 | M154: 3235.646693 | N154: 3251.581216 | O154: 3263.880719 | P154: 3273.892416 | Q154: 3282.331379 | R154: 3289.622795 | S154: 3296.040055 | T154: 3301.769336 | U154: 3306.943123 | V154: 3311.659043 | W154: 3315.991099 | X154: 3319.996724 | Y154: 3323.721377 | Z154: 3327.201658 | AA154: 3330.467463 | AB154: 3333.543529 | AC154: 3336.450556 | AD154: 3339.206037 | AE154: 3341.824888 | AF154: 3344.319931 | AG154: 3346.70227 | AH154: 3348.981578 | AI154: 3351.16634 | AJ154: 3353.264035 | AK154: 3355.281291 | AL154: 3357.224007 | AM154: 3359.09746 | AN154: 3360.906384 | AO154: 3362.655048 | AP154: 3364.347309 | AQ154: 3365.986667
K155: Class 7 - Advanced | L155: =(L111)*8760 -> 2524.485245 | M155: 2567.130805 | N155: 2597.472318 | O155: 2621.052932 | P155: 2640.348629 | Q155: 2656.682803 | R155: 2670.846623 | S155: 2683.351049 | T155: 2694.545334 | U155: 2704.678812 | V155: 2713.935734 | W155: 2722.45612 | X155: 2730.348883 | Y155: 2737.700411 | Z155: 2744.580385 | AA155: 2751.045828 | AB155: 2757.143999 | AC155: 2762.914501 | AD155: 2768.390853 | AE155: 2773.601675 | AF155: 2778.5716 | AG155: 2783.321981 | AH155: 2787.87145 | AI155: 2792.236361 | AJ155: 2796.431146 | AK155: 2800.46861 | AL155: 2804.360158 | AM155: 2808.116001 | AN155: 2811.745311 | AO155: 2815.256362 | AP155: 2818.656638 | AQ155: 2821.952936
K156: Class 7 - Moderate | L156: =(L112)*8760 -> 2512.392935 | M156: 2547.760675 | N156: 2572.854485 | O156: 2592.318757 | P156: 2608.222225 | Q156: 2621.668415 | R156: 2633.316035 | S156: 2643.589964 | T156: 2652.780307 | U156: 2661.093983 | V156: 2668.683775 | W156: 2675.665706 | X156: 2682.129965 | Y156: 2688.148046 | Z156: 2693.777585 | AA156: 2699.065724 | AB156: 2704.051514 | AC156: 2708.767667 | AD156: 2713.241857 | AE156: 2717.497705 | AF156: 2721.555533 | AG156: 2725.432953 | AH156: 2729.145325 | AI156: 2732.706129 | AJ156: 2736.127256 | AK156: 2739.419254 | AL156: 2742.591515 | AM156: 2745.652446 | AN156: 2748.609596 | AO156: 2751.469773 | AP156: 2754.239135 | AQ156: 2756.923273
K157: Class 7 - Conservative | L157: =(L113)*8760 -> 2482.16216 | M157: 2499.633246 | N157: 2511.943139 | O157: 2521.44487 | P157: 2529.179204 | Q157: 2535.698554 | R157: 2541.331389 | S157: 2546.288914 | T157: 2550.714953 | U157: 2554.711857 | V157: 2558.355045 | W157: 2561.701688 | X157: 2564.796152 | Y157: 2567.673557 | Z157: 2570.362178 | AA157: 2572.885109 | AB157: 2575.261462 | AC157: 2577.507226 | AD157: 2579.635917 | AE157: 2581.659057 | AF157: 2583.586553 | AG157: 2585.42698 | AH157: 2587.187813 | AI157: 2588.875607 | AJ157: 2590.496139 | AK157: 2592.054529 | AL157: 2593.555335 | AM157: 2595.002633 | AN157: 2596.400081 | AO157: 2597.750975 | AP157: 2599.058297 | AQ157: 2600.32475
K158: Class 8 - Advanced | L158: =(L114)*8760 -> 4524.964966 | M158: 4557.390219 | N158: 4580.423616 | O158: 4598.304692 | P158: 4612.92407 | Q158: 4625.291111 | R158: 4636.008704 | S158: 4645.465936 | T158: 4653.928589 | U158: 4661.586311 | V158: 4668.579178 | W158: 4675.013599 | X158: 4680.972308 | Y158: 4686.520911 | Z158: 4691.712307 | AA158: 4696.589774 | AB158: 4701.189167 | AC158: 4705.54053 | AD158: 4709.669282 | AE158: 4713.597123 | AF158: 4717.342727 | AG158: 4720.922277 | AH158: 4724.349891 | AI158: 4727.637961 | AJ158: 4730.79742 | AK158: 4733.837963 | AL158: 4736.76823 | AM158: 4739.595951 | AN158: 4742.32807 | AO158: 4744.970848 | AP158: 4747.529952 | AQ158: 4750.010525
K159: Class 8 - Moderate | L159: =(L115)*8760 -> 4515.745234 | M159: 4542.711222 | N159: 4561.843895 | O159: 4576.684349 | P159: 4588.809883 | Q159: 4599.061876 | R159: 4607.942556 | S159: 4615.775871 | T159: 4622.78301 | U159: 4629.121739 | V159: 4634.908544 | W159: 4640.231889 | X159: 4645.160537 | Y159: 4649.748998 | Z159: 4654.041217 | AA159: 4658.073137 | AB159: 4661.874532 | AC159: 4665.470343 | AD159: 4668.881671 | AE159: 4672.126525 | AF159: 4675.220399 | AG159: 4678.176722 | AH159: 4681.007205 | AI159: 4683.722125 | AJ159: 4686.33055 | AK159: 4688.84052 | AL159: 4691.259198 | AM159: 4693.592992 | AN159: 4695.847659 | AO159: 4698.028389 | AP159: 4700.139878 | AQ159: 4702.186387
K160: Class 8 - Conservative | L160: =(L116)*8760 -> 4492.695904 | M160: 4506.110078 | N160: 4515.599337 | O160: 4522.944343 | P160: 4528.935921 | Q160: 4533.995034 | R160: 4538.372553 | S160: 4542.230077 | T160: 4545.677822 | U160: 4548.794323 | V160: 4551.637518 | W160: 4554.251371 | X160: 4556.670032 | Y160: 4558.920558 | Z160: 4561.024745 | AA160: 4563.000414 | AB160: 4564.862317 | AC160: 4566.622809 | AD160: 4568.292335 | AE160: 4569.879807 | AF160: 4571.392891 | AG160: 4572.838225 | AH160: 4574.2216 | AI160: 4575.548093 | AJ160: 4576.822183 | AK160: 4578.047842 | AL160: 4579.228606 | AM160: 4580.367636 | AN160: 4581.467775 | AO160: 4582.531581 | AP160: 4583.561371 | AQ160: 4584.559246
K161: Class 9 - Advanced | L161: =(L117)*8760 -> 4414.358448 | M161: 4445.99111 | N161: 4468.461487 | O161: 4485.905485 | P161: 4500.167513 | Q161: 4512.232258 | R161: 4522.687875 | S161: 4531.913938 | T161: 4540.169733 | U161: 4547.640273 | V161: 4554.462209 | W161: 4560.739349 | X161: 4566.552406 | Y161: 4571.965381 | Z161: 4577.02988 | AA161: 4581.788124 | AB161: 4586.275092 | AC161: 4590.520091 | AD161: 4594.547922 | AE161: 4598.379752 | AF161: 4602.0338 | AG161: 4605.525852 | AH161: 4608.869684 | AI161: 4612.077382 | AJ161: 4615.159612 | AK161: 4618.125833 | AL161: 4620.984474 | AM161: 4623.743075 | AN161: 4626.40841 | AO161: 4628.98659 | AP161: 4631.48314 | AQ161: 4633.903078
K162: Class 9 - Moderate | L162: =(L118)*8760 -> 4405.36408 | M162: 4431.670921 | N162: 4450.335922 | O162: 4464.813622 | P162: 4476.642764 | Q162: 4486.644161 | R162: 4495.307765 | S162: 4502.949606 | T162: 4509.785465 | U162: 4515.969252 | V162: 4521.614607 | W162: 4526.80783 | X162: 4531.616004 | Y162: 4536.092307 | Z162: 4540.279608 | AA162: 4544.212973 | AB162: 4547.921448 | AC162: 4551.429365 | AD162: 4554.757308 | AE162: 4557.922845 | AF162: 4560.941095 | AG162: 4563.825154 | AH162: 4566.58645 | AI162: 4569.235007 | AJ162: 4571.779673 | AK162: 4574.22829 | AL162: 4576.587847 | AM162: 4578.864594 | AN162: 4581.064149 | AO162: 4583.191574 | AP162: 4585.251451 | AQ162: 4587.247936
K163: Class 9 - Conservative | L163: =(L119)*8760 -> 4382.878158 | M163: 4395.964441 | N163: 4405.221749 | O163: 4412.387216 | P163: 4418.232338 | Q163: 4423.167788 | R163: 4427.438304 | S163: 4431.201537 | T163: 4434.565007 | U163: 4437.605329 | V163: 4440.379026 | W163: 4442.928987 | X163: 4445.288528 | Y163: 4447.484042 | Z163: 4449.536795 | AA163: 4451.464171 | AB163: 4453.280563 | AC163: 4454.998022 | AD163: 4456.626739 | AE163: 4458.175408 | AF163: 4459.651506 | AG163: 4461.061511 | AH163: 4462.411071 | AI163: 4463.70514 | AJ163: 4464.948087 | AK163: 4466.143786 | AL163: 4467.295688 | AM163: 4468.406876 | AN163: 4469.480123 | AO163: 4470.517926 | AP163: 4471.522544 | AQ163: 4472.496028
K164: Class 10 - Advanced | L164: =(L120)*8760 -> 4336.130247 | M164: 4367.202337 | N164: 4389.274509 | O164: 4406.409377 | P164: 4420.418663 | Q164: 4432.269605 | R164: 4442.539935 | S164: 4451.6025 | T164: 4459.711992 | U164: 4467.050144 | V164: 4473.751186 | W164: 4479.917087 | X164: 4485.627129 | Y164: 4490.944179 | Z164: 4495.918929 | AA164: 4500.59285 | AB164: 4505.000303 | AC164: 4509.170076 | AD164: 4513.126527 | AE164: 4516.890453 | AF164: 4520.479746 | AG164: 4523.909915 | AH164: 4527.194489 | AI164: 4530.345342 | AJ164: 4533.372951 | AK164: 4536.286607 | AL164: 4539.094589 | AM164: 4541.804304 | AN164: 4544.422407 | AO164: 4546.954897 | AP164: 4549.407206 | AQ164: 4551.784259
K165: Class 10 - Moderate | L165: =(L121)*8760 -> 4327.29527 | M165: 4353.13592 | N165: 4371.470153 | O165: 4385.691289 | P165: 4397.310803 | Q165: 4407.134962 | R165: 4415.645036 | S165: 4423.151453 | T165: 4429.866172 | U165: 4435.940374 | V165: 4441.485686 | W165: 4446.586879 | X165: 4451.309845 | Y165: 4455.706822 | Z165: 4459.819919 | AA165: 4463.68358 | AB165: 4467.326336 | AC165: 4470.772088 | AD165: 4474.041055 | AE165: 4477.150496 | AF165: 4480.115257 | AG165: 4482.948207 | AH165: 4485.660569 | AI165: 4488.262191 | AJ165: 4490.761762 | AK165: 4493.166986 | AL165: 4495.484728 | AM165: 4497.721129 | AN165: 4499.881705 | AO165: 4501.97143 | AP165: 4503.994802 | AQ165: 4505.955907
K166: Class 10 - Conservative | L166: =(L122)*8760 -> 4305.207829 | M166: 4318.062206 | N166: 4327.155462 | O166: 4334.193948 | P166: 4339.935486 | Q166: 4344.783474 | R166: 4348.978311 | S166: 4352.674854 | T166: 4355.978719 | U166: 4358.965163 | V166: 4361.689706 | W166: 4364.194478 | X166: 4366.512205 | Y166: 4368.668812 | Z166: 4370.685188 | AA166: 4372.578408 | AB166: 4374.362611 | AC166: 4376.049635 | AD166: 4377.649488 | AE166: 4379.170713 | AF166: 4380.620653 | AG166: 4382.005671 | AH166: 4383.331314 | AI166: 4384.60245 | AJ166: 4385.823371 | AK166: 4386.997881 | AL166: 4388.129369 | AM166: 4389.220866 | AN166: 4390.275094 | AO166: 4391.294506 | AP166: 4392.281321 | AQ166: 4393.237552
K167: Class 11 - Advanced | L167: =(L123)*8760 -> 4277.453193 | M167: 4308.104812 | N167: 4329.878301 | O167: 4346.781298 | P167: 4360.601008 | Q167: 4372.291582 | R167: 4382.422932 | S167: 4391.362861 | T167: 4399.362615 | U167: 4406.601466 | V167: 4413.211829 | W167: 4419.294292 | X167: 4424.927065 | Y167: 4430.172164 | Z167: 4435.079595 | AA167: 4439.690268 | AB167: 4444.038079 | AC167: 4448.151426 | AD167: 4452.054338 | AE167: 4455.76733 | AF167: 4459.308052 | AG167: 4462.691804 | AH167: 4465.931931 | AI167: 4469.040146 | AJ167: 4472.026785 | AK167: 4474.901013 | AL167: 4477.670997 | AM167: 4480.344044 | AN167: 4482.926718 | AO167: 4485.424939 | AP167: 4487.844062 | AQ167: 4490.188949
K168: Class 11 - Moderate | L168: =(L124)*8760 -> 4268.737773 | M168: 4294.228744 | N168: 4312.314876 | O168: 4326.34357 | P168: 4337.805847 | Q168: 4347.497064 | R168: 4355.891979 | S168: 4363.296818 | T168: 4369.920673 | U168: 4375.912678 | V168: 4381.38295 | W168: 4386.415112 | X168: 4391.074167 | Y168: 4395.411644 | Z168: 4399.469082 | AA168: 4403.280459 | AB168: 4406.873921 | AC168: 4410.273045 | AD168: 4413.497775 | AE168: 4416.565138 | AF168: 4419.489781 | AG168: 4422.284395 | AH168: 4424.960053 | AI168: 4427.526469 | AJ168: 4429.992215 | AK168: 4432.364892 | AL168: 4434.65127 | AM168: 4436.857408 | AN168: 4438.988747 | AO168: 4441.050193 | AP168: 4443.046185 | AQ168: 4444.980752
K169: Class 11 - Conservative | L169: =(L125)*8760 -> 4246.949221 | M169: 4259.629651 | N169: 4268.599856 | O169: 4275.543097 | P169: 4281.20694 | Q169: 4285.989324 | R169: 4290.127396 | S169: 4293.773917 | T169: 4297.033073 | U169: 4299.979105 | V169: 4302.666779 | W169: 4305.137656 | X169: 4307.424019 | Y169: 4309.551443 | Z169: 4311.540532 | AA169: 4313.408134 | AB169: 4315.168193 | AC169: 4316.832387 | AD169: 4318.410591 | AE169: 4319.91123 | AF169: 4321.341549 | AG169: 4322.707825 | AH169: 4324.01553 | AI169: 4325.269465 | AJ169: 4326.473864 | AK169: 4327.632481 | AL169: 4328.748657 | AM169: 4329.825384 | AN169: 4330.865346 | AO169: 4331.870963 | AP169: 4332.844424 | AQ169: 4333.787716
K170: Class 12 - Advanced | L170: =(L126)*8760 -> 4030.198224 | M170: 4059.078049 | N170: 4079.592937 | O170: 4095.518869 | P170: 4108.539741 | Q170: 4119.55455 | R170: 4129.100266 | S170: 4137.523429 | T170: 4145.060762 | U170: 4151.881177 | V170: 4158.109433 | W170: 4163.840304 | X170: 4169.147479 | Y170: 4174.089389 | Z170: 4178.713149 | AA170: 4183.057306 | AB170: 4187.153795 | AC170: 4191.029373 | AD170: 4194.70668 | AE170: 4198.205045 | AF170: 4201.541099 | AG170: 4204.729255 | AH170: 4207.782089 | AI170: 4210.710636 | AJ170: 4213.524635 | AK170: 4216.23272 | AL170: 4218.842587 | AM170: 4221.361121 | AN170: 4223.794505 | AO170: 4226.148318 | AP170: 4228.427606 | AQ170: 4230.636949
K171: Class 12 - Moderate | L171: =(L127)*8760 -> 4021.986591 | M171: 4046.004076 | N171: 4063.044753 | O171: 4076.262528 | P171: 4087.062237 | Q171: 4096.193261 | R171: 4104.102914 | S171: 4111.079722 | T171: 4117.32069 | U171: 4122.966331 | V171: 4128.120399 | W171: 4132.861681 | X171: 4137.251422 | Y171: 4141.338174 | Z171: 4145.161075 | AA171: 4148.752139 | AB171: 4152.137883 | AC171: 4155.340523 | AD171: 4158.378851 | AE171: 4161.268907 | AF171: 4164.024493 | AG171: 4166.657566 | AH171: 4169.17856 | AI171: 4171.596626 | AJ171: 4173.919842 | AK171: 4176.155368 | AL171: 4178.309584 | AM171: 4180.388197 | AN171: 4182.396335 | AO171: 4184.338621 | AP171: 4186.219236 | AQ171: 4188.041977
K172: Class 12 - Conservative | L172: =(L128)*8760 -> 4001.457511 | M172: 4013.404958 | N172: 4021.856647 | O172: 4028.398539 | P172: 4033.734987 | Q172: 4038.240929 | R172: 4042.139803 | S172: 4045.57554 | T172: 4048.646303 | U172: 4051.422041 | V172: 4053.954357 | W172: 4056.282407 | X172: 4058.436608 | Y172: 4060.441058 | Z172: 4062.31517 | AA172: 4064.074816 | AB172: 4065.733136 | AC172: 4067.301133 | AD172: 4068.78811 | AE172: 4070.202006 | AF172: 4071.549646 | AG172: 4072.836945 | AH172: 4074.069059 | AI172: 4075.250512 | AJ172: 4076.385291 | AK172: 4077.476935 | AL172: 4078.528592 | AM172: 4079.543079 | AN172: 4080.522927 | AO172: 4081.470415 | AP172: 4082.387606 | AQ172: 4083.276371
K173: Class 13 - Advanced | L173: =(L129)*8760 -> 3213.880562 | M173: 3236.910771 | N173: 3253.270364 | O173: 3265.970494 | P173: 3276.353985 | Q173: 3285.137742 | R173: 3292.74997 | S173: 3299.46702 | T173: 3305.477664 | U173: 3310.916602 | V173: 3315.883323 | W173: 3320.453405 | X173: 3324.68561 | Y173: 3328.626535 | Z173: 3332.313752 | AA173: 3335.777998 | AB173: 3339.044742 | AC173: 3342.135321 | AD173: 3345.067789 | AE173: 3347.857559 | AF173: 3350.517894 | AG173: 3353.060289 | AH173: 3355.49477 | AI173: 3357.83014 | AJ173: 3360.074162 | AK173: 3362.233724 | AL173: 3364.314962 | AM173: 3366.323366 | AN173: 3368.263868 | AO173: 3370.140915 | AP173: 3371.958533 | AQ173: 3373.720372
K174: Class 13 - Moderate | L174: =(L130)*8760 -> 3207.332197 | M174: 3226.484935 | N174: 3240.074018 | O174: 3250.61453 | P174: 3259.226755 | Q174: 3266.508288 | R174: 3272.815838 | S174: 3278.379492 | T174: 3283.35635 | U174: 3287.858466 | V174: 3291.968575 | W174: 3295.74951 | X174: 3299.250108 | Y174: 3302.509087 | Z174: 3305.557659 | AA174: 3308.421351 | AB174: 3311.121313 | AC174: 3313.675257 | AD174: 3316.098171 | AE174: 3318.402845 | AF174: 3320.600286 | AG174: 3322.70003 | AH174: 3324.710396 | AI174: 3326.638682 | AJ174: 3328.49133 | AK174: 3330.27405 | AL174: 3331.991929 | AM174: 3333.649518 | AN174: 3335.250908 | AO174: 3336.799783 | AP174: 3338.299479 | AQ174: 3339.753023
K175: Class 13 - Conservative | L175: =(L131)*8760 -> 3190.961287 | M175: 3200.488776 | N175: 3207.228573 | O175: 3212.445403 | P175: 3216.700953 | Q175: 3220.294215 | R175: 3223.403371 | S175: 3226.143199 | T175: 3228.591978 | U175: 3230.80549 | V175: 3232.824884 | W175: 3234.681387 | X175: 3236.399254 | Y175: 3237.997702 | Z175: 3239.492212 | AA175: 3240.895441 | AB175: 3242.217868 | AC175: 3243.468267 | AD175: 3244.654057 | AE175: 3245.781567 | AF175: 3246.856243 | AG175: 3247.882799 | AH175: 3248.865349 | AI175: 3249.807497 | AJ175: 3250.712427 | AK175: 3251.582958 | AL175: 3252.421601 | AM175: 3253.230604 | AN175: 3254.011983 | AO175: 3254.767557 | AP175: 3255.498971 | AQ175: 3256.207717
K176: Class 14 - Advanced | L176: =(L132)*8760 -> 2641.588895 | M176: 2660.518144 | N176: 2673.964605 | O176: 2684.403239 | P176: 2692.937755 | Q176: 2700.157399 | R176: 2706.414127 | S176: 2711.93508 | T176: 2716.875417 | U176: 2721.34585 | V176: 2725.428153 | W176: 2729.184446 | X176: 2732.663028 | Y176: 2735.902197 | Z176: 2738.932836 | AA176: 2741.780209 | AB176: 2744.465248 | AC176: 2747.005491 | AD176: 2749.415778 | AE176: 2751.708777 | AF176: 2753.89539 | AG176: 2755.985063 | AH176: 2757.98604 | AI176: 2759.905553 | AJ176: 2761.749985 | AK176: 2763.524997 | AL176: 2765.235631 | AM176: 2766.886401 | AN176: 2768.48136 | AO176: 2770.024164 | AP176: 2771.518121 | AQ176: 2772.966232
K177: Class 14 - Moderate | L177: =(L133)*8760 -> 2636.20659 | M177: 2651.948823 | N177: 2663.118115 | O177: 2671.781692 | P177: 2678.860349 | Q177: 2684.845268 | R177: 2690.029641 | S177: 2694.602582 | T177: 2698.693217 | U177: 2702.393647 | V177: 2705.771874 | W177: 2708.879543 | X177: 2711.756794 | Y177: 2714.435451 | Z177: 2716.941167 | AA177: 2719.294925 | AB177: 2721.514108 | AC177: 2723.613274 | AD177: 2725.604743 | AE177: 2727.499027 | AF177: 2729.305173 | AG177: 2731.031018 | AH177: 2732.6834 | AI177: 2734.268319 | AJ177: 2735.791068 | AK177: 2737.256341 | AL177: 2738.668319 | AM177: 2740.030744 | AN177: 2741.346976 | AO177: 2742.620045 | AP177: 2743.852692 | AQ177: 2745.047406
K178: Class 14 - Conservative | L178: =(L134)*8760 -> 2622.750827 | M178: 2630.581768 | N178: 2636.121418 | O178: 2640.409293 | P178: 2643.907063 | Q178: 2646.860477 | R178: 2649.41599 | S178: 2651.66794 | T178: 2653.680668 | U178: 2655.500022 | V178: 2657.159826 | W178: 2658.685743 | X178: 2660.097712 | Y178: 2661.411526 | Z178: 2662.639911 | AA178: 2663.793269 | AB178: 2664.880213 | AC178: 2665.907955 | AD178: 2666.882593 | AE178: 2667.809329 | AF178: 2668.692638 | AG178: 2669.536397 | AH178: 2670.343985 | AI178: 2671.118366 | AJ178: 2671.862157 | AK178: 2672.577673 | AL178: 2673.26698 | AM178: 2673.931925 | AN178: 2674.574165 | AO178: 2675.195195 | AP178: 2675.796367 | AQ178: 2676.378907
L180: 2019 | M180: 2020 | N180: 2021 | O180: 2022 | P180: 2023 | Q180: 2024 | R180: 2025 | S180: 2026 | T180: 2027 | U180: 2028 | V180: 2029 | W180: 2030 | X180: 2031 | Y180: 2032 | Z180: 2033 | AA180: 2034 | AB180: 2035 | AC180: 2036 | AD180: 2037 | AE180: 2038 | AF180: 2039 | AG180: 2040 | AH180: 2041 | AI180: 2042 | AJ180: 2043 | AK180: 2044 | AL180: 2045 | AM180: 2046 | AN180: 2047 | AO180: 2048 | AP180: 2049 | AQ180: 2050
J181: CAPEX ($/kW) | K181: Class 1 - Advanced | L181: =$N$43*(L269 + L403) -> 3533.974294 | M181: 3252.206471 | N181: 3042.53673 | O181: 2872.372709 | P181: 2727.1969 | Q181: 2599.265224 | R181: 2483.955153 | S181: 2378.285065 | T181: 2280.219126 | U181: 2188.305262 | V181: 2101.471312 | W181: 2018.903067 | X181: 1973.539635 | Y181: 1931.307291 | Z181: 1891.801571 | AA181: 1854.691651 | AB181: 1819.703488 | AC181: 1786.607525 | AD181: 1755.209556 | AE181: 1725.343818 | AF181: 1696.867697 | AG181: 1669.657608 | AH181: 1643.605753 | AI181: 1618.61754 | AJ181: 1594.609514 | AK181: 1571.50767 | AL181: 1549.246082 | AM181: 1527.765766 | AN181: 1507.013738 | AO181: 1486.942228 | AP181: 1467.508018 | AQ181: 1448.671879
K182: Class 1 - Moderate | L182: =$N$43*(L270 + L404) -> 3667.565156 | M182: 3414.083432 | N182: 3224.653631 | O182: 3070.320704 | P182: 2938.187301 | Q182: 2821.373582 | R182: 2715.772895 | S182: 2618.736366 | T182: 2528.455362 | U182: 2443.63986 | V182: 2363.337354 | W182: 2286.824499 | X182: 2246.523634 | Y182: 2209.004427 | Z182: 2173.907553 | AA182: 2140.939107 | AB182: 2109.855629 | AC182: 2080.453182 | AD182: 2052.559232 | AE182: 2026.026516 | AF182: 2000.728335 | AG182: 1976.554897 | AH182: 1953.410434 | AI182: 1931.210911 | AJ182: 1909.882184 | AK182: 1889.358511 | AL182: 1869.58132 | AM182: 1850.498211 | AN182: 1832.062113 | AO182: 1814.230587 | AP182: 1796.965239 | AQ182: 1780.231216
K183: Class 1 - Conservative | L183: =$N$43*(L271 + L405) -> 3884.811893 | M183: 3711.309783 | N183: 3580.623251 | O183: 3473.397262 | P183: 3381.010568 | Q183: 3298.864334 | R183: 3224.213463 | S183: 3155.287313 | T183: 3090.876901 | U183: 3030.11991 | V183: 2972.379635 | W183: 2917.172557 | X183: 2890.2334 | Y183: 2865.153646 | Z183: 2841.693102 | AA183: 2819.655309 | AB183: 2798.877525 | AC183: 2779.223427 | AD183: 2760.577686 | AE183: 2742.841863 | AF183: 2725.931267 | AG183: 2709.772507 | AH183: 2694.301565 | AI183: 2679.46227 | AJ183: 2665.20506 | AK183: 2651.485988 | AL183: 2638.265904 | AM183: 2625.509779 | AN183: 2613.186149 | AO183: 2601.266647 | AP183: 2589.725606 | AQ183: 2578.53973
K184: Class 2 - Advanced | L184: =$N$43*(L272 + L406) -> 3575.844874 | M184: 3290.738661 | N184: 3078.58475 | O184: 2906.404623 | P184: 2759.508769 | Q184: 2630.061356 | R184: 2513.38509 | S184: 2406.463021 | T184: 2307.235196 | U184: 2214.232335 | V184: 2126.369575 | W184: 2042.82306 | X184: 1996.922162 | Y184: 1954.189448 | Z184: 1914.215663 | AA184: 1876.666065 | AB184: 1841.263362 | AC184: 1807.775277 | AD184: 1776.005304 | AE184: 1745.785716 | AF184: 1716.97221 | AG184: 1689.439736 | AH184: 1663.079218 | AI184: 1637.794945 | AJ184: 1613.502471 | AK184: 1590.126917 | AL184: 1567.601573 | AM184: 1545.866757 | AN184: 1524.868859 | AO184: 1504.559542 | AP184: 1484.895075 | AQ184: 1465.835765
K185: Class 2 - Moderate | L185: =$N$43*(L273 + L407) -> 3711.018522 | M185: 3454.533543 | N185: 3262.859375 | O185: 3106.697909 | P185: 2972.998988 | Q185: 2854.801257 | R185: 2747.949412 | S185: 2649.763193 | T185: 2558.412539 | U185: 2472.592142 | V185: 2391.33821 | W185: 2313.918829 | X185: 2273.140479 | Y185: 2235.176744 | Z185: 2199.664041 | AA185: 2166.304985 | AB185: 2134.85323 | AC185: 2105.102422 | AD185: 2076.877984 | AE185: 2050.030908 | AF185: 2024.432994 | AG185: 1999.973149 | AH185: 1976.55447 | AI185: 1954.091926 | AJ185: 1932.510497 | AK185: 1911.743658 | AL185: 1891.732147 | AM185: 1872.422941 | AN185: 1853.768412 | AO185: 1835.725618 | AP185: 1818.255709 | AQ185: 1801.323422
K186: Class 2 - Conservative | L186: =$N$43*(L274 + L408) -> 3930.839202 | M186: 3755.281436 | N186: 3623.046528 | O186: 3514.550124 | P186: 3421.068831 | Q186: 3337.949327 | R186: 3262.413992 | S186: 3192.671204 | T186: 3127.497656 | U186: 3066.020815 | V186: 3007.596433 | W186: 2951.73526 | X186: 2924.476928 | Y186: 2899.100028 | Z186: 2875.361524 | AA186: 2853.062627 | AB186: 2832.038667 | AC186: 2812.151707 | AD186: 2793.285051 | AE186: 2775.339094 | AF186: 2758.228141 | AG186: 2741.877931 | AH186: 2726.22369 | AI186: 2711.208578 | AJ186: 2696.782449 | AK186: 2682.900833 | AL186: 2669.524117 | AM186: 2656.616857 | AN186: 2644.147217 | AO186: 2632.086492 | AP186: 2620.408713 | AQ186: 2609.090307
K187: Class 3 - Advanced | L187: =$N$43*(L275 + L409) -> 3718.418082 | M187: 3421.944343 | N187: 3201.331602 | O187: 3022.286448 | P187: 2869.533681 | Q187: 2734.925045 | R187: 2613.596757 | S187: 2502.411577 | T187: 2399.22742 | U187: 2302.516423 | V187: 2211.15047 | W187: 2124.272856 | X187: 2076.541834 | Y187: 2032.105316 | Z187: 1990.537729 | AA187: 1951.490983 | AB187: 1914.676732 | AC187: 1879.853438 | AD187: 1846.816758 | AE187: 1815.392279 | AF187: 1785.429944 | AG187: 1756.799717 | AH187: 1729.388174 | AI187: 1703.095786 | AJ187: 1677.834743 | AK187: 1653.527177 | AL187: 1630.103721 | AM187: 1607.502312 | AN187: 1585.667202 | AO187: 1564.548128 | AP187: 1544.099616 | AQ187: 1524.280389
K188: Class 3 - Moderate | L188: =$N$43*(L276 + L410) -> 3858.981265 | M188: 3592.269923 | N188: 3392.953477 | O188: 3230.565667 | P188: 3091.53601 | Q188: 2968.625595 | R188: 2857.513438 | S188: 2755.412417 | T188: 2660.419504 | U188: 2571.177345 | V188: 2486.683721 | W188: 2406.177538 | X188: 2363.773306 | Y188: 2324.295912 | Z188: 2287.367275 | AA188: 2252.678153 | AB188: 2219.972379 | AC188: 2189.035371 | AD188: 2159.685591 | AE188: 2131.768089 | AF188: 2105.149556 | AG188: 2079.714468 | AH188: 2055.362058 | AI188: 2032.003906 | AJ188: 2009.561999 | AK188: 1987.967162 | AL188: 1967.157768 | AM188: 1947.078681 | AN188: 1927.680373 | AO188: 1908.918192 | AP188: 1890.751737 | AQ188: 1873.144339
K189: Class 3 - Conservative | L189: =$N$43*(L277 + L411) -> 4087.566458 | M189: 3905.008995 | N189: 3767.501722 | O189: 3654.679437 | P189: 3557.470933 | Q189: 3471.037355 | R189: 3392.490336 | S189: 3319.966819 | T189: 3252.194725 | U189: 3188.266729 | V189: 3127.512896 | W189: 3069.424472 | X189: 3041.079318 | Y189: 3014.690611 | Z189: 2990.005624 | AA189: 2966.817643 | AB189: 2944.955433 | AC189: 2924.275556 | AD189: 2904.656664 | AE189: 2885.99518 | AF189: 2868.201993 | AG189: 2851.199881 | AH189: 2834.921486 | AI189: 2819.307704 | AJ189: 2804.306387 | AK189: 2789.871295 | AL189: 2775.961233 | AM189: 2762.539346 | AN189: 2749.572526 | AO189: 2737.030926 | AP189: 2724.887539 | AQ189: 2713.117855
K190: Class 4 - Advanced | L190: =$N$43*(L278 + L412) -> 3861.211218 | M190: 3553.352419 | N190: 3324.2678 | O190: 3138.347028 | P190: 2979.728314 | Q190: 2839.950493 | R190: 2713.963007 | S190: 2598.50814 | T190: 2491.361548 | U190: 2390.936696 | V190: 2296.062146 | W190: 2205.848294 | X190: 2156.284326 | Y190: 2110.141375 | Z190: 2066.977527 | AA190: 2026.431324 | AB190: 1988.203347 | AC190: 1952.042783 | AD190: 1917.737443 | AE190: 1885.106214 | AF190: 1853.993278 | AG190: 1824.263605 | AH190: 1795.799415 | AI190: 1768.497359 | AJ190: 1742.266251 | AK190: 1717.025236 | AL190: 1692.702282 | AM190: 1669.232944 | AN190: 1646.559331 | AO190: 1624.629251 | AP190: 1603.395483 | AQ190: 1582.815167
K191: Class 4 - Moderate | L191: =$N$43*(L279 + L413) -> 4007.17225 | M191: 3730.21877 | N191: 3523.248257 | O191: 3354.624499 | P191: 3210.255882 | Q191: 3082.625513 | R191: 2967.246474 | S191: 2861.224613 | T191: 2762.583821 | U191: 2669.914622 | V191: 2582.17631 | W191: 2498.578561 | X191: 2454.54594 | Y191: 2413.552551 | Z191: 2375.205797 | AA191: 2339.184558 | AB191: 2305.22283 | AC191: 2273.097792 | AD191: 2242.620933 | AE191: 2213.631356 | AF191: 2185.990629 | AG191: 2159.578793 | AH191: 2134.291212 | AI191: 2110.03607 | AJ191: 2086.732359 | AK191: 2064.308246 | AL191: 2042.699738 | AM191: 2021.849582 | AN191: 2001.706349 | AO191: 1982.22367 | AP191: 1963.359594 | AQ191: 1945.076045
K192: Class 4 - Conservative | L192: =$N$43*(L280 + L414) -> 4244.535475 | M192: 4054.967517 | N192: 3912.179748 | O192: 3795.024908 | P192: 3694.083445 | Q192: 3604.33068 | R192: 3522.767331 | S192: 3447.458797 | T192: 3377.084147 | U192: 3310.701214 | V192: 3247.614338 | W192: 3187.295227 | X192: 3157.861574 | Y192: 3130.459499 | Z192: 3104.826569 | AA192: 3080.748133 | AB192: 3058.04638 | AC192: 3036.572363 | AD192: 3016.200074 | AE192: 2996.82196 | AF192: 2978.345486 | AG192: 2960.690466 | AH192: 2943.786955 | AI192: 2927.573579 | AJ192: 2911.996188 | AK192: 2897.006766 | AL192: 2882.562536 | AM192: 2868.625226 | AN192: 2855.16046 | AO192: 2842.137243 | AP192: 2829.527531 | AQ192: 2817.305872
K193: Class 5 - Advanced | L193: =$N$43*(L281 + L415) -> 4051.664882 | M193: 3728.620994 | N193: 3488.23681 | O193: 3293.145525 | P193: 3126.702966 | Q193: 2980.030625 | R193: 2847.828825 | S193: 2726.679165 | T193: 2614.247583 | U193: 2508.86929 | V193: 2409.315067 | W193: 2314.651431 | X193: 2262.642727 | Y193: 2214.223782 | Z193: 2168.930883 | AA193: 2126.384745 | AB193: 2086.271179 | AC193: 2048.327001 | AD193: 2012.329554 | AE193: 1978.088796 | AF193: 1945.441219 | AG193: 1914.245134 | AH193: 1884.376952 | AI193: 1855.728226 | AJ193: 1828.203272 | AK193: 1801.717248 | AL193: 1776.194568 | AM193: 1751.567608 | AN193: 1727.775623 | AO193: 1704.763845 | AP193: 1682.482725 | AQ193: 1660.887287
K194: Class 5 - Moderate | L194: =$N$43*(L282 + L416) -> 4204.82542 | M194: 3914.211252 | N194: 3697.031949 | O194: 3520.090849 | P194: 3368.601273 | Q194: 3234.675555 | R194: 3113.605462 | S194: 3002.354088 | T194: 2898.847854 | U194: 2801.60776 | V194: 2709.541769 | W194: 2621.820574 | X194: 2575.616051 | Y194: 2532.600669 | Z194: 2492.362467 | AA194: 2454.564485 | AB194: 2418.927601 | AC194: 2385.218 | AD194: 2353.237875 | AE194: 2322.818391 | AF194: 2293.814289 | AG194: 2266.099694 | AH194: 2239.564806 | AI194: 2214.113283 | AJ194: 2189.66012 | AK194: 2166.129941 | AL194: 2143.455597 | AM194: 2121.57701 | AN194: 2100.440215 | AO194: 2079.996555 | AP194: 2060.202012 | AQ194: 2041.016629
K195: Class 5 - Conservative | L195: =$N$43*(L283 + L417) -> 4453.896551 | M195: 4254.978182 | N195: 4105.147427 | O195: 3982.213943 | P195: 3876.293557 | Q195: 3782.113751 | R195: 3696.527301 | S195: 3617.504185 | T195: 3543.658316 | U195: 3474.001055 | V195: 3407.802429 | W195: 3344.508086 | X195: 3313.622623 | Y195: 3284.868944 | Z195: 3257.971674 | AA195: 3232.705573 | AB195: 3208.884059 | AC195: 3186.35084 | AD195: 3164.973691 | AE195: 3144.639754 | AF195: 3125.251931 | AG195: 3106.72608 | AH195: 3088.988806 | AI195: 3071.975707 | AJ195: 3055.629964 | AK195: 3039.90119 | AL195: 3024.7445 | AM195: 3010.119736 | AN195: 2995.990822 | AO195: 2982.325236 | AP195: 2969.093552 | AQ195: 2956.269062
K196: Class 6 - Advanced | L196: =$N$43*(L284 + L418) -> 4022.968477 | M196: 3702.212587 | N196: 3463.530953 | O196: 3269.821425 | P196: 3104.557715 | Q196: 2958.924199 | R196: 2827.658734 | S196: 2707.367131 | T196: 2595.731859 | U196: 2491.099921 | V196: 2392.250803 | W196: 2298.257633 | X196: 2246.617287 | Y196: 2198.541275 | Z196: 2153.569169 | AA196: 2111.324369 | AB196: 2071.494912 | AC196: 2033.819478 | AD196: 1998.076988 | AE196: 1964.078743 | AF196: 1931.662397 | AG196: 1900.687262 | AH196: 1871.030625 | AI196: 1842.584807 | AJ196: 1815.254802 | AK196: 1788.956369 | AL196: 1763.614456 | AM196: 1739.16192 | AN196: 1715.538444 | AO196: 1692.68965 | AP196: 1670.566338 | AQ196: 1649.123853
K197: Class 6 - Moderate | L197: =$N$43*(L285 + L419) -> 4175.044237 | M197: 3886.488379 | N197: 3670.847275 | O197: 3495.159381 | P197: 3344.742748 | Q197: 3211.765575 | R197: 3091.552976 | S197: 2981.089553 | T197: 2878.316414 | U197: 2781.765036 | V197: 2690.351113 | W197: 2603.251214 | X197: 2557.37394 | Y197: 2514.663219 | Z197: 2474.710009 | AA197: 2437.179736 | AB197: 2401.795254 | AC197: 2368.324406 | AD197: 2336.570784 | AE197: 2306.366749 | AF197: 2277.568073 | AG197: 2250.049769 | AH197: 2223.702819 | AI197: 2198.431559 | AJ197: 2174.151588 | AK197: 2150.788064 | AL197: 2128.274314 | AM197: 2106.550685 | AN197: 2085.563594 | AO197: 2065.264729 | AP197: 2045.610383 | AQ197: 2026.560883
K198: Class 6 - Conservative | L198: =$N$43*(L286 + L420) -> 4422.351292 | M198: 4224.841786 | N198: 4076.072226 | O198: 3954.009432 | P198: 3848.83924 | Q198: 3755.326474 | R198: 3670.346201 | S198: 3591.882775 | T198: 3518.559929 | U198: 3449.396024 | V198: 3383.666257 | W198: 3320.820204 | X198: 3290.153491 | Y198: 3261.603464 | Z198: 3234.896697 | AA198: 3209.809546 | AB198: 3186.156751 | AC198: 3163.783126 | AD198: 3142.557383 | AE198: 3122.367464 | AF198: 3103.116957 | AG198: 3084.722318 | AH198: 3067.11067 | AI198: 3050.218069 | AJ198: 3033.988096 | AK198: 3018.370724 | AL198: 3003.321383 | AM198: 2988.8002 | AN198: 2974.771356 | AO198: 2961.202558 | AP198: 2948.064589 | AQ198: 2935.33093
K199: Class 7 - Advanced | L199: =$N$43*(L287 + L421) -> 4059.198386 | M199: 3735.553844 | N199: 3494.722699 | O199: 3299.268668 | P199: 3132.516633 | Q199: 2985.571575 | R199: 2853.123965 | S199: 2731.749043 | T199: 2619.108411 | U199: 2513.534182 | V199: 2413.794852 | W199: 2318.955201 | X199: 2266.849794 | Y199: 2218.340821 | Z199: 2172.963707 | AA199: 2130.33846 | AB199: 2090.150309 | AC199: 2052.135579 | AD199: 2016.0712 | AE199: 1981.766775 | AF199: 1949.058494 | AG199: 1917.804405 | AH199: 1887.880688 | AI199: 1859.178693 | AJ199: 1831.602561 | AK199: 1805.067289 | AL199: 1779.497154 | AM199: 1754.824403 | AN199: 1730.98818 | AO199: 1707.933615 | AP199: 1685.611066 | AQ199: 1663.975475
K200: Class 7 - Moderate | L200: =$N$43*(L288 + L422) -> 4212.643705 | M200: 3921.48918 | N200: 3703.906063 | O200: 3526.635966 | P200: 3374.864715 | Q200: 3240.689981 | R200: 3119.394776 | S200: 3007.936545 | T200: 2904.237856 | U200: 2806.816958 | V200: 2714.579783 | W200: 2626.695483 | X200: 2580.405049 | Y200: 2537.309686 | Z200: 2496.996666 | AA200: 2459.128405 | AB200: 2423.425258 | AC200: 2389.652979 | AD200: 2357.613391 | AE200: 2327.137347 | AF200: 2298.079316 | AG200: 2270.313189 | AH200: 2243.728964 | AI200: 2218.230117 | AJ200: 2193.731486 | AK200: 2170.157556 | AL200: 2147.441052 | AM200: 2125.521785 | AN200: 2104.345689 | AO200: 2083.864018 | AP200: 2064.03267 | AQ200: 2044.811614
K201: Class 7 - Conservative | L201: =$N$43*(L289 + L423) -> 4462.177949 | M201: 4262.889718 | N201: 4112.780375 | O201: 3989.618313 | P201: 3883.500982 | Q201: 3789.146062 | R201: 3703.400477 | S201: 3624.230428 | T201: 3550.247253 | U201: 3480.460474 | V201: 3414.138761 | W201: 3350.726731 | X201: 3319.78384 | Y201: 3290.976699 | Z201: 3264.029417 | AA201: 3238.716337 | AB201: 3214.85053 | AC201: 3192.275413 | AD201: 3170.858517 | AE201: 3150.486772 | AF201: 3131.0629 | AG201: 3112.502602 | AH201: 3094.732348 | AI201: 3077.687616 | AJ201: 3061.31148 | AK201: 3045.553461 | AL201: 3030.36859 | AM201: 3015.716632 | AN201: 3001.561448 | AO201: 2987.870453 | AP201: 2974.614166 | AQ201: 2961.765831
K202: Class 8 - Advanced | L202: =$N$43*(L290 + L424) -> 5001.562133 | M202: 4620.87763 | N202: 4337.344613 | O202: 4107.045182 | P202: 3910.417131 | Q202: 3737.025385 | R202: 3580.641134 | S202: 3437.246669 | T202: 3304.098723 | U202: 3179.240639 | V202: 3061.227692 | W202: 2948.962743 | X202: 2887.835947 | Y202: 2830.928261 | Z202: 2777.694676 | AA202: 2727.689409 | AB202: 2680.54319 | AC202: 2635.946692 | AD202: 2593.638224 | AE202: 2553.394424 | AF202: 2515.02312 | AG202: 2478.357782 | AH202: 2443.253153 | AI202: 2409.581772 | AJ202: 2377.231183 | AK202: 2346.101667 | AL202: 2316.104387 | AM202: 2287.159863 | AN202: 2259.196701 | AO202: 2232.150531 | AP202: 2205.963116 | AQ202: 2180.581597
K203: Class 8 - Moderate | L203: =$N$43*(L291 + L425) -> 5182.546991 | M203: 4847.693459 | N203: 4597.879046 | O203: 4394.661319 | P203: 4220.916992 | Q203: 4067.511983 | R203: 3928.994059 | S203: 3801.846417 | T203: 3683.66781 | U203: 3572.745526 | V203: 3467.814961 | W203: 3367.915762 | X203: 3314.409952 | Y203: 3264.597234 | Z203: 3218.000549 | AA203: 3174.229691 | AB203: 3132.961429 | AC203: 3093.925002 | AD203: 3056.891344 | AE203: 3021.664941 | AF203: 2988.077581 | AG203: 2955.983496 | AH203: 2925.255538 | AI203: 2895.782139 | AJ203: 2867.464861 | AK203: 2840.216418 | AL203: 2813.959051 | AM203: 2788.623187 | AN203: 2764.146333 | AO203: 2740.472146 | AP203: 2717.549648 | AQ203: 2695.332571
K204: Class 8 - Conservative | L204: =$N$43*(L292 + L426) -> 5468.633807 | M204: 5250.394902 | N204: 5085.693567 | O204: 4950.327828 | P204: 4833.517481 | Q204: 4729.512036 | R204: 4634.878963 | S204: 4547.404212 | T204: 4465.576042 | U204: 4388.316192 | V204: 4314.828513 | W204: 4244.5084 | X204: 4210.823068 | Y204: 4179.462774 | Z204: 4150.127178 | AA204: 4122.570621 | AB204: 4096.589608 | AC204: 4072.013679 | AD204: 4048.698621 | AE204: 4026.521345 | AF204: 4005.375952 | AG204: 3985.170671 | AH204: 3965.825455 | AI204: 3947.270063 | AJ204: 3929.442524 | AK204: 3912.287886 | AL204: 3895.757192 | AM204: 3879.806644 | AN204: 3864.396898 | AO204: 3849.492481 | AP204: 3835.061302 | AQ204: 3821.07423
K205: Class 9 - Advanced | L205: =$N$43*(L293 + L427) -> 5092.40382 | M205: 4704.805073 | N205: 4416.122341 | O205: 4181.640059 | P205: 3981.440719 | Q205: 3804.899717 | R205: 3645.675112 | S205: 3499.676221 | T205: 3364.109954 | U205: 3236.984115 | V205: 3116.827739 | W205: 3002.523759 | X205: 2940.286738 | Y205: 2882.345457 | Z205: 2828.145008 | AA205: 2777.231512 | AB205: 2729.228992 | AC205: 2683.822503 | AD205: 2640.745601 | AE205: 2599.770866 | AF205: 2560.702637 | AG205: 2523.371359 | AH205: 2487.629136 | AI205: 2453.346194 | AJ205: 2420.408032 | AK205: 2388.71312 | AL205: 2358.17101 | AM205: 2328.700777 | AN205: 2300.229729 | AO205: 2272.692328 | AP205: 2246.02928 | AQ205: 2220.186765
K206: Class 9 - Moderate | L206: =$N$43*(L294 + L428) -> 5276.675845 | M206: 4935.740481 | N206: 4681.388774 | O206: 4474.480072 | P206: 4297.580085 | Q206: 4141.388832 | R206: 4000.355053 | S206: 3870.898072 | T206: 3750.573027 | U206: 3637.636099 | V206: 3530.799715 | W206: 3429.086081 | X206: 3374.608463 | Y206: 3323.891014 | Z206: 3276.448008 | AA206: 3231.882155 | AB206: 3189.864351 | AC206: 3150.118918 | AD206: 3112.412631 | AE206: 3076.546423 | AF206: 3042.349027 | AG206: 3009.672028 | AH206: 2978.385969 | AI206: 2948.377254 | AJ206: 2919.545659 | AK206: 2891.802312 | AL206: 2865.06804 | AM206: 2839.27201 | AN206: 2814.350591 | AO206: 2790.246417 | AP206: 2766.907586 | AQ206: 2744.286988
K207: Class 9 - Conservative | L207: =$N$43*(L295 + L429) -> 5567.958759 | M207: 5345.756055 | N207: 5178.063305 | O207: 5040.238964 | P207: 4921.307029 | Q207: 4815.412568 | R207: 4719.060708 | S207: 4629.997182 | T207: 4546.682795 | U207: 4468.0197 | V207: 4393.197289 | W207: 4321.599976 | X207: 4287.302828 | Y207: 4255.372947 | Z207: 4225.504539 | AA207: 4197.447482 | AB207: 4170.994585 | AC207: 4145.97229 | AD207: 4122.233769 | AE207: 4099.653695 | AF207: 4078.124246 | AG207: 4057.551983 | AH207: 4037.855406 | AI207: 4018.962999 | AJ207: 4000.811664 | AK207: 3983.345452 | AL207: 3966.514517 | AM207: 3950.274264 | AN207: 3934.584636 | AO207: 3919.409516 | AP207: 3904.716227 | AQ207: 3890.475113
K208: Class 10 - Advanced | L208: =$N$43*(L296 + L430) -> 5204.601176 | M208: 4808.462738 | N208: 4513.419663 | O208: 4273.771197 | P208: 4069.161005 | Q208: 3888.7304 | R208: 3725.997711 | S208: 3576.782129 | T208: 3438.229026 | U208: 3308.302312 | V208: 3185.498615 | W208: 3068.676256 | X208: 3005.06801 | Y208: 2945.850149 | Z208: 2890.45554 | AA208: 2838.420303 | AB208: 2789.360177 | AC208: 2742.953279 | AD208: 2698.927293 | AE208: 2657.049791 | AF208: 2617.120799 | AG208: 2578.967027 | AH208: 2542.437321 | AI208: 2507.399047 | AJ208: 2473.735182 | AK208: 2441.341959 | AL208: 2410.126935 | AM208: 2380.007405 | AN208: 2350.909075 | AO208: 2322.764962 | AP208: 2295.514466 | AQ208: 2269.102581
K209: Class 10 - Moderate | L209: =$N$43*(L297 + L431) -> 5392.933137 | M209: 5044.486183 | N209: 4784.530524 | O209: 4573.063148 | P209: 4392.265648 | Q209: 4232.633143 | R209: 4088.492066 | S209: 3956.18285 | T209: 3833.206768 | U209: 3717.781579 | V209: 3608.591345 | W209: 3504.636726 | X209: 3448.95884 | Y209: 3397.123969 | Z209: 3348.635686 | AA209: 3303.087944 | AB209: 3260.144392 | AC209: 3219.523276 | AD209: 3180.986232 | AE209: 3144.329809 | AF209: 3109.378966 | AG209: 3075.982018 | AH209: 3044.006655 | AI209: 3013.336778 | AJ209: 2983.869957 | AK209: 2955.515361 | AL209: 2928.192072 | AM209: 2901.827695 | AN209: 2876.357201 | AO209: 2851.721957 | AP209: 2827.868917 | AQ209: 2804.749935
K210: Class 10 - Conservative | L210: =$N$43*(L298 + L432) -> 5690.633683 | M210: 5463.535343 | N210: 5292.147936 | O210: 5151.287008 | P210: 5029.73473 | Q210: 4921.507171 | R210: 4823.032457 | S210: 4732.006657 | T210: 4646.856663 | U210: 4566.460439 | V210: 4489.989518 | W210: 4416.814752 | X210: 4381.761959 | Y210: 4349.12859 | Z210: 4318.602112 | AA210: 4289.926893 | AB210: 4262.891178 | AC210: 4237.317585 | AD210: 4213.05605 | AE210: 4189.978485 | AF210: 4167.974692 | AG210: 4146.949175 | AH210: 4126.818638 | AI210: 4107.509987 | AJ210: 4088.958737 | AK210: 4071.107704 | AL210: 4053.905945 | AM210: 4037.307882 | AN210: 4021.272575 | AO210: 4005.763112 | AP210: 3990.746097 | AQ210: 3976.191218
K211: Class 11 - Advanced | L211: =$N$43*(L299 + L433) -> 5572.257694 | M211: 5148.135771 | N211: 4832.250655 | O211: 4575.673261 | P211: 4356.609268 | Q211: 4163.432924 | R211: 3989.204689 | S211: 3829.448418 | T211: 3681.107831 | U211: 3542.003007 | V211: 3410.524374 | W211: 3285.449605 | X211: 3217.34803 | Y211: 3153.94698 | Z211: 3094.639258 | AA211: 3038.928218 | AB211: 2986.402451 | AC211: 2936.717338 | AD211: 2889.581328 | AE211: 2844.745571 | AF211: 2801.995968 | AG211: 2761.146988 | AH211: 2722.036799 | AI211: 2684.523397 | AJ211: 2648.481494 | AK211: 2613.799992 | AL211: 2580.379919 | AM211: 2548.132725 | AN211: 2516.978869 | AO211: 2486.846637 | AP211: 2457.671147 | AQ211: 2429.393509
... 361 more rows

Sheet Land-Based Wind
A1: Land-Based Wind | L1: https://atb.nrel.gov/electricity/2021/land-based_wind
T3: Inputs
J4: Take me to: | T4: Calculated
B7: X | G7: Assumptions
H9: Technology | J9: Basis Year: | L9: 2019
J10: All values are given in 2019 U.S. dollars, using the Consumer Price Index (BLS, 2020) for dollar year conversions. Projections use an inflation assumption of 2.5% per year.
J11: Land-Based Wind Classes
J12: Wind Classes | K12: Wind Speed Range (m/s) | L12: Weighted Average Wind Speed (m/s)
J14: Class1 | K14: > 9.0 | L14: 9.5
J15: Class2 | K15: 8.8 - 9.0 | L15: 8.9
J16: Class3 | K16: 8.6 - 8.8 | L16: 8.7
J17: Class4 | K17: 8.4 - 8.6 | L17: 8.5
J18: Class5 | K18: 8.1 - 8.4 | L18: 8.2
J19: Class6 | K19: 7.6 - 8.1 | L19: 7.8
J20: Class7 | K20: 7.1 - 7.6 | L20: 7.4
J21: Class8 | K21: 6.5 - 7.1 | L21: 6.8
J22: Class9 | K22: 5.9 - 6.5 | L22: 6.2
J23: Class10 | K23: 0 - 5.9 | L23: 5.2
J24: Total
J25: Wind speeds presented in table are assumed to be 110 meters above the surface
H28: Finance | J28: Financial Assumptions:
J29: Inflation Rate | N29: =L57 -> 0.025
J30: Capital Recovery Period (Years) | N30: =S30 -> 30 | S30: 30
J31: Interest Rate Nominal - Moderate | N31: =L59 -> 0.04
J32: Calculated Interest Rate Real - Moderate | N32: =L62 -> 0.01463414634
J33: Interest During Construction - Nominal | N33: =N31 -> 0.04
J34: Rate of Return on Equity Nominal - Moderate | N34: =L66 -> 0.09
J35: Calculated Rate of Return on Equity Real - Moderate | N35: =L69 -> 0.06341463415
J36: Debt Fraction - Moderate | N36: =L72 -> 0.671
J37: Tax Rate (Federal and State) | N37: =L74 -> 0.2574
J38: WACC Nominal - Moderate | N38: =L76 -> 0.049541384
J39: WACC Real - Moderate | N39: =L79 -> 0.02394281366
J40: Depreciation Period | N40: 5
J41: Construction Finance Factor | N41: =SUMPRODUCT(K51:K53,L51:L53,M51:M53)+SUMPRODUCT(K51:K53,O51:O53,N51:N53) -> 1.043685344
J42: Present Value of Depreciation | N42: =SUMPRODUCT(R50:W50,R52:W52) -> 0.8756324115
J43: Project Finance Factor | N43: =(1 - N37 * N42) / (1 - N37) -> 1.043108292
J44: Capital Recovery Factor (CRF) Nominal - Moderate | N44: =L82 -> 0.06471175247
J45: Capital Recovery Factor (CRF) Real - Moderate | N45: =L85 -> 0.04710671951
J46: Equity Premium During Construction | N46: 0.02
J47: Cost of equity during construction | N47: =N34+N46 -> 0.11
J48: Construction Duration yrs | L48: 3
J49: Year | K49: Capital | L49: Accumulated | M49: Percent of Leverage During Construction | N49: Percent of Equity During Construction | O49: Accumulated | Q49: MACRS yr | R49: 1 | S49: 2 | T49: 3 | U49: 4 | V49: 5 | W49: 6
J50: Index | K50: Fraction | L50: Interest | O50: Equity Cost | Q50: Depreciation | R50: 0.2 | S50: 0.32 | T50: 0.192 | U50: 0.1152 | V50: 0.1152 | W50: 0.0576
J51: 0 | K51: 0.8 | L51: =1+((1+N33)^(J51+0.5)-1) -> 1.019803903 | M51: 0.8 | N51: =1-M51 -> 0.2 | O51: =1+((1+$N$47)^(J51+0.5)-1) -> 1.053565375 | Q51: Fraction
J52: 1 | K52: 0.1 | L52: =1+((1+N33)^(J52+0.5)-1) -> 1.060596059 | M52: 0.8 | N52: =1-M52 -> 0.2 | O52: =1+((1+$N$47)^(J52+0.5)-1) -> 1.169457567 | Q52: Depreciation | R52: =1/((1+N39)*(1+N29))^R49 -> 0.9527971124 | S52: =1/((1+N39)*(1+N29))^S49 -> 0.9078223374 | T52: =1/((1+N39)*(1+N29))^T49 -> 0.8649705016 | U52: =1/((1+N39)*(1+N29))^U49 -> 0.8241413962 | V52: =1/((1+N39)*(1+N29))^V49 -> 0.7852395425 | W52: =1/((1+N39)*(1+N29))^W49 -> 0.7481739686
J53: 2 | K53: 0.1 | L53: =1+((1+N33)^(J53+0.5)-1) -> 1.103019901 | M53: 0.8 | N53: =1-M53 -> 0.2 | O53: =1+((1+$N$47)^(J53+0.5)-1) -> 1.298097899 | Q53: Factor
L56: 2019 | M56: 2020 | N56: 2021 | O56: 2022 | P56: 2023 | Q56: 2024 | R56: 2025 | S56: 2026 | T56: 2027 | U56: 2028 | V56: 2029 | W56: 2030 | X56: 2031 | Y56: 2032 | Z56: 2033 | AA56: 2034 | AB56: 2035 | AC56: 2036 | AD56: 2037 | AE56: 2038 | AF56: 2039 | AG56: 2040 | AH56: 2041 | AI56: 2042 | AJ56: 2043 | AK56: 2044 | AL56: 2045 | AM56: 2046 | AN56: 2047 | AO56: 2048 | AP56: 2049 | AQ56: 2050
J57: Assumptions | K57: ='WACC Calc'!B342 -> Inflation Rate | L57: ='WACC Calc'!F342 -> 0.025 | M57: ='WACC Calc'!G342 -> 0.025 | N57: ='WACC Calc'!H342 -> 0.025 | O57: ='WACC Calc'!I342 -> 0.025 | P57: ='WACC Calc'!J342 -> 0.025 | Q57: ='WACC Calc'!K342 -> 0.025 | R57: ='WACC Calc'!L342 -> 0.025 | S57: ='WACC Calc'!M342 -> 0.025 | T57: ='WACC Calc'!N342 -> 0.025 | U57: ='WACC Calc'!O342 -> 0.025 | V57: ='WACC Calc'!P342 -> 0.025 | W57: ='WACC Calc'!Q342 -> 0.025 | X57: ='WACC Calc'!R342 -> 0.025 | Y57: ='WACC Calc'!S342 -> 0.025 | Z57: ='WACC Calc'!T342 -> 0.025 | AA57: ='WACC Calc'!U342 -> 0.025 | AB57: ='WACC Calc'!V342 -> 0.025 | AC57: ='WACC Calc'!W342 -> 0.025 | AD57: ='WACC Calc'!X342 -> 0.025 | AE57: ='WACC Calc'!Y342 -> 0.025 | AF57: ='WACC Calc'!Z342 -> 0.025 | AG57: ='WACC Calc'!AA342 -> 0.025 | AH57: ='WACC Calc'!AB342 -> 0.025 | AI57: ='WACC Calc'!AC342 -> 0.025 | AJ57: ='WACC Calc'!AD342 -> 0.025 | AK57: ='WACC Calc'!AE342 -> 0.025 | AL57: ='WACC Calc'!AF342 -> 0.025 | AM57: ='WACC Calc'!AG342 -> 0.025 | AN57: ='WACC Calc'!AH342 -> 0.025 | AO57: ='WACC Calc'!AI342 -> 0.025 | AP57: ='WACC Calc'!AJ342 -> 0.025 | AQ57: ='WACC Calc'!AK342 -> 0.025
K58: ='WACC Calc'!B343 -> Interest Rate Nominal - Advanced | L58: ='WACC Calc'!F343 -> 0.04 | M58: ='WACC Calc'!G343 -> 0.04 | N58: ='WACC Calc'!H343 -> 0.04 | O58: ='WACC Calc'!I343 -> 0.04 | P58: ='WACC Calc'!J343 -> 0.04 | Q58: ='WACC Calc'!K343 -> 0.04 | R58: ='WACC Calc'!L343 -> 0.04 | S58: ='WACC Calc'!M343 -> 0.04 | T58: ='WACC Calc'!N343 -> 0.04 | U58: ='WACC Calc'!O343 -> 0.04 | V58: ='WACC Calc'!P343 -> 0.04 | W58: ='WACC Calc'!Q343 -> 0.04 | X58: ='WACC Calc'!R343 -> 0.04 | Y58: ='WACC Calc'!S343 -> 0.04 | Z58: ='WACC Calc'!T343 -> 0.04 | AA58: ='WACC Calc'!U343 -> 0.04 | AB58: ='WACC Calc'!V343 -> 0.04 | AC58: ='WACC Calc'!W343 -> 0.04 | AD58: ='WACC Calc'!X343 -> 0.04 | AE58: ='WACC Calc'!Y343 -> 0.04 | AF58: ='WACC Calc'!Z343 -> 0.04 | AG58: ='WACC Calc'!AA343 -> 0.04 | AH58: ='WACC Calc'!AB343 -> 0.04 | AI58: ='WACC Calc'!AC343 -> 0.04 | AJ58: ='WACC Calc'!AD343 -> 0.04 | AK58: ='WACC Calc'!AE343 -> 0.04 | AL58: ='WACC Calc'!AF343 -> 0.04 | AM58: ='WACC Calc'!AG343 -> 0.04 | AN58: ='WACC Calc'!AH343 -> 0.04 | AO58: ='WACC Calc'!AI343 -> 0.04 | AP58: ='WACC Calc'!AJ343 -> 0.04 | AQ58: ='WACC Calc'!AK343 -> 0.04
K59: ='WACC Calc'!B344 -> Interest Rate Nominal - Moderate | L59: ='WACC Calc'!F344 -> 0.04 | M59: ='WACC Calc'!G344 -> 0.04 | N59: ='WACC Calc'!H344 -> 0.04 | O59: ='WACC Calc'!I344 -> 0.04 | P59: ='WACC Calc'!J344 -> 0.04 | Q59: ='WACC Calc'!K344 -> 0.04 | R59: ='WACC Calc'!L344 -> 0.04 | S59: ='WACC Calc'!M344 -> 0.04 | T59: ='WACC Calc'!N344 -> 0.04 | U59: ='WACC Calc'!O344 -> 0.04 | V59: ='WACC Calc'!P344 -> 0.04 | W59: ='WACC Calc'!Q344 -> 0.04 | X59: ='WACC Calc'!R344 -> 0.04 | Y59: ='WACC Calc'!S344 -> 0.04 | Z59: ='WACC Calc'!T344 -> 0.04 | AA59: ='WACC Calc'!U344 -> 0.04 | AB59: ='WACC Calc'!V344 -> 0.04 | AC59: ='WACC Calc'!W344 -> 0.04 | AD59: ='WACC Calc'!X344 -> 0.04 | AE59: ='WACC Calc'!Y344 -> 0.04 | AF59: ='WACC Calc'!Z344 -> 0.04 | AG59: ='WACC Calc'!AA344 -> 0.04 | AH59: ='WACC Calc'!AB344 -> 0.04 | AI59: ='WACC Calc'!AC344 -> 0.04 | AJ59: ='WACC Calc'!AD344 -> 0.04 | AK59: ='WACC Calc'!AE344 -> 0.04 | AL59: ='WACC Calc'!AF344 -> 0.04 | AM59: ='WACC Calc'!AG344 -> 0.04 | AN59: ='WACC Calc'!AH344 -> 0.04 | AO59: ='WACC Calc'!AI344 -> 0.04 | AP59: ='WACC Calc'!AJ344 -> 0.04 | AQ59: ='WACC Calc'!AK344 -> 0.04
K60: ='WACC Calc'!B345 -> Interest Rate Nominal - Conservative | L60: ='WACC Calc'!F345 -> 0.04 | M60: ='WACC Calc'!G345 -> 0.04 | N60: ='WACC Calc'!H345 -> 0.04 | O60: ='WACC Calc'!I345 -> 0.04 | P60: ='WACC Calc'!J345 -> 0.04 | Q60: ='WACC Calc'!K345 -> 0.04 | R60: ='WACC Calc'!L345 -> 0.04 | S60: ='WACC Calc'!M345 -> 0.04 | T60: ='WACC Calc'!N345 -> 0.04 | U60: ='WACC Calc'!O345 -> 0.04 | V60: ='WACC Calc'!P345 -> 0.04 | W60: ='WACC Calc'!Q345 -> 0.04 | X60: ='WACC Calc'!R345 -> 0.04 | Y60: ='WACC Calc'!S345 -> 0.04 | Z60: ='WACC Calc'!T345 -> 0.04 | AA60: ='WACC Calc'!U345 -> 0.04 | AB60: ='WACC Calc'!V345 -> 0.04 | AC60: ='WACC Calc'!W345 -> 0.04 | AD60: ='WACC Calc'!X345 -> 0.04 | AE60: ='WACC Calc'!Y345 -> 0.04 | AF60: ='WACC Calc'!Z345 -> 0.04 | AG60: ='WACC Calc'!AA345 -> 0.04 | AH60: ='WACC Calc'!AB345 -> 0.04 | AI60: ='WACC Calc'!AC345 -> 0.04 | AJ60: ='WACC Calc'!AD345 -> 0.04 | AK60: ='WACC Calc'!AE345 -> 0.04 | AL60: ='WACC Calc'!AF345 -> 0.04 | AM60: ='WACC Calc'!AG345 -> 0.04 | AN60: ='WACC Calc'!AH345 -> 0.04 | AO60: ='WACC Calc'!AI345 -> 0.04 | AP60: ='WACC Calc'!AJ345 -> 0.04 | AQ60: ='WACC Calc'!AK345 -> 0.04
K61: ='WACC Calc'!B346 -> Calculated Interest Rate Real - Advanced | L61: ='WACC Calc'!F346 -> 0.01463414634 | M61: ='WACC Calc'!G346 -> 0.01463414634 | N61: ='WACC Calc'!H346 -> 0.01463414634 | O61: ='WACC Calc'!I346 -> 0.01463414634 | P61: ='WACC Calc'!J346 -> 0.01463414634 | Q61: ='WACC Calc'!K346 -> 0.01463414634 | R61: ='WACC Calc'!L346 -> 0.01463414634 | S61: ='WACC Calc'!M346 -> 0.01463414634 | T61: ='WACC Calc'!N346 -> 0.01463414634 | U61: ='WACC Calc'!O346 -> 0.01463414634 | V61: ='WACC Calc'!P346 -> 0.01463414634 | W61: ='WACC Calc'!Q346 -> 0.01463414634 | X61: ='WACC Calc'!R346 -> 0.01463414634 | Y61: ='WACC Calc'!S346 -> 0.01463414634 | Z61: ='WACC Calc'!T346 -> 0.01463414634 | AA61: ='WACC Calc'!U346 -> 0.01463414634 | AB61: ='WACC Calc'!V346 -> 0.01463414634 | AC61: ='WACC Calc'!W346 -> 0.01463414634 | AD61: ='WACC Calc'!X346 -> 0.01463414634 | AE61: ='WACC Calc'!Y346 -> 0.01463414634 | AF61: ='WACC Calc'!Z346 -> 0.01463414634 | AG61: ='WACC Calc'!AA346 -> 0.01463414634 | AH61: ='WACC Calc'!AB346 -> 0.01463414634 | AI61: ='WACC Calc'!AC346 -> 0.01463414634 | AJ61: ='WACC Calc'!AD346 -> 0.01463414634 | AK61: ='WACC Calc'!AE346 -> 0.01463414634 | AL61: ='WACC Calc'!AF346 -> 0.01463414634 | AM61: ='WACC Calc'!AG346 -> 0.01463414634 | AN61: ='WACC Calc'!AH346 -> 0.01463414634 | AO61: ='WACC Calc'!AI346 -> 0.01463414634 | AP61: ='WACC Calc'!AJ346 -> 0.01463414634 | AQ61: ='WACC Calc'!AK346 -> 0.01463414634
K62: ='WACC Calc'!B347 -> Calculated Interest Rate Real - Moderate | L62: ='WACC Calc'!F347 -> 0.01463414634 | M62: ='WACC Calc'!G347 -> 0.01463414634 | N62: ='WACC Calc'!H347 -> 0.01463414634 | O62: ='WACC Calc'!I347 -> 0.01463414634 | P62: ='WACC Calc'!J347 -> 0.01463414634 | Q62: ='WACC Calc'!K347 -> 0.01463414634 | R62: ='WACC Calc'!L347 -> 0.01463414634 | S62: ='WACC Calc'!M347 -> 0.01463414634 | T62: ='WACC Calc'!N347 -> 0.01463414634 | U62: ='WACC Calc'!O347 -> 0.01463414634 | V62: ='WACC Calc'!P347 -> 0.01463414634 | W62: ='WACC Calc'!Q347 -> 0.01463414634 | X62: ='WACC Calc'!R347 -> 0.01463414634 | Y62: ='WACC Calc'!S347 -> 0.01463414634 | Z62: ='WACC Calc'!T347 -> 0.01463414634 | AA62: ='WACC Calc'!U347 -> 0.01463414634 | AB62: ='WACC Calc'!V347 -> 0.01463414634 | AC62: ='WACC Calc'!W347 -> 0.01463414634 | AD62: ='WACC Calc'!X347 -> 0.01463414634 | AE62: ='WACC Calc'!Y347 -> 0.01463414634 | AF62: ='WACC Calc'!Z347 -> 0.01463414634 | AG62: ='WACC Calc'!AA347 -> 0.01463414634 | AH62: ='WACC Calc'!AB347 -> 0.01463414634 | AI62: ='WACC Calc'!AC347 -> 0.01463414634 | AJ62: ='WACC Calc'!AD347 -> 0.01463414634 | AK62: ='WACC Calc'!AE347 -> 0.01463414634 | AL62: ='WACC Calc'!AF347 -> 0.01463414634 | AM62: ='WACC Calc'!AG347 -> 0.01463414634 | AN62: ='WACC Calc'!AH347 -> 0.01463414634 | AO62: ='WACC Calc'!AI347 -> 0.01463414634 | AP62: ='WACC Calc'!AJ347 -> 0.01463414634 | AQ62: ='WACC Calc'!AK347 -> 0.01463414634
K63: ='WACC Calc'!B348 -> Calculated Interest Rate Real - Conservative | L63: ='WACC Calc'!F348 -> 0.01463414634 | M63: ='WACC Calc'!G348 -> 0.01463414634 | N63: ='WACC Calc'!H348 -> 0.01463414634 | O63: ='WACC Calc'!I348 -> 0.01463414634 | P63: ='WACC Calc'!J348 -> 0.01463414634 | Q63: ='WACC Calc'!K348 -> 0.01463414634 | R63: ='WACC Calc'!L348 -> 0.01463414634 | S63: ='WACC Calc'!M348 -> 0.01463414634 | T63: ='WACC Calc'!N348 -> 0.01463414634 | U63: ='WACC Calc'!O348 -> 0.01463414634 | V63: ='WACC Calc'!P348 -> 0.01463414634 | W63: ='WACC Calc'!Q348 -> 0.01463414634 | X63: ='WACC Calc'!R348 -> 0.01463414634 | Y63: ='WACC Calc'!S348 -> 0.01463414634 | Z63: ='WACC Calc'!T348 -> 0.01463414634 | AA63: ='WACC Calc'!U348 -> 0.01463414634 | AB63: ='WACC Calc'!V348 -> 0.01463414634 | AC63: ='WACC Calc'!W348 -> 0.01463414634 | AD63: ='WACC Calc'!X348 -> 0.01463414634 | AE63: ='WACC Calc'!Y348 -> 0.01463414634 | AF63: ='WACC Calc'!Z348 -> 0.01463414634 | AG63: ='WACC Calc'!AA348 -> 0.01463414634 | AH63: ='WACC Calc'!AB348 -> 0.01463414634 | AI63: ='WACC Calc'!AC348 -> 0.01463414634 | AJ63: ='WACC Calc'!AD348 -> 0.01463414634 | AK63: ='WACC Calc'!AE348 -> 0.01463414634 | AL63: ='WACC Calc'!AF348 -> 0.01463414634 | AM63: ='WACC Calc'!AG348 -> 0.01463414634 | AN63: ='WACC Calc'!AH348 -> 0.01463414634 | AO63: ='WACC Calc'!AI348 -> 0.01463414634 | AP63: ='WACC Calc'!AJ348 -> 0.01463414634 | AQ63: ='WACC Calc'!AK348 -> 0.01463414634
K64: ='WACC Calc'!B349 -> Interest During Construction - Nominal | L64: ='WACC Calc'!F349 -> 0.035 | M64: ='WACC Calc'!G349 -> 0.035 | N64: ='WACC Calc'!H349 -> 0.035 | O64: ='WACC Calc'!I349 -> 0.035 | P64: ='WACC Calc'!J349 -> 0.035 | Q64: ='WACC Calc'!K349 -> 0.035 | R64: ='WACC Calc'!L349 -> 0.035 | S64: ='WACC Calc'!M349 -> 0.035 | T64: ='WACC Calc'!N349 -> 0.035 | U64: ='WACC Calc'!O349 -> 0.035 | V64: ='WACC Calc'!P349 -> 0.035 | W64: ='WACC Calc'!Q349 -> 0.035 | X64: ='WACC Calc'!R349 -> 0.035 | Y64: ='WACC Calc'!S349 -> 0.035 | Z64: ='WACC Calc'!T349 -> 0.035 | AA64: ='WACC Calc'!U349 -> 0.035 | AB64: ='WACC Calc'!V349 -> 0.035 | AC64: ='WACC Calc'!W349 -> 0.035 | AD64: ='WACC Calc'!X349 -> 0.035 | AE64: ='WACC Calc'!Y349 -> 0.035 | AF64: ='WACC Calc'!Z349 -> 0.035 | AG64: ='WACC Calc'!AA349 -> 0.035 | AH64: ='WACC Calc'!AB349 -> 0.035 | AI64: ='WACC Calc'!AC349 -> 0.035 | AJ64: ='WACC Calc'!AD349 -> 0.035 | AK64: ='WACC Calc'!AE349 -> 0.035 | AL64: ='WACC Calc'!AF349 -> 0.035 | AM64: ='WACC Calc'!AG349 -> 0.035 | AN64: ='WACC Calc'!AH349 -> 0.035 | AO64: ='WACC Calc'!AI349 -> 0.035 | AP64: ='WACC Calc'!AJ349 -> 0.035 | AQ64: ='WACC Calc'!AK349 -> 0.035
K65: ='WACC Calc'!B350 -> Rate of Return on Equity Nominal - Advanced | L65: ='WACC Calc'!F350 -> 0.09 | M65: ='WACC Calc'!G350 -> 0.09 | N65: ='WACC Calc'!H350 -> 0.09 | O65: ='WACC Calc'!I350 -> 0.09 | P65: ='WACC Calc'!J350 -> 0.09 | Q65: ='WACC Calc'!K350 -> 0.09 | R65: ='WACC Calc'!L350 -> 0.09 | S65: ='WACC Calc'!M350 -> 0.09 | T65: ='WACC Calc'!N350 -> 0.09 | U65: ='WACC Calc'!O350 -> 0.09 | V65: ='WACC Calc'!P350 -> 0.09 | W65: ='WACC Calc'!Q350 -> 0.09 | X65: ='WACC Calc'!R350 -> 0.09 | Y65: ='WACC Calc'!S350 -> 0.09 | Z65: ='WACC Calc'!T350 -> 0.09 | AA65: ='WACC Calc'!U350 -> 0.09 | AB65: ='WACC Calc'!V350 -> 0.09 | AC65: ='WACC Calc'!W350 -> 0.09 | AD65: ='WACC Calc'!X350 -> 0.09 | AE65: ='WACC Calc'!Y350 -> 0.09 | AF65: ='WACC Calc'!Z350 -> 0.09 | AG65: ='WACC Calc'!AA350 -> 0.09 | AH65: ='WACC Calc'!AB350 -> 0.09 | AI65: ='WACC Calc'!AC350 -> 0.09 | AJ65: ='WACC Calc'!AD350 -> 0.09 | AK65: ='WACC Calc'!AE350 -> 0.09 | AL65: ='WACC Calc'!AF350 -> 0.09 | AM65: ='WACC Calc'!AG350 -> 0.09 | AN65: ='WACC Calc'!AH350 -> 0.09 | AO65: ='WACC Calc'!AI350 -> 0.09 | AP65: ='WACC Calc'!AJ350 -> 0.09 | AQ65: ='WACC Calc'!AK350 -> 0.09
K66: ='WACC Calc'!B351 -> Rate of Return on Equity Nominal - Moderate | L66: ='WACC Calc'!F351 -> 0.09 | M66: ='WACC Calc'!G351 -> 0.09 | N66: ='WACC Calc'!H351 -> 0.09 | O66: ='WACC Calc'!I351 -> 0.09 | P66: ='WACC Calc'!J351 -> 0.09 | Q66: ='WACC Calc'!K351 -> 0.09 | R66: ='WACC Calc'!L351 -> 0.09 | S66: ='WACC Calc'!M351 -> 0.09 | T66: ='WACC Calc'!N351 -> 0.09 | U66: ='WACC Calc'!O351 -> 0.09 | V66: ='WACC Calc'!P351 -> 0.09 | W66: ='WACC Calc'!Q351 -> 0.09 | X66: ='WACC Calc'!R351 -> 0.09 | Y66: ='WACC Calc'!S351 -> 0.09 | Z66: ='WACC Calc'!T351 -> 0.09 | AA66: ='WACC Calc'!U351 -> 0.09 | AB66: ='WACC Calc'!V351 -> 0.09 | AC66: ='WACC Calc'!W351 -> 0.09 | AD66: ='WACC Calc'!X351 -> 0.09 | AE66: ='WACC Calc'!Y351 -> 0.09 | AF66: ='WACC Calc'!Z351 -> 0.09 | AG66: ='WACC Calc'!AA351 -> 0.09 | AH66: ='WACC Calc'!AB351 -> 0.09 | AI66: ='WACC Calc'!AC351 -> 0.09 | AJ66: ='WACC Calc'!AD351 -> 0.09 | AK66: ='WACC Calc'!AE351 -> 0.09 | AL66: ='WACC Calc'!AF351 -> 0.09 | AM66: ='WACC Calc'!AG351 -> 0.09 | AN66: ='WACC Calc'!AH351 -> 0.09 | AO66: ='WACC Calc'!AI351 -> 0.09 | AP66: ='WACC Calc'!AJ351 -> 0.09 | AQ66: ='WACC Calc'!AK351 -> 0.09
K67: ='WACC Calc'!B352 -> Rate of Return on Equity Nominal - Conservative | L67: ='WACC Calc'!F352 -> 0.09 | M67: ='WACC Calc'!G352 -> 0.09 | N67: ='WACC Calc'!H352 -> 0.09 | O67: ='WACC Calc'!I352 -> 0.09 | P67: ='WACC Calc'!J352 -> 0.09 | Q67: ='WACC Calc'!K352 -> 0.09 | R67: ='WACC Calc'!L352 -> 0.09 | S67: ='WACC Calc'!M352 -> 0.09 | T67: ='WACC Calc'!N352 -> 0.09 | U67: ='WACC Calc'!O352 -> 0.09 | V67: ='WACC Calc'!P352 -> 0.09 | W67: ='WACC Calc'!Q352 -> 0.09 | X67: ='WACC Calc'!R352 -> 0.09 | Y67: ='WACC Calc'!S352 -> 0.09 | Z67: ='WACC Calc'!T352 -> 0.09 | AA67: ='WACC Calc'!U352 -> 0.09 | AB67: ='WACC Calc'!V352 -> 0.09 | AC67: ='WACC Calc'!W352 -> 0.09 | AD67: ='WACC Calc'!X352 -> 0.09 | AE67: ='WACC Calc'!Y352 -> 0.09 | AF67: ='WACC Calc'!Z352 -> 0.09 | AG67: ='WACC Calc'!AA352 -> 0.09 | AH67: ='WACC Calc'!AB352 -> 0.09 | AI67: ='WACC Calc'!AC352 -> 0.09 | AJ67: ='WACC Calc'!AD352 -> 0.09 | AK67: ='WACC Calc'!AE352 -> 0.09 | AL67: ='WACC Calc'!AF352 -> 0.09 | AM67: ='WACC Calc'!AG352 -> 0.09 | AN67: ='WACC Calc'!AH352 -> 0.09 | AO67: ='WACC Calc'!AI352 -> 0.09 | AP67: ='WACC Calc'!AJ352 -> 0.09 | AQ67: ='WACC Calc'!AK352 -> 0.09
K68: ='WACC Calc'!B353 -> Calculated Rate of Return on Equity Real - Advanced | L68: ='WACC Calc'!F353 -> 0.06341463415 | M68: ='WACC Calc'!G353 -> 0.06341463415 | N68: ='WACC Calc'!H353 -> 0.06341463415 | O68: ='WACC Calc'!I353 -> 0.06341463415 | P68: ='WACC Calc'!J353 -> 0.06341463415 | Q68: ='WACC Calc'!K353 -> 0.06341463415 | R68: ='WACC Calc'!L353 -> 0.06341463415 | S68: ='WACC Calc'!M353 -> 0.06341463415 | T68: ='WACC Calc'!N353 -> 0.06341463415 | U68: ='WACC Calc'!O353 -> 0.06341463415 | V68: ='WACC Calc'!P353 -> 0.06341463415 | W68: ='WACC Calc'!Q353 -> 0.06341463415 | X68: ='WACC Calc'!R353 -> 0.06341463415 | Y68: ='WACC Calc'!S353 -> 0.06341463415 | Z68: ='WACC Calc'!T353 -> 0.06341463415 | AA68: ='WACC Calc'!U353 -> 0.06341463415 | AB68: ='WACC Calc'!V353 -> 0.06341463415 | AC68: ='WACC Calc'!W353 -> 0.06341463415 | AD68: ='WACC Calc'!X353 -> 0.06341463415 | AE68: ='WACC Calc'!Y353 -> 0.06341463415 | AF68: ='WACC Calc'!Z353 -> 0.06341463415 | AG68: ='WACC Calc'!AA353 -> 0.06341463415 | AH68: ='WACC Calc'!AB353 -> 0.06341463415 | AI68: ='WACC Calc'!AC353 -> 0.06341463415 | AJ68: ='WACC Calc'!AD353 -> 0.06341463415 | AK68: ='WACC Calc'!AE353 -> 0.06341463415 | AL68: ='WACC Calc'!AF353 -> 0.06341463415 | AM68: ='WACC Calc'!AG353 -> 0.06341463415 | AN68: ='WACC Calc'!AH353 -> 0.06341463415 | AO68: ='WACC Calc'!AI353 -> 0.06341463415 | AP68: ='WACC Calc'!AJ353 -> 0.06341463415 | AQ68: ='WACC Calc'!AK353 -> 0.06341463415
K69: ='WACC Calc'!B354 -> Calculated Rate of Return on Equity Real - Moderate | L69: ='WACC Calc'!F354 -> 0.06341463415 | M69: ='WACC Calc'!G354 -> 0.06341463415 | N69: ='WACC Calc'!H354 -> 0.06341463415 | O69: ='WACC Calc'!I354 -> 0.06341463415 | P69: ='WACC Calc'!J354 -> 0.06341463415 | Q69: ='WACC Calc'!K354 -> 0.06341463415 | R69: ='WACC Calc'!L354 -> 0.06341463415 | S69: ='WACC Calc'!M354 -> 0.06341463415 | T69: ='WACC Calc'!N354 -> 0.06341463415 | U69: ='WACC Calc'!O354 -> 0.06341463415 | V69: ='WACC Calc'!P354 -> 0.06341463415 | W69: ='WACC Calc'!Q354 -> 0.06341463415 | X69: ='WACC Calc'!R354 -> 0.06341463415 | Y69: ='WACC Calc'!S354 -> 0.06341463415 | Z69: ='WACC Calc'!T354 -> 0.06341463415 | AA69: ='WACC Calc'!U354 -> 0.06341463415 | AB69: ='WACC Calc'!V354 -> 0.06341463415 | AC69: ='WACC Calc'!W354 -> 0.06341463415 | AD69: ='WACC Calc'!X354 -> 0.06341463415 | AE69: ='WACC Calc'!Y354 -> 0.06341463415 | AF69: ='WACC Calc'!Z354 -> 0.06341463415 | AG69: ='WACC Calc'!AA354 -> 0.06341463415 | AH69: ='WACC Calc'!AB354 -> 0.06341463415 | AI69: ='WACC Calc'!AC354 -> 0.06341463415 | AJ69: ='WACC Calc'!AD354 -> 0.06341463415 | AK69: ='WACC Calc'!AE354 -> 0.06341463415 | AL69: ='WACC Calc'!AF354 -> 0.06341463415 | AM69: ='WACC Calc'!AG354 -> 0.06341463415 | AN69: ='WACC Calc'!AH354 -> 0.06341463415 | AO69: ='WACC Calc'!AI354 -> 0.06341463415 | AP69: ='WACC Calc'!AJ354 -> 0.06341463415 | AQ69: ='WACC Calc'!AK354 -> 0.06341463415
K70: ='WACC Calc'!B355 -> Calculated Rate of Return on Equity Real - Conservative | L70: ='WACC Calc'!F355 -> 0.06341463415 | M70: ='WACC Calc'!G355 -> 0.06341463415 | N70: ='WACC Calc'!H355 -> 0.06341463415 | O70: ='WACC Calc'!I355 -> 0.06341463415 | P70: ='WACC Calc'!J355 -> 0.06341463415 | Q70: ='WACC Calc'!K355 -> 0.06341463415 | R70: ='WACC Calc'!L355 -> 0.06341463415 | S70: ='WACC Calc'!M355 -> 0.06341463415 | T70: ='WACC Calc'!N355 -> 0.06341463415 | U70: ='WACC Calc'!O355 -> 0.06341463415 | V70: ='WACC Calc'!P355 -> 0.06341463415 | W70: ='WACC Calc'!Q355 -> 0.06341463415 | X70: ='WACC Calc'!R355 -> 0.06341463415 | Y70: ='WACC Calc'!S355 -> 0.06341463415 | Z70: ='WACC Calc'!T355 -> 0.06341463415 | AA70: ='WACC Calc'!U355 -> 0.06341463415 | AB70: ='WACC Calc'!V355 -> 0.06341463415 | AC70: ='WACC Calc'!W355 -> 0.06341463415 | AD70: ='WACC Calc'!X355 -> 0.06341463415 | AE70: ='WACC Calc'!Y355 -> 0.06341463415 | AF70: ='WACC Calc'!Z355 -> 0.06341463415 | AG70: ='WACC Calc'!AA355 -> 0.06341463415 | AH70: ='WACC Calc'!AB355 -> 0.06341463415 | AI70: ='WACC Calc'!AC355 -> 0.06341463415 | AJ70: ='WACC Calc'!AD355 -> 0.06341463415 | AK70: ='WACC Calc'!AE355 -> 0.06341463415 | AL70: ='WACC Calc'!AF355 -> 0.06341463415 | AM70: ='WACC Calc'!AG355 -> 0.06341463415 | AN70: ='WACC Calc'!AH355 -> 0.06341463415 | AO70: ='WACC Calc'!AI355 -> 0.06341463415 | AP70: ='WACC Calc'!AJ355 -> 0.06341463415 | AQ70: ='WACC Calc'!AK355 -> 0.06341463415
K71: ='WACC Calc'!B356 -> Debt Fraction - Advanced | L71: ='WACC Calc'!F356 -> 0.671 | M71: ='WACC Calc'!G356 -> 0.671 | N71: ='WACC Calc'!H356 -> 0.671 | O71: ='WACC Calc'!I356 -> 0.671 | P71: ='WACC Calc'!J356 -> 0.671 | Q71: ='WACC Calc'!K356 -> 0.671 | R71: ='WACC Calc'!L356 -> 0.671 | S71: ='WACC Calc'!M356 -> 0.671 | T71: ='WACC Calc'!N356 -> 0.671 | U71: ='WACC Calc'!O356 -> 0.671 | V71: ='WACC Calc'!P356 -> 0.671 | W71: ='WACC Calc'!Q356 -> 0.671 | X71: ='WACC Calc'!R356 -> 0.671 | Y71: ='WACC Calc'!S356 -> 0.671 | Z71: ='WACC Calc'!T356 -> 0.671 | AA71: ='WACC Calc'!U356 -> 0.671 | AB71: ='WACC Calc'!V356 -> 0.671 | AC71: ='WACC Calc'!W356 -> 0.671 | AD71: ='WACC Calc'!X356 -> 0.671 | AE71: ='WACC Calc'!Y356 -> 0.671 | AF71: ='WACC Calc'!Z356 -> 0.671 | AG71: ='WACC Calc'!AA356 -> 0.671 | AH71: ='WACC Calc'!AB356 -> 0.671 | AI71: ='WACC Calc'!AC356 -> 0.671 | AJ71: ='WACC Calc'!AD356 -> 0.671 | AK71: ='WACC Calc'!AE356 -> 0.671 | AL71: ='WACC Calc'!AF356 -> 0.671 | AM71: ='WACC Calc'!AG356 -> 0.671 | AN71: ='WACC Calc'!AH356 -> 0.671 | AO71: ='WACC Calc'!AI356 -> 0.671 | AP71: ='WACC Calc'!AJ356 -> 0.671 | AQ71: ='WACC Calc'!AK356 -> 0.671
K72: ='WACC Calc'!B357 -> Debt Fraction - Moderate | L72: ='WACC Calc'!F357 -> 0.671 | M72: ='WACC Calc'!G357 -> 0.671 | N72: ='WACC Calc'!H357 -> 0.671 | O72: ='WACC Calc'!I357 -> 0.671 | P72: ='WACC Calc'!J357 -> 0.671 | Q72: ='WACC Calc'!K357 -> 0.671 | R72: ='WACC Calc'!L357 -> 0.671 | S72: ='WACC Calc'!M357 -> 0.671 | T72: ='WACC Calc'!N357 -> 0.671 | U72: ='WACC Calc'!O357 -> 0.671 | V72: ='WACC Calc'!P357 -> 0.671 | W72: ='WACC Calc'!Q357 -> 0.671 | X72: ='WACC Calc'!R357 -> 0.671 | Y72: ='WACC Calc'!S357 -> 0.671 | Z72: ='WACC Calc'!T357 -> 0.671 | AA72: ='WACC Calc'!U357 -> 0.671 | AB72: ='WACC Calc'!V357 -> 0.671 | AC72: ='WACC Calc'!W357 -> 0.671 | AD72: ='WACC Calc'!X357 -> 0.671 | AE72: ='WACC Calc'!Y357 -> 0.671 | AF72: ='WACC Calc'!Z357 -> 0.671 | AG72: ='WACC Calc'!AA357 -> 0.671 | AH72: ='WACC Calc'!AB357 -> 0.671 | AI72: ='WACC Calc'!AC357 -> 0.671 | AJ72: ='WACC Calc'!AD357 -> 0.671 | AK72: ='WACC Calc'!AE357 -> 0.671 | AL72: ='WACC Calc'!AF357 -> 0.671 | AM72: ='WACC Calc'!AG357 -> 0.671 | AN72: ='WACC Calc'!AH357 -> 0.671 | AO72: ='WACC Calc'!AI357 -> 0.671 | AP72: ='WACC Calc'!AJ357 -> 0.671 | AQ72: ='WACC Calc'!AK357 -> 0.671
K73: ='WACC Calc'!B358 -> Debt Fraction - Conservative | L73: ='WACC Calc'!F358 -> 0.671 | M73: ='WACC Calc'!G358 -> 0.671 | N73: ='WACC Calc'!H358 -> 0.671 | O73: ='WACC Calc'!I358 -> 0.671 | P73: ='WACC Calc'!J358 -> 0.671 | Q73: ='WACC Calc'!K358 -> 0.671 | R73: ='WACC Calc'!L358 -> 0.671 | S73: ='WACC Calc'!M358 -> 0.671 | T73: ='WACC Calc'!N358 -> 0.671 | U73: ='WACC Calc'!O358 -> 0.671 | V73: ='WACC Calc'!P358 -> 0.671 | W73: ='WACC Calc'!Q358 -> 0.671 | X73: ='WACC Calc'!R358 -> 0.671 | Y73: ='WACC Calc'!S358 -> 0.671 | Z73: ='WACC Calc'!T358 -> 0.671 | AA73: ='WACC Calc'!U358 -> 0.671 | AB73: ='WACC Calc'!V358 -> 0.671 | AC73: ='WACC Calc'!W358 -> 0.671 | AD73: ='WACC Calc'!X358 -> 0.671 | AE73: ='WACC Calc'!Y358 -> 0.671 | AF73: ='WACC Calc'!Z358 -> 0.671 | AG73: ='WACC Calc'!AA358 -> 0.671 | AH73: ='WACC Calc'!AB358 -> 0.671 | AI73: ='WACC Calc'!AC358 -> 0.671 | AJ73: ='WACC Calc'!AD358 -> 0.671 | AK73: ='WACC Calc'!AE358 -> 0.671 | AL73: ='WACC Calc'!AF358 -> 0.671 | AM73: ='WACC Calc'!AG358 -> 0.671 | AN73: ='WACC Calc'!AH358 -> 0.671 | AO73: ='WACC Calc'!AI358 -> 0.671 | AP73: ='WACC Calc'!AJ358 -> 0.671 | AQ73: ='WACC Calc'!AK358 -> 0.671
K74: ='WACC Calc'!B359 -> Tax Rate (Federal and State) | L74: ='WACC Calc'!F359 -> 0.2574 | M74: ='WACC Calc'!G359 -> 0.2574 | N74: ='WACC Calc'!H359 -> 0.2574 | O74: ='WACC Calc'!I359 -> 0.2574 | P74: ='WACC Calc'!J359 -> 0.2574 | Q74: ='WACC Calc'!K359 -> 0.2574 | R74: ='WACC Calc'!L359 -> 0.2574 | S74: ='WACC Calc'!M359 -> 0.2574 | T74: ='WACC Calc'!N359 -> 0.2574 | U74: ='WACC Calc'!O359 -> 0.2574 | V74: ='WACC Calc'!P359 -> 0.2574 | W74: ='WACC Calc'!Q359 -> 0.2574 | X74: ='WACC Calc'!R359 -> 0.2574 | Y74: ='WACC Calc'!S359 -> 0.2574 | Z74: ='WACC Calc'!T359 -> 0.2574 | AA74: ='WACC Calc'!U359 -> 0.2574 | AB74: ='WACC Calc'!V359 -> 0.2574 | AC74: ='WACC Calc'!W359 -> 0.2574 | AD74: ='WACC Calc'!X359 -> 0.2574 | AE74: ='WACC Calc'!Y359 -> 0.2574 | AF74: ='WACC Calc'!Z359 -> 0.2574 | AG74: ='WACC Calc'!AA359 -> 0.2574 | AH74: ='WACC Calc'!AB359 -> 0.2574 | AI74: ='WACC Calc'!AC359 -> 0.2574 | AJ74: ='WACC Calc'!AD359 -> 0.2574 | AK74: ='WACC Calc'!AE359 -> 0.2574 | AL74: ='WACC Calc'!AF359 -> 0.2574 | AM74: ='WACC Calc'!AG359 -> 0.2574 | AN74: ='WACC Calc'!AH359 -> 0.2574 | AO74: ='WACC Calc'!AI359 -> 0.2574 | AP74: ='WACC Calc'!AJ359 -> 0.2574 | AQ74: ='WACC Calc'!AK359 -> 0.2574
K75: ='WACC Calc'!B360 -> WACC Nominal - Advanced | L75: ='WACC Calc'!F360 -> 0.049541384 | M75: ='WACC Calc'!G360 -> 0.049541384 | N75: ='WACC Calc'!H360 -> 0.049541384 | O75: ='WACC Calc'!I360 -> 0.049541384 | P75: ='WACC Calc'!J360 -> 0.049541384 | Q75: ='WACC Calc'!K360 -> 0.049541384 | R75: ='WACC Calc'!L360 -> 0.049541384 | S75: ='WACC Calc'!M360 -> 0.049541384 | T75: ='WACC Calc'!N360 -> 0.049541384 | U75: ='WACC Calc'!O360 -> 0.049541384 | V75: ='WACC Calc'!P360 -> 0.049541384 | W75: ='WACC Calc'!Q360 -> 0.049541384 | X75: ='WACC Calc'!R360 -> 0.049541384 | Y75: ='WACC Calc'!S360 -> 0.049541384 | Z75: ='WACC Calc'!T360 -> 0.049541384 | AA75: ='WACC Calc'!U360 -> 0.049541384 | AB75: ='WACC Calc'!V360 -> 0.049541384 | AC75: ='WACC Calc'!W360 -> 0.049541384 | AD75: ='WACC Calc'!X360 -> 0.049541384 | AE75: ='WACC Calc'!Y360 -> 0.049541384 | AF75: ='WACC Calc'!Z360 -> 0.049541384 | AG75: ='WACC Calc'!AA360 -> 0.049541384 | AH75: ='WACC Calc'!AB360 -> 0.049541384 | AI75: ='WACC Calc'!AC360 -> 0.049541384 | AJ75: ='WACC Calc'!AD360 -> 0.049541384 | AK75: ='WACC Calc'!AE360 -> 0.049541384 | AL75: ='WACC Calc'!AF360 -> 0.049541384 | AM75: ='WACC Calc'!AG360 -> 0.049541384 | AN75: ='WACC Calc'!AH360 -> 0.049541384 | AO75: ='WACC Calc'!AI360 -> 0.049541384 | AP75: ='WACC Calc'!AJ360 -> 0.049541384 | AQ75: ='WACC Calc'!AK360 -> 0.049541384
K76: ='WACC Calc'!B361 -> WACC Nominal - Moderate | L76: ='WACC Calc'!F361 -> 0.049541384 | M76: ='WACC Calc'!G361 -> 0.049541384 | N76: ='WACC Calc'!H361 -> 0.049541384 | O76: ='WACC Calc'!I361 -> 0.049541384 | P76: ='WACC Calc'!J361 -> 0.049541384 | Q76: ='WACC Calc'!K361 -> 0.049541384 | R76: ='WACC Calc'!L361 -> 0.049541384 | S76: ='WACC Calc'!M361 -> 0.049541384 | T76: ='WACC Calc'!N361 -> 0.049541384 | U76: ='WACC Calc'!O361 -> 0.049541384 | V76: ='WACC Calc'!P361 -> 0.049541384 | W76: ='WACC Calc'!Q361 -> 0.049541384 | X76: ='WACC Calc'!R361 -> 0.049541384 | Y76: ='WACC Calc'!S361 -> 0.049541384 | Z76: ='WACC Calc'!T361 -> 0.049541384 | AA76: ='WACC Calc'!U361 -> 0.049541384 | AB76: ='WACC Calc'!V361 -> 0.049541384 | AC76: ='WACC Calc'!W361 -> 0.049541384 | AD76: ='WACC Calc'!X361 -> 0.049541384 | AE76: ='WACC Calc'!Y361 -> 0.049541384 | AF76: ='WACC Calc'!Z361 -> 0.049541384 | AG76: ='WACC Calc'!AA361 -> 0.049541384 | AH76: ='WACC Calc'!AB361 -> 0.049541384 | AI76: ='WACC Calc'!AC361 -> 0.049541384 | AJ76: ='WACC Calc'!AD361 -> 0.049541384 | AK76: ='WACC Calc'!AE361 -> 0.049541384 | AL76: ='WACC Calc'!AF361 -> 0.049541384 | AM76: ='WACC Calc'!AG361 -> 0.049541384 | AN76: ='WACC Calc'!AH361 -> 0.049541384 | AO76: ='WACC Calc'!AI361 -> 0.049541384 | AP76: ='WACC Calc'!AJ361 -> 0.049541384 | AQ76: ='WACC Calc'!AK361 -> 0.049541384
K77: ='WACC Calc'!B362 -> WACC Nominal - Conservative | L77: ='WACC Calc'!F362 -> 0.049541384 | M77: ='WACC Calc'!G362 -> 0.049541384 | N77: ='WACC Calc'!H362 -> 0.049541384 | O77: ='WACC Calc'!I362 -> 0.049541384 | P77: ='WACC Calc'!J362 -> 0.049541384 | Q77: ='WACC Calc'!K362 -> 0.049541384 | R77: ='WACC Calc'!L362 -> 0.049541384 | S77: ='WACC Calc'!M362 -> 0.049541384 | T77: ='WACC Calc'!N362 -> 0.049541384 | U77: ='WACC Calc'!O362 -> 0.049541384 | V77: ='WACC Calc'!P362 -> 0.049541384 | W77: ='WACC Calc'!Q362 -> 0.049541384 | X77: ='WACC Calc'!R362 -> 0.049541384 | Y77: ='WACC Calc'!S362 -> 0.049541384 | Z77: ='WACC Calc'!T362 -> 0.049541384 | AA77: ='WACC Calc'!U362 -> 0.049541384 | AB77: ='WACC Calc'!V362 -> 0.049541384 | AC77: ='WACC Calc'!W362 -> 0.049541384 | AD77: ='WACC Calc'!X362 -> 0.049541384 | AE77: ='WACC Calc'!Y362 -> 0.049541384 | AF77: ='WACC Calc'!Z362 -> 0.049541384 | AG77: ='WACC Calc'!AA362 -> 0.049541384 | AH77: ='WACC Calc'!AB362 -> 0.049541384 | AI77: ='WACC Calc'!AC362 -> 0.049541384 | AJ77: ='WACC Calc'!AD362 -> 0.049541384 | AK77: ='WACC Calc'!AE362 -> 0.049541384 | AL77: ='WACC Calc'!AF362 -> 0.049541384 | AM77: ='WACC Calc'!AG362 -> 0.049541384 | AN77: ='WACC Calc'!AH362 -> 0.049541384 | AO77: ='WACC Calc'!AI362 -> 0.049541384 | AP77: ='WACC Calc'!AJ362 -> 0.049541384 | AQ77: ='WACC Calc'!AK362 -> 0.049541384
K78: ='WACC Calc'!B363 -> WACC Real - Advanced | L78: ='WACC Calc'!F363 -> 0.02394281366 | M78: ='WACC Calc'!G363 -> 0.02394281366 | N78: ='WACC Calc'!H363 -> 0.02394281366 | O78: ='WACC Calc'!I363 -> 0.02394281366 | P78: ='WACC Calc'!J363 -> 0.02394281366 | Q78: ='WACC Calc'!K363 -> 0.02394281366 | R78: ='WACC Calc'!L363 -> 0.02394281366 | S78: ='WACC Calc'!M363 -> 0.02394281366 | T78: ='WACC Calc'!N363 -> 0.02394281366 | U78: ='WACC Calc'!O363 -> 0.02394281366 | V78: ='WACC Calc'!P363 -> 0.02394281366 | W78: ='WACC Calc'!Q363 -> 0.02394281366 | X78: ='WACC Calc'!R363 -> 0.02394281366 | Y78: ='WACC Calc'!S363 -> 0.02394281366 | Z78: ='WACC Calc'!T363 -> 0.02394281366 | AA78: ='WACC Calc'!U363 -> 0.02394281366 | AB78: ='WACC Calc'!V363 -> 0.02394281366 | AC78: ='WACC Calc'!W363 -> 0.02394281366 | AD78: ='WACC Calc'!X363 -> 0.02394281366 | AE78: ='WACC Calc'!Y363 -> 0.02394281366 | AF78: ='WACC Calc'!Z363 -> 0.02394281366 | AG78: ='WACC Calc'!AA363 -> 0.02394281366 | AH78: ='WACC Calc'!AB363 -> 0.02394281366 | AI78: ='WACC Calc'!AC363 -> 0.02394281366 | AJ78: ='WACC Calc'!AD363 -> 0.02394281366 | AK78: ='WACC Calc'!AE363 -> 0.02394281366 | AL78: ='WACC Calc'!AF363 -> 0.02394281366 | AM78: ='WACC Calc'!AG363 -> 0.02394281366 | AN78: ='WACC Calc'!AH363 -> 0.02394281366 | AO78: ='WACC Calc'!AI363 -> 0.02394281366 | AP78: ='WACC Calc'!AJ363 -> 0.02394281366 | AQ78: ='WACC Calc'!AK363 -> 0.02394281366
K79: ='WACC Calc'!B364 -> WACC Real - Moderate | L79: ='WACC Calc'!F364 -> 0.02394281366 | M79: ='WACC Calc'!G364 -> 0.02394281366 | N79: ='WACC Calc'!H364 -> 0.02394281366 | O79: ='WACC Calc'!I364 -> 0.02394281366 | P79: ='WACC Calc'!J364 -> 0.02394281366 | Q79: ='WACC Calc'!K364 -> 0.02394281366 | R79: ='WACC Calc'!L364 -> 0.02394281366 | S79: ='WACC Calc'!M364 -> 0.02394281366 | T79: ='WACC Calc'!N364 -> 0.02394281366 | U79: ='WACC Calc'!O364 -> 0.02394281366 | V79: ='WACC Calc'!P364 -> 0.02394281366 | W79: ='WACC Calc'!Q364 -> 0.02394281366 | X79: ='WACC Calc'!R364 -> 0.02394281366 | Y79: ='WACC Calc'!S364 -> 0.02394281366 | Z79: ='WACC Calc'!T364 -> 0.02394281366 | AA79: ='WACC Calc'!U364 -> 0.02394281366 | AB79: ='WACC Calc'!V364 -> 0.02394281366 | AC79: ='WACC Calc'!W364 -> 0.02394281366 | AD79: ='WACC Calc'!X364 -> 0.02394281366 | AE79: ='WACC Calc'!Y364 -> 0.02394281366 | AF79: ='WACC Calc'!Z364 -> 0.02394281366 | AG79: ='WACC Calc'!AA364 -> 0.02394281366 | AH79: ='WACC Calc'!AB364 -> 0.02394281366 | AI79: ='WACC Calc'!AC364 -> 0.02394281366 | AJ79: ='WACC Calc'!AD364 -> 0.02394281366 | AK79: ='WACC Calc'!AE364 -> 0.02394281366 | AL79: ='WACC Calc'!AF364 -> 0.02394281366 | AM79: ='WACC Calc'!AG364 -> 0.02394281366 | AN79: ='WACC Calc'!AH364 -> 0.02394281366 | AO79: ='WACC Calc'!AI364 -> 0.02394281366 | AP79: ='WACC Calc'!AJ364 -> 0.02394281366 | AQ79: ='WACC Calc'!AK364 -> 0.02394281366
K80: ='WACC Calc'!B365 -> WACC Real - Conservative | L80: ='WACC Calc'!F365 -> 0.02394281366 | M80: ='WACC Calc'!G365 -> 0.02394281366 | N80: ='WACC Calc'!H365 -> 0.02394281366 | O80: ='WACC Calc'!I365 -> 0.02394281366 | P80: ='WACC Calc'!J365 -> 0.02394281366 | Q80: ='WACC Calc'!K365 -> 0.02394281366 | R80: ='WACC Calc'!L365 -> 0.02394281366 | S80: ='WACC Calc'!M365 -> 0.02394281366 | T80: ='WACC Calc'!N365 -> 0.02394281366 | U80: ='WACC Calc'!O365 -> 0.02394281366 | V80: ='WACC Calc'!P365 -> 0.02394281366 | W80: ='WACC Calc'!Q365 -> 0.02394281366 | X80: ='WACC Calc'!R365 -> 0.02394281366 | Y80: ='WACC Calc'!S365 -> 0.02394281366 | Z80: ='WACC Calc'!T365 -> 0.02394281366 | AA80: ='WACC Calc'!U365 -> 0.02394281366 | AB80: ='WACC Calc'!V365 -> 0.02394281366 | AC80: ='WACC Calc'!W365 -> 0.02394281366 | AD80: ='WACC Calc'!X365 -> 0.02394281366 | AE80: ='WACC Calc'!Y365 -> 0.02394281366 | AF80: ='WACC Calc'!Z365 -> 0.02394281366 | AG80: ='WACC Calc'!AA365 -> 0.02394281366 | AH80: ='WACC Calc'!AB365 -> 0.02394281366 | AI80: ='WACC Calc'!AC365 -> 0.02394281366 | AJ80: ='WACC Calc'!AD365 -> 0.02394281366 | AK80: ='WACC Calc'!AE365 -> 0.02394281366 | AL80: ='WACC Calc'!AF365 -> 0.02394281366 | AM80: ='WACC Calc'!AG365 -> 0.02394281366 | AN80: ='WACC Calc'!AH365 -> 0.02394281366 | AO80: ='WACC Calc'!AI365 -> 0.02394281366 | AP80: ='WACC Calc'!AJ365 -> 0.02394281366 | AQ80: ='WACC Calc'!AK365 -> 0.02394281366
K81: Capital Recovery Factor (CRF) Nominal - Low | L81: =L75 / (1 - (1 / (1 + L75)^$N$30)) -> 0.06471175247 | M81: 0.06471175247 | N81: 0.06471175247 | O81: 0.06471175247 | P81: 0.06471175247 | Q81: 0.06471175247 | R81: 0.06471175247 | S81: 0.06471175247 | T81: 0.06471175247 | U81: 0.06471175247 | V81: 0.06471175247 | W81: 0.06471175247 | X81: 0.06471175247 | Y81: 0.06471175247 | Z81: 0.06471175247 | AA81: 0.06471175247 | AB81: 0.06471175247 | AC81: 0.06471175247 | AD81: 0.06471175247 | AE81: 0.06471175247 | AF81: 0.06471175247 | AG81: 0.06471175247 | AH81: 0.06471175247 | AI81: 0.06471175247 | AJ81: 0.06471175247 | AK81: 0.06471175247 | AL81: 0.06471175247 | AM81: 0.06471175247 | AN81: 0.06471175247 | AO81: 0.06471175247 | AP81: 0.06471175247 | AQ81: 0.06471175247
K82: Capital Recovery Factor (CRF) Nominal - Mid | L82: =L76 / (1 - (1 / (1 + L76)^$N$30)) -> 0.06471175247 | M82: 0.06471175247 | N82: 0.06471175247 | O82: 0.06471175247 | P82: 0.06471175247 | Q82: 0.06471175247 | R82: 0.06471175247 | S82: 0.06471175247 | T82: 0.06471175247 | U82: 0.06471175247 | V82: 0.06471175247 | W82: 0.06471175247 | X82: 0.06471175247 | Y82: 0.06471175247 | Z82: 0.06471175247 | AA82: 0.06471175247 | AB82: 0.06471175247 | AC82: 0.06471175247 | AD82: 0.06471175247 | AE82: 0.06471175247 | AF82: 0.06471175247 | AG82: 0.06471175247 | AH82: 0.06471175247 | AI82: 0.06471175247 | AJ82: 0.06471175247 | AK82: 0.06471175247 | AL82: 0.06471175247 | AM82: 0.06471175247 | AN82: 0.06471175247 | AO82: 0.06471175247 | AP82: 0.06471175247 | AQ82: 0.06471175247
K83: Capital Recovery Factor (CRF) Nominal - Conservative | L83: =L77 / (1 - (1 / (1 + L77)^$N$30)) -> 0.06471175247 | M83: 0.06471175247 | N83: 0.06471175247 | O83: 0.06471175247 | P83: 0.06471175247 | Q83: 0.06471175247 | R83: 0.06471175247 | S83: 0.06471175247 | T83: 0.06471175247 | U83: 0.06471175247 | V83: 0.06471175247 | W83: 0.06471175247 | X83: 0.06471175247 | Y83: 0.06471175247 | Z83: 0.06471175247 | AA83: 0.06471175247 | AB83: 0.06471175247 | AC83: 0.06471175247 | AD83: 0.06471175247 | AE83: 0.06471175247 | AF83: 0.06471175247 | AG83: 0.06471175247 | AH83: 0.06471175247 | AI83: 0.06471175247 | AJ83: 0.06471175247 | AK83: 0.06471175247 | AL83: 0.06471175247 | AM83: 0.06471175247 | AN83: 0.06471175247 | AO83: 0.06471175247 | AP83: 0.06471175247 | AQ83: 0.06471175247
K84: Capital Recovery Factor (CRF) Real - Low | L84: =L78 / (1 - (1 / (1 + L78)^$N$30)) -> 0.04710671951 | M84: 0.04710671951 | N84: 0.04710671951 | O84: 0.04710671951 | P84: 0.04710671951 | Q84: 0.04710671951 | R84: 0.04710671951 | S84: 0.04710671951 | T84: 0.04710671951 | U84: 0.04710671951 | V84: 0.04710671951 | W84: 0.04710671951 | X84: 0.04710671951 | Y84: 0.04710671951 | Z84: 0.04710671951 | AA84: 0.04710671951 | AB84: 0.04710671951 | AC84: 0.04710671951 | AD84: 0.04710671951 | AE84: 0.04710671951 | AF84: 0.04710671951 | AG84: 0.04710671951 | AH84: 0.04710671951 | AI84: 0.04710671951 | AJ84: 0.04710671951 | AK84: 0.04710671951 | AL84: 0.04710671951 | AM84: 0.04710671951 | AN84: 0.04710671951 | AO84: 0.04710671951 | AP84: 0.04710671951 | AQ84: 0.04710671951
K85: Capital Recovery Factor (CRF) Real - Mid | L85: =L79 / (1 - (1 / (1 + L79)^$N$30)) -> 0.04710671951 | M85: 0.04710671951 | N85: 0.04710671951 | O85: 0.04710671951 | P85: 0.04710671951 | Q85: 0.04710671951 | R85: 0.04710671951 | S85: 0.04710671951 | T85: 0.04710671951 | U85: 0.04710671951 | V85: 0.04710671951 | W85: 0.04710671951 | X85: 0.04710671951 | Y85: 0.04710671951 | Z85: 0.04710671951 | AA85: 0.04710671951 | AB85: 0.04710671951 | AC85: 0.04710671951 | AD85: 0.04710671951 | AE85: 0.04710671951 | AF85: 0.04710671951 | AG85: 0.04710671951 | AH85: 0.04710671951 | AI85: 0.04710671951 | AJ85: 0.04710671951 | AK85: 0.04710671951 | AL85: 0.04710671951 | AM85: 0.04710671951 | AN85: 0.04710671951 | AO85: 0.04710671951 | AP85: 0.04710671951 | AQ85: 0.04710671951
K86: Capital Recovery Factor (CRF) Real - Conservative | L86: =L80 / (1 - (1 / (1 + L80)^$N$30)) -> 0.04710671951 | M86: 0.04710671951 | N86: 0.04710671951 | O86: 0.04710671951 | P86: 0.04710671951 | Q86: 0.04710671951 | R86: 0.04710671951 | S86: 0.04710671951 | T86: 0.04710671951 | U86: 0.04710671951 | V86: 0.04710671951 | W86: 0.04710671951 | X86: 0.04710671951 | Y86: 0.04710671951 | Z86: 0.04710671951 | AA86: 0.04710671951 | AB86: 0.04710671951 | AC86: 0.04710671951 | AD86: 0.04710671951 | AE86: 0.04710671951 | AF86: 0.04710671951 | AG86: 0.04710671951 | AH86: 0.04710671951 | AI86: 0.04710671951 | AJ86: 0.04710671951 | AK86: 0.04710671951 | AL86: 0.04710671951 | AM86: 0.04710671951 | AN86: 0.04710671951 | AO86: 0.04710671951 | AP86: 0.04710671951 | AQ86: 0.04710671951
D89: X | G89: Future Projections
L90: Base Year
L91: 2019 | M91: 2020 | N91: 2021 | O91: 2022 | P91: 2023 | Q91: 2024 | R91: 2025 | S91: 2026 | T91: 2027 | U91: 2028 | V91: 2029 | W91: 2030 | X91: 2031 | Y91: 2032 | Z91: 2033 | AA91: 2034 | AB91: 2035 | AC91: 2036 | AD91: 2037 | AE91: 2038 | AF91: 2039 | AG91: 2040 | AH91: 2041 | AI91: 2042 | AJ91: 2043 | AK91: 2044 | AL91: 2045 | AM91: 2046 | AN91: 2047 | AO91: 2048 | AP91: 2049 | AQ91: 2050
H92: Techno-Economic Cost and Performance Parameters | J92: Net Capacity Factor (%) | K92: Class 1 - Advanced | L92: 0.501368 | M92: 0.5074763636 | N92: 0.5135847273 | O92: 0.5196930909 | P92: 0.5258014545 | Q92: 0.5319098182 | R92: 0.5380181818 | S92: 0.5441265455 | T92: 0.5502349091 | U92: 0.5563432727 | V92: 0.5624516364 | W92: 0.56856 | X92: 0.56912856 | Y92: 0.56969712 | Z92: 0.57026568 | AA92: 0.57083424 | AB92: 0.5714028 | AC92: 0.57197136 | AD92: 0.57253992 | AE92: 0.57310848 | AF92: 0.57367704 | AG92: 0.5742456 | AH92: 0.57481416 | AI92: 0.57538272 | AJ92: 0.57595128 | AK92: 0.57651984 | AL92: 0.5770884 | AM92: 0.57765696 | AN92: 0.57822552 | AO92: 0.57879408 | AP92: 0.57936264 | AQ92: 0.5799312
K93: Class 1 - Moderate | L93: 0.501368 | M93: 0.5050919091 | N93: 0.5088158182 | O93: 0.5125397273 | P93: 0.5162636364 | Q93: 0.5199875455 | R93: 0.5237114545 | S93: 0.5274353636 | T93: 0.5311592727 | U93: 0.5348831818 | V93: 0.5386070909 | W93: 0.542331 | X93: 0.5426021655 | Y93: 0.542873331 | Z93: 0.5431444965 | AA93: 0.543415662 | AB93: 0.5436868275 | AC93: 0.543957993 | AD93: 0.5442291585 | AE93: 0.544500324 | AF93: 0.5447714895 | AG93: 0.545042655 | AH93: 0.5453138205 | AI93: 0.545584986 | AJ93: 0.5458561515 | AK93: 0.546127317 | AL93: 0.5463984825 | AM93: 0.546669648 | AN93: 0.5469408135 | AO93: 0.547211979 | AP93: 0.5474831445 | AQ93: 0.54775431
K94: Class 1 - Conservative | L94: 0.501368 | M94: 0.5020613636 | N94: 0.5027547273 | O94: 0.5034480909 | P94: 0.5041414545 | Q94: 0.5048348182 | R94: 0.5055281818 | S94: 0.5062215455 | T94: 0.5069149091 | U94: 0.5076082727 | V94: 0.5083016364 | W94: 0.508995 | X94: 0.5091222488 | Y94: 0.5092494975 | Z94: 0.5093767462 | AA94: 0.509503995 | AB94: 0.5096312438 | AC94: 0.5097584925 | AD94: 0.5098857412 | AE94: 0.51001299 | AF94: 0.5101402387 | AG94: 0.5102674875 | AH94: 0.5103947362 | AI94: 0.510521985 | AJ94: 0.5106492337 | AK94: 0.5107764825 | AL94: 0.5109037312 | AM94: 0.51103098 | AN94: 0.5111582287 | AO94: 0.5112854775 | AP94: 0.5114127262 | AQ94: 0.511539975
K95: Class 2 - Advanced | L95: 0.457134 | M95: 0.4633390909 | N95: 0.4695441818 | O95: 0.4757492727 | P95: 0.4819543636 | Q95: 0.4881594545 | R95: 0.4943645455 | S95: 0.5005696364 | T95: 0.5067747273 | U95: 0.5129798182 | V95: 0.5191849091 | W95: 0.52539 | X95: 0.526178085 | Y95: 0.52696617 | Z95: 0.527754255 | AA95: 0.52854234 | AB95: 0.529330425 | AC95: 0.53011851 | AD95: 0.530906595 | AE95: 0.53169468 | AF95: 0.532482765 | AG95: 0.53327085 | AH95: 0.534058935 | AI95: 0.53484702 | AJ95: 0.535635105 | AK95: 0.53642319 | AL95: 0.537211275 | AM95: 0.53799936 | AN95: 0.538787445 | AO95: 0.53957553 | AP95: 0.540363615 | AQ95: 0.5411517
K96: Class 2 - Moderate | L96: 0.457134 | M96: 0.4608921818 | N96: 0.4646503636 | O96: 0.4684085455 | P96: 0.4721667273 | Q96: 0.4759249091 | R96: 0.4796830909 | S96: 0.4834412727 | T96: 0.4871994545 | U96: 0.4909576364 | V96: 0.4947158182 | W96: 0.498474 | X96: 0.4988478555 | Y96: 0.499221711 | Z96: 0.4995955665 | AA96: 0.499969422 | AB96: 0.5003432775 | AC96: 0.500717133 | AD96: 0.5010909885 | AE96: 0.501464844 | AF96: 0.5018386995 | AG96: 0.502212555 | AH96: 0.5025864105 | AI96: 0.502960266 | AJ96: 0.5033341215 | AK96: 0.503707977 | AL96: 0.5040818325 | AM96: 0.504455688 | AN96: 0.5048295435 | AO96: 0.505203399 | AP96: 0.5055772545 | AQ96: 0.50595111
K97: Class 2 - Conservative | L97: 0.457134 | M97: 0.4580005455 | N97: 0.4588670909 | O97: 0.4597336364 | P97: 0.4606001818 | Q97: 0.4614667273 | R97: 0.4623332727 | S97: 0.4631998182 | T97: 0.4640663636 | U97: 0.4649329091 | V97: 0.4657994545 | W97: 0.466666 | X97: 0.4668409998 | Y97: 0.4670159995 | Z97: 0.4671909992 | AA97: 0.467365999 | AB97: 0.4675409987 | AC97: 0.4677159985 | AD97: 0.4678909983 | AE97: 0.468065998 | AF97: 0.4682409978 | AG97: 0.4684159975 | AH97: 0.4685909973 | AI97: 0.468765997 | AJ97: 0.4689409968 | AK97: 0.4691159965 | AL97: 0.4692909962 | AM97: 0.469465996 | AN97: 0.4696409958 | AO97: 0.4698159955 | AP97: 0.4699909953 | AQ97: 0.470165995
K98: Class 3 - Advanced | L98: 0.443267 | M98: 0.4494685455 | N98: 0.4556700909 | O98: 0.4618716364 | P98: 0.4680731818 | Q98: 0.4742747273 | R98: 0.4804762727 | S98: 0.4866778182 | T98: 0.4928793636 | U98: 0.4990809091 | V98: 0.5052824545 | W98: 0.511484 | X98: 0.512506968 | Y98: 0.513529936 | Z98: 0.514552904 | AA98: 0.515575872 | AB98: 0.51659884 | AC98: 0.517621808 | AD98: 0.518644776 | AE98: 0.519667744 | AF98: 0.520690712 | AG98: 0.52171368 | AH98: 0.522736648 | AI98: 0.523759616 | AJ98: 0.524782584 | AK98: 0.525805552 | AL98: 0.52682852 | AM98: 0.527851488 | AN98: 0.528874456 | AO98: 0.529897424 | AP98: 0.530920392 | AQ98: 0.53194336
K99: Class 3 - Moderate | L99: 0.443267 | M99: 0.4470305455 | N99: 0.4507940909 | O99: 0.4545576364 | P99: 0.4583211818 | Q99: 0.4620847273 | R99: 0.4658482727 | S99: 0.4696118182 | T99: 0.4733753636 | U99: 0.4771389091 | V99: 0.4809024545 | W99: 0.484666 | X99: 0.485150666 | Y99: 0.485635332 | Z99: 0.486119998 | AA99: 0.486604664 | AB99: 0.48708933 | AC99: 0.487573996 | AD99: 0.488058662 | AE99: 0.488543328 | AF99: 0.489027994 | AG99: 0.48951266 | AH99: 0.489997326 | AI99: 0.490481992 | AJ99: 0.490966658 | AK99: 0.491451324 | AL99: 0.49193599 | AM99: 0.492420656 | AN99: 0.492905322 | AO99: 0.493389988 | AP99: 0.493874654 | AQ99: 0.49435932
K100: Class 3 - Conservative | L100: 0.443267 | M100: 0.4441845455 | N100: 0.4451020909 | O100: 0.4460196364 | P100: 0.4469371818 | Q100: 0.4478547273 | R100: 0.4487722727 | S100: 0.4496898182 | T100: 0.4506073636 | U100: 0.4515249091 | V100: 0.4524424545 | W100: 0.45336 | X100: 0.45358668 | Y100: 0.45381336 | Z100: 0.45404004 | AA100: 0.45426672 | AB100: 0.4544934 | AC100: 0.45472008 | AD100: 0.45494676 | AE100: 0.45517344 | AF100: 0.45540012 | AG100: 0.4556268 | AH100: 0.45585348 | AI100: 0.45608016 | AJ100: 0.45630684 | AK100: 0.45653352 | AL100: 0.4567602 | AM100: 0.45698688 | AN100: 0.45721356 | AO100: 0.45744024 | AP100: 0.45766692 | AQ100: 0.4578936
K101: Class 4 - Advanced | L101: 0.42975 | M101: 0.4359086364 | N101: 0.4420672727 | O101: 0.4482259091 | P101: 0.4543845455 | Q101: 0.4605431818 | R101: 0.4667018182 | S101: 0.4728604545 | T101: 0.4790190909 | U101: 0.4851777273 | V101: 0.4913363636 | W101: 0.497495 | X101: 0.4987387375 | Y101: 0.499982475 | Z101: 0.5012262125 | AA101: 0.50246995 | AB101: 0.5037136875 | AC101: 0.504957425 | AD101: 0.5062011625 | AE101: 0.5074449 | AF101: 0.5086886375 | AG101: 0.509932375 | AH101: 0.5111761125 | AI101: 0.51241985 | AJ101: 0.5136635875 | AK101: 0.514907325 | AL101: 0.5161510625 | AM101: 0.5173948 | AN101: 0.5186385375 | AO101: 0.519882275 | AP101: 0.5211260125 | AQ101: 0.52236975
K102: Class 4 - Moderate | L102: 0.42975 | M102: 0.4334643636 | N102: 0.4371787273 | O102: 0.4408930909 | P102: 0.4446074545 | Q102: 0.4483218182 | R102: 0.4520361818 | S102: 0.4557505455 | T102: 0.4594649091 | U102: 0.4631792727 | V102: 0.4668936364 | W102: 0.470608 | X102: 0.47119626 | Y102: 0.47178452 | Z102: 0.47237278 | AA102: 0.47296104 | AB102: 0.4735493 | AC102: 0.47413756 | AD102: 0.47472582 | AE102: 0.47531408 | AF102: 0.47590234 | AG102: 0.4764906 | AH102: 0.47707886 | AI102: 0.47766712 | AJ102: 0.47825538 | AK102: 0.47884364 | AL102: 0.4794319 | AM102: 0.48002016 | AN102: 0.48060842 | AO102: 0.48119668 | AP102: 0.48178494 | AQ102: 0.4823732
K103: Class 4 - Conservative | L103: 0.42975 | M103: 0.4306817273 | N103: 0.4316134545 | O103: 0.4325451818 | P103: 0.4334769091 | Q103: 0.4344086364 | R103: 0.4353403636 | S103: 0.4362720909 | T103: 0.4372038182 | U103: 0.4381355455 | V103: 0.4390672727 | W103: 0.439999 | X103: 0.4402739994 | Y103: 0.4405489987 | Z103: 0.4408239981 | AA103: 0.4410989975 | AB103: 0.4413739969 | AC103: 0.4416489962 | AD103: 0.4419239956 | AE103: 0.442198995 | AF103: 0.4424739944 | AG103: 0.4427489937 | AH103: 0.4430239931 | AI103: 0.4432989925 | AJ103: 0.4435739919 | AK103: 0.4438489912 | AL103: 0.4441239906 | AM103: 0.44439899 | AN103: 0.4446739894 | AO103: 0.4449489887 | AP103: 0.4452239881 | AQ103: 0.4454989875
K104: Class 5 - Advanced | L104: 0.412909 | M104: 0.4189967273 | N104: 0.4250844545 | O104: 0.4311721818 | P104: 0.4372599091 | Q104: 0.4433476364 | R104: 0.4494353636 | S104: 0.4555230909 | T104: 0.4616108182 | U104: 0.4676985455 | V104: 0.4737862727 | W104: 0.479874 | X104: 0.481313622 | Y104: 0.482753244 | Z104: 0.484192866 | AA104: 0.485632488 | AB104: 0.48707211 | AC104: 0.488511732 | AD104: 0.489951354 | AE104: 0.491390976 | AF104: 0.492830598 | AG104: 0.49427022 | AH104: 0.495709842 | AI104: 0.497149464 | AJ104: 0.498589086 | AK104: 0.500028708 | AL104: 0.50146833 | AM104: 0.502907952 | AN104: 0.504347574 | AO104: 0.505787196 | AP104: 0.507226818 | AQ104: 0.50866644
K105: Class 5 - Moderate | L105: 0.412909 | M105: 0.4165595455 | N105: 0.4202100909 | O105: 0.4238606364 | P105: 0.4275111818 | Q105: 0.4311617273 | R105: 0.4348122727 | S105: 0.4384628182 | T105: 0.4421133636 | U105: 0.4457639091 | V105: 0.4494144545 | W105: 0.453065 | X105: 0.4537445975 | Y105: 0.454424195 | Z105: 0.4551037925 | AA105: 0.45578339 | AB105: 0.4564629875 | AC105: 0.457142585 | AD105: 0.4578221825 | AE105: 0.45850178 | AF105: 0.4591813775 | AG105: 0.459860975 | AH105: 0.4605405725 | AI105: 0.46122017 | AJ105: 0.4618997675 | AK105: 0.462579365 | AL105: 0.4632589625 | AM105: 0.46393856 | AN105: 0.4646181575 | AO105: 0.465297755 | AP105: 0.4659773525 | AQ105: 0.46665695
K106: Class 5 - Conservative | L106: 0.412909 | M106: 0.413857 | N106: 0.414805 | O106: 0.415753 | P106: 0.416701 | Q106: 0.417649 | R106: 0.418597 | S106: 0.419545 | T106: 0.420493 | U106: 0.421441 | V106: 0.422389 | W106: 0.423337 | X106: 0.4236545027 | Y106: 0.4239720055 | Z106: 0.4242895083 | AA106: 0.424607011 | AB106: 0.4249245138 | AC106: 0.4252420165 | AD106: 0.4255595192 | AE106: 0.425877022 | AF106: 0.4261945247 | AG106: 0.4265120275 | AH106: 0.4268295303 | AI106: 0.427147033 | AJ106: 0.4274645357 | AK106: 0.4277820385 | AL106: 0.4280995413 | AM106: 0.428417044 | AN106: 0.4287345468 | AO106: 0.4290520495 | AP106: 0.4293695523 | AQ106: 0.429687055
K107: Class 6 - Advanced | L107: 0.38662 | M107: 0.3925860909 | N107: 0.3985521818 | O107: 0.4045182727 | P107: 0.4104843636 | Q107: 0.4164504545 | R107: 0.4224165455 | S107: 0.4283826364 | T107: 0.4343487273 | U107: 0.4403148182 | V107: 0.4462809091 | W107: 0.452247 | X107: 0.4538298645 | Y107: 0.455412729 | Z107: 0.4569955935 | AA107: 0.458578458 | AB107: 0.4601613225 | AC107: 0.461744187 | AD107: 0.4633270515 | AE107: 0.464909916 | AF107: 0.4664927805 | AG107: 0.468075645 | AH107: 0.4696585095 | AI107: 0.471241374 | AJ107: 0.4728242385 | AK107: 0.474407103 | AL107: 0.4759899675 | AM107: 0.477572832 | AN107: 0.4791556965 | AO107: 0.480738561 | AP107: 0.4823214255 | AQ107: 0.48390429
K108: Class 6 - Moderate | L108: 0.38662 | M108: 0.3905452727 | N108: 0.3944705455 | O108: 0.3983958182 | P108: 0.4023210909 | Q108: 0.4062463636 | R108: 0.4101716364 | S108: 0.4140969091 | T108: 0.4180221818 | U108: 0.4219474545 | V108: 0.4258727273 | W108: 0.429798 | X108: 0.4305501465 | Y108: 0.431302293 | Z108: 0.4320544395 | AA108: 0.432806586 | AB108: 0.4335587325 | AC108: 0.434310879 | AD108: 0.4350630255 | AE108: 0.435815172 | AF108: 0.4365673185 | AG108: 0.437319465 | AH108: 0.4380716115 | AI108: 0.438823758 | AJ108: 0.4395759045 | AK108: 0.440328051 | AL108: 0.4410801975 | AM108: 0.441832344 | AN108: 0.4425844905 | AO108: 0.443336637 | AP108: 0.4440887835 | AQ108: 0.44484093
K109: Class 6 - Conservative | L109: 0.38662 | M109: 0.3876024545 | N109: 0.3885849091 | O109: 0.3895673636 | P109: 0.3905498182 | Q109: 0.3915322727 | R109: 0.3925147273 | S109: 0.3934971818 | T109: 0.3944796364 | U109: 0.3954620909 | V109: 0.3964445455 | W109: 0.397427 | X109: 0.3977747486 | Y109: 0.3981224972 | Z109: 0.3984702459 | AA109: 0.3988179945 | AB109: 0.3991657431 | AC109: 0.3995134917 | AD109: 0.3998612404 | AE109: 0.400208989 | AF109: 0.4005567376 | AG109: 0.4009044862 | AH109: 0.4012522349 | AI109: 0.4015999835 | AJ109: 0.4019477321 | AK109: 0.4022954807 | AL109: 0.4026432294 | AM109: 0.402990978 | AN109: 0.4033387266 | AO109: 0.4036864752 | AP109: 0.4040342239 | AQ109: 0.4043819725
K110: Class 7 - Advanced | L110: 0.352304 | M110: 0.3580465455 | N110: 0.3637890909 | O110: 0.3695316364 | P110: 0.3752741818 | Q110: 0.3810167273 | R110: 0.3867592727 | S110: 0.3925018182 | T110: 0.3982443636 | U110: 0.4039869091 | V110: 0.4097294545 | W110: 0.415472 | X110: 0.417133888 | Y110: 0.418795776 | Z110: 0.420457664 | AA110: 0.422119552 | AB110: 0.42378144 | AC110: 0.425443328 | AD110: 0.427105216 | AE110: 0.428767104 | AF110: 0.430428992 | AG110: 0.43209088 | AH110: 0.433752768 | AI110: 0.435414656 | AJ110: 0.437076544 | AK110: 0.438738432 | AL110: 0.44040032 | AM110: 0.442062208 | AN110: 0.443724096 | AO110: 0.445385984 | AP110: 0.447047872 | AQ110: 0.44870976
K111: Class 7 - Moderate | L111: 0.352304 | M111: 0.3557054545 | N111: 0.3591069091 | O111: 0.3625083636 | P111: 0.3659098182 | Q111: 0.3693112727 | R111: 0.3727127273 | S111: 0.3761141818 | T111: 0.3795156364 | U111: 0.3829170909 | V111: 0.3863185455 | W111: 0.38972 | X111: 0.39049944 | Y111: 0.39127888 | Z111: 0.39205832 | AA111: 0.39283776 | AB111: 0.3936172 | AC111: 0.39439664 | AD111: 0.39517608 | AE111: 0.39595552 | AF111: 0.39673496 | AG111: 0.3975144 | AH111: 0.39829384 | AI111: 0.39907328 | AJ111: 0.39985272 | AK111: 0.40063216 | AL111: 0.4014116 | AM111: 0.40219104 | AN111: 0.40297048 | AO111: 0.40374992 | AP111: 0.40452936 | AQ111: 0.4053088
K112: Class 7 - Conservative | L112: 0.352304 | M112: 0.3533057273 | N112: 0.3543074545 | O112: 0.3553091818 | P112: 0.3563109091 | Q112: 0.3573126364 | R112: 0.3583143636 | S112: 0.3593160909 | T112: 0.3603178182 | U112: 0.3613195455 | V112: 0.3623212727 | W112: 0.363323 | X112: 0.363686323 | Y112: 0.364049646 | Z112: 0.364412969 | AA112: 0.364776292 | AB112: 0.365139615 | AC112: 0.365502938 | AD112: 0.365866261 | AE112: 0.366229584 | AF112: 0.366592907 | AG112: 0.36695623 | AH112: 0.367319553 | AI112: 0.367682876 | AJ112: 0.368046199 | AK112: 0.368409522 | AL112: 0.368772845 | AM112: 0.369136168 | AN112: 0.369499491 | AO112: 0.369862814 | AP112: 0.370226137 | AQ112: 0.37058946
K113: Class 8 - Advanced | L113: 0.311036 | M113: 0.3164511818 | N113: 0.3218663636 | O113: 0.3272815455 | P113: 0.3326967273 | Q113: 0.3381119091 | R113: 0.3435270909 | S113: 0.3489422727 | T113: 0.3543574545 | U113: 0.3597726364 | V113: 0.3651878182 | W113: 0.370603 | X113: 0.3722707135 | Y113: 0.373938427 | Z113: 0.3756061405 | AA113: 0.377273854 | AB113: 0.3789415675 | AC113: 0.380609281 | AD113: 0.3822769945 | AE113: 0.383944708 | AF113: 0.3856124215 | AG113: 0.387280135 | AH113: 0.3889478485 | AI113: 0.390615562 | AJ113: 0.3922832755 | AK113: 0.393950989 | AL113: 0.3956187025 | AM113: 0.397286416 | AN113: 0.3989541295 | AO113: 0.400621843 | AP113: 0.4022895565 | AQ113: 0.40395727
K114: Class 8 - Moderate | L114: 0.311036 | M114: 0.3142136364 | N114: 0.3173912727 | O114: 0.3205689091 | P114: 0.3237465455 | Q114: 0.3269241818 | R114: 0.3301018182 | S114: 0.3332794545 | T114: 0.3364570909 | U114: 0.3396347273 | V114: 0.3428123636 | W114: 0.34599 | X114: 0.3467684775 | Y114: 0.347546955 | Z114: 0.3483254325 | AA114: 0.34910391 | AB114: 0.3498823875 | AC114: 0.350660865 | AD114: 0.3514393425 | AE114: 0.35221782 | AF114: 0.3529962975 | AG114: 0.353774775 | AH114: 0.3545532525 | AI114: 0.35533173 | AJ114: 0.3561102075 | AK114: 0.356888685 | AL114: 0.3576671625 | AM114: 0.35844564 | AN114: 0.3592241175 | AO114: 0.360002595 | AP114: 0.3607810725 | AQ114: 0.36155955
K115: Class 8 - Conservative | L115: 0.311036 | M115: 0.3120332727 | N115: 0.3130305455 | O115: 0.3140278182 | P115: 0.3150250909 | Q115: 0.3160223636 | R115: 0.3170196364 | S115: 0.3180169091 | T115: 0.3190141818 | U115: 0.3200114545 | V115: 0.3210087273 | W115: 0.322006 | X115: 0.3223682568 | Y115: 0.3227305135 | Z115: 0.3230927703 | AA115: 0.323455027 | AB115: 0.3238172838 | AC115: 0.3241795405 | AD115: 0.3245417973 | AE115: 0.324904054 | AF115: 0.3252663108 | AG115: 0.3256285675 | AH115: 0.3259908243 | AI115: 0.326353081 | AJ115: 0.3267153378 | AK115: 0.3270775945 | AL115: 0.3274398513 | AM115: 0.327802108 | AN115: 0.3281643647 | AO115: 0.3285266215 | AP115: 0.3288888783 | AQ115: 0.329251135
K116: Class 9 - Advanced | L116: 0.265759 | M116: 0.2707379091 | N116: 0.2757168182 | O116: 0.2806957273 | P116: 0.2856746364 | Q116: 0.2906535455 | R116: 0.2956324545 | S116: 0.3006113636 | T116: 0.3055902727 | U116: 0.3105691818 | V116: 0.3155480909 | W116: 0.320527 | X116: 0.322129635 | Y116: 0.32373227 | Z116: 0.325334905 | AA116: 0.32693754 | AB116: 0.328540175 | AC116: 0.33014281 | AD116: 0.331745445 | AE116: 0.33334808 | AF116: 0.334950715 | AG116: 0.33655335 | AH116: 0.338155985 | AI116: 0.33975862 | AJ116: 0.341361255 | AK116: 0.34296389 | AL116: 0.344566525 | AM116: 0.34616916 | AN116: 0.347771795 | AO116: 0.34937443 | AP116: 0.350977065 | AQ116: 0.3525797
K117: Class 9 - Moderate | L117: 0.265759 | M117: 0.2686503636 | N117: 0.2715417273 | O117: 0.2744330909 | P117: 0.2773244545 | Q117: 0.2802158182 | R117: 0.2831071818 | S117: 0.2859985455 | T117: 0.2888899091 | U117: 0.2917812727 | V117: 0.2946726364 | W117: 0.297564 | X117: 0.29830791 | Y117: 0.29905182 | Z117: 0.29979573 | AA117: 0.30053964 | AB117: 0.30128355 | AC117: 0.30202746 | AD117: 0.30277137 | AE117: 0.30351528 | AF117: 0.30425919 | AG117: 0.3050031 | AH117: 0.30574701 | AI117: 0.30649092 | AJ117: 0.30723483 | AK117: 0.30797874 | AL117: 0.30872265 | AM117: 0.30946656 | AN117: 0.31021047 | AO117: 0.31095438 | AP117: 0.31169829 | AQ117: 0.3124422
K118: Class 9 - Conservative | L118: 0.265759 | M118: 0.266724 | N118: 0.267689 | O118: 0.268654 | P118: 0.269619 | Q118: 0.270584 | R118: 0.271549 | S118: 0.272514 | T118: 0.273479 | U118: 0.274444 | V118: 0.275409 | W118: 0.276374 | X118: 0.2767194675 | Y118: 0.277064935 | Z118: 0.2774104025 | AA118: 0.27775587 | AB118: 0.2781013375 | AC118: 0.278446805 | AD118: 0.2787922725 | AE118: 0.27913774 | AF118: 0.2794832075 | AG118: 0.279828675 | AH118: 0.2801741425 | AI118: 0.28051961 | AJ118: 0.2808650775 | AK118: 0.281210545 | AL118: 0.2815560125 | AM118: 0.28190148 | AN118: 0.2822469475 | AO118: 0.282592415 | AP118: 0.2829378825 | AQ118: 0.28328335
K119: Class 10 - Advanced | L119: 0.164841 | M119: 0.1685162727 | N119: 0.1721915455 | O119: 0.1758668182 | P119: 0.1795420909 | Q119: 0.1832173636 | R119: 0.1868926364 | S119: 0.1905679091 | T119: 0.1942431818 | U119: 0.1979184545 | V119: 0.2015937273 | W119: 0.205269 | X119: 0.2063979795 | Y119: 0.207526959 | Z119: 0.2086559385 | AA119: 0.209784918 | AB119: 0.2109138975 | AC119: 0.212042877 | AD119: 0.2131718565 | AE119: 0.214300836 | AF119: 0.2154298155 | AG119: 0.216558795 | AH119: 0.2176877745 | AI119: 0.218816754 | AJ119: 0.2199457335 | AK119: 0.221074713 | AL119: 0.2222036925 | AM119: 0.223332672 | AN119: 0.2244616515 | AO119: 0.225590631 | AP119: 0.2267196105 | AQ119: 0.22784859
K120: Class 10 - Moderate | L120: 0.164841 | M120: 0.1669329091 | N120: 0.1690248182 | O120: 0.1711167273 | P120: 0.1732086364 | Q120: 0.1753005455 | R120: 0.1773924545 | S120: 0.1794843636 | T120: 0.1815762727 | U120: 0.1836681818 | V120: 0.1857600909 | W120: 0.187852 | X120: 0.188368593 | Y120: 0.188885186 | Z120: 0.189401779 | AA120: 0.189918372 | AB120: 0.190434965 | AC120: 0.190951558 | AD120: 0.191468151 | AE120: 0.191984744 | AF120: 0.192501337 | AG120: 0.19301793 | AH120: 0.193534523 | AI120: 0.194051116 | AJ120: 0.194567709 | AK120: 0.195084302 | AL120: 0.195600895 | AM120: 0.196117488 | AN120: 0.196634081 | AO120: 0.197150674 | AP120: 0.197667267 | AQ120: 0.19818386
K121: Class 10 - Conservative | L121: 0.164841 | M121: 0.1656303636 | N121: 0.1664197273 | O121: 0.1672090909 | P121: 0.1679984545 | Q121: 0.1687878182 | R121: 0.1695771818 | S121: 0.1703665455 | T121: 0.1711559091 | U121: 0.1719452727 | V121: 0.1727346364 | W121: 0.173524 | X121: 0.1737625955 | Y121: 0.174001191 | Z121: 0.1742397865 | AA121: 0.174478382 | AB121: 0.1747169775 | AC121: 0.174955573 | AD121: 0.1751941685 | AE121: 0.175432764 | AF121: 0.1756713595 | AG121: 0.175909955 | AH121: 0.1761485505 | AI121: 0.176387146 | AJ121: 0.1766257415 | AK121: 0.176864337 | AL121: 0.1771029325 | AM121: 0.177341528 | AN121: 0.1775801235 | AO121: 0.177818719 | AP121: 0.1780573145 | AQ121: 0.17829591
L123: 2019 | M123: 2020 | N123: 2021 | O123: 2022 | P123: 2023 | Q123: 2024 | R123: 2025 | S123: 2026 | T123: 2027 | U123: 2028 | V123: 2029 | W123: 2030 | X123: 2031 | Y123: 2032 | Z123: 2033 | AA123: 2034 | AB123: 2035 | AC123: 2036 | AD123: 2037 | AE123: 2038 | AF123: 2039 | AG123: 2040 | AH123: 2041 | AI123: 2042 | AJ123: 2043 | AK123: 2044 | AL123: 2045 | AM123: 2046 | AN123: 2047 | AO123: 2048 | AP123: 2049 | AQ123: 2050
J124: Annual Energy Production (kWh/kW) | K124: Class 1 - Advanced | L124: =(L92)*8760 -> 4391.98368 | M124: 4445.492945 | N124: 4499.002211 | O124: 4552.511476 | P124: 4606.020742 | Q124: 4659.530007 | R124: 4713.039273 | S124: 4766.548538 | T124: 4820.057804 | U124: 4873.567069 | V124: 4927.076335 | W124: 4980.5856 | X124: 4985.566186 | Y124: 4990.546771 | Z124: 4995.527357 | AA124: 5000.507942 | AB124: 5005.488528 | AC124: 5010.469114 | AD124: 5015.449699 | AE124: 5020.430285 | AF124: 5025.41087 | AG124: 5030.391456 | AH124: 5035.372042 | AI124: 5040.352627 | AJ124: 5045.333213 | AK124: 5050.313798 | AL124: 5055.294384 | AM124: 5060.27497 | AN124: 5065.255555 | AO124: 5070.236141 | AP124: 5075.216726 | AQ124: 5080.197312
K125: Class 1 - Moderate | L125: =(L93)*8760 -> 4391.98368 | M125: 4424.605124 | N125: 4457.226567 | O125: 4489.848011 | P125: 4522.469455 | Q125: 4555.090898 | R125: 4587.712342 | S125: 4620.333785 | T125: 4652.955229 | U125: 4685.576673 | V125: 4718.198116 | W125: 4750.81956 | X125: 4753.19497 | Y125: 4755.57038 | Z125: 4757.945789 | AA125: 4760.321199 | AB125: 4762.696609 | AC125: 4765.072019 | AD125: 4767.447428 | AE125: 4769.822838 | AF125: 4772.198248 | AG125: 4774.573658 | AH125: 4776.949068 | AI125: 4779.324477 | AJ125: 4781.699887 | AK125: 4784.075297 | AL125: 4786.450707 | AM125: 4788.826116 | AN125: 4791.201526 | AO125: 4793.576936 | AP125: 4795.952346 | AQ125: 4798.327756
K126: Class 1 - Conservative | L126: =(L94)*8760 -> 4391.98368 | M126: 4398.057545 | N126: 4404.131411 | O126: 4410.205276 | P126: 4416.279142 | Q126: 4422.353007 | R126: 4428.426873 | S126: 4434.500738 | T126: 4440.574604 | U126: 4446.648469 | V126: 4452.722335 | W126: 4458.7962 | X126: 4459.910899 | Y126: 4461.025598 | Z126: 4462.140297 | AA126: 4463.254996 | AB126: 4464.369695 | AC126: 4465.484394 | AD126: 4466.599093 | AE126: 4467.713792 | AF126: 4468.828491 | AG126: 4469.94319 | AH126: 4471.05789 | AI126: 4472.172589 | AJ126: 4473.287288 | AK126: 4474.401987 | AL126: 4475.516686 | AM126: 4476.631385 | AN126: 4477.746084 | AO126: 4478.860783 | AP126: 4479.975482 | AQ126: 4481.090181
K127: Class 2 - Advanced | L127: =(L95)*8760 -> 4004.49384 | M127: 4058.850436 | N127: 4113.207033 | O127: 4167.563629 | P127: 4221.920225 | Q127: 4276.276822 | R127: 4330.633418 | S127: 4384.990015 | T127: 4439.346611 | U127: 4493.703207 | V127: 4548.059804 | W127: 4602.4164 | X127: 4609.320025 | Y127: 4616.223649 | Z127: 4623.127274 | AA127: 4630.030898 | AB127: 4636.934523 | AC127: 4643.838148 | AD127: 4650.741772 | AE127: 4657.645397 | AF127: 4664.549021 | AG127: 4671.452646 | AH127: 4678.356271 | AI127: 4685.259895 | AJ127: 4692.16352 | AK127: 4699.067144 | AL127: 4705.970769 | AM127: 4712.874394 | AN127: 4719.778018 | AO127: 4726.681643 | AP127: 4733.585267 | AQ127: 4740.488892
K128: Class 2 - Moderate | L128: =(L96)*8760 -> 4004.49384 | M128: 4037.415513 | N128: 4070.337185 | O128: 4103.258858 | P128: 4136.180531 | Q128: 4169.102204 | R128: 4202.023876 | S128: 4234.945549 | T128: 4267.867222 | U128: 4300.788895 | V128: 4333.710567 | W128: 4366.63224 | X128: 4369.907214 | Y128: 4373.182188 | Z128: 4376.457163 | AA128: 4379.732137 | AB128: 4383.007111 | AC128: 4386.282085 | AD128: 4389.557059 | AE128: 4392.832033 | AF128: 4396.107008 | AG128: 4399.381982 | AH128: 4402.656956 | AI128: 4405.93193 | AJ128: 4409.206904 | AK128: 4412.481879 | AL128: 4415.756853 | AM128: 4419.031827 | AN128: 4422.306801 | AO128: 4425.581775 | AP128: 4428.856749 | AQ128: 4432.131724
K129: Class 2 - Conservative | L129: =(L97)*8760 -> 4004.49384 | M129: 4012.084778 | N129: 4019.675716 | O129: 4027.266655 | P129: 4034.857593 | Q129: 4042.448531 | R129: 4050.039469 | S129: 4057.630407 | T129: 4065.221345 | U129: 4072.812284 | V129: 4080.403222 | W129: 4087.99416 | X129: 4089.527158 | Y129: 4091.060156 | Z129: 4092.593153 | AA129: 4094.126151 | AB129: 4095.659149 | AC129: 4097.192147 | AD129: 4098.725145 | AE129: 4100.258142 | AF129: 4101.79114 | AG129: 4103.324138 | AH129: 4104.857136 | AI129: 4106.390134 | AJ129: 4107.923132 | AK129: 4109.456129 | AL129: 4110.989127 | AM129: 4112.522125 | AN129: 4114.055123 | AO129: 4115.588121 | AP129: 4117.121118 | AQ129: 4118.654116
K130: Class 3 - Advanced | L130: =(L98)*8760 -> 3883.01892 | M130: 3937.344458 | N130: 3991.669996 | O130: 4045.995535 | P130: 4100.321073 | Q130: 4154.646611 | R130: 4208.972149 | S130: 4263.297687 | T130: 4317.623225 | U130: 4371.948764 | V130: 4426.274302 | W130: 4480.59984 | X130: 4489.56104 | Y130: 4498.522239 | Z130: 4507.483439 | AA130: 4516.444639 | AB130: 4525.405838 | AC130: 4534.367038 | AD130: 4543.328238 | AE130: 4552.289437 | AF130: 4561.250637 | AG130: 4570.211837 | AH130: 4579.173036 | AI130: 4588.134236 | AJ130: 4597.095436 | AK130: 4606.056636 | AL130: 4615.017835 | AM130: 4623.979035 | AN130: 4632.940235 | AO130: 4641.901434 | AP130: 4650.862634 | AQ130: 4659.823834
K131: Class 3 - Moderate | L131: =(L99)*8760 -> 3883.01892 | M131: 3915.987578 | N131: 3948.956236 | O131: 3981.924895 | P131: 4014.893553 | Q131: 4047.862211 | R131: 4080.830869 | S131: 4113.799527 | T131: 4146.768185 | U131: 4179.736844 | V131: 4212.705502 | W131: 4245.67416 | X131: 4249.919834 | Y131: 4254.165508 | Z131: 4258.411182 | AA131: 4262.656857 | AB131: 4266.902531 | AC131: 4271.148205 | AD131: 4275.393879 | AE131: 4279.639553 | AF131: 4283.885227 | AG131: 4288.130902 | AH131: 4292.376576 | AI131: 4296.62225 | AJ131: 4300.867924 | AK131: 4305.113598 | AL131: 4309.359272 | AM131: 4313.604947 | AN131: 4317.850621 | AO131: 4322.096295 | AP131: 4326.341969 | AQ131: 4330.587643
K132: Class 3 - Conservative | L132: =(L100)*8760 -> 3883.01892 | M132: 3891.056618 | N132: 3899.094316 | O132: 3907.132015 | P132: 3915.169713 | Q132: 3923.207411 | R132: 3931.245109 | S132: 3939.282807 | T132: 3947.320505 | U132: 3955.358204 | V132: 3963.395902 | W132: 3971.4336 | X132: 3973.419317 | Y132: 3975.405034 | Z132: 3977.39075 | AA132: 3979.376467 | AB132: 3981.362184 | AC132: 3983.347901 | AD132: 3985.333618 | AE132: 3987.319334 | AF132: 3989.305051 | AG132: 3991.290768 | AH132: 3993.276485 | AI132: 3995.262202 | AJ132: 3997.247918 | AK132: 3999.233635 | AL132: 4001.219352 | AM132: 4003.205069 | AN132: 4005.190786 | AO132: 4007.176502 | AP132: 4009.162219 | AQ132: 4011.147936
K133: Class 4 - Advanced | L133: =(L101)*8760 -> 3764.61 | M133: 3818.559655 | N133: 3872.509309 | O133: 3926.458964 | P133: 3980.408618 | Q133: 4034.358273 | R133: 4088.307927 | S133: 4142.257582 | T133: 4196.207236 | U133: 4250.156891 | V133: 4304.106545 | W133: 4358.0562 | X133: 4368.95134 | Y133: 4379.846481 | Z133: 4390.741622 | AA133: 4401.636762 | AB133: 4412.531903 | AC133: 4423.427043 | AD133: 4434.322184 | AE133: 4445.217324 | AF133: 4456.112464 | AG133: 4467.007605 | AH133: 4477.902746 | AI133: 4488.797886 | AJ133: 4499.693027 | AK133: 4510.588167 | AL133: 4521.483307 | AM133: 4532.378448 | AN133: 4543.273589 | AO133: 4554.168729 | AP133: 4565.06387 | AQ133: 4575.95901
K134: Class 4 - Moderate | L134: =(L102)*8760 -> 3764.61 | M134: 3797.147825 | N134: 3829.685651 | O134: 3862.223476 | P134: 3894.761302 | Q134: 3927.299127 | R134: 3959.836953 | S134: 3992.374778 | T134: 4024.912604 | U134: 4057.450429 | V134: 4089.988255 | W134: 4122.52608 | X134: 4127.679238 | Y134: 4132.832395 | Z134: 4137.985553 | AA134: 4143.13871 | AB134: 4148.291868 | AC134: 4153.445026 | AD134: 4158.598183 | AE134: 4163.751341 | AF134: 4168.904498 | AG134: 4174.057656 | AH134: 4179.210814 | AI134: 4184.363971 | AJ134: 4189.517129 | AK134: 4194.670286 | AL134: 4199.823444 | AM134: 4204.976602 | AN134: 4210.129759 | AO134: 4215.282917 | AP134: 4220.436074 | AQ134: 4225.589232
K135: Class 4 - Conservative | L135: =(L103)*8760 -> 3764.61 | M135: 3772.771931 | N135: 3780.933862 | O135: 3789.095793 | P135: 3797.257724 | Q135: 3805.419655 | R135: 3813.581585 | S135: 3821.743516 | T135: 3829.905447 | U135: 3838.067378 | V135: 3846.229309 | W135: 3854.39124 | X135: 3856.800235 | Y135: 3859.209229 | Z135: 3861.618224 | AA135: 3864.027218 | AB135: 3866.436213 | AC135: 3868.845207 | AD135: 3871.254202 | AE135: 3873.663196 | AF135: 3876.072191 | AG135: 3878.481185 | AH135: 3880.89018 | AI135: 3883.299174 | AJ135: 3885.708169 | AK135: 3888.117163 | AL135: 3890.526158 | AM135: 3892.935152 | AN135: 3895.344147 | AO135: 3897.753141 | AP135: 3900.162136 | AQ135: 3902.57113
K136: Class 5 - Advanced | L136: =(L104)*8760 -> 3617.08284 | M136: 3670.411331 | N136: 3723.739822 | O136: 3777.068313 | P136: 3830.396804 | Q136: 3883.725295 | R136: 3937.053785 | S136: 3990.382276 | T136: 4043.710767 | U136: 4097.039258 | V136: 4150.367749 | W136: 4203.69624 | X136: 4216.307329 | Y136: 4228.918417 | Z136: 4241.529506 | AA136: 4254.140595 | AB136: 4266.751684 | AC136: 4279.362772 | AD136: 4291.973861 | AE136: 4304.58495 | AF136: 4317.196038 | AG136: 4329.807127 | AH136: 4342.418216 | AI136: 4355.029305 | AJ136: 4367.640393 | AK136: 4380.251482 | AL136: 4392.862571 | AM136: 4405.47366 | AN136: 4418.084748 | AO136: 4430.695837 | AP136: 4443.306926 | AQ136: 4455.918014
K137: Class 5 - Moderate | L137: =(L105)*8760 -> 3617.08284 | M137: 3649.061618 | N137: 3681.040396 | O137: 3713.019175 | P137: 3744.997953 | Q137: 3776.976731 | R137: 3808.955509 | S137: 3840.934287 | T137: 3872.913065 | U137: 3904.891844 | V137: 3936.870622 | W137: 3968.8494 | X137: 3974.802674 | Y137: 3980.755948 | Z137: 3986.709222 | AA137: 3992.662496 | AB137: 3998.615771 | AC137: 4004.569045 | AD137: 4010.522319 | AE137: 4016.475593 | AF137: 4022.428867 | AG137: 4028.382141 | AH137: 4034.335415 | AI137: 4040.288689 | AJ137: 4046.241963 | AK137: 4052.195237 | AL137: 4058.148512 | AM137: 4064.101786 | AN137: 4070.05506 | AO137: 4076.008334 | AP137: 4081.961608 | AQ137: 4087.914882
K138: Class 5 - Conservative | L138: =(L106)*8760 -> 3617.08284 | M138: 3625.38732 | N138: 3633.6918 | O138: 3641.99628 | P138: 3650.30076 | Q138: 3658.60524 | R138: 3666.90972 | S138: 3675.2142 | T138: 3683.51868 | U138: 3691.82316 | V138: 3700.12764 | W138: 3708.43212 | X138: 3711.213444 | Y138: 3713.994768 | Z138: 3716.776092 | AA138: 3719.557416 | AB138: 3722.33874 | AC138: 3725.120065 | AD138: 3727.901389 | AE138: 3730.682713 | AF138: 3733.464037 | AG138: 3736.245361 | AH138: 3739.026685 | AI138: 3741.808009 | AJ138: 3744.589333 | AK138: 3747.370657 | AL138: 3750.151981 | AM138: 3752.933305 | AN138: 3755.71463 | AO138: 3758.495954 | AP138: 3761.277278 | AQ138: 3764.058602
K139: Class 6 - Advanced | L139: =(L107)*8760 -> 3386.7912 | M139: 3439.054156 | N139: 3491.317113 | O139: 3543.580069 | P139: 3595.843025 | Q139: 3648.105982 | R139: 3700.368938 | S139: 3752.631895 | T139: 3804.894851 | U139: 3857.157807 | V139: 3909.420764 | W139: 3961.68372 | X139: 3975.549613 | Y139: 3989.415506 | Z139: 4003.281399 | AA139: 4017.147292 | AB139: 4031.013185 | AC139: 4044.879078 | AD139: 4058.744971 | AE139: 4072.610864 | AF139: 4086.476757 | AG139: 4100.34265 | AH139: 4114.208543 | AI139: 4128.074436 | AJ139: 4141.940329 | AK139: 4155.806222 | AL139: 4169.672115 | AM139: 4183.538008 | AN139: 4197.403901 | AO139: 4211.269794 | AP139: 4225.135687 | AQ139: 4239.00158
K140: Class 6 - Moderate | L140: =(L108)*8760 -> 3386.7912 | M140: 3421.176589 | N140: 3455.561978 | O140: 3489.947367 | P140: 3524.332756 | Q140: 3558.718145 | R140: 3593.103535 | S140: 3627.488924 | T140: 3661.874313 | U140: 3696.259702 | V140: 3730.645091 | W140: 3765.03048 | X140: 3771.619283 | Y140: 3778.208087 | Z140: 3784.79689 | AA140: 3791.385693 | AB140: 3797.974497 | AC140: 3804.5633 | AD140: 3811.152103 | AE140: 3817.740907 | AF140: 3824.32971 | AG140: 3830.918513 | AH140: 3837.507317 | AI140: 3844.09612 | AJ140: 3850.684923 | AK140: 3857.273727 | AL140: 3863.86253 | AM140: 3870.451333 | AN140: 3877.040137 | AO140: 3883.62894 | AP140: 3890.217743 | AQ140: 3896.806547
K141: Class 6 - Conservative | L141: =(L109)*8760 -> 3386.7912 | M141: 3395.397502 | N141: 3404.003804 | O141: 3412.610105 | P141: 3421.216407 | Q141: 3429.822709 | R141: 3438.429011 | S141: 3447.035313 | T141: 3455.641615 | U141: 3464.247916 | V141: 3472.854218 | W141: 3481.46052 | X141: 3484.506798 | Y141: 3487.553076 | Z141: 3490.599354 | AA141: 3493.645632 | AB141: 3496.69191 | AC141: 3499.738188 | AD141: 3502.784466 | AE141: 3505.830744 | AF141: 3508.877022 | AG141: 3511.9233 | AH141: 3514.969578 | AI141: 3518.015855 | AJ141: 3521.062133 | AK141: 3524.108411 | AL141: 3527.154689 | AM141: 3530.200967 | AN141: 3533.247245 | AO141: 3536.293523 | AP141: 3539.339801 | AQ141: 3542.386079
K142: Class 7 - Advanced | L142: =(L110)*8760 -> 3086.18304 | M142: 3136.487738 | N142: 3186.792436 | O142: 3237.097135 | P142: 3287.401833 | Q142: 3337.706531 | R142: 3388.011229 | S142: 3438.315927 | T142: 3488.620625 | U142: 3538.925324 | V142: 3589.230022 | W142: 3639.53472 | X142: 3654.092859 | Y142: 3668.650998 | Z142: 3683.209137 | AA142: 3697.767276 | AB142: 3712.325414 | AC142: 3726.883553 | AD142: 3741.441692 | AE142: 3755.999831 | AF142: 3770.55797 | AG142: 3785.116109 | AH142: 3799.674248 | AI142: 3814.232387 | AJ142: 3828.790525 | AK142: 3843.348664 | AL142: 3857.906803 | AM142: 3872.464942 | AN142: 3887.023081 | AO142: 3901.58122 | AP142: 3916.139359 | AQ142: 3930.697498
K143: Class 7 - Moderate | L143: =(L111)*8760 -> 3086.18304 | M143: 3115.979782 | N143: 3145.776524 | O143: 3175.573265 | P143: 3205.370007 | Q143: 3235.166749 | R143: 3264.963491 | S143: 3294.760233 | T143: 3324.556975 | U143: 3354.353716 | V143: 3384.150458 | W143: 3413.9472 | X143: 3420.775094 | Y143: 3427.602989 | Z143: 3434.430883 | AA143: 3441.258778 | AB143: 3448.086672 | AC143: 3454.914566 | AD143: 3461.742461 | AE143: 3468.570355 | AF143: 3475.39825 | AG143: 3482.226144 | AH143: 3489.054038 | AI143: 3495.881933 | AJ143: 3502.709827 | AK143: 3509.537722 | AL143: 3516.365616 | AM143: 3523.19351 | AN143: 3530.021405 | AO143: 3536.849299 | AP143: 3543.677194 | AQ143: 3550.505088
K144: Class 7 - Conservative | L144: =(L112)*8760 -> 3086.18304 | M144: 3094.958171 | N144: 3103.733302 | O144: 3112.508433 | P144: 3121.283564 | Q144: 3130.058695 | R144: 3138.833825 | S144: 3147.608956 | T144: 3156.384087 | U144: 3165.159218 | V144: 3173.934349 | W144: 3182.70948 | X144: 3185.892189 | Y144: 3189.074899 | Z144: 3192.257608 | AA144: 3195.440318 | AB144: 3198.623027 | AC144: 3201.805737 | AD144: 3204.988446 | AE144: 3208.171156 | AF144: 3211.353865 | AG144: 3214.536575 | AH144: 3217.719284 | AI144: 3220.901994 | AJ144: 3224.084703 | AK144: 3227.267413 | AL144: 3230.450122 | AM144: 3233.632832 | AN144: 3236.815541 | AO144: 3239.998251 | AP144: 3243.18096 | AQ144: 3246.36367
K145: Class 8 - Advanced | L145: =(L113)*8760 -> 2724.67536 | M145: 2772.112353 | N145: 2819.549345 | O145: 2866.986338 | P145: 2914.423331 | Q145: 2961.860324 | R145: 3009.297316 | S145: 3056.734309 | T145: 3104.171302 | U145: 3151.608295 | V145: 3199.045287 | W145: 3246.48228 | X145: 3261.09145 | Y145: 3275.700621 | Z145: 3290.309791 | AA145: 3304.918961 | AB145: 3319.528131 | AC145: 3334.137302 | AD145: 3348.746472 | AE145: 3363.355642 | AF145: 3377.964812 | AG145: 3392.573983 | AH145: 3407.183153 | AI145: 3421.792323 | AJ145: 3436.401493 | AK145: 3451.010664 | AL145: 3465.619834 | AM145: 3480.229004 | AN145: 3494.838174 | AO145: 3509.447345 | AP145: 3524.056515 | AQ145: 3538.665685
K146: Class 8 - Moderate | L146: =(L114)*8760 -> 2724.67536 | M146: 2752.511455 | N146: 2780.347549 | O146: 2808.183644 | P146: 2836.019738 | Q146: 2863.855833 | R146: 2891.691927 | S146: 2919.528022 | T146: 2947.364116 | U146: 2975.200211 | V146: 3003.036305 | W146: 3030.8724 | X146: 3037.691863 | Y146: 3044.511326 | Z146: 3051.330789 | AA146: 3058.150252 | AB146: 3064.969715 | AC146: 3071.789177 | AD146: 3078.60864 | AE146: 3085.428103 | AF146: 3092.247566 | AG146: 3099.067029 | AH146: 3105.886492 | AI146: 3112.705955 | AJ146: 3119.525418 | AK146: 3126.344881 | AL146: 3133.164344 | AM146: 3139.983806 | AN146: 3146.803269 | AO146: 3153.622732 | AP146: 3160.442195 | AQ146: 3167.261658
K147: Class 8 - Conservative | L147: =(L115)*8760 -> 2724.67536 | M147: 2733.411469 | N147: 2742.147578 | O147: 2750.883687 | P147: 2759.619796 | Q147: 2768.355905 | R147: 2777.092015 | S147: 2785.828124 | T147: 2794.564233 | U147: 2803.300342 | V147: 2812.036451 | W147: 2820.77256 | X147: 2823.945929 | Y147: 2827.119298 | Z147: 2830.292667 | AA147: 2833.466037 | AB147: 2836.639406 | AC147: 2839.812775 | AD147: 2842.986144 | AE147: 2846.159513 | AF147: 2849.332882 | AG147: 2852.506251 | AH147: 2855.67962 | AI147: 2858.85299 | AJ147: 2862.026359 | AK147: 2865.199728 | AL147: 2868.373097 | AM147: 2871.546466 | AN147: 2874.719835 | AO147: 2877.893204 | AP147: 2881.066573 | AQ147: 2884.239943
K148: Class 9 - Advanced | L148: =(L116)*8760 -> 2328.04884 | M148: 2371.664084 | N148: 2415.279327 | O148: 2458.894571 | P148: 2502.509815 | Q148: 2546.125058 | R148: 2589.740302 | S148: 2633.355545 | T148: 2676.970789 | U148: 2720.586033 | V148: 2764.201276 | W148: 2807.81652 | X148: 2821.855603 | Y148: 2835.894685 | Z148: 2849.933768 | AA148: 2863.97285 | AB148: 2878.011933 | AC148: 2892.051016 | AD148: 2906.090098 | AE148: 2920.129181 | AF148: 2934.168263 | AG148: 2948.207346 | AH148: 2962.246429 | AI148: 2976.285511 | AJ148: 2990.324594 | AK148: 3004.363676 | AL148: 3018.402759 | AM148: 3032.441842 | AN148: 3046.480924 | AO148: 3060.520007 | AP148: 3074.559089 | AQ148: 3088.598172
K149: Class 9 - Moderate | L149: =(L117)*8760 -> 2328.04884 | M149: 2353.377185 | N149: 2378.705531 | O149: 2404.033876 | P149: 2429.362222 | Q149: 2454.690567 | R149: 2480.018913 | S149: 2505.347258 | T149: 2530.675604 | U149: 2556.003949 | V149: 2581.332295 | W149: 2606.66064 | X149: 2613.177292 | Y149: 2619.693943 | Z149: 2626.210595 | AA149: 2632.727246 | AB149: 2639.243898 | AC149: 2645.76055 | AD149: 2652.277201 | AE149: 2658.793853 | AF149: 2665.310504 | AG149: 2671.827156 | AH149: 2678.343808 | AI149: 2684.860459 | AJ149: 2691.377111 | AK149: 2697.893762 | AL149: 2704.410414 | AM149: 2710.927066 | AN149: 2717.443717 | AO149: 2723.960369 | AP149: 2730.47702 | AQ149: 2736.993672
K150: Class 9 - Conservative | L150: =(L118)*8760 -> 2328.04884 | M150: 2336.50224 | N150: 2344.95564 | O150: 2353.40904 | P150: 2361.86244 | Q150: 2370.31584 | R150: 2378.76924 | S150: 2387.22264 | T150: 2395.67604 | U150: 2404.12944 | V150: 2412.58284 | W150: 2421.03624 | X150: 2424.062535 | Y150: 2427.088831 | Z150: 2430.115126 | AA150: 2433.141421 | AB150: 2436.167717 | AC150: 2439.194012 | AD150: 2442.220307 | AE150: 2445.246602 | AF150: 2448.272898 | AG150: 2451.299193 | AH150: 2454.325488 | AI150: 2457.351784 | AJ150: 2460.378079 | AK150: 2463.404374 | AL150: 2466.43067 | AM150: 2469.456965 | AN150: 2472.48326 | AO150: 2475.509555 | AP150: 2478.535851 | AQ150: 2481.562146
K151: Class 10 - Advanced | L151: =(L119)*8760 -> 1444.00716 | M151: 1476.202549 | N151: 1508.397938 | O151: 1540.593327 | P151: 1572.788716 | Q151: 1604.984105 | R151: 1637.179495 | S151: 1669.374884 | T151: 1701.570273 | U151: 1733.765662 | V151: 1765.961051 | W151: 1798.15644 | X151: 1808.0463 | Y151: 1817.936161 | Z151: 1827.826021 | AA151: 1837.715882 | AB151: 1847.605742 | AC151: 1857.495603 | AD151: 1867.385463 | AE151: 1877.275323 | AF151: 1887.165184 | AG151: 1897.055044 | AH151: 1906.944905 | AI151: 1916.834765 | AJ151: 1926.724625 | AK151: 1936.614486 | AL151: 1946.504346 | AM151: 1956.394207 | AN151: 1966.284067 | AO151: 1976.173928 | AP151: 1986.063788 | AQ151: 1995.953648
K152: Class 10 - Moderate | L152: =(L120)*8760 -> 1444.00716 | M152: 1462.332284 | N152: 1480.657407 | O152: 1498.982531 | P152: 1517.307655 | Q152: 1535.632778 | R152: 1553.957902 | S152: 1572.283025 | T152: 1590.608149 | U152: 1608.933273 | V152: 1627.258396 | W152: 1645.58352 | X152: 1650.108875 | Y152: 1654.634229 | Z152: 1659.159584 | AA152: 1663.684939 | AB152: 1668.210293 | AC152: 1672.735648 | AD152: 1677.261003 | AE152: 1681.786357 | AF152: 1686.311712 | AG152: 1690.837067 | AH152: 1695.362421 | AI152: 1699.887776 | AJ152: 1704.413131 | AK152: 1708.938486 | AL152: 1713.46384 | AM152: 1717.989195 | AN152: 1722.51455 | AO152: 1727.039904 | AP152: 1731.565259 | AQ152: 1736.090614
K153: Class 10 - Conservative | L153: =(L121)*8760 -> 1444.00716 | M153: 1450.921985 | N153: 1457.836811 | O153: 1464.751636 | P153: 1471.666462 | Q153: 1478.581287 | R153: 1485.496113 | S153: 1492.410938 | T153: 1499.325764 | U153: 1506.240589 | V153: 1513.155415 | W153: 1520.07024 | X153: 1522.160337 | Y153: 1524.250433 | Z153: 1526.34053 | AA153: 1528.430626 | AB153: 1530.520723 | AC153: 1532.610819 | AD153: 1534.700916 | AE153: 1536.791013 | AF153: 1538.881109 | AG153: 1540.971206 | AH153: 1543.061302 | AI153: 1545.151399 | AJ153: 1547.241496 | AK153: 1549.331592 | AL153: 1551.421689 | AM153: 1553.511785 | AN153: 1555.601882 | AO153: 1557.691978 | AP153: 1559.782075 | AQ153: 1561.872172
L155: 2019 | M155: 2020 | N155: 2021 | O155: 2022 | P155: 2023 | Q155: 2024 | R155: 2025 | S155: 2026 | T155: 2027 | U155: 2028 | V155: 2029 | W155: 2030 | X155: 2031 | Y155: 2032 | Z155: 2033 | AA155: 2034 | AB155: 2035 | AC155: 2036 | AD155: 2037 | AE155: 2038 | AF155: 2039 | AG155: 2040 | AH155: 2041 | AI155: 2042 | AJ155: 2043 | AK155: 2044 | AL155: 2045 | AM155: 2046 | AN155: 2047 | AO155: 2048 | AP155: 2049 | AQ155: 2050
J156: CAPEX ($/kW) | K156: Class 1 - Advanced | L156: =$N$41*(L220 + L317) -> 1436 | M156: 1369.090909 | N156: 1302.181818 | O156: 1235.272727 | P156: 1168.363636 | Q156: 1101.454545 | R156: 1034.545455 | S156: 967.6363636 | T156: 900.7272727 | U156: 833.8181818 | V156: 766.9090909 | W156: 700 | X156: 691.25 | Y156: 682.5 | Z156: 673.75 | AA156: 665 | AB156: 656.25 | AC156: 647.5 | AD156: 638.75 | AE156: 630 | AF156: 621.25 | AG156: 612.5 | AH156: 603.75 | AI156: 595 | AJ156: 586.25 | AK156: 577.5 | AL156: 568.75 | AM156: 560 | AN156: 551.25 | AO156: 542.5 | AP156: 533.75 | AQ156: 525
K157: Class 1 - Moderate | L157: =$N$41*(L221 + L318) -> 1436 | M157: 1391.818182 | N157: 1347.636364 | O157: 1303.454545 | P157: 1259.272727 | Q157: 1215.090909 | R157: 1170.909091 | S157: 1126.727273 | T157: 1082.545455 | U157: 1038.363636 | V157: 994.1818182 | W157: 950 | X157: 940.5 | Y157: 931 | Z157: 921.5 | AA157: 912 | AB157: 902.5 | AC157: 893 | AD157: 883.5 | AE157: 874 | AF157: 864.5 | AG157: 855 | AH157: 845.5 | AI157: 836 | AJ157: 826.5 | AK157: 817 | AL157: 807.5 | AM157: 798 | AN157: 788.5 | AO157: 779 | AP157: 769.5 | AQ157: 760
K158: Class 1 - Conservative | L158: =$N$41*(L222 + L319) -> 1436 | M158: 1396.363636 | N158: 1356.727273 | O158: 1317.090909 | P158: 1277.454545 | Q158: 1237.818182 | R158: 1198.181818 | S158: 1158.545455 | T158: 1118.909091 | U158: 1079.272727 | V158: 1039.636364 | W158: 1000 | X158: 995 | Y158: 990 | Z158: 985 | AA158: 980 | AB158: 975 | AC158: 970 | AD158: 965 | AE158: 960 | AF158: 955 | AG158: 950 | AH158: 945 | AI158: 940 | AJ158: 935 | AK158: 930 | AL158: 925 | AM158: 920 | AN158: 915 | AO158: 910 | AP158: 905 | AQ158: 900
K159: Class 2 - Advanced | L159: =$N$41*(L223 + L320) -> 1436 | M159: 1369.090909 | N159: 1302.181818 | O159: 1235.272727 | P159: 1168.363636 | Q159: 1101.454545 | R159: 1034.545455 | S159: 967.6363636 | T159: 900.7272727 | U159: 833.8181818 | V159: 766.9090909 | W159: 700 | X159: 691.25 | Y159: 682.5 | Z159: 673.75 | AA159: 665 | AB159: 656.25 | AC159: 647.5 | AD159: 638.75 | AE159: 630 | AF159: 621.25 | AG159: 612.5 | AH159: 603.75 | AI159: 595 | AJ159: 586.25 | AK159: 577.5 | AL159: 568.75 | AM159: 560 | AN159: 551.25 | AO159: 542.5 | AP159: 533.75 | AQ159: 525
K160: Class 2 - Moderate | L160: =$N$41*(L224 + L321) -> 1436 | M160: 1391.818182 | N160: 1347.636364 | O160: 1303.454545 | P160: 1259.272727 | Q160: 1215.090909 | R160: 1170.909091 | S160: 1126.727273 | T160: 1082.545455 | U160: 1038.363636 | V160: 994.1818182 | W160: 950 | X160: 940.5 | Y160: 931 | Z160: 921.5 | AA160: 912 | AB160: 902.5 | AC160: 893 | AD160: 883.5 | AE160: 874 | AF160: 864.5 | AG160: 855 | AH160: 845.5 | AI160: 836 | AJ160: 826.5 | AK160: 817 | AL160: 807.5 | AM160: 798 | AN160: 788.5 | AO160: 779 | AP160: 769.5 | AQ160: 760
K161: Class 2 - Conservative | L161: =$N$41*(L225 + L322) -> 1436 | M161: 1396.363636 | N161: 1356.727273 | O161: 1317.090909 | P161: 1277.454545 | Q161: 1237.818182 | R161: 1198.181818 | S161: 1158.545455 | T161: 1118.909091 | U161: 1079.272727 | V161: 1039.636364 | W161: 1000 | X161: 995 | Y161: 990 | Z161: 985 | AA161: 980 | AB161: 975 | AC161: 970 | AD161: 965 | AE161: 960 | AF161: 955 | AG161: 950 | AH161: 945 | AI161: 940 | AJ161: 935 | AK161: 930 | AL161: 925 | AM161: 920 | AN161: 915 | AO161: 910 | AP161: 905 | AQ161: 900
K162: Class 3 - Advanced | L162: =$N$41*(L226 + L323) -> 1436 | M162: 1369.090909 | N162: 1302.181818 | O162: 1235.272727 | P162: 1168.363636 | Q162: 1101.454545 | R162: 1034.545455 | S162: 967.6363636 | T162: 900.7272727 | U162: 833.8181818 | V162: 766.9090909 | W162: 700 | X162: 691.25 | Y162: 682.5 | Z162: 673.75 | AA162: 665 | AB162: 656.25 | AC162: 647.5 | AD162: 638.75 | AE162: 630 | AF162: 621.25 | AG162: 612.5 | AH162: 603.75 | AI162: 595 | AJ162: 586.25 | AK162: 577.5 | AL162: 568.75 | AM162: 560 | AN162: 551.25 | AO162: 542.5 | AP162: 533.75 | AQ162: 525
K163: Class 3 - Moderate | L163: =$N$41*(L227 + L324) -> 1436 | M163: 1391.818182 | N163: 1347.636364 | O163: 1303.454545 | P163: 1259.272727 | Q163: 1215.090909 | R163: 1170.909091 | S163: 1126.727273 | T163: 1082.545455 | U163: 1038.363636 | V163: 994.1818182 | W163: 950 | X163: 940.5 | Y163: 931 | Z163: 921.5 | AA163: 912 | AB163: 902.5 | AC163: 893 | AD163: 883.5 | AE163: 874 | AF163: 864.5 | AG163: 855 | AH163: 845.5 | AI163: 836 | AJ163: 826.5 | AK163: 817 | AL163: 807.5 | AM163: 798 | AN163: 788.5 | AO163: 779 | AP163: 769.5 | AQ163: 760
K164: Class 3 - Conservative | L164: =$N$41*(L228 + L325) -> 1436 | M164: 1396.363636 | N164: 1356.727273 | O164: 1317.090909 | P164: 1277.454545 | Q164: 1237.818182 | R164: 1198.181818 | S164: 1158.545455 | T164: 1118.909091 | U164: 1079.272727 | V164: 1039.636364 | W164: 1000 | X164: 995 | Y164: 990 | Z164: 985 | AA164: 980 | AB164: 975 | AC164: 970 | AD164: 965 | AE164: 960 | AF164: 955 | AG164: 950 | AH164: 945 | AI164: 940 | AJ164: 935 | AK164: 930 | AL164: 925 | AM164: 920 | AN164: 915 | AO164: 910 | AP164: 905 | AQ164: 900
K165: Class 4 - Advanced | L165: =$N$41*(L229 + L326) -> 1436 | M165: 1369.090909 | N165: 1302.181818 | O165: 1235.272727 | P165: 1168.363636 | Q165: 1101.454545 | R165: 1034.545455 | S165: 967.6363636 | T165: 900.7272727 | U165: 833.8181818 | V165: 766.9090909 | W165: 700 | X165: 691.25 | Y165: 682.5 | Z165: 673.75 | AA165: 665 | AB165: 656.25 | AC165: 647.5 | AD165: 638.75 | AE165: 630 | AF165: 621.25 | AG165: 612.5 | AH165: 603.75 | AI165: 595 | AJ165: 586.25 | AK165: 577.5 | AL165: 568.75 | AM165: 560 | AN165: 551.25 | AO165: 542.5 | AP165: 533.75 | AQ165: 525
K166: Class 4 - Moderate | L166: =$N$41*(L230 + L327) -> 1436 | M166: 1391.818182 | N166: 1347.636364 | O166: 1303.454545 | P166: 1259.272727 | Q166: 1215.090909 | R166: 1170.909091 | S166: 1126.727273 | T166: 1082.545455 | U166: 1038.363636 | V166: 994.1818182 | W166: 950 | X166: 940.5 | Y166: 931 | Z166: 921.5 | AA166: 912 | AB166: 902.5 | AC166: 893 | AD166: 883.5 | AE166: 874 | AF166: 864.5 | AG166: 855 | AH166: 845.5 | AI166: 836 | AJ166: 826.5 | AK166: 817 | AL166: 807.5 | AM166: 798 | AN166: 788.5 | AO166: 779 | AP166: 769.5 | AQ166: 760
K167: Class 4 - Conservative | L167: =$N$41*(L231 + L328) -> 1436 | M167: 1396.363636 | N167: 1356.727273 | O167: 1317.090909 | P167: 1277.454545 | Q167: 1237.818182 | R167: 1198.181818 | S167: 1158.545455 | T167: 1118.909091 | U167: 1079.272727 | V167: 1039.636364 | W167: 1000 | X167: 995 | Y167: 990 | Z167: 985 | AA167: 980 | AB167: 975 | AC167: 970 | AD167: 965 | AE167: 960 | AF167: 955 | AG167: 950 | AH167: 945 | AI167: 940 | AJ167: 935 | AK167: 930 | AL167: 925 | AM167: 920 | AN167: 915 | AO167: 910 | AP167: 905 | AQ167: 900
K168: Class 5 - Advanced | L168: =$N$41*(L232 + L329) -> 1436 | M168: 1369.090909 | N168: 1302.181818 | O168: 1235.272727 | P168: 1168.363636 | Q168: 1101.454545 | R168: 1034.545455 | S168: 967.6363636 | T168: 900.7272727 | U168: 833.8181818 | V168: 766.9090909 | W168: 700 | X168: 691.25 | Y168: 682.5 | Z168: 673.75 | AA168: 665 | AB168: 656.25 | AC168: 647.5 | AD168: 638.75 | AE168: 630 | AF168: 621.25 | AG168: 612.5 | AH168: 603.75 | AI168: 595 | AJ168: 586.25 | AK168: 577.5 | AL168: 568.75 | AM168: 560 | AN168: 551.25 | AO168: 542.5 | AP168: 533.75 | AQ168: 525
K169: Class 5 - Moderate | L169: =$N$41*(L233 + L330) -> 1436 | M169: 1391.818182 | N169: 1347.636364 | O169: 1303.454545 | P169: 1259.272727 | Q169: 1215.090909 | R169: 1170.909091 | S169: 1126.727273 | T169: 1082.545455 | U169: 1038.363636 | V169: 994.1818182 | W169: 950 | X169: 940.5 | Y169: 931 | Z169: 921.5 | AA169: 912 | AB169: 902.5 | AC169: 893 | AD169: 883.5 | AE169: 874 | AF169: 864.5 | AG169: 855 | AH169: 845.5 | AI169: 836 | AJ169: 826.5 | AK169: 817 | AL169: 807.5 | AM169: 798 | AN169: 788.5 | AO169: 779 | AP169: 769.5 | AQ169: 760
K170: Class 5 - Conservative | L170: =$N$41*(L234 + L331) -> 1436 | M170: 1396.363636 | N170: 1356.727273 | O170: 1317.090909 | P170: 1277.454545 | Q170: 1237.818182 | R170: 1198.181818 | S170: 1158.545455 | T170: 1118.909091 | U170: 1079.272727 | V170: 1039.636364 | W170: 1000 | X170: 995 | Y170: 990 | Z170: 985 | AA170: 980 | AB170: 975 | AC170: 970 | AD170: 965 | AE170: 960 | AF170: 955 | AG170: 950 | AH170: 945 | AI170: 940 | AJ170: 935 | AK170: 930 | AL170: 925 | AM170: 920 | AN170: 915 | AO170: 910 | AP170: 905 | AQ170: 900
K171: Class 6 - Advanced | L171: =$N$41*(L235 + L332) -> 1436 | M171: 1369.090909 | N171: 1302.181818 | O171: 1235.272727 | P171: 1168.363636 | Q171: 1101.454545 | R171: 1034.545455 | S171: 967.6363636 | T171: 900.7272727 | U171: 833.8181818 | V171: 766.9090909 | W171: 700 | X171: 691.25 | Y171: 682.5 | Z171: 673.75 | AA171: 665 | AB171: 656.25 | AC171: 647.5 | AD171: 638.75 | AE171: 630 | AF171: 621.25 | AG171: 612.5 | AH171: 603.75 | AI171: 595 | AJ171: 586.25 | AK171: 577.5 | AL171: 568.75 | AM171: 560 | AN171: 551.25 | AO171: 542.5 | AP171: 533.75 | AQ171: 525
K172: Class 6 - Moderate | L172: =$N$41*(L236 + L333) -> 1436 | M172: 1391.818182 | N172: 1347.636364 | O172: 1303.454545 | P172: 1259.272727 | Q172: 1215.090909 | R172: 1170.909091 | S172: 1126.727273 | T172: 1082.545455 | U172: 1038.363636 | V172: 994.1818182 | W172: 950 | X172: 940.5 | Y172: 931 | Z172: 921.5 | AA172: 912 | AB172: 902.5 | AC172: 893 | AD172: 883.5 | AE172: 874 | AF172: 864.5 | AG172: 855 | AH172: 845.5 | AI172: 836 | AJ172: 826.5 | AK172: 817 | AL172: 807.5 | AM172: 798 | AN172: 788.5 | AO172: 779 | AP172: 769.5 | AQ172: 760
K173: Class 6 - Conservative | L173: =$N$41*(L237 + L334) -> 1436 | M173: 1396.363636 | N173: 1356.727273 | O173: 1317.090909 | P173: 1277.454545 | Q173: 1237.818182 | R173: 1198.181818 | S173: 1158.545455 | T173: 1118.909091 | U173: 1079.272727 | V173: 1039.636364 | W173: 1000 | X173: 995 | Y173: 990 | Z173: 985 | AA173: 980 | AB173: 975 | AC173: 970 | AD173: 965 | AE173: 960 | AF173: 955 | AG173: 950 | AH173: 945 | AI173: 940 | AJ173: 935 | AK173: 930 | AL173: 925 | AM173: 920 | AN173: 915 | AO173: 910 | AP173: 905 | AQ173: 900
K174: Class 7 - Advanced | L174: =$N$41*(L238 + L335) -> 1436 | M174: 1369.090909 | N174: 1302.181818 | O174: 1235.272727 | P174: 1168.363636 | Q174: 1101.454545 | R174: 1034.545455 | S174: 967.6363636 | T174: 900.7272727 | U174: 833.8181818 | V174: 766.9090909 | W174: 700 | X174: 691.25 | Y174: 682.5 | Z174: 673.75 | AA174: 665 | AB174: 656.25 | AC174: 647.5 | AD174: 638.75 | AE174: 630 | AF174: 621.25 | AG174: 612.5 | AH174: 603.75 | AI174: 595 | AJ174: 586.25 | AK174: 577.5 | AL174: 568.75 | AM174: 560 | AN174: 551.25 | AO174: 542.5 | AP174: 533.75 | AQ174: 525
K175: Class 7 - Moderate | L175: =$N$41*(L239 + L336) -> 1436 | M175: 1391.818182 | N175: 1347.636364 | O175: 1303.454545 | P175: 1259.272727 | Q175: 1215.090909 | R175: 1170.909091 | S175: 1126.727273 | T175: 1082.545455 | U175: 1038.363636 | V175: 994.1818182 | W175: 950 | X175: 940.5 | Y175: 931 | Z175: 921.5 | AA175: 912 | AB175: 902.5 | AC175: 893 | AD175: 883.5 | AE175: 874 | AF175: 864.5 | AG175: 855 | AH175: 845.5 | AI175: 836 | AJ175: 826.5 | AK175: 817 | AL175: 807.5 | AM175: 798 | AN175: 788.5 | AO175: 779 | AP175: 769.5 | AQ175: 760
K176: Class 7 - Conservative | L176: =$N$41*(L240 + L337) -> 1436 | M176: 1396.363636 | N176: 1356.727273 | O176: 1317.090909 | P176: 1277.454545 | Q176: 1237.818182 | R176: 1198.181818 | S176: 1158.545455 | T176: 1118.909091 | U176: 1079.272727 | V176: 1039.636364 | W176: 1000 | X176: 995 | Y176: 990 | Z176: 985 | AA176: 980 | AB176: 975 | AC176: 970 | AD176: 965 | AE176: 960 | AF176: 955 | AG176: 950 | AH176: 945 | AI176: 940 | AJ176: 935 | AK176: 930 | AL176: 925 | AM176: 920 | AN176: 915 | AO176: 910 | AP176: 905 | AQ176: 900
K177: Class 8 - Advanced | L177: =$N$41*(L241 + L338) -> 1436 | M177: 1369.090909 | N177: 1302.181818 | O177: 1235.272727 | P177: 1168.363636 | Q177: 1101.454545 | R177: 1034.545455 | S177: 967.6363636 | T177: 900.7272727 | U177: 833.8181818 | V177: 766.9090909 | W177: 700 | X177: 691.25 | Y177: 682.5 | Z177: 673.75 | AA177: 665 | AB177: 656.25 | AC177: 647.5 | AD177: 638.75 | AE177: 630 | AF177: 621.25 | AG177: 612.5 | AH177: 603.75 | AI177: 595 | AJ177: 586.25 | AK177: 577.5 | AL177: 568.75 | AM177: 560 | AN177: 551.25 | AO177: 542.5 | AP177: 533.75 | AQ177: 525
K178: Class 8 - Moderate | L178: =$N$41*(L242 + L339) -> 1436 | M178: 1391.818182 | N178: 1347.636364 | O178: 1303.454545 | P178: 1259.272727 | Q178: 1215.090909 | R178: 1170.909091 | S178: 1126.727273 | T178: 1082.545455 | U178: 1038.363636 | V178: 994.1818182 | W178: 950 | X178: 940.5 | Y178: 931 | Z178: 921.5 | AA178: 912 | AB178: 902.5 | AC178: 893 | AD178: 883.5 | AE178: 874 | AF178: 864.5 | AG178: 855 | AH178: 845.5 | AI178: 836 | AJ178: 826.5 | AK178: 817 | AL178: 807.5 | AM178: 798 | AN178: 788.5 | AO178: 779 | AP178: 769.5 | AQ178: 760
K179: Class 8 - Conservative | L179: =$N$41*(L243 + L340) -> 1436 | M179: 1396.363636 | N179: 1356.727273 | O179: 1317.090909 | P179: 1277.454545 | Q179: 1237.818182 | R179: 1198.181818 | S179: 1158.545455 | T179: 1118.909091 | U179: 1079.272727 | V179: 1039.636364 | W179: 1000 | X179: 995 | Y179: 990 | Z179: 985 | AA179: 980 | AB179: 975 | AC179: 970 | AD179: 965 | AE179: 960 | AF179: 955 | AG179: 950 | AH179: 945 | AI179: 940 | AJ179: 935 | AK179: 930 | AL179: 925 | AM179: 920 | AN179: 915 | AO179: 910 | AP179: 905 | AQ179: 900
K180: Class 9 - Advanced | L180: =$N$41*(L244 + L341) -> 1436 | M180: 1369.090909 | N180: 1302.181818 | O180: 1235.272727 | P180: 1168.363636 | Q180: 1101.454545 | R180: 1034.545455 | S180: 967.6363636 | T180: 900.7272727 | U180: 833.8181818 | V180: 766.9090909 | W180: 700 | X180: 691.25 | Y180: 682.5 | Z180: 673.75 | AA180: 665 | AB180: 656.25 | AC180: 647.5 | AD180: 638.75 | AE180: 630 | AF180: 621.25 | AG180: 612.5 | AH180: 603.75 | AI180: 595 | AJ180: 586.25 | AK180: 577.5 | AL180: 568.75 | AM180: 560 | AN180: 551.25 | AO180: 542.5 | AP180: 533.75 | AQ180: 525
K181: Class 9 - Moderate | L181: =$N$41*(L245 + L342) -> 1436 | M181: 1391.818182 | N181: 1347.636364 | O181: 1303.454545 | P181: 1259.272727 | Q181: 1215.090909 | R181: 1170.909091 | S181: 1126.727273 | T181: 1082.545455 | U181: 1038.363636 | V181: 994.1818182 | W181: 950 | X181: 940.5 | Y181: 931 | Z181: 921.5 | AA181: 912 | AB181: 902.5 | AC181: 893 | AD181: 883.5 | AE181: 874 | AF181: 864.5 | AG181: 855 | AH181: 845.5 | AI181: 836 | AJ181: 826.5 | AK181: 817 | AL181: 807.5 | AM181: 798 | AN181: 788.5 | AO181: 779 | AP181: 769.5 | AQ181: 760
K182: Class 9 - Conservative | L182: =$N$41*(L246 + L343) -> 1436 | M182: 1396.363636 | N182: 1356.727273 | O182: 1317.090909 | P182: 1277.454545 | Q182: 1237.818182 | R182: 1198.181818 | S182: 1158.545455 | T182: 1118.909091 | U182: 1079.272727 | V182: 1039.636364 | W182: 1000 | X182: 995 | Y182: 990 | Z182: 985 | AA182: 980 | AB182: 975 | AC182: 970 | AD182: 965 | AE182: 960 | AF182: 955 | AG182: 950 | AH182: 945 | AI182: 940 | AJ182: 935 | AK182: 930 | AL182: 925 | AM182: 920 | AN182: 915 | AO182: 910 | AP182: 905 | AQ182: 900
K183: Class 10 - Advanced | L183: =$N$41*(L247 + L344) -> 1436 | M183: 1369.090909 | N183: 1302.181818 | O183: 1235.272727 | P183: 1168.363636 | Q183: 1101.454545 | R183: 1034.545455 | S183: 967.6363636 | T183: 900.7272727 | U183: 833.8181818 | V183: 766.9090909 | W183: 700 | X183: 691.25 | Y183: 682.5 | Z183: 673.75 | AA183: 665 | AB183: 656.25 | AC183: 647.5 | AD183: 638.75 | AE183: 630 | AF183: 621.25 | AG183: 612.5 | AH183: 603.75 | AI183: 595 | AJ183: 586.25 | AK183: 577.5 | AL183: 568.75 | AM183: 560 | AN183: 551.25 | AO183: 542.5 | AP183: 533.75 | AQ183: 525
K184: Class 10 - Moderate | L184: =$N$41*(L248 + L345) -> 1436 | M184: 1391.818182 | N184: 1347.636364 | O184: 1303.454545 | P184: 1259.272727 | Q184: 1215.090909 | R184: 1170.909091 | S184: 1126.727273 | T184: 1082.545455 | U184: 1038.363636 | V184: 994.1818182 | W184: 950 | X184: 940.5 | Y184: 931 | Z184: 921.5 | AA184: 912 | AB184: 902.5 | AC184: 893 | AD184: 883.5 | AE184: 874 | AF184: 864.5 | AG184: 855 | AH184: 845.5 | AI184: 836 | AJ184: 826.5 | AK184: 817 | AL184: 807.5 | AM184: 798 | AN184: 788.5 | AO184: 779 | AP184: 769.5 | AQ184: 760
K185: Class 10 - Conservative | L185: =$N$41*(L249 + L346) -> 1436 | M185: 1396.363636 | N185: 1356.727273 | O185: 1317.090909 | P185: 1277.454545 | Q185: 1237.818182 | R185: 1198.181818 | S185: 1158.545455 | T185: 1118.909091 | U185: 1079.272727 | V185: 1039.636364 | W185: 1000 | X185: 995 | Y185: 990 | Z185: 985 | AA185: 980 | AB185: 975 | AC185: 970 | AD185: 965 | AE185: 960 | AF185: 955 | AG185: 950 | AH185: 945 | AI185: 940 | AJ185: 935 | AK185: 930 | AL185: 925 | AM185: 920 | AN185: 915 | AO185: 910 | AP185: 905 | AQ185: 900
L187: 2019 | M187: 2020 | N187: 2021 | O187: 2022 | P187: 2023 | Q187: 2024 | R187: 2025 | S187: 2026 | T187: 2027 | U187: 2028 | V187: 2029 | W187: 2030 | X187: 2031 | Y187: 2032 | Z187: 2033 | AA187: 2034 | AB187: 2035 | AC187: 2036 | AD187: 2037 | AE187: 2038 | AF187: 2039 | AG187: 2040 | AH187: 2041 | AI187: 2042 | AJ187: 2043 | AK187: 2044 | AL187: 2045 | AM187: 2046 | AN187: 2047 | AO187: 2048 | AP187: 2049 | AQ187: 2050
J188: Construction Financing Cost ($/kW) | K188: Class 1 - Advanced | L188: =(L220+L317)*($N$41-1) -> 60.1063857 | M188: =(M220+M317)*($N$41-1) -> 57.30578429 | N188: 54.50518288 | O188: 51.70458147 | P188: 48.90398006 | Q188: 46.10337865 | R188: 43.30277724 | S188: 40.50217583 | T188: 37.70157442 | U188: 34.90097301 | V188: 32.1003716 | W188: 29.29977019 | X188: 28.93352306 | Y188: 28.56727594 | Z188: 28.20102881 | AA188: 27.83478168 | AB188: 27.46853455 | AC188: 27.10228743 | AD188: 26.7360403 | AE188: 26.36979317 | AF188: 26.00354604 | AG188: 25.63729892 | AH188: 25.27105179 | AI188: 24.90480466 | AJ188: 24.53855753 | AK188: 24.17231041 | AL188: 23.80606328 | AM188: 23.43981615 | AN188: 23.07356902 | AO188: 22.7073219 | AP188: 22.34107477 | AQ188: 21.97482764
K189: Class 1 - Moderate | L189: =(L221+L318)*($N$41-1) -> 60.1063857 | M189: 58.25707553 | N189: 56.40776536 | O189: 54.55845519 | P189: 52.70914502 | Q189: 50.85983485 | R189: 49.01052468 | S189: 47.16121451 | T189: 45.31190434 | U189: 43.46259417 | V189: 41.613284 | W189: 39.76397383 | X189: 39.36633409 | Y189: 38.96869435 | Z189: 38.57105461 | AA189: 38.17341488 | AB189: 37.77577514 | AC189: 37.3781354 | AD189: 36.98049566 | AE189: 36.58285592 | AF189: 36.18521618 | AG189: 35.78757645 | AH189: 35.38993671 | AI189: 34.99229697 | AJ189: 34.59465723 | AK189: 34.19701749 | AL189: 33.79937775 | AM189: 33.40173802 | AN189: 33.00409828 | AO189: 32.60645854 | AP189: 32.2088188 | AQ189: 31.81117906
K190: Class 1 - Conservative | L190: =(L222+L319)*($N$41-1) -> 60.1063857 | M190: 58.44733378 | N190: 56.78828186 | O190: 55.12922994 | P190: 53.47017801 | Q190: 51.81112609 | R190: 50.15207417 | S190: 48.49302225 | T190: 46.83397032 | U190: 45.1749184 | V190: 43.51586648 | W190: 41.85681456 | X190: 41.64753048 | Y190: 41.43824641 | Z190: 41.22896234 | AA190: 41.01967827 | AB190: 40.81039419 | AC190: 40.60111012 | AD190: 40.39182605 | AE190: 40.18254197 | AF190: 39.9732579 | AG190: 39.76397383 | AH190: 39.55468976 | AI190: 39.34540568 | AJ190: 39.13612161 | AK190: 38.92683754 | AL190: 38.71755347 | AM190: 38.50826939 | AN190: 38.29898532 | AO190: 38.08970125 | AP190: 37.88041717 | AQ190: 37.6711331
K191: Class 2 - Advanced | L191: =(L223+L320)*($N$41-1) -> 60.1063857 | M191: 57.30578429 | N191: 54.50518288 | O191: 51.70458147 | P191: 48.90398006 | Q191: 46.10337865 | R191: 43.30277724 | S191: 40.50217583 | T191: 37.70157442 | U191: 34.90097301 | V191: 32.1003716 | W191: 29.29977019 | X191: 28.93352306 | Y191: 28.56727594 | Z191: 28.20102881 | AA191: 27.83478168 | AB191: 27.46853455 | AC191: 27.10228743 | AD191: 26.7360403 | AE191: 26.36979317 | AF191: 26.00354604 | AG191: 25.63729892 | AH191: 25.27105179 | AI191: 24.90480466 | AJ191: 24.53855753 | AK191: 24.17231041 | AL191: 23.80606328 | AM191: 23.43981615 | AN191: 23.07356902 | AO191: 22.7073219 | AP191: 22.34107477 | AQ191: 21.97482764
K192: Class 2 - Moderate | L192: =(L224+L321)*($N$41-1) -> 60.1063857 | M192: 58.25707553 | N192: 56.40776536 | O192: 54.55845519 | P192: 52.70914502 | Q192: 50.85983485 | R192: 49.01052468 | S192: 47.16121451 | T192: 45.31190434 | U192: 43.46259417 | V192: 41.613284 | W192: 39.76397383 | X192: 39.36633409 | Y192: 38.96869435 | Z192: 38.57105461 | AA192: 38.17341488 | AB192: 37.77577514 | AC192: 37.3781354 | AD192: 36.98049566 | AE192: 36.58285592 | AF192: 36.18521618 | AG192: 35.78757645 | AH192: 35.38993671 | AI192: 34.99229697 | AJ192: 34.59465723 | AK192: 34.19701749 | AL192: 33.79937775 | AM192: 33.40173802 | AN192: 33.00409828 | AO192: 32.60645854 | AP192: 32.2088188 | AQ192: 31.81117906
K193: Class 2 - Conservative | L193: =(L225+L322)*($N$41-1) -> 60.1063857 | M193: 58.44733378 | N193: 56.78828186 | O193: 55.12922994 | P193: 53.47017801 | Q193: 51.81112609 | R193: 50.15207417 | S193: 48.49302225 | T193: 46.83397032 | U193: 45.1749184 | V193: 43.51586648 | W193: 41.85681456 | X193: 41.64753048 | Y193: 41.43824641 | Z193: 41.22896234 | AA193: 41.01967827 | AB193: 40.81039419 | AC193: 40.60111012 | AD193: 40.39182605 | AE193: 40.18254197 | AF193: 39.9732579 | AG193: 39.76397383 | AH193: 39.55468976 | AI193: 39.34540568 | AJ193: 39.13612161 | AK193: 38.92683754 | AL193: 38.71755347 | AM193: 38.50826939 | AN193: 38.29898532 | AO193: 38.08970125 | AP193: 37.88041717 | AQ193: 37.6711331
K194: Class 3 - Advanced | L194: =(L226+L323)*($N$41-1) -> 60.1063857 | M194: 57.30578429 | N194: 54.50518288 | O194: 51.70458147 | P194: 48.90398006 | Q194: 46.10337865 | R194: 43.30277724 | S194: 40.50217583 | T194: 37.70157442 | U194: 34.90097301 | V194: 32.1003716 | W194: 29.29977019 | X194: 28.93352306 | Y194: 28.56727594 | Z194: 28.20102881 | AA194: 27.83478168 | AB194: 27.46853455 | AC194: 27.10228743 | AD194: 26.7360403 | AE194: 26.36979317 | AF194: 26.00354604 | AG194: 25.63729892 | AH194: 25.27105179 | AI194: 24.90480466 | AJ194: 24.53855753 | AK194: 24.17231041 | AL194: 23.80606328 | AM194: 23.43981615 | AN194: 23.07356902 | AO194: 22.7073219 | AP194: 22.34107477 | AQ194: 21.97482764
K195: Class 3 - Moderate | L195: =(L227+L324)*($N$41-1) -> 60.1063857 | M195: 58.25707553 | N195: 56.40776536 | O195: 54.55845519 | P195: 52.70914502 | Q195: 50.85983485 | R195: 49.01052468 | S195: 47.16121451 | T195: 45.31190434 | U195: 43.46259417 | V195: 41.613284 | W195: 39.76397383 | X195: 39.36633409 | Y195: 38.96869435 | Z195: 38.57105461 | AA195: 38.17341488 | AB195: 37.77577514 | AC195: 37.3781354 | AD195: 36.98049566 | AE195: 36.58285592 | AF195: 36.18521618 | AG195: 35.78757645 | AH195: 35.38993671 | AI195: 34.99229697 | AJ195: 34.59465723 | AK195: 34.19701749 | AL195: 33.79937775 | AM195: 33.40173802 | AN195: 33.00409828 | AO195: 32.60645854 | AP195: 32.2088188 | AQ195: 31.81117906
K196: Class 3 - Conservative | L196: =(L228+L325)*($N$41-1) -> 60.1063857 | M196: 58.44733378 | N196: 56.78828186 | O196: 55.12922994 | P196: 53.47017801 | Q196: 51.81112609 | R196: 50.15207417 | S196: 48.49302225 | T196: 46.83397032 | U196: 45.1749184 | V196: 43.51586648 | W196: 41.85681456 | X196: 41.64753048 | Y196: 41.43824641 | Z196: 41.22896234 | AA196: 41.01967827 | AB196: 40.81039419 | AC196: 40.60111012 | AD196: 40.39182605 | AE196: 40.18254197 | AF196: 39.9732579 | AG196: 39.76397383 | AH196: 39.55468976 | AI196: 39.34540568 | AJ196: 39.13612161 | AK196: 38.92683754 | AL196: 38.71755347 | AM196: 38.50826939 | AN196: 38.29898532 | AO196: 38.08970125 | AP196: 37.88041717 | AQ196: 37.6711331
K197: Class 4 - Advanced | L197: =(L229+L326)*($N$41-1) -> 60.1063857 | M197: 57.30578429 | N197: 54.50518288 | O197: 51.70458147 | P197: 48.90398006 | Q197: 46.10337865 | R197: 43.30277724 | S197: 40.50217583 | T197: 37.70157442 | U197: 34.90097301 | V197: 32.1003716 | W197: 29.29977019 | X197: 28.93352306 | Y197: 28.56727594 | Z197: 28.20102881 | AA197: 27.83478168 | AB197: 27.46853455 | AC197: 27.10228743 | AD197: 26.7360403 | AE197: 26.36979317 | AF197: 26.00354604 | AG197: 25.63729892 | AH197: 25.27105179 | AI197: 24.90480466 | AJ197: 24.53855753 | AK197: 24.17231041 | AL197: 23.80606328 | AM197: 23.43981615 | AN197: 23.07356902 | AO197: 22.7073219 | AP197: 22.34107477 | AQ197: 21.97482764
K198: Class 4 - Moderate | L198: =(L230+L327)*($N$41-1) -> 60.1063857 | M198: 58.25707553 | N198: 56.40776536 | O198: 54.55845519 | P198: 52.70914502 | Q198: 50.85983485 | R198: 49.01052468 | S198: 47.16121451 | T198: 45.31190434 | U198: 43.46259417 | V198: 41.613284 | W198: 39.76397383 | X198: 39.36633409 | Y198: 38.96869435 | Z198: 38.57105461 | AA198: 38.17341488 | AB198: 37.77577514 | AC198: 37.3781354 | AD198: 36.98049566 | AE198: 36.58285592 | AF198: 36.18521618 | AG198: 35.78757645 | AH198: 35.38993671 | AI198: 34.99229697 | AJ198: 34.59465723 | AK198: 34.19701749 | AL198: 33.79937775 | AM198: 33.40173802 | AN198: 33.00409828 | AO198: 32.60645854 | AP198: 32.2088188 | AQ198: 31.81117906
K199: Class 4 - Conservative | L199: =(L231+L328)*($N$41-1) -> 60.1063857 | M199: 58.44733378 | N199: 56.78828186 | O199: 55.12922994 | P199: 53.47017801 | Q199: 51.81112609 | R199: 50.15207417 | S199: 48.49302225 | T199: 46.83397032 | U199: 45.1749184 | V199: 43.51586648 | W199: 41.85681456 | X199: 41.64753048 | Y199: 41.43824641 | Z199: 41.22896234 | AA199: 41.01967827 | AB199: 40.81039419 | AC199: 40.60111012 | AD199: 40.39182605 | AE199: 40.18254197 | AF199: 39.9732579 | AG199: 39.76397383 | AH199: 39.55468976 | AI199: 39.34540568 | AJ199: 39.13612161 | AK199: 38.92683754 | AL199: 38.71755347 | AM199: 38.50826939 | AN199: 38.29898532 | AO199: 38.08970125 | AP199: 37.88041717 | AQ199: 37.6711331
K200: Class 5 - Advanced | L200: =(L232+L329)*($N$41-1) -> 60.1063857 | M200: 57.30578429 | N200: 54.50518288 | O200: 51.70458147 | P200: 48.90398006 | Q200: 46.10337865 | R200: 43.30277724 | S200: 40.50217583 | T200: 37.70157442 | U200: 34.90097301 | V200: 32.1003716 | W200: 29.29977019 | X200: 28.93352306 | Y200: 28.56727594 | Z200: 28.20102881 | AA200: 27.83478168 | AB200: 27.46853455 | AC200: 27.10228743 | AD200: 26.7360403 | AE200: 26.36979317 | AF200: 26.00354604 | AG200: 25.63729892 | AH200: 25.27105179 | AI200: 24.90480466 | AJ200: 24.53855753 | AK200: 24.17231041 | AL200: 23.80606328 | AM200: 23.43981615 | AN200: 23.07356902 | AO200: 22.7073219 | AP200: 22.34107477 | AQ200: 21.97482764
K201: Class 5 - Moderate | L201: =(L233+L330)*($N$41-1) -> 60.1063857 | M201: 58.25707553 | N201: 56.40776536 | O201: 54.55845519 | P201: 52.70914502 | Q201: 50.85983485 | R201: 49.01052468 | S201: 47.16121451 | T201: 45.31190434 | U201: 43.46259417 | V201: 41.613284 | W201: 39.76397383 | X201: 39.36633409 | Y201: 38.96869435 | Z201: 38.57105461 | AA201: 38.17341488 | AB201: 37.77577514 | AC201: 37.3781354 | AD201: 36.98049566 | AE201: 36.58285592 | AF201: 36.18521618 | AG201: 35.78757645 | AH201: 35.38993671 | AI201: 34.99229697 | AJ201: 34.59465723 | AK201: 34.19701749 | AL201: 33.79937775 | AM201: 33.40173802 | AN201: 33.00409828 | AO201: 32.60645854 | AP201: 32.2088188 | AQ201: 31.81117906
K202: Class 5 - Conservative | L202: =(L234+L331)*($N$41-1) -> 60.1063857 | M202: 58.44733378 | N202: 56.78828186 | O202: 55.12922994 | P202: 53.47017801 | Q202: 51.81112609 | R202: 50.15207417 | S202: 48.49302225 | T202: 46.83397032 | U202: 45.1749184 | V202: 43.51586648 | W202: 41.85681456 | X202: 41.64753048 | Y202: 41.43824641 | Z202: 41.22896234 | AA202: 41.01967827 | AB202: 40.81039419 | AC202: 40.60111012 | AD202: 40.39182605 | AE202: 40.18254197 | AF202: 39.9732579 | AG202: 39.76397383 | AH202: 39.55468976 | AI202: 39.34540568 | AJ202: 39.13612161 | AK202: 38.92683754 | AL202: 38.71755347 | AM202: 38.50826939 | AN202: 38.29898532 | AO202: 38.08970125 | AP202: 37.88041717 | AQ202: 37.6711331
K203: Class 6 - Advanced | L203: =(L235+L332)*($N$41-1) -> 60.1063857 | M203: 57.30578429 | N203: 54.50518288 | O203: 51.70458147 | P203: 48.90398006 | Q203: 46.10337865 | R203: 43.30277724 | S203: 40.50217583 | T203: 37.70157442 | U203: 34.90097301 | V203: 32.1003716 | W203: 29.29977019 | X203: 28.93352306 | Y203: 28.56727594 | Z203: 28.20102881 | AA203: 27.83478168 | AB203: 27.46853455 | AC203: 27.10228743 | AD203: 26.7360403 | AE203: 26.36979317 | AF203: 26.00354604 | AG203: 25.63729892 | AH203: 25.27105179 | AI203: 24.90480466 | AJ203: 24.53855753 | AK203: 24.17231041 | AL203: 23.80606328 | AM203: 23.43981615 | AN203: 23.07356902 | AO203: 22.7073219 | AP203: 22.34107477 | AQ203: 21.97482764
K204: Class 6 - Moderate | L204: =(L236+L333)*($N$41-1) -> 60.1063857 | M204: 58.25707553 | N204: 56.40776536 | O204: 54.55845519 | P204: 52.70914502 | Q204: 50.85983485 | R204: 49.01052468 | S204: 47.16121451 | T204: 45.31190434 | U204: 43.46259417 | V204: 41.613284 | W204: 39.76397383 | X204: 39.36633409 | Y204: 38.96869435 | Z204: 38.57105461 | AA204: 38.17341488 | AB204: 37.77577514 | AC204: 37.3781354 | AD204: 36.98049566 | AE204: 36.58285592 | AF204: 36.18521618 | AG204: 35.78757645 | AH204: 35.38993671 | AI204: 34.99229697 | AJ204: 34.59465723 | AK204: 34.19701749 | AL204: 33.79937775 | AM204: 33.40173802 | AN204: 33.00409828 | AO204: 32.60645854 | AP204: 32.2088188 | AQ204: 31.81117906
K205: Class 6 - Conservative | L205: =(L237+L334)*($N$41-1) -> 60.1063857 | M205: 58.44733378 | N205: 56.78828186 | O205: 55.12922994 | P205: 53.47017801 | Q205: 51.81112609 | R205: 50.15207417 | S205: 48.49302225 | T205: 46.83397032 | U205: 45.1749184 | V205: 43.51586648 | W205: 41.85681456 | X205: 41.64753048 | Y205: 41.43824641 | Z205: 41.22896234 | AA205: 41.01967827 | AB205: 40.81039419 | AC205: 40.60111012 | AD205: 40.39182605 | AE205: 40.18254197 | AF205: 39.9732579 | AG205: 39.76397383 | AH205: 39.55468976 | AI205: 39.34540568 | AJ205: 39.13612161 | AK205: 38.92683754 | AL205: 38.71755347 | AM205: 38.50826939 | AN205: 38.29898532 | AO205: 38.08970125 | AP205: 37.88041717 | AQ205: 37.6711331
K206: Class 7 - Advanced | L206: =(L238+L335)*($N$41-1) -> 60.1063857 | M206: 57.30578429 | N206: 54.50518288 | O206: 51.70458147 | P206: 48.90398006 | Q206: 46.10337865 | R206: 43.30277724 | S206: 40.50217583 | T206: 37.70157442 | U206: 34.90097301 | V206: 32.1003716 | W206: 29.29977019 | X206: 28.93352306 | Y206: 28.56727594 | Z206: 28.20102881 | AA206: 27.83478168 | AB206: 27.46853455 | AC206: 27.10228743 | AD206: 26.7360403 | AE206: 26.36979317 | AF206: 26.00354604 | AG206: 25.63729892 | AH206: 25.27105179 | AI206: 24.90480466 | AJ206: 24.53855753 | AK206: 24.17231041 | AL206: 23.80606328 | AM206: 23.43981615 | AN206: 23.07356902 | AO206: 22.7073219 | AP206: 22.34107477 | AQ206: 21.97482764
K207: Class 7 - Moderate | L207: =(L239+L336)*($N$41-1) -> 60.1063857 | M207: 58.25707553 | N207: 56.40776536 | O207: 54.55845519 | P207: 52.70914502 | Q207: 50.85983485 | R207: 49.01052468 | S207: 47.16121451 | T207: 45.31190434 | U207: 43.46259417 | V207: 41.613284 | W207: 39.76397383 | X207: 39.36633409 | Y207: 38.96869435 | Z207: 38.57105461 | AA207: 38.17341488 | AB207: 37.77577514 | AC207: 37.3781354 | AD207: 36.98049566 | AE207: 36.58285592 | AF207: 36.18521618 | AG207: 35.78757645 | AH207: 35.38993671 | AI207: 34.99229697 | AJ207: 34.59465723 | AK207: 34.19701749 | AL207: 33.79937775 | AM207: 33.40173802 | AN207: 33.00409828 | AO207: 32.60645854 | AP207: 32.2088188 | AQ207: 31.81117906
K208: Class 7 - Conservative | L208: =(L240+L337)*($N$41-1) -> 60.1063857 | M208: 58.44733378 | N208: 56.78828186 | O208: 55.12922994 | P208: 53.47017801 | Q208: 51.81112609 | R208: 50.15207417 | S208: 48.49302225 | T208: 46.83397032 | U208: 45.1749184 | V208: 43.51586648 | W208: 41.85681456 | X208: 41.64753048 | Y208: 41.43824641 | Z208: 41.22896234 | AA208: 41.01967827 | AB208: 40.81039419 | AC208: 40.60111012 | AD208: 40.39182605 | AE208: 40.18254197 | AF208: 39.9732579 | AG208: 39.76397383 | AH208: 39.55468976 | AI208: 39.34540568 | AJ208: 39.13612161 | AK208: 38.92683754 | AL208: 38.71755347 | AM208: 38.50826939 | AN208: 38.29898532 | AO208: 38.08970125 | AP208: 37.88041717 | AQ208: 37.6711331
K209: Class 8 - Advanced | L209: =(L241+L338)*($N$41-1) -> 60.1063857 | M209: 57.30578429 | N209: 54.50518288 | O209: 51.70458147 | P209: 48.90398006 | Q209: 46.10337865 | R209: 43.30277724 | S209: 40.50217583 | T209: 37.70157442 | U209: 34.90097301 | V209: 32.1003716 | W209: 29.29977019 | X209: 28.93352306 | Y209: 28.56727594 | Z209: 28.20102881 | AA209: 27.83478168 | AB209: 27.46853455 | AC209: 27.10228743 | AD209: 26.7360403 | AE209: 26.36979317 | AF209: 26.00354604 | AG209: 25.63729892 | AH209: 25.27105179 | AI209: 24.90480466 | AJ209: 24.53855753 | AK209: 24.17231041 | AL209: 23.80606328 | AM209: 23.43981615 | AN209: 23.07356902 | AO209: 22.7073219 | AP209: 22.34107477 | AQ209: 21.97482764
K210: Class 8 - Moderate | L210: =(L242+L339)*($N$41-1) -> 60.1063857 | M210: 58.25707553 | N210: 56.40776536 | O210: 54.55845519 | P210: 52.70914502 | Q210: 50.85983485 | R210: 49.01052468 | S210: 47.16121451 | T210: 45.31190434 | U210: 43.46259417 | V210: 41.613284 | W210: 39.76397383 | X210: 39.36633409 | Y210: 38.96869435 | Z210: 38.57105461 | AA210: 38.17341488 | AB210: 37.77577514 | AC210: 37.3781354 | AD210: 36.98049566 | AE210: 36.58285592 | AF210: 36.18521618 | AG210: 35.78757645 | AH210: 35.38993671 | AI210: 34.99229697 | AJ210: 34.59465723 | AK210: 34.19701749 | AL210: 33.79937775 | AM210: 33.40173802 | AN210: 33.00409828 | AO210: 32.60645854 | AP210: 32.2088188 | AQ210: 31.81117906
K211: Class 8 - Conservative | L211: =(L243+L340)*($N$41-1) -> 60.1063857 | M211: 58.44733378 | N211: 56.78828186 | O211: 55.12922994 | P211: 53.47017801 | Q211: 51.81112609 | R211: 50.15207417 | S211: 48.49302225 | T211: 46.83397032 | U211: 45.1749184 | V211: 43.51586648 | W211: 41.85681456 | X211: 41.64753048 | Y211: 41.43824641 | Z211: 41.22896234 | AA211: 41.01967827 | AB211: 40.81039419 | AC211: 40.60111012 | AD211: 40.39182605 | AE211: 40.18254197 | AF211: 39.9732579 | AG211: 39.76397383 | AH211: 39.55468976 | AI211: 39.34540568 | AJ211: 39.13612161 | AK211: 38.92683754 | AL211: 38.71755347 | AM211: 38.50826939 | AN211: 38.29898532 | AO211: 38.08970125 | AP211: 37.88041717 | AQ211: 37.6711331
K212: Class 9 - Advanced | L212: =(L244+L341)*($N$41-1) -> 60.1063857 | M212: 57.30578429 | N212: 54.50518288 | O212: 51.70458147 | P212: 48.90398006 | Q212: 46.10337865 | R212: 43.30277724 | S212: 40.50217583 | T212: 37.70157442 | U212: 34.90097301 | V212: 32.1003716 | W212: 29.29977019 | X212: 28.93352306 | Y212: 28.56727594 | Z212: 28.20102881 | AA212: 27.83478168 | AB212: 27.46853455 | AC212: 27.10228743 | AD212: 26.7360403 | AE212: 26.36979317 | AF212: 26.00354604 | AG212: 25.63729892 | AH212: 25.27105179 | AI212: 24.90480466 | AJ212: 24.53855753 | AK212: 24.17231041 | AL212: 23.80606328 | AM212: 23.43981615 | AN212: 23.07356902 | AO212: 22.7073219 | AP212: 22.34107477 | AQ212: 21.97482764
K213: Class 9 - Moderate | L213: =(L245+L342)*($N$41-1) -> 60.1063857 | M213: 58.25707553 | N213: 56.40776536 | O213: 54.55845519 | P213: 52.70914502 | Q213: 50.85983485 | R213: 49.01052468 | S213: 47.16121451 | T213: 45.31190434 | U213: 43.46259417 | V213: 41.613284 | W213: 39.76397383 | X213: 39.36633409 | Y213: 38.96869435 | Z213: 38.57105461 | AA213: 38.17341488 | AB213: 37.77577514 | AC213: 37.3781354 | AD213: 36.98049566 | AE213: 36.58285592 | AF213: 36.18521618 | AG213: 35.78757645 | AH213: 35.38993671 | AI213: 34.99229697 | AJ213: 34.59465723 | AK213: 34.19701749 | AL213: 33.79937775 | AM213: 33.40173802 | AN213: 33.00409828 | AO213: 32.60645854 | AP213: 32.2088188 | AQ213: 31.81117906
K214: Class 9 - Conservative | L214: =(L246+L343)*($N$41-1) -> 60.1063857 | M214: 58.44733378 | N214: 56.78828186 | O214: 55.12922994 | P214: 53.47017801 | Q214: 51.81112609 | R214: 50.15207417 | S214: 48.49302225 | T214: 46.83397032 | U214: 45.1749184 | V214: 43.51586648 | W214: 41.85681456 | X214: 41.64753048 | Y214: 41.43824641 | Z214: 41.22896234 | AA214: 41.01967827 | AB214: 40.81039419 | AC214: 40.60111012 | AD214: 40.39182605 | AE214: 40.18254197 | AF214: 39.9732579 | AG214: 39.76397383 | AH214: 39.55468976 | AI214: 39.34540568 | AJ214: 39.13612161 | AK214: 38.92683754 | AL214: 38.71755347 | AM214: 38.50826939 | AN214: 38.29898532 | AO214: 38.08970125 | AP214: 37.88041717 | AQ214: 37.6711331
... 210 more rows

Sheet Solar - Utility PV
A1: Solar Utility PV | L1: https://atb.nrel.gov/electricity/2021/utility-scale_pv
T3: Inputs
J4: Take me to: | T4: Calculated
B7: X | G7: Assumptions
H9: Technology | J9: Basis Year: | L9: 2019
J10: All values are given in 2019 U.S. dollars, using the Consumer Price Index (BLS, 2020) for dollar year conversions. Projections use an inflation assumption of 2.5% per year.
J11: Utility Scale Solar Photovoltaic
J12: Representative plant is Single Axis tracking with capacity of 100 MW
J13: Overnight Capital Cost, Capacity Factor, Fixed O&M, and Variable O&M costs represent
J14: $/kW AC, unlike the commercial and residential PV cases which are represented in $/kW DC.
J15: Capacity factors chosen here to reflect range across the continental U.S. in ReEDS.
J16: Available Capacity (GW)
J19: 176965
L20: ATB values reflect annual average capacity factor over life of plant including estimated degradation, starting at 0.7% per year, reducing to 0.2%, 0.5%, and 0.5% annual degradation by 2050 for the advanced, moderate, and conservative scenarios, respectively. Capacity factors also assume an energy yield gain at the module of 20%, 10%, and 5% for advanced, moderate, and conservatives scenarios.
H26: Finance | J26: Financial Assumptions:
J27: Inflation Rate | N27: =L57 -> 0.025
J28: Capital Recovery Period (Years) | N28: =S28 -> 30 | S28: 30
J29: Interest Rate Nominal - Moderate | N29: =L59 -> 0.04
J30: Calculated Interest Rate Real - Moderate | N30: =L62 -> 0.01463414634
J31: Interest During Construction - Nominal | N31: =L64 -> 0.035
J32: Rate of Return on Equity Nominal - Moderate | N32: =L66 -> 0.078
J33: Calculated Rate of Return on Equity Real - Moderate | N33: =L69 -> 0.05170731707
J34: Debt Fraction - Moderate | N34: =L73 -> 0.735
J35: Tax Rate (Federal and State) | N35: =L74 -> 0.2574
J36: WACC Nominal - Moderate | N36: =L76 -> 0.04250244
J37: WACC Real - Moderate | N37: =L79 -> 0.01707555122
J38: Depreciation Period | N38: 5
J39: Construction Finance Factor | N39: =SUMPRODUCT(K52:K54,L52:L54,M52:M54)+SUMPRODUCT(K52:K54,O52:O54,N52:N54) -> 1.021725695
J40: Present Value of Depreciation | N40: =SUMPRODUCT(R48:W48,R50:W50) -> 0.8917032444
J41: Project Finance Factor | N41: =(1 - N40 * N35) / (1 - N35) -> 1.03753782
J42: Capital Recovery Factor (CRF) Nominal - Moderate | N42: =L83 -> 0.05959998452
J43: Capital Recovery Factor (CRF) Real - Moderate | N43: =L86 -> 0.0428745919
J44: Equity Premium During Construction | N44: 0.02
J45: Cost of equity during construction | N45: =N32+N44 -> 0.098
J47: Construction Duration yrs | L47: 1 | Q47: MACRS yr | R47: 1 | S47: 2 | T47: 3 | U47: 4 | V47: 5 | W47: 6
J48: Year | K48: Capital | L48: Accumulated | M48: Percent of Leverage During Construction | N48: Percent of Equity During Construction | O48: Accumulated Equity Cost | Q48: Depreciation | R48: 0.2 | S48: 0.32 | T48: 0.192 | U48: 0.1152 | V48: 0.1152 | W48: 0.0576
J49: Index | K49: Fraction | L49: Interest | Q49: Fraction
Q50: Depreciation | R50: =1/((1+N37)*(1+N27))^R47 -> 0.9592303688 | S50: =1/((1+N37)*(1+N27))^S47 -> 0.9201229004 | T50: =1/((1+N37)*(1+N27))^T47 -> 0.8826098291 | U50: =1/((1+N37)*(1+N27))^U47 -> 0.8466261519 | V50: =1/((1+N37)*(1+N27))^V47 -> 0.8121095159 | W50: =1/((1+N37)*(1+N27))^W47 -> 0.7790001105
J52: 0 | K52: 1 | L52: =1+((1+N31)^(J52+0.5)-1) -> 1.017349497 | M52: 0.8 | N52: 0.2 | O52: 1.039230485
J53: 1 | K53: 0 | L53: =1+((1+N31)^(J53+0.5)-1) -> 1.05295673 | M53: 0.8 | N53: 0.2 | O53: 1.122368923 | Q53: Factor
J54: 2 | K54: 0 | L54: =1+((1+N31)^(J54+0.5)-1) -> 1.089810215 | M54: 0.8 | N54: 0.2 | O54: 1.212158437
L56: 2019 | M56: 2020 | N56: 2021 | O56: 2022 | P56: 2023 | Q56: 2024 | R56: 2025 | S56: 2026 | T56: 2027 | U56: 2028 | V56: 2029 | W56: 2030 | X56: 2031 | Y56: 2032 | Z56: 2033 | AA56: 2034 | AB56: 2035 | AC56: 2036 | AD56: 2037 | AE56: 2038 | AF56: 2039 | AG56: 2040 | AH56: 2041 | AI56: 2042 | AJ56: 2043 | AK56: 2044 | AL56: 2045 | AM56: 2046 | AN56: 2047 | AO56: 2048 | AP56: 2049 | AQ56: 2050
J57: Assumptions | K57: Inflation Rate | L57: ='WACC Calc'!F394 -> 0.025 | M57: ='WACC Calc'!G394 -> 0.025 | N57: ='WACC Calc'!H394 -> 0.025 | O57: ='WACC Calc'!I394 -> 0.025 | P57: ='WACC Calc'!J394 -> 0.025 | Q57: ='WACC Calc'!K394 -> 0.025 | R57: ='WACC Calc'!L394 -> 0.025 | S57: ='WACC Calc'!M394 -> 0.025 | T57: ='WACC Calc'!N394 -> 0.025 | U57: ='WACC Calc'!O394 -> 0.025 | V57: ='WACC Calc'!P394 -> 0.025 | W57: ='WACC Calc'!Q394 -> 0.025 | X57: ='WACC Calc'!R394 -> 0.025 | Y57: ='WACC Calc'!S394 -> 0.025 | Z57: ='WACC Calc'!T394 -> 0.025 | AA57: ='WACC Calc'!U394 -> 0.025 | AB57: ='WACC Calc'!V394 -> 0.025 | AC57: ='WACC Calc'!W394 -> 0.025 | AD57: ='WACC Calc'!X394 -> 0.025 | AE57: ='WACC Calc'!Y394 -> 0.025 | AF57: ='WACC Calc'!Z394 -> 0.025 | AG57: ='WACC Calc'!AA394 -> 0.025 | AH57: ='WACC Calc'!AB394 -> 0.025 | AI57: ='WACC Calc'!AC394 -> 0.025 | AJ57: ='WACC Calc'!AD394 -> 0.025 | AK57: ='WACC Calc'!AE394 -> 0.025 | AL57: ='WACC Calc'!AF394 -> 0.025 | AM57: ='WACC Calc'!AG394 -> 0.025 | AN57: ='WACC Calc'!AH394 -> 0.025 | AO57: ='WACC Calc'!AI394 -> 0.025 | AP57: ='WACC Calc'!AJ394 -> 0.025 | AQ57: ='WACC Calc'!AK394 -> 0.025
K58: Interest Rate Nominal - Advanced | L58: ='WACC Calc'!F395 -> 0.04 | M58: ='WACC Calc'!G395 -> 0.04 | N58: ='WACC Calc'!H395 -> 0.04 | O58: ='WACC Calc'!I395 -> 0.04 | P58: ='WACC Calc'!J395 -> 0.04 | Q58: ='WACC Calc'!K395 -> 0.04 | R58: ='WACC Calc'!L395 -> 0.04 | S58: ='WACC Calc'!M395 -> 0.04 | T58: ='WACC Calc'!N395 -> 0.04 | U58: ='WACC Calc'!O395 -> 0.04 | V58: ='WACC Calc'!P395 -> 0.04 | W58: ='WACC Calc'!Q395 -> 0.04 | X58: ='WACC Calc'!R395 -> 0.04 | Y58: ='WACC Calc'!S395 -> 0.04 | Z58: ='WACC Calc'!T395 -> 0.04 | AA58: ='WACC Calc'!U395 -> 0.04 | AB58: ='WACC Calc'!V395 -> 0.04 | AC58: ='WACC Calc'!W395 -> 0.04 | AD58: ='WACC Calc'!X395 -> 0.04 | AE58: ='WACC Calc'!Y395 -> 0.04 | AF58: ='WACC Calc'!Z395 -> 0.04 | AG58: ='WACC Calc'!AA395 -> 0.04 | AH58: ='WACC Calc'!AB395 -> 0.04 | AI58: ='WACC Calc'!AC395 -> 0.04 | AJ58: ='WACC Calc'!AD395 -> 0.04 | AK58: ='WACC Calc'!AE395 -> 0.04 | AL58: ='WACC Calc'!AF395 -> 0.04 | AM58: ='WACC Calc'!AG395 -> 0.04 | AN58: ='WACC Calc'!AH395 -> 0.04 | AO58: ='WACC Calc'!AI395 -> 0.04 | AP58: ='WACC Calc'!AJ395 -> 0.04 | AQ58: ='WACC Calc'!AK395 -> 0.04
K59: Interest Rate Nominal - Moderate | L59: ='WACC Calc'!F396 -> 0.04 | M59: ='WACC Calc'!G396 -> 0.04 | N59: ='WACC Calc'!H396 -> 0.04 | O59: ='WACC Calc'!I396 -> 0.04 | P59: ='WACC Calc'!J396 -> 0.04 | Q59: ='WACC Calc'!K396 -> 0.04 | R59: ='WACC Calc'!L396 -> 0.04 | S59: ='WACC Calc'!M396 -> 0.04 | T59: ='WACC Calc'!N396 -> 0.04 | U59: ='WACC Calc'!O396 -> 0.04 | V59: ='WACC Calc'!P396 -> 0.04 | W59: ='WACC Calc'!Q396 -> 0.04 | X59: ='WACC Calc'!R396 -> 0.04 | Y59: ='WACC Calc'!S396 -> 0.04 | Z59: ='WACC Calc'!T396 -> 0.04 | AA59: ='WACC Calc'!U396 -> 0.04 | AB59: ='WACC Calc'!V396 -> 0.04 | AC59: ='WACC Calc'!W396 -> 0.04 | AD59: ='WACC Calc'!X396 -> 0.04 | AE59: ='WACC Calc'!Y396 -> 0.04 | AF59: ='WACC Calc'!Z396 -> 0.04 | AG59: ='WACC Calc'!AA396 -> 0.04 | AH59: ='WACC Calc'!AB396 -> 0.04 | AI59: ='WACC Calc'!AC396 -> 0.04 | AJ59: ='WACC Calc'!AD396 -> 0.04 | AK59: ='WACC Calc'!AE396 -> 0.04 | AL59: ='WACC Calc'!AF396 -> 0.04 | AM59: ='WACC Calc'!AG396 -> 0.04 | AN59: ='WACC Calc'!AH396 -> 0.04 | AO59: ='WACC Calc'!AI396 -> 0.04 | AP59: ='WACC Calc'!AJ396 -> 0.04 | AQ59: ='WACC Calc'!AK396 -> 0.04
K60: Interest Rate Nominal - Conservative | L60: ='WACC Calc'!F397 -> 0.04 | M60: ='WACC Calc'!G397 -> 0.04 | N60: ='WACC Calc'!H397 -> 0.04 | O60: ='WACC Calc'!I397 -> 0.04 | P60: ='WACC Calc'!J397 -> 0.04 | Q60: ='WACC Calc'!K397 -> 0.04 | R60: ='WACC Calc'!L397 -> 0.04 | S60: ='WACC Calc'!M397 -> 0.04 | T60: ='WACC Calc'!N397 -> 0.04 | U60: ='WACC Calc'!O397 -> 0.04 | V60: ='WACC Calc'!P397 -> 0.04 | W60: ='WACC Calc'!Q397 -> 0.04 | X60: ='WACC Calc'!R397 -> 0.04 | Y60: ='WACC Calc'!S397 -> 0.04 | Z60: ='WACC Calc'!T397 -> 0.04 | AA60: ='WACC Calc'!U397 -> 0.04 | AB60: ='WACC Calc'!V397 -> 0.04 | AC60: ='WACC Calc'!W397 -> 0.04 | AD60: ='WACC Calc'!X397 -> 0.04 | AE60: ='WACC Calc'!Y397 -> 0.04 | AF60: ='WACC Calc'!Z397 -> 0.04 | AG60: ='WACC Calc'!AA397 -> 0.04 | AH60: ='WACC Calc'!AB397 -> 0.04 | AI60: ='WACC Calc'!AC397 -> 0.04 | AJ60: ='WACC Calc'!AD397 -> 0.04 | AK60: ='WACC Calc'!AE397 -> 0.04 | AL60: ='WACC Calc'!AF397 -> 0.04 | AM60: ='WACC Calc'!AG397 -> 0.04 | AN60: ='WACC Calc'!AH397 -> 0.04 | AO60: ='WACC Calc'!AI397 -> 0.04 | AP60: ='WACC Calc'!AJ397 -> 0.04 | AQ60: ='WACC Calc'!AK397 -> 0.04
K61: Calculated Interest Rate Real - Advanced | L61: ='WACC Calc'!F398 -> 0.01463414634 | M61: ='WACC Calc'!G398 -> 0.01463414634 | N61: ='WACC Calc'!H398 -> 0.01463414634 | O61: ='WACC Calc'!I398 -> 0.01463414634 | P61: ='WACC Calc'!J398 -> 0.01463414634 | Q61: ='WACC Calc'!K398 -> 0.01463414634 | R61: ='WACC Calc'!L398 -> 0.01463414634 | S61: ='WACC Calc'!M398 -> 0.01463414634 | T61: ='WACC Calc'!N398 -> 0.01463414634 | U61: ='WACC Calc'!O398 -> 0.01463414634 | V61: ='WACC Calc'!P398 -> 0.01463414634 | W61: ='WACC Calc'!Q398 -> 0.01463414634 | X61: ='WACC Calc'!R398 -> 0.01463414634 | Y61: ='WACC Calc'!S398 -> 0.01463414634 | Z61: ='WACC Calc'!T398 -> 0.01463414634 | AA61: ='WACC Calc'!U398 -> 0.01463414634 | AB61: ='WACC Calc'!V398 -> 0.01463414634 | AC61: ='WACC Calc'!W398 -> 0.01463414634 | AD61: ='WACC Calc'!X398 -> 0.01463414634 | AE61: ='WACC Calc'!Y398 -> 0.01463414634 | AF61: ='WACC Calc'!Z398 -> 0.01463414634 | AG61: ='WACC Calc'!AA398 -> 0.01463414634 | AH61: ='WACC Calc'!AB398 -> 0.01463414634 | AI61: ='WACC Calc'!AC398 -> 0.01463414634 | AJ61: ='WACC Calc'!AD398 -> 0.01463414634 | AK61: ='WACC Calc'!AE398 -> 0.01463414634 | AL61: ='WACC Calc'!AF398 -> 0.01463414634 | AM61: ='WACC Calc'!AG398 -> 0.01463414634 | AN61: ='WACC Calc'!AH398 -> 0.01463414634 | AO61: ='WACC Calc'!AI398 -> 0.01463414634 | AP61: ='WACC Calc'!AJ398 -> 0.01463414634 | AQ61: ='WACC Calc'!AK398 -> 0.01463414634
K62: Calculated Interest Rate Real - Moderate | L62: ='WACC Calc'!F399 -> 0.01463414634 | M62: ='WACC Calc'!G399 -> 0.01463414634 | N62: ='WACC Calc'!H399 -> 0.01463414634 | O62: ='WACC Calc'!I399 -> 0.01463414634 | P62: ='WACC Calc'!J399 -> 0.01463414634 | Q62: ='WACC Calc'!K399 -> 0.01463414634 | R62: ='WACC Calc'!L399 -> 0.01463414634 | S62: ='WACC Calc'!M399 -> 0.01463414634 | T62: ='WACC Calc'!N399 -> 0.01463414634 | U62: ='WACC Calc'!O399 -> 0.01463414634 | V62: ='WACC Calc'!P399 -> 0.01463414634 | W62: ='WACC Calc'!Q399 -> 0.01463414634 | X62: ='WACC Calc'!R399 -> 0.01463414634 | Y62: ='WACC Calc'!S399 -> 0.01463414634 | Z62: ='WACC Calc'!T399 -> 0.01463414634 | AA62: ='WACC Calc'!U399 -> 0.01463414634 | AB62: ='WACC Calc'!V399 -> 0.01463414634 | AC62: ='WACC Calc'!W399 -> 0.01463414634 | AD62: ='WACC Calc'!X399 -> 0.01463414634 | AE62: ='WACC Calc'!Y399 -> 0.01463414634 | AF62: ='WACC Calc'!Z399 -> 0.01463414634 | AG62: ='WACC Calc'!AA399 -> 0.01463414634 | AH62: ='WACC Calc'!AB399 -> 0.01463414634 | AI62: ='WACC Calc'!AC399 -> 0.01463414634 | AJ62: ='WACC Calc'!AD399 -> 0.01463414634 | AK62: ='WACC Calc'!AE399 -> 0.01463414634 | AL62: ='WACC Calc'!AF399 -> 0.01463414634 | AM62: ='WACC Calc'!AG399 -> 0.01463414634 | AN62: ='WACC Calc'!AH399 -> 0.01463414634 | AO62: ='WACC Calc'!AI399 -> 0.01463414634 | AP62: ='WACC Calc'!AJ399 -> 0.01463414634 | AQ62: ='WACC Calc'!AK399 -> 0.01463414634
K63: Calculated Interest Rate Real - Conservative | L63: ='WACC Calc'!F400 -> 0.01463414634 | M63: ='WACC Calc'!G400 -> 0.01463414634 | N63: ='WACC Calc'!H400 -> 0.01463414634 | O63: ='WACC Calc'!I400 -> 0.01463414634 | P63: ='WACC Calc'!J400 -> 0.01463414634 | Q63: ='WACC Calc'!K400 -> 0.01463414634 | R63: ='WACC Calc'!L400 -> 0.01463414634 | S63: ='WACC Calc'!M400 -> 0.01463414634 | T63: ='WACC Calc'!N400 -> 0.01463414634 | U63: ='WACC Calc'!O400 -> 0.01463414634 | V63: ='WACC Calc'!P400 -> 0.01463414634 | W63: ='WACC Calc'!Q400 -> 0.01463414634 | X63: ='WACC Calc'!R400 -> 0.01463414634 | Y63: ='WACC Calc'!S400 -> 0.01463414634 | Z63: ='WACC Calc'!T400 -> 0.01463414634 | AA63: ='WACC Calc'!U400 -> 0.01463414634 | AB63: ='WACC Calc'!V400 -> 0.01463414634 | AC63: ='WACC Calc'!W400 -> 0.01463414634 | AD63: ='WACC Calc'!X400 -> 0.01463414634 | AE63: ='WACC Calc'!Y400 -> 0.01463414634 | AF63: ='WACC Calc'!Z400 -> 0.01463414634 | AG63: ='WACC Calc'!AA400 -> 0.01463414634 | AH63: ='WACC Calc'!AB400 -> 0.01463414634 | AI63: ='WACC Calc'!AC400 -> 0.01463414634 | AJ63: ='WACC Calc'!AD400 -> 0.01463414634 | AK63: ='WACC Calc'!AE400 -> 0.01463414634 | AL63: ='WACC Calc'!AF400 -> 0.01463414634 | AM63: ='WACC Calc'!AG400 -> 0.01463414634 | AN63: ='WACC Calc'!AH400 -> 0.01463414634 | AO63: ='WACC Calc'!AI400 -> 0.01463414634 | AP63: ='WACC Calc'!AJ400 -> 0.01463414634 | AQ63: ='WACC Calc'!AK400 -> 0.01463414634
K64: Interest During Construction - Nominal | L64: ='WACC Calc'!F401 -> 0.035 | M64: ='WACC Calc'!G401 -> 0.035 | N64: ='WACC Calc'!H401 -> 0.035 | O64: ='WACC Calc'!I401 -> 0.035 | P64: ='WACC Calc'!J401 -> 0.035 | Q64: ='WACC Calc'!K401 -> 0.035 | R64: ='WACC Calc'!L401 -> 0.035 | S64: ='WACC Calc'!M401 -> 0.035 | T64: ='WACC Calc'!N401 -> 0.035 | U64: ='WACC Calc'!O401 -> 0.035 | V64: ='WACC Calc'!P401 -> 0.035 | W64: ='WACC Calc'!Q401 -> 0.035 | X64: ='WACC Calc'!R401 -> 0.035 | Y64: ='WACC Calc'!S401 -> 0.035 | Z64: ='WACC Calc'!T401 -> 0.035 | AA64: ='WACC Calc'!U401 -> 0.035 | AB64: ='WACC Calc'!V401 -> 0.035 | AC64: ='WACC Calc'!W401 -> 0.035 | AD64: ='WACC Calc'!X401 -> 0.035 | AE64: ='WACC Calc'!Y401 -> 0.035 | AF64: ='WACC Calc'!Z401 -> 0.035 | AG64: ='WACC Calc'!AA401 -> 0.035 | AH64: ='WACC Calc'!AB401 -> 0.035 | AI64: ='WACC Calc'!AC401 -> 0.035 | AJ64: ='WACC Calc'!AD401 -> 0.035 | AK64: ='WACC Calc'!AE401 -> 0.035 | AL64: ='WACC Calc'!AF401 -> 0.035 | AM64: ='WACC Calc'!AG401 -> 0.035 | AN64: ='WACC Calc'!AH401 -> 0.035 | AO64: ='WACC Calc'!AI401 -> 0.035 | AP64: ='WACC Calc'!AJ401 -> 0.035 | AQ64: ='WACC Calc'!AK401 -> 0.035
K65: Rate of Return on Equity Nominal - Advanced | L65: ='WACC Calc'!F402 -> 0.078 | M65: ='WACC Calc'!G402 -> 0.078 | N65: ='WACC Calc'!H402 -> 0.078 | O65: ='WACC Calc'!I402 -> 0.078 | P65: ='WACC Calc'!J402 -> 0.078 | Q65: ='WACC Calc'!K402 -> 0.078 | R65: ='WACC Calc'!L402 -> 0.078 | S65: ='WACC Calc'!M402 -> 0.078 | T65: ='WACC Calc'!N402 -> 0.078 | U65: ='WACC Calc'!O402 -> 0.078 | V65: ='WACC Calc'!P402 -> 0.078 | W65: ='WACC Calc'!Q402 -> 0.078 | X65: ='WACC Calc'!R402 -> 0.078 | Y65: ='WACC Calc'!S402 -> 0.078 | Z65: ='WACC Calc'!T402 -> 0.078 | AA65: ='WACC Calc'!U402 -> 0.078 | AB65: ='WACC Calc'!V402 -> 0.078 | AC65: ='WACC Calc'!W402 -> 0.078 | AD65: ='WACC Calc'!X402 -> 0.078 | AE65: ='WACC Calc'!Y402 -> 0.078 | AF65: ='WACC Calc'!Z402 -> 0.078 | AG65: ='WACC Calc'!AA402 -> 0.078 | AH65: ='WACC Calc'!AB402 -> 0.078 | AI65: ='WACC Calc'!AC402 -> 0.078 | AJ65: ='WACC Calc'!AD402 -> 0.078 | AK65: ='WACC Calc'!AE402 -> 0.078 | AL65: ='WACC Calc'!AF402 -> 0.078 | AM65: ='WACC Calc'!AG402 -> 0.078 | AN65: ='WACC Calc'!AH402 -> 0.078 | AO65: ='WACC Calc'!AI402 -> 0.078 | AP65: ='WACC Calc'!AJ402 -> 0.078 | AQ65: ='WACC Calc'!AK402 -> 0.078
K66: Rate of Return on Equity Nominal - Moderate | L66: ='WACC Calc'!F403 -> 0.078 | M66: ='WACC Calc'!G403 -> 0.078 | N66: ='WACC Calc'!H403 -> 0.078 | O66: ='WACC Calc'!I403 -> 0.078 | P66: ='WACC Calc'!J403 -> 0.078 | Q66: ='WACC Calc'!K403 -> 0.078 | R66: ='WACC Calc'!L403 -> 0.078 | S66: ='WACC Calc'!M403 -> 0.078 | T66: ='WACC Calc'!N403 -> 0.078 | U66: ='WACC Calc'!O403 -> 0.078 | V66: ='WACC Calc'!P403 -> 0.078 | W66: ='WACC Calc'!Q403 -> 0.078 | X66: ='WACC Calc'!R403 -> 0.078 | Y66: ='WACC Calc'!S403 -> 0.078 | Z66: ='WACC Calc'!T403 -> 0.078 | AA66: ='WACC Calc'!U403 -> 0.078 | AB66: ='WACC Calc'!V403 -> 0.078 | AC66: ='WACC Calc'!W403 -> 0.078 | AD66: ='WACC Calc'!X403 -> 0.078 | AE66: ='WACC Calc'!Y403 -> 0.078 | AF66: ='WACC Calc'!Z403 -> 0.078 | AG66: ='WACC Calc'!AA403 -> 0.078 | AH66: ='WACC Calc'!AB403 -> 0.078 | AI66: ='WACC Calc'!AC403 -> 0.078 | AJ66: ='WACC Calc'!AD403 -> 0.078 | AK66: ='WACC Calc'!AE403 -> 0.078 | AL66: ='WACC Calc'!AF403 -> 0.078 | AM66: ='WACC Calc'!AG403 -> 0.078 | AN66: ='WACC Calc'!AH403 -> 0.078 | AO66: ='WACC Calc'!AI403 -> 0.078 | AP66: ='WACC Calc'!AJ403 -> 0.078 | AQ66: ='WACC Calc'!AK403 -> 0.078
K67: Rate of Return on Equity Nominal - Conservative | L67: ='WACC Calc'!F404 -> 0.078 | M67: ='WACC Calc'!G404 -> 0.078 | N67: ='WACC Calc'!H404 -> 0.078 | O67: ='WACC Calc'!I404 -> 0.078 | P67: ='WACC Calc'!J404 -> 0.078 | Q67: ='WACC Calc'!K404 -> 0.078 | R67: ='WACC Calc'!L404 -> 0.078 | S67: ='WACC Calc'!M404 -> 0.078 | T67: ='WACC Calc'!N404 -> 0.078 | U67: ='WACC Calc'!O404 -> 0.078 | V67: ='WACC Calc'!P404 -> 0.078 | W67: ='WACC Calc'!Q404 -> 0.078 | X67: ='WACC Calc'!R404 -> 0.078 | Y67: ='WACC Calc'!S404 -> 0.078 | Z67: ='WACC Calc'!T404 -> 0.078 | AA67: ='WACC Calc'!U404 -> 0.078 | AB67: ='WACC Calc'!V404 -> 0.078 | AC67: ='WACC Calc'!W404 -> 0.078 | AD67: ='WACC Calc'!X404 -> 0.078 | AE67: ='WACC Calc'!Y404 -> 0.078 | AF67: ='WACC Calc'!Z404 -> 0.078 | AG67: ='WACC Calc'!AA404 -> 0.078 | AH67: ='WACC Calc'!AB404 -> 0.078 | AI67: ='WACC Calc'!AC404 -> 0.078 | AJ67: ='WACC Calc'!AD404 -> 0.078 | AK67: ='WACC Calc'!AE404 -> 0.078 | AL67: ='WACC Calc'!AF404 -> 0.078 | AM67: ='WACC Calc'!AG404 -> 0.078 | AN67: ='WACC Calc'!AH404 -> 0.078 | AO67: ='WACC Calc'!AI404 -> 0.078 | AP67: ='WACC Calc'!AJ404 -> 0.078 | AQ67: ='WACC Calc'!AK404 -> 0.078
K68: Calculated Rate of Return on Equity Real - Advanced | L68: ='WACC Calc'!F405 -> 0.05170731707 | M68: ='WACC Calc'!G405 -> 0.05170731707 | N68: ='WACC Calc'!H405 -> 0.05170731707 | O68: ='WACC Calc'!I405 -> 0.05170731707 | P68: ='WACC Calc'!J405 -> 0.05170731707 | Q68: ='WACC Calc'!K405 -> 0.05170731707 | R68: ='WACC Calc'!L405 -> 0.05170731707 | S68: ='WACC Calc'!M405 -> 0.05170731707 | T68: ='WACC Calc'!N405 -> 0.05170731707 | U68: ='WACC Calc'!O405 -> 0.05170731707 | V68: ='WACC Calc'!P405 -> 0.05170731707 | W68: ='WACC Calc'!Q405 -> 0.05170731707 | X68: ='WACC Calc'!R405 -> 0.05170731707 | Y68: ='WACC Calc'!S405 -> 0.05170731707 | Z68: ='WACC Calc'!T405 -> 0.05170731707 | AA68: ='WACC Calc'!U405 -> 0.05170731707 | AB68: ='WACC Calc'!V405 -> 0.05170731707 | AC68: ='WACC Calc'!W405 -> 0.05170731707 | AD68: ='WACC Calc'!X405 -> 0.05170731707 | AE68: ='WACC Calc'!Y405 -> 0.05170731707 | AF68: ='WACC Calc'!Z405 -> 0.05170731707 | AG68: ='WACC Calc'!AA405 -> 0.05170731707 | AH68: ='WACC Calc'!AB405 -> 0.05170731707 | AI68: ='WACC Calc'!AC405 -> 0.05170731707 | AJ68: ='WACC Calc'!AD405 -> 0.05170731707 | AK68: ='WACC Calc'!AE405 -> 0.05170731707 | AL68: ='WACC Calc'!AF405 -> 0.05170731707 | AM68: ='WACC Calc'!AG405 -> 0.05170731707 | AN68: ='WACC Calc'!AH405 -> 0.05170731707 | AO68: ='WACC Calc'!AI405 -> 0.05170731707 | AP68: ='WACC Calc'!AJ405 -> 0.05170731707 | AQ68: ='WACC Calc'!AK405 -> 0.05170731707
K69: Calculated Rate of Return on Equity Real - Moderate | L69: ='WACC Calc'!F406 -> 0.05170731707 | M69: ='WACC Calc'!G406 -> 0.05170731707 | N69: ='WACC Calc'!H406 -> 0.05170731707 | O69: ='WACC Calc'!I406 -> 0.05170731707 | P69: ='WACC Calc'!J406 -> 0.05170731707 | Q69: ='WACC Calc'!K406 -> 0.05170731707 | R69: ='WACC Calc'!L406 -> 0.05170731707 | S69: ='WACC Calc'!M406 -> 0.05170731707 | T69: ='WACC Calc'!N406 -> 0.05170731707 | U69: ='WACC Calc'!O406 -> 0.05170731707 | V69: ='WACC Calc'!P406 -> 0.05170731707 | W69: ='WACC Calc'!Q406 -> 0.05170731707 | X69: ='WACC Calc'!R406 -> 0.05170731707 | Y69: ='WACC Calc'!S406 -> 0.05170731707 | Z69: ='WACC Calc'!T406 -> 0.05170731707 | AA69: ='WACC Calc'!U406 -> 0.05170731707 | AB69: ='WACC Calc'!V406 -> 0.05170731707 | AC69: ='WACC Calc'!W406 -> 0.05170731707 | AD69: ='WACC Calc'!X406 -> 0.05170731707 | AE69: ='WACC Calc'!Y406 -> 0.05170731707 | AF69: ='WACC Calc'!Z406 -> 0.05170731707 | AG69: ='WACC Calc'!AA406 -> 0.05170731707 | AH69: ='WACC Calc'!AB406 -> 0.05170731707 | AI69: ='WACC Calc'!AC406 -> 0.05170731707 | AJ69: ='WACC Calc'!AD406 -> 0.05170731707 | AK69: ='WACC Calc'!AE406 -> 0.05170731707 | AL69: ='WACC Calc'!AF406 -> 0.05170731707 | AM69: ='WACC Calc'!AG406 -> 0.05170731707 | AN69: ='WACC Calc'!AH406 -> 0.05170731707 | AO69: ='WACC Calc'!AI406 -> 0.05170731707 | AP69: ='WACC Calc'!AJ406 -> 0.05170731707 | AQ69: ='WACC Calc'!AK406 -> 0.05170731707
K70: Calculated Rate of Return on Equity Real - Conservative | L70: ='WACC Calc'!F407 -> 0.05170731707 | M70: ='WACC Calc'!G407 -> 0.05170731707 | N70: ='WACC Calc'!H407 -> 0.05170731707 | O70: ='WACC Calc'!I407 -> 0.05170731707 | P70: ='WACC Calc'!J407 -> 0.05170731707 | Q70: ='WACC Calc'!K407 -> 0.05170731707 | R70: ='WACC Calc'!L407 -> 0.05170731707 | S70: ='WACC Calc'!M407 -> 0.05170731707 | T70: ='WACC Calc'!N407 -> 0.05170731707 | U70: ='WACC Calc'!O407 -> 0.05170731707 | V70: ='WACC Calc'!P407 -> 0.05170731707 | W70: ='WACC Calc'!Q407 -> 0.05170731707 | X70: ='WACC Calc'!R407 -> 0.05170731707 | Y70: ='WACC Calc'!S407 -> 0.05170731707 | Z70: ='WACC Calc'!T407 -> 0.05170731707 | AA70: ='WACC Calc'!U407 -> 0.05170731707 | AB70: ='WACC Calc'!V407 -> 0.05170731707 | AC70: ='WACC Calc'!W407 -> 0.05170731707 | AD70: ='WACC Calc'!X407 -> 0.05170731707 | AE70: ='WACC Calc'!Y407 -> 0.05170731707 | AF70: ='WACC Calc'!Z407 -> 0.05170731707 | AG70: ='WACC Calc'!AA407 -> 0.05170731707 | AH70: ='WACC Calc'!AB407 -> 0.05170731707 | AI70: ='WACC Calc'!AC407 -> 0.05170731707 | AJ70: ='WACC Calc'!AD407 -> 0.05170731707 | AK70: ='WACC Calc'!AE407 -> 0.05170731707 | AL70: ='WACC Calc'!AF407 -> 0.05170731707 | AM70: ='WACC Calc'!AG407 -> 0.05170731707 | AN70: ='WACC Calc'!AH407 -> 0.05170731707 | AO70: ='WACC Calc'!AI407 -> 0.05170731707 | AP70: ='WACC Calc'!AJ407 -> 0.05170731707 | AQ70: ='WACC Calc'!AK407 -> 0.05170731707
K71: Debt Fraction - Advanced | L71: ='WACC Calc'!F408 -> 0.735 | M71: ='WACC Calc'!G408 -> 0.735 | N71: ='WACC Calc'!H408 -> 0.735 | O71: ='WACC Calc'!I408 -> 0.735 | P71: ='WACC Calc'!J408 -> 0.735 | Q71: ='WACC Calc'!K408 -> 0.735 | R71: ='WACC Calc'!L408 -> 0.735 | S71: ='WACC Calc'!M408 -> 0.735 | T71: ='WACC Calc'!N408 -> 0.735 | U71: ='WACC Calc'!O408 -> 0.735 | V71: ='WACC Calc'!P408 -> 0.735 | W71: ='WACC Calc'!Q408 -> 0.735 | X71: ='WACC Calc'!R408 -> 0.735 | Y71: ='WACC Calc'!S408 -> 0.735 | Z71: ='WACC Calc'!T408 -> 0.735 | AA71: ='WACC Calc'!U408 -> 0.735 | AB71: ='WACC Calc'!V408 -> 0.735 | AC71: ='WACC Calc'!W408 -> 0.735 | AD71: ='WACC Calc'!X408 -> 0.735 | AE71: ='WACC Calc'!Y408 -> 0.735 | AF71: ='WACC Calc'!Z408 -> 0.735 | AG71: ='WACC Calc'!AA408 -> 0.735 | AH71: ='WACC Calc'!AB408 -> 0.735 | AI71: ='WACC Calc'!AC408 -> 0.735 | AJ71: ='WACC Calc'!AD408 -> 0.735 | AK71: ='WACC Calc'!AE408 -> 0.735 | AL71: ='WACC Calc'!AF408 -> 0.735 | AM71: ='WACC Calc'!AG408 -> 0.735 | AN71: ='WACC Calc'!AH408 -> 0.735 | AO71: ='WACC Calc'!AI408 -> 0.735 | AP71: ='WACC Calc'!AJ408 -> 0.735 | AQ71: ='WACC Calc'!AK408 -> 0.735
K72: Debt Fraction - Moderate | L72: ='WACC Calc'!F409 -> 0.735 | M72: ='WACC Calc'!G409 -> 0.735 | N72: ='WACC Calc'!H409 -> 0.735 | O72: ='WACC Calc'!I409 -> 0.735 | P72: ='WACC Calc'!J409 -> 0.735 | Q72: ='WACC Calc'!K409 -> 0.735 | R72: ='WACC Calc'!L409 -> 0.735 | S72: ='WACC Calc'!M409 -> 0.735 | T72: ='WACC Calc'!N409 -> 0.735 | U72: ='WACC Calc'!O409 -> 0.735 | V72: ='WACC Calc'!P409 -> 0.735 | W72: ='WACC Calc'!Q409 -> 0.735 | X72: ='WACC Calc'!R409 -> 0.735 | Y72: ='WACC Calc'!S409 -> 0.735 | Z72: ='WACC Calc'!T409 -> 0.735 | AA72: ='WACC Calc'!U409 -> 0.735 | AB72: ='WACC Calc'!V409 -> 0.735 | AC72: ='WACC Calc'!W409 -> 0.735 | AD72: ='WACC Calc'!X409 -> 0.735 | AE72: ='WACC Calc'!Y409 -> 0.735 | AF72: ='WACC Calc'!Z409 -> 0.735 | AG72: ='WACC Calc'!AA409 -> 0.735 | AH72: ='WACC Calc'!AB409 -> 0.735 | AI72: ='WACC Calc'!AC409 -> 0.735 | AJ72: ='WACC Calc'!AD409 -> 0.735 | AK72: ='WACC Calc'!AE409 -> 0.735 | AL72: ='WACC Calc'!AF409 -> 0.735 | AM72: ='WACC Calc'!AG409 -> 0.735 | AN72: ='WACC Calc'!AH409 -> 0.735 | AO72: ='WACC Calc'!AI409 -> 0.735 | AP72: ='WACC Calc'!AJ409 -> 0.735 | AQ72: ='WACC Calc'!AK409 -> 0.735
K73: Debt Fraction - Conservative | L73: ='WACC Calc'!F410 -> 0.735 | M73: ='WACC Calc'!G410 -> 0.735 | N73: ='WACC Calc'!H410 -> 0.735 | O73: ='WACC Calc'!I410 -> 0.735 | P73: ='WACC Calc'!J410 -> 0.735 | Q73: ='WACC Calc'!K410 -> 0.735 | R73: ='WACC Calc'!L410 -> 0.735 | S73: ='WACC Calc'!M410 -> 0.735 | T73: ='WACC Calc'!N410 -> 0.735 | U73: ='WACC Calc'!O410 -> 0.735 | V73: ='WACC Calc'!P410 -> 0.735 | W73: ='WACC Calc'!Q410 -> 0.735 | X73: ='WACC Calc'!R410 -> 0.735 | Y73: ='WACC Calc'!S410 -> 0.735 | Z73: ='WACC Calc'!T410 -> 0.735 | AA73: ='WACC Calc'!U410 -> 0.735 | AB73: ='WACC Calc'!V410 -> 0.735 | AC73: ='WACC Calc'!W410 -> 0.735 | AD73: ='WACC Calc'!X410 -> 0.735 | AE73: ='WACC Calc'!Y410 -> 0.735 | AF73: ='WACC Calc'!Z410 -> 0.735 | AG73: ='WACC Calc'!AA410 -> 0.735 | AH73: ='WACC Calc'!AB410 -> 0.735 | AI73: ='WACC Calc'!AC410 -> 0.735 | AJ73: ='WACC Calc'!AD410 -> 0.735 | AK73: ='WACC Calc'!AE410 -> 0.735 | AL73: ='WACC Calc'!AF410 -> 0.735 | AM73: ='WACC Calc'!AG410 -> 0.735 | AN73: ='WACC Calc'!AH410 -> 0.735 | AO73: ='WACC Calc'!AI410 -> 0.735 | AP73: ='WACC Calc'!AJ410 -> 0.735 | AQ73: ='WACC Calc'!AK410 -> 0.735
K74: Tax Rate (Federal and State) | L74: ='WACC Calc'!F411 -> 0.2574 | M74: ='WACC Calc'!G411 -> 0.2574 | N74: ='WACC Calc'!H411 -> 0.2574 | O74: ='WACC Calc'!I411 -> 0.2574 | P74: ='WACC Calc'!J411 -> 0.2574 | Q74: ='WACC Calc'!K411 -> 0.2574 | R74: ='WACC Calc'!L411 -> 0.2574 | S74: ='WACC Calc'!M411 -> 0.2574 | T74: ='WACC Calc'!N411 -> 0.2574 | U74: ='WACC Calc'!O411 -> 0.2574 | V74: ='WACC Calc'!P411 -> 0.2574 | W74: ='WACC Calc'!Q411 -> 0.2574 | X74: ='WACC Calc'!R411 -> 0.2574 | Y74: ='WACC Calc'!S411 -> 0.2574 | Z74: ='WACC Calc'!T411 -> 0.2574 | AA74: ='WACC Calc'!U411 -> 0.2574 | AB74: ='WACC Calc'!V411 -> 0.2574 | AC74: ='WACC Calc'!W411 -> 0.2574 | AD74: ='WACC Calc'!X411 -> 0.2574 | AE74: ='WACC Calc'!Y411 -> 0.2574 | AF74: ='WACC Calc'!Z411 -> 0.2574 | AG74: ='WACC Calc'!AA411 -> 0.2574 | AH74: ='WACC Calc'!AB411 -> 0.2574 | AI74: ='WACC Calc'!AC411 -> 0.2574 | AJ74: ='WACC Calc'!AD411 -> 0.2574 | AK74: ='WACC Calc'!AE411 -> 0.2574 | AL74: ='WACC Calc'!AF411 -> 0.2574 | AM74: ='WACC Calc'!AG411 -> 0.2574 | AN74: ='WACC Calc'!AH411 -> 0.2574 | AO74: ='WACC Calc'!AI411 -> 0.2574 | AP74: ='WACC Calc'!AJ411 -> 0.2574 | AQ74: ='WACC Calc'!AK411 -> 0.2574
K75: WACC Nominal - Advanced | L75: ='WACC Calc'!F412 -> 0.04250244 | M75: ='WACC Calc'!G412 -> 0.04250244 | N75: ='WACC Calc'!H412 -> 0.04250244 | O75: ='WACC Calc'!I412 -> 0.04250244 | P75: ='WACC Calc'!J412 -> 0.04250244 | Q75: ='WACC Calc'!K412 -> 0.04250244 | R75: ='WACC Calc'!L412 -> 0.04250244 | S75: ='WACC Calc'!M412 -> 0.04250244 | T75: ='WACC Calc'!N412 -> 0.04250244 | U75: ='WACC Calc'!O412 -> 0.04250244 | V75: ='WACC Calc'!P412 -> 0.04250244 | W75: ='WACC Calc'!Q412 -> 0.04250244 | X75: ='WACC Calc'!R412 -> 0.04250244 | Y75: ='WACC Calc'!S412 -> 0.04250244 | Z75: ='WACC Calc'!T412 -> 0.04250244 | AA75: ='WACC Calc'!U412 -> 0.04250244 | AB75: ='WACC Calc'!V412 -> 0.04250244 | AC75: ='WACC Calc'!W412 -> 0.04250244 | AD75: ='WACC Calc'!X412 -> 0.04250244 | AE75: ='WACC Calc'!Y412 -> 0.04250244 | AF75: ='WACC Calc'!Z412 -> 0.04250244 | AG75: ='WACC Calc'!AA412 -> 0.04250244 | AH75: ='WACC Calc'!AB412 -> 0.04250244 | AI75: ='WACC Calc'!AC412 -> 0.04250244 | AJ75: ='WACC Calc'!AD412 -> 0.04250244 | AK75: ='WACC Calc'!AE412 -> 0.04250244 | AL75: ='WACC Calc'!AF412 -> 0.04250244 | AM75: ='WACC Calc'!AG412 -> 0.04250244 | AN75: ='WACC Calc'!AH412 -> 0.04250244 | AO75: ='WACC Calc'!AI412 -> 0.04250244 | AP75: ='WACC Calc'!AJ412 -> 0.04250244 | AQ75: ='WACC Calc'!AK412 -> 0.04250244
K76: WACC Nominal - Moderate | L76: ='WACC Calc'!F413 -> 0.04250244 | M76: ='WACC Calc'!G413 -> 0.04250244 | N76: ='WACC Calc'!H413 -> 0.04250244 | O76: ='WACC Calc'!I413 -> 0.04250244 | P76: ='WACC Calc'!J413 -> 0.04250244 | Q76: ='WACC Calc'!K413 -> 0.04250244 | R76: ='WACC Calc'!L413 -> 0.04250244 | S76: ='WACC Calc'!M413 -> 0.04250244 | T76: ='WACC Calc'!N413 -> 0.04250244 | U76: ='WACC Calc'!O413 -> 0.04250244 | V76: ='WACC Calc'!P413 -> 0.04250244 | W76: ='WACC Calc'!Q413 -> 0.04250244 | X76: ='WACC Calc'!R413 -> 0.04250244 | Y76: ='WACC Calc'!S413 -> 0.04250244 | Z76: ='WACC Calc'!T413 -> 0.04250244 | AA76: ='WACC Calc'!U413 -> 0.04250244 | AB76: ='WACC Calc'!V413 -> 0.04250244 | AC76: ='WACC Calc'!W413 -> 0.04250244 | AD76: ='WACC Calc'!X413 -> 0.04250244 | AE76: ='WACC Calc'!Y413 -> 0.04250244 | AF76: ='WACC Calc'!Z413 -> 0.04250244 | AG76: ='WACC Calc'!AA413 -> 0.04250244 | AH76: ='WACC Calc'!AB413 -> 0.04250244 | AI76: ='WACC Calc'!AC413 -> 0.04250244 | AJ76: ='WACC Calc'!AD413 -> 0.04250244 | AK76: ='WACC Calc'!AE413 -> 0.04250244 | AL76: ='WACC Calc'!AF413 -> 0.04250244 | AM76: ='WACC Calc'!AG413 -> 0.04250244 | AN76: ='WACC Calc'!AH413 -> 0.04250244 | AO76: ='WACC Calc'!AI413 -> 0.04250244 | AP76: ='WACC Calc'!AJ413 -> 0.04250244 | AQ76: ='WACC Calc'!AK413 -> 0.04250244
K77: WACC Nominal - Conservative | L77: ='WACC Calc'!F414 -> 0.04250244 | M77: ='WACC Calc'!G414 -> 0.04250244 | N77: ='WACC Calc'!H414 -> 0.04250244 | O77: ='WACC Calc'!I414 -> 0.04250244 | P77: ='WACC Calc'!J414 -> 0.04250244 | Q77: ='WACC Calc'!K414 -> 0.04250244 | R77: ='WACC Calc'!L414 -> 0.04250244 | S77: ='WACC Calc'!M414 -> 0.04250244 | T77: ='WACC Calc'!N414 -> 0.04250244 | U77: ='WACC Calc'!O414 -> 0.04250244 | V77: ='WACC Calc'!P414 -> 0.04250244 | W77: ='WACC Calc'!Q414 -> 0.04250244 | X77: ='WACC Calc'!R414 -> 0.04250244 | Y77: ='WACC Calc'!S414 -> 0.04250244 | Z77: ='WACC Calc'!T414 -> 0.04250244 | AA77: ='WACC Calc'!U414 -> 0.04250244 | AB77: ='WACC Calc'!V414 -> 0.04250244 | AC77: ='WACC Calc'!W414 -> 0.04250244 | AD77: ='WACC Calc'!X414 -> 0.04250244 | AE77: ='WACC Calc'!Y414 -> 0.04250244 | AF77: ='WACC Calc'!Z414 -> 0.04250244 | AG77: ='WACC Calc'!AA414 -> 0.04250244 | AH77: ='WACC Calc'!AB414 -> 0.04250244 | AI77: ='WACC Calc'!AC414 -> 0.04250244 | AJ77: ='WACC Calc'!AD414 -> 0.04250244 | AK77: ='WACC Calc'!AE414 -> 0.04250244 | AL77: ='WACC Calc'!AF414 -> 0.04250244 | AM77: ='WACC Calc'!AG414 -> 0.04250244 | AN77: ='WACC Calc'!AH414 -> 0.04250244 | AO77: ='WACC Calc'!AI414 -> 0.04250244 | AP77: ='WACC Calc'!AJ414 -> 0.04250244 | AQ77: ='WACC Calc'!AK414 -> 0.04250244
K78: WACC Real - Advanced | L78: ='WACC Calc'!F415 -> 0.01707555122 | M78: ='WACC Calc'!G415 -> 0.01707555122 | N78: ='WACC Calc'!H415 -> 0.01707555122 | O78: ='WACC Calc'!I415 -> 0.01707555122 | P78: ='WACC Calc'!J415 -> 0.01707555122 | Q78: ='WACC Calc'!K415 -> 0.01707555122 | R78: ='WACC Calc'!L415 -> 0.01707555122 | S78: ='WACC Calc'!M415 -> 0.01707555122 | T78: ='WACC Calc'!N415 -> 0.01707555122 | U78: ='WACC Calc'!O415 -> 0.01707555122 | V78: ='WACC Calc'!P415 -> 0.01707555122 | W78: ='WACC Calc'!Q415 -> 0.01707555122 | X78: ='WACC Calc'!R415 -> 0.01707555122 | Y78: ='WACC Calc'!S415 -> 0.01707555122 | Z78: ='WACC Calc'!T415 -> 0.01707555122 | AA78: ='WACC Calc'!U415 -> 0.01707555122 | AB78: ='WACC Calc'!V415 -> 0.01707555122 | AC78: ='WACC Calc'!W415 -> 0.01707555122 | AD78: ='WACC Calc'!X415 -> 0.01707555122 | AE78: ='WACC Calc'!Y415 -> 0.01707555122 | AF78: ='WACC Calc'!Z415 -> 0.01707555122 | AG78: ='WACC Calc'!AA415 -> 0.01707555122 | AH78: ='WACC Calc'!AB415 -> 0.01707555122 | AI78: ='WACC Calc'!AC415 -> 0.01707555122 | AJ78: ='WACC Calc'!AD415 -> 0.01707555122 | AK78: ='WACC Calc'!AE415 -> 0.01707555122 | AL78: ='WACC Calc'!AF415 -> 0.01707555122 | AM78: ='WACC Calc'!AG415 -> 0.01707555122 | AN78: ='WACC Calc'!AH415 -> 0.01707555122 | AO78: ='WACC Calc'!AI415 -> 0.01707555122 | AP78: ='WACC Calc'!AJ415 -> 0.01707555122 | AQ78: ='WACC Calc'!AK415 -> 0.01707555122
K79: WACC Real - Moderate | L79: ='WACC Calc'!F416 -> 0.01707555122 | M79: ='WACC Calc'!G416 -> 0.01707555122 | N79: ='WACC Calc'!H416 -> 0.01707555122 | O79: ='WACC Calc'!I416 -> 0.01707555122 | P79: ='WACC Calc'!J416 -> 0.01707555122 | Q79: ='WACC Calc'!K416 -> 0.01707555122 | R79: ='WACC Calc'!L416 -> 0.01707555122 | S79: ='WACC Calc'!M416 -> 0.01707555122 | T79: ='WACC Calc'!N416 -> 0.01707555122 | U79: ='WACC Calc'!O416 -> 0.01707555122 | V79: ='WACC Calc'!P416 -> 0.01707555122 | W79: ='WACC Calc'!Q416 -> 0.01707555122 | X79: ='WACC Calc'!R416 -> 0.01707555122 | Y79: ='WACC Calc'!S416 -> 0.01707555122 | Z79: ='WACC Calc'!T416 -> 0.01707555122 | AA79: ='WACC Calc'!U416 -> 0.01707555122 | AB79: ='WACC Calc'!V416 -> 0.01707555122 | AC79: ='WACC Calc'!W416 -> 0.01707555122 | AD79: ='WACC Calc'!X416 -> 0.01707555122 | AE79: ='WACC Calc'!Y416 -> 0.01707555122 | AF79: ='WACC Calc'!Z416 -> 0.01707555122 | AG79: ='WACC Calc'!AA416 -> 0.01707555122 | AH79: ='WACC Calc'!AB416 -> 0.01707555122 | AI79: ='WACC Calc'!AC416 -> 0.01707555122 | AJ79: ='WACC Calc'!AD416 -> 0.01707555122 | AK79: ='WACC Calc'!AE416 -> 0.01707555122 | AL79: ='WACC Calc'!AF416 -> 0.01707555122 | AM79: ='WACC Calc'!AG416 -> 0.01707555122 | AN79: ='WACC Calc'!AH416 -> 0.01707555122 | AO79: ='WACC Calc'!AI416 -> 0.01707555122 | AP79: ='WACC Calc'!AJ416 -> 0.01707555122 | AQ79: ='WACC Calc'!AK416 -> 0.01707555122
K80: WACC Real - Conservative | L80: ='WACC Calc'!F417 -> 0.01707555122 | M80: ='WACC Calc'!G417 -> 0.01707555122 | N80: ='WACC Calc'!H417 -> 0.01707555122 | O80: ='WACC Calc'!I417 -> 0.01707555122 | P80: ='WACC Calc'!J417 -> 0.01707555122 | Q80: ='WACC Calc'!K417 -> 0.01707555122 | R80: ='WACC Calc'!L417 -> 0.01707555122 | S80: ='WACC Calc'!M417 -> 0.01707555122 | T80: ='WACC Calc'!N417 -> 0.01707555122 | U80: ='WACC Calc'!O417 -> 0.01707555122 | V80: ='WACC Calc'!P417 -> 0.01707555122 | W80: ='WACC Calc'!Q417 -> 0.01707555122 | X80: ='WACC Calc'!R417 -> 0.01707555122 | Y80: ='WACC Calc'!S417 -> 0.01707555122 | Z80: ='WACC Calc'!T417 -> 0.01707555122 | AA80: ='WACC Calc'!U417 -> 0.01707555122 | AB80: ='WACC Calc'!V417 -> 0.01707555122 | AC80: ='WACC Calc'!W417 -> 0.01707555122 | AD80: ='WACC Calc'!X417 -> 0.01707555122 | AE80: ='WACC Calc'!Y417 -> 0.01707555122 | AF80: ='WACC Calc'!Z417 -> 0.01707555122 | AG80: ='WACC Calc'!AA417 -> 0.01707555122 | AH80: ='WACC Calc'!AB417 -> 0.01707555122 | AI80: ='WACC Calc'!AC417 -> 0.01707555122 | AJ80: ='WACC Calc'!AD417 -> 0.01707555122 | AK80: ='WACC Calc'!AE417 -> 0.01707555122 | AL80: ='WACC Calc'!AF417 -> 0.01707555122 | AM80: ='WACC Calc'!AG417 -> 0.01707555122 | AN80: ='WACC Calc'!AH417 -> 0.01707555122 | AO80: ='WACC Calc'!AI417 -> 0.01707555122 | AP80: ='WACC Calc'!AJ417 -> 0.01707555122 | AQ80: ='WACC Calc'!AK417 -> 0.01707555122
K81: Capital Recovery Factor (CRF) Nominal - Advanced | L81: =L75 / (1 - (1 / (1 + L75)^$N$28)) -> 0.05959998452 | M81: 0.05959998452 | N81: 0.05959998452 | O81: 0.05959998452 | P81: 0.05959998452 | Q81: 0.05959998452 | R81: 0.05959998452 | S81: 0.05959998452 | T81: 0.05959998452 | U81: 0.05959998452 | V81: 0.05959998452 | W81: 0.05959998452 | X81: 0.05959998452 | Y81: 0.05959998452 | Z81: 0.05959998452 | AA81: 0.05959998452 | AB81: 0.05959998452 | AC81: 0.05959998452 | AD81: 0.05959998452 | AE81: 0.05959998452 | AF81: 0.05959998452 | AG81: 0.05959998452 | AH81: 0.05959998452 | AI81: 0.05959998452 | AJ81: 0.05959998452 | AK81: 0.05959998452 | AL81: 0.05959998452 | AM81: 0.05959998452 | AN81: 0.05959998452 | AO81: 0.05959998452 | AP81: 0.05959998452 | AQ81: 0.05959998452
K82: Capital Recovery Factor (CRF) Nominal - Moderate | L82: =L76 / (1 - (1 / (1 + L76)^$N$28)) -> 0.05959998452 | M82: 0.05959998452 | N82: 0.05959998452 | O82: 0.05959998452 | P82: 0.05959998452 | Q82: 0.05959998452 | R82: 0.05959998452 | S82: 0.05959998452 | T82: 0.05959998452 | U82: 0.05959998452 | V82: 0.05959998452 | W82: 0.05959998452 | X82: 0.05959998452 | Y82: 0.05959998452 | Z82: 0.05959998452 | AA82: 0.05959998452 | AB82: 0.05959998452 | AC82: 0.05959998452 | AD82: 0.05959998452 | AE82: 0.05959998452 | AF82: 0.05959998452 | AG82: 0.05959998452 | AH82: 0.05959998452 | AI82: 0.05959998452 | AJ82: 0.05959998452 | AK82: 0.05959998452 | AL82: 0.05959998452 | AM82: 0.05959998452 | AN82: 0.05959998452 | AO82: 0.05959998452 | AP82: 0.05959998452 | AQ82: 0.05959998452
K83: Capital Recovery Factor (CRF) Nominal - Conservative | L83: =L77 / (1 - (1 / (1 + L77)^$N$28)) -> 0.05959998452 | M83: 0.05959998452 | N83: 0.05959998452 | O83: 0.05959998452 | P83: 0.05959998452 | Q83: 0.05959998452 | R83: 0.05959998452 | S83: 0.05959998452 | T83: 0.05959998452 | U83: 0.05959998452 | V83: 0.05959998452 | W83: 0.05959998452 | X83: 0.05959998452 | Y83: 0.05959998452 | Z83: 0.05959998452 | AA83: 0.05959998452 | AB83: 0.05959998452 | AC83: 0.05959998452 | AD83: 0.05959998452 | AE83: 0.05959998452 | AF83: 0.05959998452 | AG83: 0.05959998452 | AH83: 0.05959998452 | AI83: 0.05959998452 | AJ83: 0.05959998452 | AK83: 0.05959998452 | AL83: 0.05959998452 | AM83: 0.05959998452 | AN83: 0.05959998452 | AO83: 0.05959998452 | AP83: 0.05959998452 | AQ83: 0.05959998452
K84: Capital Recovery Factor (CRF) Real - Advanced | L84: =L78 / (1 - (1 / (1 + L78)^$N$28)) -> 0.0428745919 | M84: 0.0428745919 | N84: 0.0428745919 | O84: 0.0428745919 | P84: 0.0428745919 | Q84: 0.0428745919 | R84: 0.0428745919 | S84: 0.0428745919 | T84: 0.0428745919 | U84: 0.0428745919 | V84: 0.0428745919 | W84: 0.0428745919 | X84: 0.0428745919 | Y84: 0.0428745919 | Z84: 0.0428745919 | AA84: 0.0428745919 | AB84: 0.0428745919 | AC84: 0.0428745919 | AD84: 0.0428745919 | AE84: 0.0428745919 | AF84: 0.0428745919 | AG84: 0.0428745919 | AH84: 0.0428745919 | AI84: 0.0428745919 | AJ84: 0.0428745919 | AK84: 0.0428745919 | AL84: 0.0428745919 | AM84: 0.0428745919 | AN84: 0.0428745919 | AO84: 0.0428745919 | AP84: 0.0428745919 | AQ84: 0.0428745919
K85: Capital Recovery Factor (CRF) Real - Moderate | L85: =L79 / (1 - (1 / (1 + L79)^$N$28)) -> 0.0428745919 | M85: 0.0428745919 | N85: 0.0428745919 | O85: 0.0428745919 | P85: 0.0428745919 | Q85: 0.0428745919 | R85: 0.0428745919 | S85: 0.0428745919 | T85: 0.0428745919 | U85: 0.0428745919 | V85: 0.0428745919 | W85: 0.0428745919 | X85: 0.0428745919 | Y85: 0.0428745919 | Z85: 0.0428745919 | AA85: 0.0428745919 | AB85: 0.0428745919 | AC85: 0.0428745919 | AD85: 0.0428745919 | AE85: 0.0428745919 | AF85: 0.0428745919 | AG85: 0.0428745919 | AH85: 0.0428745919 | AI85: 0.0428745919 | AJ85: 0.0428745919 | AK85: 0.0428745919 | AL85: 0.0428745919 | AM85: 0.0428745919 | AN85: 0.0428745919 | AO85: 0.0428745919 | AP85: 0.0428745919 | AQ85: 0.0428745919
K86: Capital Recovery Factor (CRF) Real - Conservative | L86: =L80 / (1 - (1 / (1 + L80)^$N$28)) -> 0.0428745919 | M86: 0.0428745919 | N86: 0.0428745919 | O86: 0.0428745919 | P86: 0.0428745919 | Q86: 0.0428745919 | R86: 0.0428745919 | S86: 0.0428745919 | T86: 0.0428745919 | U86: 0.0428745919 | V86: 0.0428745919 | W86: 0.0428745919 | X86: 0.0428745919 | Y86: 0.0428745919 | Z86: 0.0428745919 | AA86: 0.0428745919 | AB86: 0.0428745919 | AC86: 0.0428745919 | AD86: 0.0428745919 | AE86: 0.0428745919 | AF86: 0.0428745919 | AG86: 0.0428745919 | AH86: 0.0428745919 | AI86: 0.0428745919 | AJ86: 0.0428745919 | AK86: 0.0428745919 | AL86: 0.0428745919 | AM86: 0.0428745919 | AN86: 0.0428745919 | AO86: 0.0428745919 | AP86: 0.0428745919 | AQ86: 0.0428745919
D89: X | G89: Future Projections
L90: Base Year
L91: 2019 | M91: 2020 | N91: 2021 | O91: 2022 | P91: 2023 | Q91: 2024 | R91: 2025 | S91: 2026 | T91: 2027 | U91: 2028 | V91: 2029 | W91: 2030 | X91: 2031 | Y91: 2032 | Z91: 2033 | AA91: 2034 | AB91: 2035 | AC91: 2036 | AD91: 2037 | AE91: 2038 | AF91: 2039 | AG91: 2040 | AH91: 2041 | AI91: 2042 | AJ91: 2043 | AK91: 2044 | AL91: 2045 | AM91: 2046 | AN91: 2047 | AO91: 2048 | AP91: 2049 | AQ91: 2050
H92: Techno-Economic Cost and Performance Parameters | J92: Net Capacity Factor (%) | K92: Utility PV - Class 10 - Advanced | L92: 0.1926527084 | M92: 0.19615154 | N92: 0.1996503716 | O92: 0.2031492033 | P92: 0.2066480349 | Q92: 0.2101468665 | R92: 0.2136456981 | S92: 0.2171445297 | T92: 0.2206433614 | U92: 0.224142193 | V92: 0.2276410246 | W92: 0.2311398562 | X92: 0.2316423342 | Y92: 0.2321448121 | Z92: 0.2326472901 | AA92: 0.233149768 | AB92: 0.233652246 | AC92: 0.2341547239 | AD92: 0.2346572018 | AE92: 0.2351596798 | AF92: 0.2356621577 | AG92: 0.2361646357 | AH92: 0.2366671136 | AI92: 0.2371695916 | AJ92: 0.2376720695 | AK92: 0.2381745475 | AL92: 0.2386770254 | AM92: 0.2391795034 | AN92: 0.2396819813 | AO92: 0.2401844593 | AP92: 0.2406869372 | AQ92: 0.2411894152
K93: Utility PV - Class 10 - Moderate | L93: 0.1926527084 | M93: 0.19473197 | N93: 0.1968112317 | O93: 0.1988904933 | P93: 0.200969755 | Q93: 0.2030490166 | R93: 0.2051282782 | S93: 0.2072075399 | T93: 0.2092868015 | U93: 0.2113660632 | V93: 0.2134453248 | W93: 0.2155245864 | X93: 0.2163053499 | Y93: 0.2170861134 | Z93: 0.2178668769 | AA93: 0.2186476404 | AB93: 0.2194284039 | AC93: 0.2202091674 | AD93: 0.2209899309 | AE93: 0.2217706944 | AF93: 0.2225514578 | AG93: 0.2233322213 | AH93: 0.2241129848 | AI93: 0.2248937483 | AJ93: 0.2256745118 | AK93: 0.2264552753 | AL93: 0.2272360388 | AM93: 0.2280168023 | AN93: 0.2287975657 | AO93: 0.2295783292 | AP93: 0.2303590927 | AQ93: 0.2311398562
K94: Utility PV - Class 10 - Conservative | L94: 0.1926527084 | M94: 0.1926527084 | N94: 0.1926527084 | O94: 0.1926527084 | P94: 0.1926527084 | Q94: 0.1926527084 | R94: 0.1926527084 | S94: 0.1926527084 | T94: 0.1926527084 | U94: 0.1926527084 | V94: 0.1926527084 | W94: 0.1926527084 | X94: 0.1937963023 | Y94: 0.1949398962 | Z94: 0.1960834901 | AA94: 0.197227084 | AB94: 0.1983706779 | AC94: 0.1995142718 | AD94: 0.2006578657 | AE94: 0.2018014596 | AF94: 0.2029450535 | AG94: 0.2040886474 | AH94: 0.2052322413 | AI94: 0.2063758352 | AJ94: 0.2075194291 | AK94: 0.208663023 | AL94: 0.2098066169 | AM94: 0.2109502108 | AN94: 0.2120938047 | AO94: 0.2132373986 | AP94: 0.2143809925 | AQ94: 0.2155245864
K95: Utility PV - Class 9 - Advanced | L95: 0.2097313496 | M95: 0.2135403522 | N95: 0.2173493549 | O95: 0.2211583575 | P95: 0.2249673602 | Q95: 0.2287763628 | R95: 0.2325853655 | S95: 0.2363943681 | T95: 0.2402033708 | U95: 0.2440123734 | V95: 0.2478213761 | W95: 0.2516303787 | X95: 0.2521774013 | Y95: 0.2527244239 | Z95: 0.2532714464 | AA95: 0.253818469 | AB95: 0.2543654915 | AC95: 0.2549125141 | AD95: 0.2554595367 | AE95: 0.2560065592 | AF95: 0.2565535818 | AG95: 0.2571006044 | AH95: 0.2576476269 | AI95: 0.2581946495 | AJ95: 0.258741672 | AK95: 0.2592886946 | AL95: 0.2598357172 | AM95: 0.2603827397 | AN95: 0.2609297623 | AO95: 0.2614767849 | AP95: 0.2620238074 | AQ95: 0.26257083
K96: Utility PV - Class 9 - Moderate | L96: 0.2097313496 | M96: 0.2119949375 | N96: 0.2142585255 | O96: 0.2165221134 | P96: 0.2187857014 | Q96: 0.2210492893 | R96: 0.2233128773 | S96: 0.2255764652 | T96: 0.2278400532 | U96: 0.2301036411 | V96: 0.2323672291 | W96: 0.234630817 | X96: 0.2354807951 | Y96: 0.2363307732 | Z96: 0.2371807513 | AA96: 0.2380307294 | AB96: 0.2388807075 | AC96: 0.2397306856 | AD96: 0.2405806636 | AE96: 0.2414306417 | AF96: 0.2422806198 | AG96: 0.2431305979 | AH96: 0.243980576 | AI96: 0.2448305541 | AJ96: 0.2456805321 | AK96: 0.2465305102 | AL96: 0.2473804883 | AM96: 0.2482304664 | AN96: 0.2490804445 | AO96: 0.2499304226 | AP96: 0.2507804007 | AQ96: 0.2516303787
